Workbook

Sheet Süt
B1: SÜTÇÜ SIĞIRLAR İÇİN EN DÜŞÜK | G1: BESİN MADDELERİ | H1: İHTİYAÇ | I1: RASYON | J1: SONUÇ | K1: =TODAY() -> 2025-08-18 | M1: Coşkun & İnal & İnal | O1: Selçuk Üniversitesi Veteriner Fakültesi Rasyon Hazırlama Programları | AB1: Adres | AC1: Rasyonlar | AD1: Rasyon Kayıt Bölümü
B2: MALİYETLİ RASYON PROGRAMI | G2: =Rapor!G2 -> Kuru Madde, kg/gün | H2: =Rapor!H2 -> 21.16079225 | I2: =Rapor!I2 -> 21.13815915 | J2: =Rapor!J2 -> TAMAM | O2: Fİ & Şİ & BC | AB2: AE | AC2: Sağmal İnek1 | AD2: Diğer bilgiler | AE2: 1 | AF2: 2 | AG2: 3 | AH2: 4 | AI2: 5 | AJ2: 6 | AK2: 7 | AL2: 8 | AM2: 9 | AN2: 10 | AO2: =AN2+1 -> 11 | AP2: =AO2+1 -> 12 | AQ2: 13 | AR2: 14 | AS2: 15 | AT2: 16 | AU2: 17 | AV2: 18 | AW2: 19 | AX2: 20 | AY2: 21 | AZ2: 22 | BA2: 23 | BB2: 24 | BC2: 25 | BD2: 26 | BE2: 27 | BF2: 28 | BG2: 29 | BH2: 30
C3: Miktar,kg | D3: Fiyat,₺ | E3: Yemlerin sınırları | G3: =Rapor!G3 -> Kuru madde, % Canlı Ağırlık | I3: =Rapor!I3 -> 3.252024485 | K3: Hayvanın tipi : | L3: Sağmal İnek | AB3: AF | AD3: Rasyonun Adı : | AE3: Sağmal İnek1
B4: VERİLECEK YEMLER | C4: =Rapor!C4 -> 39.61711607 | D4: =(C5*D5+C6*D6+C7*D7+C8*D8+C9*D9+C10*D10+C11*D11+C12*D12+C13*D13+C14*D14+C15*D15+C16*D16+C17*D17+C18*D18+C19*D19+C20*D20+C21*D21+C22*D22+C23*D23+C24*D24+C25*D25+C26*D26+C27*D27+C28*D28+C29*D29+C30*D30+C31*D31) -> 202.3433904 | E4: En az | F4: En çok | G4: =Rapor!G4 -> Rasyon Kuru Madde Oranı, % | I4: =Rapor!I4 -> 53.35612799 | K4: Irkı : | L4: Siyah Alaca | AB4: AG | AD4: Rasyonun hazırlandığı tarih : | AE4: 12.11.2024
A5: 1 | B5: Mısır Silajı, %29-33 KM | C5: 25 | D5: 2.5 | E5: 0 | F5: 25 | G5: =Rapor!G5 -> Rasyon Kaba Yem Oranı, % | I5: =Rapor!I5 -> 70.35086971 | K5: Yaşı : | L5: 51 | M5: ay | O5: Hayvan Sahibi ile İlgili bilgiler | Q5: Rasyonla ilgili bilgiler | T5: İhtiyaç | U5: Rasyon | V5: Sonuç | AB5: AH | AD5: Hayvan sahibinin adı soyadı :
A6: 2 | B6: Buğday Samanı | C6: 0.7087150009 | D6: 1.5 | E6: 0 | F6: 7 | G6: =Rapor!G6 -> Ham Protein, g/gün | H6: =Rapor!H6 -> 2884.33 | I6: =Rapor!I6 -> 2951.987463 | J6: =Rapor!J6 -> TAMAM | K6: Canlı ağırlığı : | L6: 650 | M6: kg | O6: Adı Soyadı: | P6: aaa | Q6: Ham Protein (g/gün): | T6: =RDPReq+RUPReq -> 2884.33 | U6: =DietCP*TotalDMFed*1000 -> 2951.987463 | V6: =IF(T6=""," ",IF(U6>(T6*1.05),"FAZLA",IF(U6<(T6*0.95),"EKSİK","TAMAM"))) -> TAMAM | AB6: AI | AD6: Rasyonu Hazırlayanın Adı Soyadı : | AE6: wwww
A7: 2 | B7: Yonca Kuru Otu, 4.kalite, %15-17 HP, %44-48 NDF | C7: 7 | D7: 8.5 | E7: 0 | F7: 7 | G7: =Rapor!G7 -> Ham Protein, % KM | I7: =Rapor!I7 -> 13.96520596 | K7: Hedef GCAA : | L7: 0.8730263158 | M7: kg | O7: Adresi: | P7: fff | Q7: HP (% KM): | U7: =DietCP*100 -> 13.96520596 | AB7: AJ | AD7: Adresi :
A8: 3 | B8: Arpa, Ezme | C8: 5 | D8: 9.75 | E8: 0 | F8: 5 | G8: =Rapor!G8 -> Metabolik Protein, g/gün | H8: =Rapor!H8 -> 1918.734132 | I8: =Rapor!I8 -> 1898.010983 | J8: =Rapor!J8 -> TAMAM | K8: Kaç günlük gebe : | L8: 30 | M8: gün | O8: Telefon Numarası: | P8: 333 | Q8: =IF(OR(AnimalType = "Damızlık Düve",AnimalType = "Kurudaki İnek")=TRUE,"","Metabolik Protein (g/gün):") -> Metabolik Protein (g/gün): | T8: =IF(OR(AnimalType = "Damızlık Düve",AnimalType = "Kurudaki İnek")=TRUE,"",MP_TargetDietConc*DryMatterIntake) -> 1918.734132 | U8: =IF(OR(AnimalType = "Damızlık Düve",AnimalType = "Kurudaki İnek")=TRUE,"",(MPFeed*1000)+MPBact+MPEndo) -> 1898.010983 | V8: =IF(T8=""," ",IF(U8>(T8*1.05),"FAZLA",IF(U8<(T8*0.95),"EKSİK","TAMAM"))) -> TAMAM | AB8: AK | AD8: Telefonu :
A9: 3 | B9: Mısır, Pul Haline Getirilmiş | C9: 2.094454588e-08 | D9: 11.5 | E9: 0 | F9: 10 | G9: =Rapor!G9 -> Rumende Yıkılabilir Protein, g/gün | H9: =Rapor!H9 -> 2024 | I9: =Rapor!I9 -> 2061.587216 | J9: =Rapor!J9 -> TAMAM | K9: Kondisyon skoru : | L9: 3 | Q9: =IF(OR(AnimalType="Damızlık Düve",AnimalType="Kurudaki İnek")=TRUE,"","Rumende Yıkılabilir Protein (g/gün):") -> Rumende Yıkılabilir Protein (g/gün): | T9: =IF(OR(AnimalType = "Damızlık Düve",AnimalType = "Kurudaki İnek")=TRUE,"",RDPReq) -> 2024 | U9: =IF(OR(AnimalType = "Damızlık Düve",AnimalType = "Kurudaki İnek")=TRUE,"",RDPSup) -> 2061.587216 | V9: =IF(T9=""," ",IF(U9>(T9*1.05),"FAZLA",IF(U9<(T9*0.95),"EKSİK","TAMAM"))) -> TAMAM | AB9: AL | AD9: Hayvan Tanımlama Bilgisi Girişi
A10: 4 | B10: Pamuk Tohumu Küspesi, Pres, %25 HP | C10: 1.642604015e-08 | D10: 12 | E10: 0 | F10: 5 | G10: =Rapor!G10 -> Rumende Yıkımlanmayan Protein, g/gün | H10: =Rapor!H10 -> 860.33 | I10: =Rapor!I10 -> 890.4002472 | J10: =Rapor!J10 -> TAMAM | K10: Kaç gündür süt veriyor : | L10: 120 | M10: gün | O10: Hayvanla İlgili bilgiler | Q10: =IF(OR(AnimalType = "Damızlık Düve",AnimalType = "Kurudaki İnek")=TRUE,"","Rumende Yıkılabilir Protein (% HP):") -> Rumende Yıkılabilir Protein (% HP): | U10: =IF(OR(AnimalType = "Damızlık Düve",AnimalType = "Kurudaki İnek")=TRUE,"",CP_RDP*100) -> 69.8372619 | AB10: AM | AD10: Hayvanın Tipi : | AE10: Sağmal İnek
A11: 4 | B11: Soya Küspesi, Solvent, %44 | C11: 1.753401027 | D11: 17 | E11: 0 | F11: 5 | G11: =Rapor!G11 -> ME, Mcal/kg KM | I11: =Rapor!I11 -> 2.433030364 | K11: Kaçıncı laktasyonda : | L11: 3 | O11: Hayvanın tipi: | P11: =AnimalType -> Sağmal İnek | Q11: =IF(OR(AnimalType = "Damızlık Düve",AnimalType = "Kurudaki İnek")=TRUE,"","By-pass Protein (g/gün):") -> By-pass Protein (g/gün): | T11: =IF(OR(AnimalType = "Damızlık Düve",AnimalType = "Kurudaki İnek")=TRUE,"",RUPReq) -> 860.33 | U11: =IF(OR(AnimalType = "Damızlık Düve",AnimalType = "Kurudaki İnek")=TRUE,"",RUPSup) -> 890.4002472 | V11: =IF(AnimalType="Damızlık Düve","",IF(T11=""," ",IF(U11>(T11*1.05),"FAZLA",IF(U11<(T11*0.95),"EKSİK","TAMAM")))) -> TAMAM | AB11: AN | AD11: Irkı : | AE11: Siyah Alaca
A12: 5 | B12: Buğday Kepeği, Razmol | C12: 0 | D12: 12 | E12: 0 | F12: 2 | G12: =Rapor!G12 -> NEl, Mcal/kg KM | H12: =Rapor!H12 ->  | I12: =Rapor!I12 -> 1.377288027 | K12: İlk buzağılama yaşı : | L12: 24 | M12: ay | O12: Yaşı (ay): | P12: =Age -> 51 | Q12: =IF(OR(AnimalType = "Damızlık Düve",AnimalType = "Kurudaki İnek")=TRUE,"","By-pass Protein (% HP):") -> By-pass Protein (% HP): | U12: =IF(OR(AnimalType = "Damızlık Düve",AnimalType = "Kurudaki İnek")=TRUE,"",CP_RUP*100) -> 30.1627381 | AB12: AO | AD12: Yaşı : | AE12: 51
A13: 5 | B13: Şeker Pancarı Posası,Yaş, Ambalajlı | C13: 0 | D13: 2.5 | E13: 0 | F13: 10 | G13: =Rapor!G13 -> NEl, Mcal/gün | H13: =Rapor!H13 -> 28.19010779 | I13: =Rapor!I13 -> 29.11333352 | J13: =Rapor!J13 -> TAMAM | K13: Buzağılama aralığı : | L13: 12 | M13: ay | O13: Irk: | P13: =Breed -> Siyah Alaca | AB13: AP | AD13: Canlı Ağırlığı : | AE13: 650
G14: =Rapor!G14 -> Emilebilir Ca, g/gün | H14: =Rapor!H14 -> 51.17 | I14: =Rapor!I14 -> 50.83283607 | J14: =Rapor!J14 -> TAMAM | K14: Günlük süt verimi : | L14: 25 | M14: kg | O14: Canlı ağırlığı (kg): | P14: =BW -> 650 | Q14: =CONCATENATE(IF(AnimalType<>"Damızlık Düve","NEl,","ME,")," Mcal/gün") -> NEl, Mcal/gün | T14: =IF(AnimalType <> "Damızlık Düve",NEMaint+NEPreg+NELact+NEGrowth,MEMaint+MEPreg+MEGrowth) -> 28.19010779 | U14: =I13 -> 29.11333352 | V14: =IF(T14=""," ",IF(U14>(T14*1.05),"FAZLA",IF(U14<(T14*0.98),"EKSİK","TAMAM"))) -> TAMAM | AB14: AQ | AD14: Hedef Günlük Canlı Ağırlık Artışı : | AE14: 0.8730263158
G15: =Rapor!G15 -> Ca, % KM | I15: =Rapor!I15 -> 0.5854514799 | K15: Süt yağı oranı : | L15: 3.7 | M15: % | O15: Kondisyon skoru: | P15: =CS -> 3 | Q15: ME (Mcal/kg KM): | U15: =DietME -> 2.433030364 | AB15: AR | AD15: Kaç günlük gebe : | AE15: 30
G16: =Rapor!G16 -> Emilebilir P, g/gün | H16: =Rapor!H16 -> 44.93815915 | I16: =Rapor!I16 -> 44.66135014 | J16: =Rapor!J16 -> TAMAM | K16: Süt proteini oranı : | L16: 3.1 | M16: % | O16: Gebelik günü: | P16: =DaysPreg -> 30 | Q16: =IF(AnimalType <> "Damızlık Düve","NEl, Mcal/kg KM","") -> NEl, Mcal/kg KM | U16: =IF(AnimalType <> "Damızlık Düve",NEl_Total/TotalDMFed,"") -> 1.377288027 | AB16: AS | AD16: Kondisyon Skoru : | AE16: 3
G17: =Rapor!G17 -> P, % KM | I17: =Rapor!I17 -> 0.3083169578 | K17: Sütteki laktoz oranı : | L17: 4.8 | M17: % | O17: =IF(AnimalType="Sağmal İnek","Laktasyon günü:","") -> Laktasyon günü: | P17: =IF(AnimalType="Sağmal İnek",DaysInMilk,"") -> 120 | AB17: AT | AD17: Kaç gündür süt veriyor : | AE17: 120
G18: =Rapor!G18 -> Ca / P | H18: =Rapor!H18 -> 1.138675926 | I18: =Rapor!I18 -> 1.138184043 | J18: =Rapor!J18 -> TAMAM | K18: Çevre ısısı : | L18: 18 | M18: °C | O18: =IF(AnimalType="Sağmal İnek","Süt verimi (kg):","") -> Süt verimi (kg): | P18: =IF(AnimalType="Sağmal İnek",MilkProd,"") -> 25 | Q18: Emilebilir Ca (g/gün): | T18: =Ca Total -> 51.17 | U18: =Ca Absorbable -> 50.83283607 | V18: =IF(T18=""," ",IF(U18>(T18*1.02),"FAZLA",IF(U18<(T18*0.99),"EKSİK","TAMAM"))) -> TAMAM | AB18: AU | AD18: Laktasyon sayısı : | AE18: 3
G19: =Rapor!G19 -> NDF, % KM, enaz | H19: =Rapor!H19 -> 25 | I19: =Rapor!I19 -> 42.1333482 | J19: =Rapor!J19 -> TAMAM | K19: Önceki ayın ısı ortalaması : | M19: °C | O19: =IF(AnimalType="Sağmal İnek","Süt yağı (%):","") -> Süt yağı (%): | P19: =IF(AnimalType="Sağmal İnek",MilkFat,"") -> 3.7 | Q19: Ca (% KM): | U19: =Ca RD/10 -> 0.5854514799 | AB19: AV | AD19: İlk Buzağılama Yaşı : | AE19: 24
G20: =Rapor!G20 -> Kaba yem NDF, % KM, enaz | H20: =Rapor!H20 -> 19 | I20: =Rapor!I20 -> 36.17797592 | J20: =Rapor!J20 -> TAMAM | K20: Rüzgarın hızı : | L20: 1 | M20: km/sa | O20: =IF(AnimalType="Sağmal İnek","Süt proteini (%):","") -> Süt proteini (%): | P20: =IF(AnimalType="Sağmal İnek",MilkTrueProtein,"") -> 3.1 | Q20: Emilebilir P (g/gün): | T20: =P Total -> 44.93815915 | U20: =P Absorbable -> 44.66135014 | V20: =IF(T20=""," ",IF(U20>(T20*1.02),"FAZLA",IF(U20<(T20*0.99),"EKSİK","TAMAM"))) -> TAMAM | AB20: AW | AD20: Buzağılama Aralığı : | AE20: 12
G21: =Rapor!G21 -> ADF, % KM, enaz | H21: =Rapor!H21 -> 17 | I21: =Rapor!I21 -> 27.10112948 | J21: =Rapor!J21 -> TAMAM | K21: Merada otluyor mu? : | L21: Otlamıyor | O21: =IF(AnimalType="Sağmal İnek","Laktoz (%):","") -> Laktoz (%): | P21: =IF(AnimalType="Sağmal İnek",Lactose,"") -> 4.8 | Q21: P (% KM): | U21: =P RD/10 -> 0.3083169578 | AB21: AX | AD21: Günlük süt verimi : | AE21: 25
G22: =Rapor!G22 -> NFC, % KM, ençok | H22: =Rapor!H22 -> 44 | I22: =Rapor!I22 -> 36.39106469 | J22: =Rapor!J22 -> TAMAM | K22: Arazinin durumu : | Q22: Ca/P oranı: | T22: =IF(ISERROR(T18/T20)=TRUE,0,T18/T20) -> 1.138675926 | U22: =IF(ISERROR(U18/U20)=TRUE,0,U18/U20) -> 1.138184043 | V22: =IF(T22="","",IF(U22>(T22*1.05),"FAZLA",IF(U22<(T22*0.95),"EKSİK","TAMAM"))) -> TAMAM | AB22: AY | AD22: Süt yağı oranı : | AE22: 3.7
A23: 7 | B23: Mermer tozu | C23: 0.04 | D23: 2 | E23: 0 | F23: 0.5 | G23: =Rapor!G23 -> TSBM, % KM | I23: =Rapor!I23 -> 66.05814171 | K23: Mera ile ahır arası : | M23: m | AB23: AZ | AD23: Süt proteini oranı : | AE23: 3.1
A24: 7 | B24: Tuz | C24: 0.095 | D24: 1.5 | E24: 0.05 | F24: 0.1 | G24: =Rapor!G24 -> Katyon-Anyon, meq/kg | H24: =Rapor!H24 ->  | I24: =Rapor!I24 -> 160.7261867 | K24: Meraya gidiş-geliş sayısı : | M24: tur | O24: Yem Tüketimi ve Canlı Ağırlık Artışı Değerleri | Q24: Kaba Yem Oranı, % | U24: =100-PercentConc -> 70.35086971 | AB24: BA | AD24: Sütteki laktoz oranı : | AE24: 4.8
A25: 7 | B25: Vit-Min. Kar. (Kavimix VM 902), 1 kg/ton | C25: 0.02 | D25: 25 | E25: 0.01 | F25: 0.05 | G25: =Rapor!G25 -> 1 KS için gerekli gün | I25: =Rapor!I25 -> 538.9541202 | K25: Kıllarının uzunluğu : | L25: 1 | M25: cm | O25: Kuru madde tüketimi (kg/gün): | P25: =TotalDMFed -> 21.13815915 | Q25: NDF (% KM): | T25: =NDFmin -> 25 | U25: =DietNDF*100 -> 42.1333482 | V25: =IF(T25="","",IF(U25<T25,"EKSİK","TAMAM")) -> TAMAM | AB25: BB | AD25: Çevre ısısı : | AE25: 18
G26: =Rapor!G26 -> Rasyon maliyeti, TL | I26: =Rapor!I26 -> 202.3433904 | K26: Deri ve kıllarının durumu : | L26: Biraz Çamurlu | O26: Kuru madde ihtiyacı (kg/gün): | P26: =DryMatterIntake -> 21.16079225 | Q26: =IF(AnimalType <> "Damızlık Düve","Kaba yem NDF (% KM):","") -> Kaba yem NDF (% KM): | T26: =IF(AnimalType="Sağmal İnek",15,"") -> 15 | U26: =IF(OR(AnimalType = "Damızlık Düve",AnimalType = "Kurudaki İnek")=TRUE,"",ForageNDF/TotalDMFed*100) -> 36.17797592 | V26: =IF(T26="","",IF(U26<T26,"EKSİK","TAMAM")) -> TAMAM | AB26: BC | AD26: Önceki ayın ısı ortalaması :
G27: =Rapor!G27 -> Proteinin sağlayabileceği süt, kg | H27: =Rapor!H27 -> 0 | I27: =Rapor!I27 -> 24.55211259 | K27: Sıcaklık stresi : | L27: Yok | O27: Kuru madde tüketim oranı (% CA): | P27: =BW_DMI -> 3.252024485 | Q27: ADF (% KM): | T27: =ADFmin -> 17 | U27: =DietADF*100 -> 27.10112948 | V27: =IF(T27="","",IF(U27<T27,"EKSİK","TAMAM")) -> TAMAM | AB27: BD | AD27: Rüzgarın hızı : | AE27: 1
G28: =Rapor!G28 -> Enerjinin sağlayabileceği süt, kg | H28: =Rapor!H28 -> 0 | I28: =Rapor!I28 -> 26.290028 | K28: Geceler serinliyor mu? : | O28: =IF(AnimalType="Damızlık Düve","KM tüketimi / Yaşama payı KM tüketimi:","") ->  | P28: =IF(AnimalType="Damızlık Düve",DMI_to_DMIMaint,"") ->  | Q28: NFC (% KM): | T28: =NFCmak -> 44 | U28: =IF(ISERROR(DietaryNFC/TotalDMFed*100)=TRUE,0,DietaryNFC/TotalDMFed*100) -> 36.39106469 | V28: =IF(T28="","",IF(U28>T28,"FAZLA","TAMAM")) -> TAMAM | AB28: BE | AD28: Merada Otluyor mu? : | AE28: Otlamıyor
G29: =Rapor!G29 -> Kesif yem; Miktarı,kg | I29: =Rapor!I29 ->  | O29: =IF(AnimalType="Damızlık Düve","Yem enerjisinin sağlayabileceği GCAA (g):","") ->  | P29: =IF(AnimalType="Damızlık Düve",IF(DaysPreg>0,MEAllowGainPreg,MEAllowGain)*1000,"") ->  | Q29: TSBM (% KM): | U29: =TDNConc -> 66.05814171 | AB29: BF | AD29: Arazinin durumu :
G30: =Rapor!G30 -> HP,% KM | I30: =Rapor!I30 ->  | M30: kg | O30: =IF(AnimalType="Damızlık Düve","Yem metabolik proteininin sağlayabileceği GCAA (g):","") ->  | P30: =IF(AnimalType="Damızlık Düve",IF(DaysPreg>0,MPAllowGainPreg,MPAllowGain)*1000,"") ->  | AB30: BG | AD30: Mera ile sağım yeri arası :
G31: =Rapor!G31 -> ME,Mcal/kg KM | I31: =Rapor!I31 ->  | K31: =19*0.9 -> 17.1 | M31: °C | O31: =IF(AnimalType="Damızlık Düve","Düvenin durumuna uygun GCAA (g):","") ->  | P31: =IF(AnimalType="Damızlık Düve",IF(DaysPreg>0,TargetADGPreg,TargetADGwoPreg)*1000,"") ->  | Q31: Katyon-anyon (mEQ/kg): | T31: =IF(AnimalType="Kurudaki İnek",IF(DaysPreg>264,"Negatif",""),"") ->  | U31: =DCAD/1000 -> 160.7261867 | AB31: BH | AD31: Meraya gidiş-geliş sayısı :
G32: =Rapor!G32 -> Ca,% KM | I32: =Rapor!I32 ->  | AD32: Kıllarının uzunluğu : | AE32: 1
G33: =Rapor!G33 -> P,% KM | I33: =Rapor!I33 ->  | Q33: Rasyon maliyeti (Krş/gün): | T33: =IF(AnimalType="Kurudaki İnek",IF(DaysPreg>264,"Negatif",""),"") ->  | U33: =Fiyat -> 202.3433904 | AD33: Deri ve kıllarının durumu : | AE33: Biraz Çamurlu
AD34: Sıcaklık stresi : | AE34: Yok
AD35: Gece serinliği :
AD36: Buzağının Canlı ağırlığı :
AD37: Buzağının Çevre sıcaklığı :
AD38: Yemlerin KODU | AE38: 1
O39: Rasyon özeti | P39: Yem | Q39: KM | R39: KM | S39: ME | T39: NEl | U39: HP | V39: NDF | AE39: 2
O40: Yem maddeleri | P40: kg/gün | Q40: kg/gün | R40: % | S40: Mcal/gün | T40: Mcal/gün | U40: g/gün | V40: kg/gün | AE40: 2
N41: 1 | AE41: 6
N42: 2
N43: 2
N44: 3
N45: 3
N46: 4
N47: 4
N48: 5
N49: 7
N50: 7
B51: Hayvanla İlgili bilgiler | D51: Rasyonla ilgili bilgiler | N51: 10
B52: Hayvanın tipi: | C52: =AnimalType -> Sağmal İnek | D52: Kaba Yem Oranı, % | H52: =100-PercentConc -> 70.35086971
B53: Yaşı (ay): | C53: =Age -> 51 | D53: NDF (% KM): | H53: =DietNDF*100 -> 42.1333482
B54: Irk: | C54: =Breed -> Siyah Alaca | D54: Kaba yem NDF (% KM): | H54: =ForageNDF/TotalDMFed*100 -> 36.17797592
B55: Canlı ağırlığı (kg): | C55: =BW -> 650 | D55: ADF (% KM): | H55: =DietADF*100 -> 27.10112948
B56: Ergin ağırlık (kg): | C56: =MW -> 682 | D56: NFC (% KM): | H56: =DietaryNFC/TotalDMFed*100 -> 36.39106469
B57: =IF(AnimalType<>"Damızlık Düve","","Hedef GCAA (kg):") ->  | C57: =IF(AnimalType<>"Damızlık Düve","",ADG) ->  | D57: TSBM (% KM): | H57: =TDNConc -> 66.05814171
B58: Kondisyon skoru: | C58: =CS -> 3 | D58: =CONCATENATE(IF(AnimalType="Damızlık Düve","ME (Mcal/gün)","")) ->  | H58: =IF(AnimalType="Damızlık Düve",MEng_Total,"") -> 
B59: Gebelik günü: | C59: =DaysPreg -> 30 | D59: =CONCATENATE(IF(AnimalType="Damızlık Düve","ME (Mcal/kg KM)","")) ->  | H59: =IF(AnimalType="Damızlık Düve",DietME,"") -> 
B60: =IF(AnimalType="Sağmal İnek","Laktasyon günü:","") -> Laktasyon günü: | C60: =IF(AnimalType="Sağmal İnek",DaysInMilk,"") -> 120 | D60: NEl (Mcal/kg KM): | H60: =DietNEl -> 1.377288027
B61: =IF(AnimalType="Sağmal İnek","Süt verimi (kg):","") -> Süt verimi (kg): | C61: =IF(AnimalType="Sağmal İnek",MilkProd,"") -> 25 | D61: NEyp (Mcal/kg): | H61: =NEDietConc -> 1.377288027
B62: =IF(AnimalType="Sağmal İnek","Süt yağı (%):","") -> Süt yağı (%): | C62: =IF(AnimalType="Sağmal İnek",MilkFat,"") -> 3.7 | D62: NEb (Mcal/kg KM): | H62: =DietNEg -> 0.9391134265
B63: =IF(AnimalType="Sağmal İnek","Süt proteini (%):","") -> Süt proteini (%): | C63: =IF(AnimalType="Sağmal İnek",MilkTrueProtein,"") -> 3.1 | D63: Ca (% KM): | H63: =Ca RD/10 -> 0.5854514799
B64: =IF(AnimalType="Sağmal İnek","Laktoz (%):","") -> Laktoz (%): | C64: =IF(AnimalType="Sağmal İnek",Lactose,"") -> 4.8 | D64: P (% KM): | H64: =P RD/10 -> 0.3083169578
B65: =IF(AnimalType="Sağmal İnek","","Otlama:") ->  | C65: =IF(AnimalType="Sağmal İnek","",Grazing) ->  | D65: HY (% KM): | H65: =Fat_Total -> 0.5677695475 | AD65: Yemlerin ADI | AE65: Mısır Silajı, %29-33 KM
D66: Katyon-anyon (mEQ/kg): | H66: =DCAD/1000 -> 160.7261867 | AE66: Baklagil Kuru Otu
B67: Yem Tüketimi ve Canlı Ağırlık Artışı Değerleri | D67: Rumende Yıkılabilir Protein ihtiyacı (g/gün): | H67: =RDPReq -> 2024 | AE67: Buğday Samanı
B68: Kuru madde tüketimi (kg/gün): | C68: =TotalDMFed -> 21.13815915 | D68: Rumende Yıkılabilir Protein sağlanan (g/gün): | H68: =RDPSup -> 2061.587216 | AE68: Sığır Süt Yemi,21 HP, 2650 ME
B69: Kuru madde ihtiyacı (kg/gün): | C69: =DryMatterIntake -> 21.16079225 | D69: Rumende Yıkılabilir Protein dengesi (g/gün): | H69: =CONCATENATE(IF(RDPBal>=0,"+",""),TEXT(RDPBal,0)) -> +38
B70: Kuru madde tüketim oranı (% CA): | C70: =BW_DMI -> 3.252024485 | D70: By-pass Protein ihtiyacı (g/gün): | H70: =RUPReq -> 860.33
B71: =IF(AnimalType="Damızlık Düve","KM tüketimi / Yaşama payı KM tüketimi:","") ->  | C71: =IF(AnimalType="Damızlık Düve",DMI_to_DMIMaint,"") ->  | D71: By-pass Protein sağlanan (g/gün): | H71: =RUPSup -> 890.4002472
B72: =IF(AnimalType="Damızlık Düve","Yem enerjisinin sağlayabileceği GCAA (g):","") ->  | C72: =IF(AnimalType="Damızlık Düve",IF(DaysPreg>0,MEAllowGainPreg,MEAllowGain)*1000,"") ->  | D72: By-pass Protein dengesi (g/gün): | H72: =CONCATENATE(IF(RUPBal>=0,"+",""),TEXT(RUPBal,0)) -> +30
B73: =IF(AnimalType="Damızlık Düve","Yem metabolik proteininin sağlayabileceği GCAA (g):","") ->  | C73: =IF(AnimalType="Damızlık Düve",IF(DaysPreg>0,MPAllowGainPreg,MPAllowGain)*1000,"") ->  | D73: Rasyon By-pass Protein sindirilebilirliği (%): | H73: =DietRUPDigest*100 -> 76.00350837
B74: =IF(AnimalType="Damızlık Düve","Düvenin durumuna uygun GCAA (g):","") ->  | C74: =IF(AnimalType="Damızlık Düve",IF(DaysPreg>0,TargetADGPreg,TargetADGwoPreg)*1000,"") ->  | D74: MP (% KM): | H74: =((MPFeed*1000)+MPBact+MPEndo)/TotalDMFed/10 -> 8.979074143
D75: HP (g/gün): | H75: =DietCP*TotalDMFed*1000 -> 2951.987463
D76: HP (% KM): | H76: =DietCP*100 -> 13.96520596
D77: Rumende Yıkılabilir Protein (% KM): | H77: =RDP_Total/TotalRegDMFed*100 -> 9.752917464
D78: By-pass Protein (% KM): | H78: =RUP_Total/TotalRegDMFed*100 -> 4.2122885
B80: Rasyon besin maddesi dengesi | C80: =IF(AnimalType<>"Damızlık Düve","NEl(Mcal/gün)","ME(Mcal/gün)") -> NEl(Mcal/gün) | D80: MP(g/gün) | E80: Ca(g/gün) | F80: P(g/gün) | G80: K(g/gün)
B81: Yaşama payı ihtiyacı | C81: =NEMaint -> 10.29852445 | D81: =MPMaint -> 762.0177138 | E81: =Ca Maint -> 20.67 | F81: =P Maint -> 22.43815915 | G81: =K Maint -> 153.6427708
B82: Gebelik ihtiyacı | C82: =NEPreg -> 0 | D82: =MPPreg -> 0 | E82: =Ca Fetal -> 0 | F82: =P Fetal -> 0 | G82: =K Fetal -> 0
B83: Laktasyon ihtiyacı | C83: =NELact -> 17.89158333 | D83: =MPLact -> 1156.716418 | E83: =Ca Milk -> 30.5 | F83: =P Milk -> 22.5 | G83: =K Milk -> 37.5
B84: Büyüme ihtiyacı | C84: =NEGrowth -> 0 | D84: =MPGrowth -> 0 | E84: =Ca Growth -> 0 | F84: =P Growth -> 0 | G84: =K Growth -> 0
B85: Toplam ihtiyaç | C85: =C81+C82+C83+C84 -> 28.19010779 | D85: =D81+D82+D83+D84 -> 1918.734132 | E85: =Ca Total -> 51.17 | F85: =P Total -> 44.93815915 | G85: =K Total -> 191.1427708
B86: Rasyondan gelen | C86: =NEl_Total -> 29.11333352 | D86: =(MPFeed * 1000)+MPBact+MPEndo -> 1898.010983 | E86: =Ca Absorbable -> 50.83283607 | F86: =P Absorbable -> 44.66135014 | G86: =K Absorbable -> 237.5213713
B87: Denge | C87: =CONCATENATE(IF((C86-C85)>=0,"+",""),TEXT((C86-C85),0)) -> +1 | D87: =CONCATENATE(IF((D86-D85)>=0,"+",""),TEXT((D86-D85),0)) -> -21 | E87: =CONCATENATE(IF((E86-E85)>=0,"+",""),TEXT((E86-E85),0)) -> 0 | F87: =CONCATENATE(IF((F86-F85)>=0,"+",""),TEXT((F86-F85),0)) -> 0 | G87: =CONCATENATE(IF((G86-G85)>=0,"+",""),TEXT((G86-G85),0)) -> +46
B88: Not: Mineraller için emilebilir miktarlar verilmiştir.
B90: Rasyon özeti | C90: Yem | D90: KM | E90: KM | F90: ME | G90: NEl | H90: HP | I90: NDF
B91: Yem maddesi | C91: kg/gün | D91: kg/gün | E91: % | F91: Mcal/gün | G91: Mcal/gün | H91: g/gün | I91: kg/gün
B92: =Süt!O41 -> 0 | C92: =Süt!P41 -> 0 | D92: =Süt!Q41 -> 0 | E92: =Süt!R41 -> 0 | F92: =Süt!S41 -> 0 | G92: =Süt!T41 -> 0 | H92: =Süt!U41 -> 0 | I92: =Süt!V41 -> 0 | AD92: Yemlerin MİKTARI | AE92: 25.18123215
B93: =Süt!O42 -> 0 | C93: =Süt!P42 -> 0 | D93: =Süt!Q42 -> 0 | E93: =Süt!R42 -> 0 | F93: =Süt!S42 -> 0 | G93: =Süt!T42 -> 0 | H93: =Süt!U42 -> 0 | I93: =Süt!V42 -> 0 | AE93: 6
B94: =Süt!O43 -> 0 | C94: =Süt!P43 -> 0 | D94: =Süt!Q43 -> 0 | E94: =Süt!R43 -> 0 | F94: =Süt!S43 -> 0 | G94: =Süt!T43 -> 0 | H94: =Süt!U43 -> 0 | I94: =Süt!V43 -> 0 | AE94: 2
B95: =Süt!O44 -> 0 | C95: =Süt!P44 -> 0 | D95: =Süt!Q44 -> 0 | E95: =Süt!R44 -> 0 | F95: =Süt!S44 -> 0 | G95: =Süt!T44 -> 0 | H95: =Süt!U44 -> 0 | I95: =Süt!V44 -> 0 | AE95: 7
B96: =Süt!O45 -> 0 | C96: =Süt!P45 -> 0 | D96: =Süt!Q45 -> 0 | E96: =Süt!R45 -> 0 | F96: =Süt!S45 -> 0 | G96: =Süt!T45 -> 0 | H96: =Süt!U45 -> 0 | I96: =Süt!V45 -> 0
B97: =Süt!O46 -> 0 | C97: =Süt!P46 -> 0 | D97: =Süt!Q46 -> 0 | E97: =Süt!R46 -> 0 | F97: =Süt!S46 -> 0 | G97: =Süt!T46 -> 0 | H97: =Süt!U46 -> 0 | I97: =Süt!V46 -> 0
B98: =Süt!O47 -> 0 | C98: =Süt!P47 -> 0 | D98: =Süt!Q47 -> 0 | E98: =Süt!R47 -> 0 | F98: =Süt!S47 -> 0 | G98: =Süt!T47 -> 0 | H98: =Süt!U47 -> 0 | I98: =Süt!V47 -> 0
B99: =Süt!O48 -> 0 | C99: =Süt!P48 -> 0 | D99: =Süt!Q48 -> 0 | E99: =Süt!R48 -> 0 | F99: =Süt!S48 -> 0 | G99: =Süt!T48 -> 0 | H99: =Süt!U48 -> 0 | I99: =Süt!V48 -> 0
B100: =Süt!O49 -> 0 | C100: =Süt!P49 -> 0 | D100: =Süt!Q49 -> 0 | E100: =Süt!R49 -> 0 | F100: =Süt!S49 -> 0 | G100: =Süt!T49 -> 0 | H100: =Süt!U49 -> 0 | I100: =Süt!V49 -> 0
B101: =Süt!O50 -> 0 | C101: =Süt!P50 -> 0 | D101: =Süt!Q50 -> 0 | E101: =Süt!R50 -> 0 | F101: =Süt!S50 -> 0 | G101: =Süt!T50 -> 0 | H101: =Süt!U50 -> 0 | I101: =Süt!V50 -> 0
B102: =Süt!O51 -> 0 | C102: =Süt!P51 -> 0 | D102: =Süt!Q51 -> 0 | E102: =Süt!R51 -> 0 | F102: =Süt!S51 -> 0 | G102: =Süt!T51 -> 0 | H102: =Süt!U51 -> 0 | I102: =Süt!V51 -> 0
B103: =Süt!O52 -> 0 | C103: =Süt!P52 -> 0 | D103: =Süt!Q52 -> 0 | E103: =Süt!R52 -> 0 | F103: =Süt!S52 -> 0 | G103: =Süt!T52 -> 0 | H103: =Süt!U52 -> 0 | I103: =Süt!V52 -> 0
B104: =Süt!O53 -> 0 | C104: =Süt!P53 -> 0 | D104: =Süt!Q53 -> 0 | E104: =Süt!R53 -> 0 | F104: =Süt!S53 -> 0 | G104: =Süt!T53 -> 0 | H104: =Süt!U53 -> 0 | I104: =Süt!V53 -> 0
B105: =Süt!O54 -> 0 | C105: =Süt!P54 -> 0 | D105: =Süt!Q54 -> 0 | E105: =Süt!R54 -> 0 | F105: =Süt!S54 -> 0 | G105: =Süt!T54 -> 0 | H105: =Süt!U54 -> 0 | I105: =Süt!V54 -> 0
B106: =Süt!O55 -> 0 | C106: =Süt!P55 -> 0 | D106: =Süt!Q55 -> 0 | E106: =Süt!R55 -> 0 | F106: =Süt!S55 -> 0 | G106: =Süt!T55 -> 0 | H106: =Süt!U55 -> 0 | I106: =Süt!V55 -> 0
B107: =Süt!O56 -> 0 | C107: =Süt!P56 -> 0 | D107: =Süt!Q56 -> 0 | E107: =Süt!R56 -> 0 | F107: =Süt!S56 -> 0 | G107: =Süt!T56 -> 0 | H107: =Süt!U56 -> 0 | I107: =Süt!V56 -> 0
B108: =Süt!O57 -> 0 | C108: =Süt!P57 -> 0 | D108: =Süt!Q57 -> 0 | E108: =Süt!R57 -> 0 | F108: =Süt!S57 -> 0 | G108: =Süt!T57 -> 0 | H108: =Süt!U57 -> 0 | I108: =Süt!V57 -> 0
B109: =Süt!O58 -> 0 | C109: =Süt!P58 -> 0 | D109: =Süt!Q58 -> 0 | E109: =Süt!R58 -> 0 | F109: =Süt!S58 -> 0 | G109: =Süt!T58 -> 0 | H109: =Süt!U58 -> 0 | I109: =Süt!V58 -> 0
B110: =Süt!O59 -> 0 | C110: =Süt!P59 -> 0 | D110: =Süt!Q59 -> 0 | E110: =Süt!R59 -> 0 | F110: =Süt!S59 -> 0 | G110: =Süt!T59 -> 0 | H110: =Süt!U59 -> 0 | I110: =Süt!V59 -> 0
B111: =Süt!O60 -> 0 | C111: =Süt!P60 -> 0 | D111: =Süt!Q60 -> 0 | E111: =Süt!R60 -> 0 | F111: =Süt!S60 -> 0 | G111: =Süt!T60 -> 0 | H111: =Süt!U60 -> 0 | I111: =Süt!V60 -> 0
B112: =Süt!O61 -> 0 | C112: =Süt!P61 -> 0 | D112: =Süt!Q61 -> 0 | E112: =Süt!R61 -> 0 | F112: =Süt!S61 -> 0 | G112: =Süt!T61 -> 0 | H112: =Süt!U61 -> 0 | I112: =Süt!V61 -> 0
B113: =Süt!O62 -> 0 | C113: =Süt!P62 -> 0 | D113: =Süt!Q62 -> 0 | E113: =Süt!R62 -> 0 | F113: =Süt!S62 -> 0 | G113: =Süt!T62 -> 0 | H113: =Süt!U62 -> 0 | I113: =Süt!V62 -> 0
B114: =Süt!O63 -> 0 | C114: =Süt!P63 -> 0 | D114: =Süt!Q63 -> 0 | E114: =Süt!R63 -> 0 | F114: =Süt!S63 -> 0 | G114: =Süt!T63 -> 0 | H114: =Süt!U63 -> 0 | I114: =Süt!V63 -> 0
B115: =Süt!O64 -> 0 | C115: =Süt!P64 -> 0 | D115: =Süt!Q64 -> 0 | E115: =Süt!R64 -> 0 | F115: =Süt!S64 -> 0 | G115: =Süt!T64 -> 0 | H115: =Süt!U64 -> 0 | I115: =Süt!V64 -> 0
B116: =Süt!O65 -> 0 | C116: =Süt!P65 -> 0 | D116: =Süt!Q65 -> 0 | E116: =Süt!R65 -> 0 | F116: =Süt!S65 -> 0 | G116: =Süt!T65 -> 0 | H116: =Süt!U65 -> 0 | I116: =Süt!V65 -> 0
B117: =Süt!O66 -> 0 | C117: =Süt!P66 -> 0 | D117: =Süt!Q66 -> 0 | E117: =Süt!R66 -> 0 | F117: =Süt!S66 -> 0 | G117: =Süt!T66 -> 0 | H117: =Süt!U66 -> 0 | I117: =Süt!V66 -> 0
B118: =Süt!O67 -> 0 | C118: =Süt!P67 -> 0 | D118: =Süt!Q67 -> 0 | E118: =Süt!R67 -> 0 | F118: =Süt!S67 -> 0 | G118: =Süt!T67 -> 0 | H118: =Süt!U67 -> 0 | I118: =Süt!V67 -> 0
B119: =Süt!O68 -> 0 | C119: =Süt!P68 -> 0 | D119: =Süt!Q68 -> 0 | E119: =Süt!R68 -> 0 | F119: =Süt!S68 -> 0 | G119: =Süt!T68 -> 0 | H119: =Süt!U68 -> 0 | I119: =Süt!V68 -> 0 | AD119: Fiyat | AE119: 2.5
B120: =Süt!B194 -> RASYONUN MİNERAL ve VİTAMİN DURUMU | AE120: 6
B121: =Süt!B195 -> Makro mineraller | C121: =Süt!C195 -> Ca | D121: =Süt!D195 -> P | E121: =Süt!E195 -> Mg | F121: =Süt!F195 -> Cl | G121: =Süt!G195 -> K | H121: =Süt!H195 -> Na | I121: =Süt!I195 -> S | AE121: 1.5
B122: =Süt!B196 -> Emilebilir ihtiyaç (g/gün) | C122: =Süt!C196 -> 51.17 | D122: =Süt!D196 -> 44.93815915 | E122: =Süt!E196 -> 5.7 | F122: =Süt!F196 -> 43.375 | G122: =Süt!G196 -> 191.1427708 | H122: =Süt!H196 -> 40.45 | I122: =Süt!I196 -> 42.27631831 | AE122: 12
B123: =Süt!B197 -> Rasyondan gelen (g/gün) | C123: =Süt!C197 -> 123.7536656 | D123: =Süt!D197 -> 65.17252925 | E123: =Süt!E197 -> 42.68536942 | F123: =Süt!F197 -> 92.20733727 | G123: =Süt!G197 -> 263.9126348 | H123: =Süt!H197 -> 44.9510167 | I123: =Süt!I197 -> 43.49086621
B124: =Süt!B198 -> Rasyondan gelen emilebilir miktar (g/gün) | C124: =Süt!C198 -> 50.83283607 | D124: =Süt!D198 -> 44.66135014 | E124: =Süt!E198 -> 6.829659107 | F124: =Süt!F198 -> 82.98660354 | G124: =Süt!G198 -> 237.5213713 | H124: =Süt!H198 -> 40.45591503 | I124: =Süt!I198 -> 43.49086621
B125: =Süt!B199 -> Denge (g/gün) | C125: =Süt!C199 -> -0,34 | D125: =Süt!D199 -> -0,28 | E125: =Süt!E199 -> +1,13 | F125: =Süt!F199 -> +39,61 | G125: =Süt!G199 -> +46,38 | H125: =Süt!H199 -> +0,01 | I125: =Süt!I199 -> +1,21
B126: =Süt!B200 -> Rasyondaki oran (% KM) | C126: =Süt!C200 -> 0.5854514799 | D126: =Süt!D200 -> 0.3083169578 | E126: =Süt!E200 -> 0.2019351312 | F126: =Süt!F200 -> 0.4362127118 | G126: =Süt!G200 -> 1.248512857 | H126: =Süt!H200 -> 0.2126534121 | I126: =Süt!I200 -> 0.20574576
B127: =Süt!B201 -> Mikro mineraller | C127: =Süt!C201 -> Co | D127: =Süt!D201 -> Cu | E127: =Süt!E201 -> I | F127: =Süt!F201 -> Fe | G127: =Süt!G201 -> Mn | H127: =Süt!H201 -> Se | I127: =Süt!I201 -> Zn
B128: =Süt!B202 -> Emilebilir ihtiyaç (mg/gün) | C128: =Süt!C202 -> 2.325197507 | D128: =Süt!D202 -> 8.865 | E128: =Süt!E202 -> 9.75 | F128: =Süt!F202 -> 25 | G128: =Süt!G202 -> 1.3 | H128: =Süt!H202 -> 6.341447746 | I128: =Süt!I202 -> 129.25
B129: =Süt!B203 -> Rasyondan gelen (mg/gün) | C129: =Süt!C203 -> 6.061947 | D129: =Süt!D203 -> 375.81215 | E129: =Süt!E203 -> 16.830557 | F129: =Süt!F203 -> 3556.546216 | G129: =Süt!G203 -> 1750.747862 | H129: =Süt!H203 -> 7.655473871 | I129: =Süt!I203 -> 1627.01193
B130: =Süt!B204 -> Rasyondan gelen emilebilir miktar (mg/gün) | C130: =Süt!C204 -> 6.061947 | D130: =Süt!D204 -> 15.032486 | E130: =Süt!E204 -> 14.30597345 | F130: =Süt!F204 -> 355.6546216 | G130: =Süt!G204 -> 17.50747862 | H130: =Süt!H204 -> 7.655473871 | I130: =Süt!I204 -> 244.0517895
B131: =Süt!B205 -> Denge (mg/gün) | C131: =Süt!C205 -> +3,74 | D131: =Süt!D205 -> +6,17 | E131: =Süt!E205 -> +4,56 | F131: =Süt!F205 -> +330,65 | G131: =Süt!G205 -> +16,21 | H131: =Süt!H205 -> +1,31 | I131: =Süt!I205 -> +114,80
B132: =Süt!B206 -> Rasyondaki miktar (mg/kg) | C132: =Süt!C206 -> 0.286777432 | D132: =Süt!D206 -> 17.77884948 | E132: =Süt!E206 -> 0.7962167792 | F132: =Süt!F206 -> 168.2524098 | G132: =Süt!G206 -> 82.82404578 | H132: =Süt!H206 -> 0.3621636972 | I132: =Süt!I206 -> 76.97036995
B133: =Süt!B207 -> Vitaminler | C133: =Süt!C207 -> VitA | D133: =Süt!D207 -> VitD | E133: =Süt!E207 -> VitE
B134: =Süt!B208 -> Emilebilir ihtiyaç (IU/gün) | C134: =Süt!C208 -> 71500 | D134: =Süt!D208 -> 19500 | E134: =Süt!E208 -> 520
B135: =Süt!B209 -> Rasyondan gelen (IU/gün) | C135: =Süt!C209 -> 423305.77 | D135: =Süt!D209 -> 66388.9 | E135: =Süt!E209 -> 600
B136: =Süt!B210 -> Rasyondan gelen emilebilir miktar (IU/gün) | C136: =Süt!C210 -> 423305.77 | D136: =Süt!D210 -> 66388.9 | E136: =Süt!E210 -> 600
B137: =Süt!B211 -> Denge (IU/gün) | C137: =Süt!C211 -> +351806 | D137: =Süt!D211 -> +46889 | E137: =Süt!E211 -> +80
B138: =Süt!B212 -> Rasyondaki miktar (IU/kg) | C138: =Süt!C212 -> 20025.6686 | D138: =Süt!D212 -> 3140.713414 | E138: =Süt!E212 -> 28.38468552
B139: =Süt!B213 -> 0 | C139: =Süt!C213 -> 0 | D139: =Süt!D213 -> 0 | E139: =Süt!E213 -> 0
B140: =Süt!B214 -> Duodenal amino asit | C140: =Süt!C214 -> Akış(g/gün) | D140: =Süt!D214 -> Sind.AA akışı(g/gün) | E140: =Süt!E214 -> MP'deki oranı(%)
B141: =Süt!B215 -> Arjinin | C141: =Süt!C215 -> 159.5228369 | D141: =Süt!D215 -> 127.3377936 | E141: =Süt!E215 -> 6.709012476
B142: =Süt!B216 -> Histidin | C142: =Süt!C216 -> 69.45584558 | D142: =Süt!D216 -> 55.23996048 | E142: =Süt!E216 -> 2.91041311
B143: =Süt!B217 -> İzolöysin | C143: =Süt!C217 -> 126.7493329 | D143: =Süt!D217 -> 100.3925811 | E143: =Süt!E217 -> 5.289357225
B144: =Süt!B218 -> Löysin | C144: =Süt!C218 -> 241.0107526 | D144: =Süt!D218 -> 190.5553017 | E144: =Süt!E218 -> 10.03973651
B145: =Süt!B219 -> Lizin | C145: =Süt!C219 -> 148.4707264 | D145: =Süt!D219 -> 117.9866001 | E145: =Süt!E219 -> 6.216328627
B146: =Süt!B220 -> Metiyonin | C146: =Süt!C220 -> 48.98692728 | D146: =Süt!D220 -> 38.70600997 | E146: =Süt!E220 -> 2.039293256 | AD146: En az | AE146: 0
B147: =Süt!B221 -> Sistin | C147: =Süt!C221 -> 0 | D147: =Süt!D221 -> 0 | E147: =Süt!E221 -> 0 | AE147: 1
B148: =Süt!B222 -> Fenilalanin | C148: =Süt!C222 -> 149.8724344 | D148: =Süt!D222 -> 118.8339431 | E148: =Süt!E222 -> 6.260972365 | AE148: 0
B149: =Süt!B223 -> Treonin | C149: =Süt!C223 -> 123.8014433 | D149: =Süt!D223 -> 97.79813962 | E149: =Süt!E223 -> 5.152664579 | AE149: 0
B150: =Süt!B224 -> Triptofan | C150: =Süt!C224 -> 0 | D150: =Süt!D224 -> 0 | E150: =Süt!E224 -> 0
B151: =Süt!B225 -> Valin | C151: =Süt!C225 -> 180.3839812 | D151: =Süt!D225 -> 143.5855347 | E151: =Süt!E225 -> 7.565052886
B152: =Süt!B226 -> ToplamEAA (g/gün): | C152: =Süt!C226 -> 1099.161645
B154: =Süt!B228 -> Sıcaklık stresi faktörleri hesaplamaları:
B155: =Süt!B229 -> Bazal metabolizma (Mcal/gün/CA0,75): | C155: =Süt!C229 -> 0.08 | D155: =Süt!D229 -> NEyp-Rasyon (Mcal/kg KM): | E155: =Süt!E229 -> 0 | F155: =Süt!F229 -> 0 | G155: =Süt!G229 -> 1.377288027
B156: =Süt!B230 -> Yüzey alanı (m2): | C156: =Süt!C230 -> 6.71453875 | D156: =Süt!D230 -> Yaşama payı KM ihtiyacı (kg/gün): | E156: =Süt!E230 -> 0 | F156: =Süt!F230 -> 0 | G156: =Süt!G230 -> 7.477393434
B157: =Süt!B231 -> Isı üretimi (Mcal/m2/gün): | C157: =Süt!C231 -> 5.838101263 | D157: =Süt!D231 -> Yaşama payı ME ihtiyacı (Mcal/gün): | E157: =Süt!E231 -> 0 | F157: =Süt!F231 -> 0 | G157: =Süt!G231 -> 0
B158: =Süt!B232 -> Doku izolasyonu (Mcal/m2/°C/gün): | C158: =Süt!C232 -> 9
B159: =Süt!B233 -> Dış izolasyon (Mcal/m2/°C/gün): | C159: =Süt!C233 -> 6.15296 | D159: =Süt!D233 -> Yaşama payı MP ihtiyacı: | E159: =Süt!E233 -> 0 | F159: =Süt!F233 -> 0 | G159: =Süt!G233 -> 762.0177138
B160: =Süt!B234 -> Toplam izolasyon (Mcal/m2/°C/gün): | C160: =Süt!C234 -> 15.15296 | D160: =Süt!D234 -> Deri döküntüleri ihtiyacı (g/gün): | E160: =Süt!E234 -> 0 | F160: =Süt!F234 -> 0 | G160: =Süt!G234 -> 14.61737096
B161: =Süt!B235 -> Alt kritik sıcaklık (°C): | C161: =Süt!C235 -> -36.19483768 | D161: =Süt!D235 -> Üriner ihtiyaç (g/gün): | E161: =Süt!E235 -> 0 | F161: =Süt!F235 -> 0 | G161: =Süt!G235 -> 104.5299
B162: =Süt!B236 -> Soğuk stresinde ME ihtiyacı (Mcal/gün): | C162: =Süt!C236 -> 0 | D162: =Süt!D236 -> Metabolik fekal ihtiyaç (g/gün): | E162: =Süt!E236 -> 0 | F162: =Süt!F236 -> 0 | G162: =Süt!G236 -> 493.956844
B163: =Süt!B237 -> Sıcak stresi ayarlama faktörü: | C163: =Süt!C237 -> 1 | D163: =Süt!D237 -> Endojen ihtiyaç (g/gün): | E163: =Süt!E237 -> 0 | F163: =Süt!F237 -> 0 | G163: =Süt!G237 -> 99.77211121
B164: =Süt!B238 -> Sıcaklık stresi (-) NEyp ihtiyacı (Mcal/gün): | C164: =Süt!C238 -> 10.29852445 | D164: =Süt!D238 -> Sıcaklık stresi (+) NEyp ihtiyacı (Mcal/gün): | E164: =Süt!E238 -> 0 | F164: =Süt!F238 -> 0 | G164: =Süt!G238 -> 10.29852445
B166: =Süt!B240 -> Büyüme ihtiyaçları | D166: =Süt!D240 -> Laktasyon ihtiyaçlarının hesaplanması | E166: =Süt!E240 -> 0 | F166: =Süt!F240 -> 0
B167: =Süt!B241 ->  | C167: =Süt!C241 ->  | D167: =Süt!D241 -> Süt yağı verimi (kg/gün): | E167: =Süt!E241 -> 0 | F167: =Süt!F241 -> 0 | G167: =Süt!G241 -> 0.925
B168: =Süt!B242 ->  | C168: =Süt!C242 ->  | D168: =Süt!D242 -> Sütün enerji içeriği (Mcal NEl/kg): | E168: =Süt!E242 -> 0 | F168: =Süt!F242 -> 0 | G168: =Süt!G242 -> 0.7156633333
B169: =Süt!B243 ->  | C169: =Süt!C243 ->  | D169: =Süt!D243 -> Yağı düzeltilmiş süt verimi (kg/gün): | E169: =Süt!E243 -> 0 | F169: =Süt!F243 -> 0 | G169: =Süt!G243 -> 23.875
B170: =Süt!B244 ->  | C170: =Süt!C244 ->  | D170: =Süt!D244 -> Yem enerjisinin sağlayabileceği süt (kg/gün): | E170: =Süt!E244 -> 0 | F170: =Süt!F244 -> 0 | G170: =Süt!G244 -> 26.290028
B171: =Süt!B245 -> Büyüme için net protein ihtiyacı (g/gün): | C171: =Süt!C245 -> 0 | D171: =Süt!D245 -> Laktasyon için NE ihtiyacı (Mcal/gün): | E171: =Süt!E245 -> 0 | F171: =Süt!F245 -> 0 | G171: =Süt!G245 -> 17.89158333
B172: =Süt!B246 -> Büyüme için MP ihtiyacı (g/gün): | C172: =Süt!C246 -> 0 | D172: =Süt!D246 -> Süt proteini verimi (kg/gün): | E172: =Süt!E246 -> 0 | F172: =Süt!F246 -> 0 | G172: =Süt!G246 -> 0.775
B173: =Süt!B247 -> Yaşama payı+büyüme MP ihtiyacı (g): | C173: =Süt!C247 -> 762.0177138 | D173: =Süt!D247 -> Laktasyon için MP ihtiyacı (g/gün): | E173: =Süt!E247 -> 0 | F173: =Süt!F247 -> 0 | G173: =Süt!G247 -> 1156.716418 | AD173: En çok | AE173: 30
B174: =Süt!B248 ->  | C174: =Süt!C248 ->  | D174: =Süt!D248 -> Yem proteininin sağlayabileceği süt (kg/gün): | E174: =Süt!E248 -> 0 | F174: =Süt!F248 -> 0 | G174: =Süt!G248 -> 24.55211259 | AE174: 7
B175: =Süt!B249 -> Büyüme için NE ihtiyacı (Mcal/gün): | C175: =Süt!C249 -> 0 | AE175: 7
AE176: 15
B177: =Süt!B251 -> Gebelik ihtiyaçları | D177: =Süt!D251 -> Kondüsyon skoru ve enerji | E177: =Süt!E251 -> 0 | F177: =Süt!F251 -> 0
B178: =Süt!B252 -> Gebelik için KM ihtiyacı (kg/gün): | C178: =Süt!C252 -> 0 | D178: =Süt!D252 -> 1 KS kaybından gelen enerji (Mcal): | E178: =Süt!E252 -> 0 | F178: =Süt!F252 -> 0 | G178: =Süt!G252 -> 487.1794758
B179: =Süt!B253 -> Gebelikte ortalama GCAA (g/gün): | C179: =Süt!C253 -> 0 | D179: =Süt!D253 -> 1 KS kazanmak için gerekli enerji (Mcal): | E179: =Süt!E253 -> 0 | F179: =Süt!F253 -> 0 | G179: =Süt!G253 -> 579.4755225
B180: =Süt!B254 -> Fötüs ve doku ağırlığı (kg): | C180: =Süt!C254 -> 0 | D180: =Süt!D254 -> 1 KS kaybının rasyon NEl değeri (Mcal): | E180: =Süt!E254 -> 0 | F180: =Süt!F254 -> 0 | G180: =Süt!G254 -> 399.4871701
B181: =Süt!B255 -> Gebelik için ME ihtiyacı (Mcal/gün): | C181: =Süt!C255 -> 0 | D181: =Süt!D255 -> 1 KS kazanmak için rasyonda gerekli NEl (Mcal): | E181: =Süt!E255 -> 0 | F181: =Süt!F255 -> 0 | G181: =Süt!G255 -> 497.5763153
B182: =Süt!B256 -> Gebelik için NE ihtiyacı (Mcal/gün): | C182: =Süt!C256 -> 0 | D182: =Süt!D256 -> 1 KS kazanmak için gün sayısı: | E182: =Süt!E256 -> 0 | F182: =Süt!F256 -> 0 | G182: =Süt!G256 -> 538.9541202
B183: =Süt!B257 -> Gebelik için MP ihtiyacı (g/gün): | C183: =Süt!C257 -> 0
B185: =Süt!B259 -> KS'na göre vücut rezervleri değişiklikleri | C185: =Süt!C259 -> 0 | D185: =Süt!D259 -> Yağ | E185: =Süt!E259 -> Protein | F185: =Süt!F259 -> Vücut enerjisi
B186: =Süt!B260 -> Kondisyon skoru | C186: =Süt!C260 -> Ağırlık faktörü | D186: =Süt!D260 -> (kg) | E186: =Süt!E260 -> (kg) | F186: =Süt!F260 -> (Mcal)
B187: =Süt!B261 -> 1 | C187: =Süt!C261 -> 0.726 | D187: =Süt!D261 -> 14.52767919 | E187: =Süt!E261 -> 74.87242707 | F187: =Süt!F261 -> 552.1021546
B188: =Süt!B262 -> 2 | C188: =Süt!C262 -> 0.863 | D188: =Süt!D262 -> 51.80738487 | E188: =Süt!E262 -> 82.88219204 | F188: =Süt!F262 -> 946.9855836
B189: =Süt!B263 -> 3 | C189: =Süt!C263 -> 1 | D189: =Süt!D263 -> 100.052887 | E189: =Süt!E263 -> 88.94917512 | F189: =Süt!F263 -> 1434.165059
B190: =Süt!B264 -> 4 | C190: =Süt!C264 -> 1.137 | D190: =Süt!D264 -> 159.2641855 | E190: =Süt!E264 -> 93.07337631 | F190: =Süt!F264 -> 2013.640582
B191: =Süt!B265 -> 5 | C191: =Süt!C265 -> 1.274 | D191: =Süt!D265 -> 229.4412804 | E191: =Süt!E265 -> 95.25479561 | F191: =Süt!F265 -> 2685.412151
B194: RASYONUN MİNERAL ve VİTAMİN DURUMU
B195: Makro mineraller | C195: Ca | D195: P | E195: Mg | F195: Cl | G195: K | H195: Na | I195: S
B196: Emilebilir ihtiyaç (g/gün) | C196: =Ca Total -> 51.17 | D196: =P Total -> 44.93815915 | E196: =Mg Total -> 5.7 | F196: =Cl Total -> 43.375 | G196: =K Total -> 191.1427708 | H196: =Na Total -> 40.45 | I196: =S Total -> 42.27631831
B197: Rasyondan gelen (g/gün) | C197: =Ca Supplied -> 123.7536656 | D197: =P Supplied -> 65.17252925 | E197: =Mg Supplied -> 42.68536942 | F197: =Cl Supplied -> 92.20733727 | G197: =K Supplied -> 263.9126348 | H197: =Na Supplied -> 44.9510167 | I197: =S Supplied -> 43.49086621
B198: Rasyondan gelen emilebilir miktar (g/gün) | C198: =Ca Absorbable -> 50.83283607 | D198: =P Absorbable -> 44.66135014 | E198: =Mg Absorbable -> 6.829659107 | F198: =Cl Absorbable -> 82.98660354 | G198: =K Absorbable -> 237.5213713 | H198: =Na Absorbable -> 40.45591503 | I198: =S Absorbable -> 43.49086621
B199: Denge (g/gün) | C199: =CONCATENATE(IF(Ca Balance>=0,"+",""),TEXT(Ca Balance,"0,00")) -> -0,34 | D199: =CONCATENATE(IF(P Balance>=0,"+",""),TEXT(P Balance,"0,00")) -> -0,28 | E199: =CONCATENATE(IF(Mg Balance>=0,"+",""),TEXT(Mg Balance,"0,00")) -> +1,13 | F199: =CONCATENATE(IF(Cl Balance>=0,"+",""),TEXT(Cl Balance,"0,00")) -> +39,61 | G199: =CONCATENATE(IF(K Balance>=0,"+",""),TEXT(K Balance,"0,00")) -> +46,38 | H199: =CONCATENATE(IF(Na Balance>=0,"+",""),TEXT(Na Balance,"0,00")) -> +0,01 | I199: =CONCATENATE(IF(S Balance>=0,"+",""),TEXT(S Balance,"0,00")) -> +1,21
B200: Rasyondaki oran (% KM) | C200: =Ca RD/10 -> 0.5854514799 | D200: =P RD/10 -> 0.3083169578 | E200: =Mg RD/10 -> 0.2019351312 | F200: =Cl RD/10 -> 0.4362127118 | G200: =K RD/10 -> 1.248512857 | H200: =Na RD/10 -> 0.2126534121 | I200: =S RD/10 -> 0.20574576
B201: Mikro mineraller | C201: Co | D201: Cu | E201: I | F201: Fe | G201: Mn | H201: Se | I201: Zn | AB201: AE | AD201: Yem1
B202: Emilebilir ihtiyaç (mg/gün) | C202: =Co Total -> 2.325197507 | D202: =Cu Total -> 8.865 | E202: =I Total -> 9.75 | F202: =Fe Total -> 25 | G202: =Mn Total -> 1.3 | H202: =Se Total -> 6.341447746 | I202: =Zn Total -> 129.25 | AB202: AF | AD202: Yem2
B203: Rasyondan gelen (mg/gün) | C203: =Co Supplied -> 6.061947 | D203: =Cu Supplied -> 375.81215 | E203: =I Supplied -> 16.830557 | F203: =Fe Supplied -> 3556.546216 | G203: =Mn Supplied -> 1750.747862 | H203: =Se Supplied -> 7.655473871 | I203: =Zn Supplied -> 1627.01193 | AB203: AG | AD203: Yem3
B204: Rasyondan gelen emilebilir miktar (mg/gün) | C204: =Co Absorbable -> 6.061947 | D204: =Cu Absorbable -> 15.032486 | E204: =I Absorbable -> 14.30597345 | F204: =Fe Absorbable -> 355.6546216 | G204: =Mn Absorbable -> 17.50747862 | H204: =Se Absorbable -> 7.655473871 | I204: =Zn Absorbable -> 244.0517895 | AB204: AH | AD204: Yem4
B205: Denge (mg/gün) | C205: =CONCATENATE(IF(Co Balance>=0,"+",""),TEXT(Co Balance,"0,00")) -> +3,74 | D205: =CONCATENATE(IF(Cu Balance>=0,"+",""),TEXT(Cu Balance,"0,00")) -> +6,17 | E205: =CONCATENATE(IF(I Balance>=0,"+",""),TEXT(I Balance,"0,00")) -> +4,56 | F205: =CONCATENATE(IF(Fe Balance>=0,"+",""),TEXT(Fe Balance,"0,00")) -> +330,65 | G205: =CONCATENATE(IF(Mn Balance>=0,"+",""),TEXT(Mn Balance,"0,00")) -> +16,21 | H205: =CONCATENATE(IF(Se Balance>=0,"+",""),TEXT(Se Balance,"0,00")) -> +1,31 | I205: =CONCATENATE(IF(Zn Balance>=0,"+",""),TEXT(Zn Balance,"0,00")) -> +114,80 | AB205: AI | AD205: Yem5
B206: Rasyondaki miktar (mg/kg) | C206: =Co RD -> 0.286777432 | D206: =Cu RD -> 17.77884948 | E206: =I RD -> 0.7962167792 | F206: =Fe RD -> 168.2524098 | G206: =Mn RD -> 82.82404578 | H206: =Se RD -> 0.3621636972 | I206: =Zn RD -> 76.97036995 | AB206: AJ | AD206: Yem6
B207: Vitaminler | C207: VitA | D207: VitD | E207: VitE | AB207: AK | AD207: Yem7
... 57 more rows

Sheet Rapor
G1: BESİN MADDELERİ | H1: İHTİYAÇ | I1: RASYON | J1: SONUÇ | O1: =SUM(O3:O29) -> 202.3433904 | Q1: Int. | R1: TSBM-1X | S1: TSBM | T1: NFC | U1: SE-1X | V1: ME-3X | W1: NEL-3X | X1: NEL-4X | Y1: NEM-3X | Z1: NEG-3X | AA1: KM | AB1: HP | AC1: HPSind. | AD1: NDICP | AE1: ADICP | AF1: HY | AG1: HYSind. | AH1: NDF | AI1: NDFSind. | AJ1: ADF | AK1: Lignin | AL1: HK | AM1: Yem | AO1: Ver.Miktar | AQ1: N Fraksiyonu % HP | AT1: Kd | AU1: RUP % HP (KMT=2%CA) | AV1: RUP % HP (KMT=4%CA) | AW1: RUPSind. | AX1: Arj | AY1: His | AZ1: İzolöy | BA1: Löy | BB1: Lizin | BC1: Met | BD1: Sis | BE1: Fen | BF1: Tre | BG1: Trip | BH1: Val | BI1: TEAA | BJ1: Lizin | BK1: Met | BL1: FİYAT | BM1: Ca | BN1: CaDeğ. | BO1: P | BP1: PDeğ. | BQ1: Mg | BR1: MgDeğ. | BS1: K | BT1: KDeğ. | BU1: Na | BV1: NaDEğ. | BW1: Cl | BX1: ClDeğ. | BY1: S | BZ1: SDeğ. | CA1: Co | CB1: CoDeğ. | CC1: Cu | CD1: CuDeğ. | CE1: I | CF1: IDeğ. | CG1: Fe | CH1: FeDeğ. | CI1: Mn | CJ1: MnDeğ. | CK1: Se | CL1: SeDeğ. | CM1: Zn | CN1: ZnDeğ. | CO1: Mo | CP1: MoDeğ. | CQ1: Vit A | CR1: Vit D | CS1: Vit E | CT1: Sıcaklık stresi için katsayı tablosu (Buzağı için) | DJ1: Tanımlamalar
G2: Kuru Madde, kg/gün | H2: =DryMatterIntake -> 21.16079225 | I2: =TotalDMFed -> 21.13815915 | J2: =IF(H2="","",IF(I2>(H2*1.02),"FAZLA",IF(I2<(H2*0.98),"EKSİK","TAMAM"))) -> TAMAM | O2: Fiyat | P2: VERİLECEK YEMLER | Q2: Yem no | R2: % | S2: Sınıf | T2: Katsayı | U2: Mcal/kg | V2: Mcal/kg | W2: Mcal/kg | X2: Mcal/kg | Y2: Mcal/kg | Z2: Mcal/kg | AA2: % | AB2: % | AD2: % | AE2: % | AF2: % | AH2: % | AJ2: % | AK2: % | AL2: % | AM2: tipi | AN2: Kategori | AO2: Enaz | AP2: Ençok | AQ2: A | AR2: B | AS2: C | AT2: %/sa B | AU2: Kaba yem=25%KMT | AV2: Kaba yem=50%KMT | AW2: % | AX2: %HP | AY2: %HP | AZ2: %HP | BA2: %HP | BB2: %HP | BC2: %HP | BD2: %HP | BE2: %HP | BF2: %HP | BG2: %HP | BH2: %HP | BI2: %HP | BJ2: %EAA | BK2: %EAA | BL2: TL/kg | BM2: % | BO2: % | BQ2: % | BS2: % | BU2: % | BW2: % | BY2: % | CA2: mg/kg | CC2: mg/kg | CE2: mg/kg | CG2: mg/kg | CI2: mg/kg | CK2: mg/kg | CM2: mg/kg | CO2: mg/kg | CQ2: (1000 IU/kg) | CR2: (1000 IU/kg) | CS2: (IU/kg) | CT2: TempFactor | CU2: >2 | CV2: <=2 | CW2: Hayvan Tanımlama değişkenleri | DJ2: Hayvanın Tipi
C3: MİKTAR,kg | D3: Fiyat,₺ | E3: Yemler için | G3: Kuru madde, % Canlı Ağırlık | I3: =TotalDMFed/BW*100 -> 3.252024485 | M3: 30 | O3: =IF(P3="","",C5*D5) -> 62.5 | P3: =IF(Süt!B5="","",IF(Süt!C5<=0,"",Süt!B5)) -> Mısır Silajı, %29-33 KM | Q3: =IF(Süt!$B5="","",IF(Süt!$C5<=0,"",VLOOKUP($P3,$P$98:$CS$631,Q$30,FALSE))) -> 0 | R3: =IF(Süt!$B5="","",IF(Süt!$C5<=0,"",VLOOKUP($P3,$P$98:$CS$631,R$30,FALSE))) -> 60.99 | S3: =IF(Süt!$B5="","",IF(Süt!$C5<=0,"",VLOOKUP($P3,$P$98:$CS$631,S$30,FALSE))) -> Forage | T3: =IF(Süt!$B5="","",IF(Süt!$C5<=0,"",VLOOKUP($P3,$P$98:$CS$631,T$30,FALSE))) -> 0.94 | U3: =IF(Süt!$B5="","",IF(Süt!$C5<=0,"",VLOOKUP($P3,$P$98:$CS$631,U$30,FALSE))) -> 2.68 | V3: =IF(Süt!$B5="","",IF(Süt!$C5<=0,"",VLOOKUP($P3,$P$98:$CS$631,V$30,FALSE))) -> 2.04 | W3: =IF(Süt!$B5="","",IF(Süt!$C5<=0,"",VLOOKUP($P3,$P$98:$CS$631,W$30,FALSE))) -> 1.24 | X3: =IF(Süt!$B5="","",IF(Süt!$C5<=0,"",VLOOKUP($P3,$P$98:$CS$631,X$30,FALSE))) -> 1.17 | Y3: =IF(Süt!$B5="","",IF(Süt!$C5<=0,"",VLOOKUP($P3,$P$98:$CS$631,Y$30,FALSE))) -> 1.22 | Z3: =IF(Süt!$B5="","",IF(Süt!$C5<=0,"",VLOOKUP($P3,$P$98:$CS$631,Z$30,FALSE))) -> 0.64 | AA3: =IF(Süt!$B5="","",IF(Süt!$C5<=0,"",VLOOKUP($P3,$P$98:$CS$631,AA$30,FALSE))) -> 31.3 | AB3: =IF(Süt!$B5="","",IF(Süt!$C5<=0,"",VLOOKUP($P3,$P$98:$CS$631,AB$30,FALSE))) -> 7.2 | AC3: =IF(Süt!$B5="","",IF(Süt!$C5<=0,"",VLOOKUP($P3,$P$98:$CS$631,AC$30,FALSE))) -> 1 | AD3: =IF(Süt!$B5="","",IF(Süt!$C5<=0,"",VLOOKUP($P3,$P$98:$CS$631,AD$30,FALSE))) -> 1.6 | AE3: =IF(Süt!$B5="","",IF(Süt!$C5<=0,"",VLOOKUP($P3,$P$98:$CS$631,AE$30,FALSE))) -> 0.7 | AF3: =IF(Süt!$B5="","",IF(Süt!$C5<=0,"",VLOOKUP($P3,$P$98:$CS$631,AF$30,FALSE))) -> 3.4 | AG3: =IF(Süt!$B5="","",IF(Süt!$C5<=0,"",VLOOKUP($P3,$P$98:$CS$631,AG$30,FALSE))) -> 1 | AH3: =IF(Süt!$B5="","",IF(Süt!$C5<=0,"",VLOOKUP($P3,$P$98:$CS$631,AH$30,FALSE))) -> 52.9 | AI3: =IF(Süt!$B5="","",IF(Süt!$C5<=0,"",VLOOKUP($P3,$P$98:$CS$631,AI$30,FALSE))) -> 0.58 | AJ3: =IF(Süt!$B5="","",IF(Süt!$C5<=0,"",VLOOKUP($P3,$P$98:$CS$631,AJ$30,FALSE))) -> 31.1 | AK3: =IF(Süt!$B5="","",IF(Süt!$C5<=0,"",VLOOKUP($P3,$P$98:$CS$631,AK$30,FALSE))) -> 5 | AL3: =IF(Süt!$B5="","",IF(Süt!$C5<=0,"",VLOOKUP($P3,$P$98:$CS$631,AL$30,FALSE))) -> 5.8 | AM3: =IF(Süt!$B5="","",IF(Süt!$C5<=0,"",VLOOKUP($P3,$P$98:$CS$631,AM$30,FALSE))) -> Wet | AN3: =IF(Süt!$B5="","",IF(Süt!$C5<=0,"",VLOOKUP($P3,$P$98:$CS$631,AN$30,FALSE))) -> Grain Crop Forage | AO3: =IF(Süt!$B5="","",IF(Süt!$C5<=0,"",VLOOKUP($P3,$P$98:$CS$631,AO$30,FALSE))) -> 0 | AP3: =IF(Süt!$B5="","",IF(Süt!$C5<=0,"",VLOOKUP($P3,$P$98:$CS$631,AP$30,FALSE))) -> 30 | AQ3: =IF(Süt!$B5="","",IF(Süt!$C5<=0,"",VLOOKUP($P3,$P$98:$CS$631,AQ$30,FALSE))) -> 49.8 | AR3: =IF(Süt!$B5="","",IF(Süt!$C5<=0,"",VLOOKUP($P3,$P$98:$CS$631,AR$30,FALSE))) -> 37.6 | AS3: =IF(Süt!$B5="","",IF(Süt!$C5<=0,"",VLOOKUP($P3,$P$98:$CS$631,AS$30,FALSE))) -> 12.2 | AT3: =IF(Süt!$B5="","",IF(Süt!$C5<=0,"",VLOOKUP($P3,$P$98:$CS$631,AT$30,FALSE))) -> 4.4 | AU3: =IF(Süt!$B5="","",IF(Süt!$C5<=0,"",VLOOKUP($P3,$P$98:$CS$631,AU$30,FALSE))) -> 29.8 | AV3: =IF(Süt!$B5="","",IF(Süt!$C5<=0,"",VLOOKUP($P3,$P$98:$CS$631,AV$30,FALSE))) -> 31.2 | AW3: =IF(Süt!$B5="","",IF(Süt!$C5<=0,"",VLOOKUP($P3,$P$98:$CS$631,AW$30,FALSE))) -> 67.7 | AX3: =IF(Süt!$B5="","",IF(Süt!$C5<=0,"",VLOOKUP($P3,$P$98:$CS$631,AX$30,FALSE))) -> 1.97 | AY3: =IF(Süt!$B5="","",IF(Süt!$C5<=0,"",VLOOKUP($P3,$P$98:$CS$631,AY$30,FALSE))) -> 1.79 | AZ3: =IF(Süt!$B5="","",IF(Süt!$C5<=0,"",VLOOKUP($P3,$P$98:$CS$631,AZ$30,FALSE))) -> 3.34 | BA3: =IF(Süt!$B5="","",IF(Süt!$C5<=0,"",VLOOKUP($P3,$P$98:$CS$631,BA$30,FALSE))) -> 8.59 | BB3: =IF(Süt!$B5="","",IF(Süt!$C5<=0,"",VLOOKUP($P3,$P$98:$CS$631,BB$30,FALSE))) -> 2.51 | BC3: =IF(Süt!$B5="","",IF(Süt!$C5<=0,"",VLOOKUP($P3,$P$98:$CS$631,BC$30,FALSE))) -> 1.53 | BD3: =IF(Süt!$B5="","",IF(Süt!$C5<=0,"",VLOOKUP($P3,$P$98:$CS$631,BD$30,FALSE))) -> 1.34 | BE3: =IF(Süt!$B5="","",IF(Süt!$C5<=0,"",VLOOKUP($P3,$P$98:$CS$631,BE$30,FALSE))) -> 3.83 | BF3: =IF(Süt!$B5="","",IF(Süt!$C5<=0,"",VLOOKUP($P3,$P$98:$CS$631,BF$30,FALSE))) -> 3.19 | BG3: =IF(Süt!$B5="","",IF(Süt!$C5<=0,"",VLOOKUP($P3,$P$98:$CS$631,BG$30,FALSE))) -> 0.44 | BH3: =IF(Süt!$B5="","",IF(Süt!$C5<=0,"",VLOOKUP($P3,$P$98:$CS$631,BH$30,FALSE))) -> 4.47 | BI3: =IF(Süt!$B5="","",IF(Süt!$C5<=0,"",VLOOKUP($P3,$P$98:$CS$631,BI$30,FALSE))) -> 31.64 | BJ3: =IF(Süt!$B5="","",IF(Süt!$C5<=0,"",VLOOKUP($P3,$P$98:$CS$631,BJ$30,FALSE))) -> 7.93 | BK3: =IF(Süt!$B5="","",IF(Süt!$C5<=0,"",VLOOKUP($P3,$P$98:$CS$631,BK$30,FALSE))) -> 4.84 | BL3: =IF(Süt!$B5="","",IF(Süt!$C5<=0,"",VLOOKUP($P3,$P$98:$CS$631,BL$30,FALSE))) -> 2.5 | BM3: =IF(Süt!$B5="","",IF(Süt!$C5<=0,"",VLOOKUP($P3,$P$98:$CS$631,BM$30,FALSE))) -> 0.28 | BN3: =IF(Süt!$B5="","",IF(Süt!$C5<=0,"",VLOOKUP($P3,$P$98:$CS$631,BN$30,FALSE))) -> 0.6 | BO3: =IF(Süt!$B5="","",IF(Süt!$C5<=0,"",VLOOKUP($P3,$P$98:$CS$631,BO$30,FALSE))) -> 0.26 | BP3: =IF(Süt!$B5="","",IF(Süt!$C5<=0,"",VLOOKUP($P3,$P$98:$CS$631,BP$30,FALSE))) -> 0.7 | BQ3: =IF(Süt!$B5="","",IF(Süt!$C5<=0,"",VLOOKUP($P3,$P$98:$CS$631,BQ$30,FALSE))) -> 0.17 | BR3: =IF(Süt!$B5="","",IF(Süt!$C5<=0,"",VLOOKUP($P3,$P$98:$CS$631,BR$30,FALSE))) -> 0.16 | BS3: =IF(Süt!$B5="","",IF(Süt!$C5<=0,"",VLOOKUP($P3,$P$98:$CS$631,BS$30,FALSE))) -> 1.2 | BT3: =IF(Süt!$B5="","",IF(Süt!$C5<=0,"",VLOOKUP($P3,$P$98:$CS$631,BT$30,FALSE))) -> 0.9 | BU3: =IF(Süt!$B5="","",IF(Süt!$C5<=0,"",VLOOKUP($P3,$P$98:$CS$631,BU$30,FALSE))) -> 0.01 | BV3: =IF(Süt!$B5="","",IF(Süt!$C5<=0,"",VLOOKUP($P3,$P$98:$CS$631,BV$30,FALSE))) -> 0.9 | BW3: =IF(Süt!$B5="","",IF(Süt!$C5<=0,"",VLOOKUP($P3,$P$98:$CS$631,BW$30,FALSE))) -> 0.29 | BX3: =IF(Süt!$B5="","",IF(Süt!$C5<=0,"",VLOOKUP($P3,$P$98:$CS$631,BX$30,FALSE))) -> 0.9 | BY3: =IF(Süt!$B5="","",IF(Süt!$C5<=0,"",VLOOKUP($P3,$P$98:$CS$631,BY$30,FALSE))) -> 0.14 | BZ3: =IF(Süt!$B5="","",IF(Süt!$C5<=0,"",VLOOKUP($P3,$P$98:$CS$631,BZ$30,FALSE))) -> 1 | CA3: =IF(Süt!$B5="","",IF(Süt!$C5<=0,"",VLOOKUP($P3,$P$98:$CS$631,CA$30,FALSE))) -> 0 | CB3: =IF(Süt!$B5="","",IF(Süt!$C5<=0,"",VLOOKUP($P3,$P$98:$CS$631,CB$30,FALSE))) -> 1 | CC3: =IF(Süt!$B5="","",IF(Süt!$C5<=0,"",VLOOKUP($P3,$P$98:$CS$631,CC$30,FALSE))) -> 6 | CD3: =IF(Süt!$B5="","",IF(Süt!$C5<=0,"",VLOOKUP($P3,$P$98:$CS$631,CD$30,FALSE))) -> 0.04 | CE3: =IF(Süt!$B5="","",IF(Süt!$C5<=0,"",VLOOKUP($P3,$P$98:$CS$631,CE$30,FALSE))) -> 0 | CF3: =IF(Süt!$B5="","",IF(Süt!$C5<=0,"",VLOOKUP($P3,$P$98:$CS$631,CF$30,FALSE))) -> 0.85 | CG3: =IF(Süt!$B5="","",IF(Süt!$C5<=0,"",VLOOKUP($P3,$P$98:$CS$631,CG$30,FALSE))) -> 104 | CH3: =IF(Süt!$B5="","",IF(Süt!$C5<=0,"",VLOOKUP($P3,$P$98:$CS$631,CH$30,FALSE))) -> 0.1 | CI3: =IF(Süt!$B5="","",IF(Süt!$C5<=0,"",VLOOKUP($P3,$P$98:$CS$631,CI$30,FALSE))) -> 36 | CJ3: =IF(Süt!$B5="","",IF(Süt!$C5<=0,"",VLOOKUP($P3,$P$98:$CS$631,CJ$30,FALSE))) -> 0.01 | CK3: =IF(Süt!$B5="","",IF(Süt!$C5<=0,"",VLOOKUP($P3,$P$98:$CS$631,CK$30,FALSE))) -> 0.04 | CL3: =IF(Süt!$B5="","",IF(Süt!$C5<=0,"",VLOOKUP($P3,$P$98:$CS$631,CL$30,FALSE))) -> 1 | CM3: =IF(Süt!$B5="","",IF(Süt!$C5<=0,"",VLOOKUP($P3,$P$98:$CS$631,CM$30,FALSE))) -> 24 | CN3: =IF(Süt!$B5="","",IF(Süt!$C5<=0,"",VLOOKUP($P3,$P$98:$CS$631,CN$30,FALSE))) -> 0.15 | CO3: =IF(Süt!$B5="","",IF(Süt!$C5<=0,"",VLOOKUP($P3,$P$98:$CS$631,CO$30,FALSE))) -> 0 | CP3: =IF(Süt!$B5="","",IF(Süt!$C5<=0,"",VLOOKUP($P3,$P$98:$CS$631,CP$30,FALSE))) -> 0 | CQ3: =IF(Süt!$B5="","",IF(Süt!$C5<=0,"",VLOOKUP($P3,$P$98:$CS$631,CQ$30,FALSE))) -> 0 | CR3: =IF(Süt!$B5="","",IF(Süt!$C5<=0,"",VLOOKUP($P3,$P$98:$CS$631,CR$30,FALSE))) -> 0 | CS3: =IF(Süt!$B5="","",IF(Süt!$C5<=0,"",VLOOKUP($P3,$P$98:$CS$631,CS$30,FALSE))) -> 0 | CT3: 15 | CU3: 0 | CV3: 0 | CW3: Ergin Çağ canlı ağırlığı | CX3: =MWFromBreed -> 682 | CY3: kg | DJ3: Sağmal İnek
B4: VERİLECEK YEMLER | C4: =SUM(O34:O60) -> 39.61711607 | D4: =(C5*D5+C6*D6+C7*D7+C8*D8+C9*D9+C10*D10+C11*D11+C12*D12+C13*D13+C14*D14+C15*D15+C16*D16+C17*D17+C18*D18+C19*D19+C20*D20+C21*D21+C22*D22+C23*D23+C24*D24+C25*D25+C26*D26+C27*D27+C28*D28+C29*D29+C30*D30+C31*D31) ->  | E4: En az | F4: En çok | G4: Rasyon Kuru Madde Oranı, % | I4: =TotalDMFed/C4*100 -> 53.35612799 | M4: 3.8 | O4: =IF(P4="","",C6*D6) -> 1.063072501 | P4: =IF(Süt!B6="","",IF(Süt!C6<=0,"",Süt!B6)) -> Buğday Samanı | Q4: =IF(Süt!$B6="","",IF(Süt!$C6<=0,"",VLOOKUP($P4,$P$98:$CS$631,Q$30,FALSE))) -> 1-05-175 | R4: =IF(Süt!$B6="","",IF(Süt!$C6<=0,"",VLOOKUP($P4,$P$98:$CS$631,R$30,FALSE))) -> 47.5 | S4: =IF(Süt!$B6="","",IF(Süt!$C6<=0,"",VLOOKUP($P4,$P$98:$CS$631,S$30,FALSE))) -> Forage | T4: =IF(Süt!$B6="","",IF(Süt!$C6<=0,"",VLOOKUP($P4,$P$98:$CS$631,T$30,FALSE))) -> 1 | U4: =IF(Süt!$B6="","",IF(Süt!$C6<=0,"",VLOOKUP($P4,$P$98:$CS$631,U$30,FALSE))) -> 2.04 | V4: =IF(Süt!$B6="","",IF(Süt!$C6<=0,"",VLOOKUP($P4,$P$98:$CS$631,V$30,FALSE))) -> 1.44 | W4: =IF(Süt!$B6="","",IF(Süt!$C6<=0,"",VLOOKUP($P4,$P$98:$CS$631,W$30,FALSE))) -> 0.82 | X4: =IF(Süt!$B6="","",IF(Süt!$C6<=0,"",VLOOKUP($P4,$P$98:$CS$631,X$30,FALSE))) -> 0.76 | Y4: =IF(Süt!$B6="","",IF(Süt!$C6<=0,"",VLOOKUP($P4,$P$98:$CS$631,Y$30,FALSE))) -> 0.83 | Z4: =IF(Süt!$B6="","",IF(Süt!$C6<=0,"",VLOOKUP($P4,$P$98:$CS$631,Z$30,FALSE))) -> 0.29 | AA4: =IF(Süt!$B6="","",IF(Süt!$C6<=0,"",VLOOKUP($P4,$P$98:$CS$631,AA$30,FALSE))) -> 92.7 | AB4: =IF(Süt!$B6="","",IF(Süt!$C6<=0,"",VLOOKUP($P4,$P$98:$CS$631,AB$30,FALSE))) -> 4.8 | AC4: =IF(Süt!$B6="","",IF(Süt!$C6<=0,"",VLOOKUP($P4,$P$98:$CS$631,AC$30,FALSE))) -> 1 | AD4: =IF(Süt!$B6="","",IF(Süt!$C6<=0,"",VLOOKUP($P4,$P$98:$CS$631,AD$30,FALSE))) -> 2.1 | AE4: =IF(Süt!$B6="","",IF(Süt!$C6<=0,"",VLOOKUP($P4,$P$98:$CS$631,AE$30,FALSE))) -> 1.4 | AF4: =IF(Süt!$B6="","",IF(Süt!$C6<=0,"",VLOOKUP($P4,$P$98:$CS$631,AF$30,FALSE))) -> 1.6 | AG4: =IF(Süt!$B6="","",IF(Süt!$C6<=0,"",VLOOKUP($P4,$P$98:$CS$631,AG$30,FALSE))) -> 1 | AH4: =IF(Süt!$B6="","",IF(Süt!$C6<=0,"",VLOOKUP($P4,$P$98:$CS$631,AH$30,FALSE))) -> 73 | AI4: =IF(Süt!$B6="","",IF(Süt!$C6<=0,"",VLOOKUP($P4,$P$98:$CS$631,AI$30,FALSE))) -> 0.48 | AJ4: =IF(Süt!$B6="","",IF(Süt!$C6<=0,"",VLOOKUP($P4,$P$98:$CS$631,AJ$30,FALSE))) -> 49.4 | AK4: =IF(Süt!$B6="","",IF(Süt!$C6<=0,"",VLOOKUP($P4,$P$98:$CS$631,AK$30,FALSE))) -> 8.8 | AL4: =IF(Süt!$B6="","",IF(Süt!$C6<=0,"",VLOOKUP($P4,$P$98:$CS$631,AL$30,FALSE))) -> 7.6 | AM4: =IF(Süt!$B6="","",IF(Süt!$C6<=0,"",VLOOKUP($P4,$P$98:$CS$631,AM$30,FALSE))) -> Dry | AN4: =IF(Süt!$B6="","",IF(Süt!$C6<=0,"",VLOOKUP($P4,$P$98:$CS$631,AN$30,FALSE))) -> Grain Crop Forage | AO4: =IF(Süt!$B6="","",IF(Süt!$C6<=0,"",VLOOKUP($P4,$P$98:$CS$631,AO$30,FALSE))) -> 0 | AP4: =IF(Süt!$B6="","",IF(Süt!$C6<=0,"",VLOOKUP($P4,$P$98:$CS$631,AP$30,FALSE))) -> 7 | AQ4: =IF(Süt!$B6="","",IF(Süt!$C6<=0,"",VLOOKUP($P4,$P$98:$CS$631,AQ$30,FALSE))) -> 9.3 | AR4: =IF(Süt!$B6="","",IF(Süt!$C6<=0,"",VLOOKUP($P4,$P$98:$CS$631,AR$30,FALSE))) -> 51.4 | AS4: =IF(Süt!$B6="","",IF(Süt!$C6<=0,"",VLOOKUP($P4,$P$98:$CS$631,AS$30,FALSE))) -> 39.3 | AT4: =IF(Süt!$B6="","",IF(Süt!$C6<=0,"",VLOOKUP($P4,$P$98:$CS$631,AT$30,FALSE))) -> 1.4 | AU4: =IF(Süt!$B6="","",IF(Süt!$C6<=0,"",VLOOKUP($P4,$P$98:$CS$631,AU$30,FALSE))) -> 76.4 | AV4: =IF(Süt!$B6="","",IF(Süt!$C6<=0,"",VLOOKUP($P4,$P$98:$CS$631,AV$30,FALSE))) -> 78.3 | AW4: =IF(Süt!$B6="","",IF(Süt!$C6<=0,"",VLOOKUP($P4,$P$98:$CS$631,AW$30,FALSE))) -> 65 | AX4: =IF(Süt!$B6="","",IF(Süt!$C6<=0,"",VLOOKUP($P4,$P$98:$CS$631,AX$30,FALSE))) -> 1.08 | AY4: =IF(Süt!$B6="","",IF(Süt!$C6<=0,"",VLOOKUP($P4,$P$98:$CS$631,AY$30,FALSE))) -> 1.64 | AZ4: =IF(Süt!$B6="","",IF(Süt!$C6<=0,"",VLOOKUP($P4,$P$98:$CS$631,AZ$30,FALSE))) -> 1.78 | BA4: =IF(Süt!$B6="","",IF(Süt!$C6<=0,"",VLOOKUP($P4,$P$98:$CS$631,BA$30,FALSE))) -> 3.25 | BB4: =IF(Süt!$B6="","",IF(Süt!$C6<=0,"",VLOOKUP($P4,$P$98:$CS$631,BB$30,FALSE))) -> 3.25 | BC4: =IF(Süt!$B6="","",IF(Süt!$C6<=0,"",VLOOKUP($P4,$P$98:$CS$631,BC$30,FALSE))) -> 1.19 | BD4: =IF(Süt!$B6="","",IF(Süt!$C6<=0,"",VLOOKUP($P4,$P$98:$CS$631,BD$30,FALSE))) -> 1.07 | BE4: =IF(Süt!$B6="","",IF(Süt!$C6<=0,"",VLOOKUP($P4,$P$98:$CS$631,BE$30,FALSE))) -> 2.08 | BF4: =IF(Süt!$B6="","",IF(Süt!$C6<=0,"",VLOOKUP($P4,$P$98:$CS$631,BF$30,FALSE))) -> 3.25 | BG4: =IF(Süt!$B6="","",IF(Süt!$C6<=0,"",VLOOKUP($P4,$P$98:$CS$631,BG$30,FALSE))) -> 1.42 | BH4: =IF(Süt!$B6="","",IF(Süt!$C6<=0,"",VLOOKUP($P4,$P$98:$CS$631,BH$30,FALSE))) -> 2.67 | BI4: =IF(Süt!$B6="","",IF(Süt!$C6<=0,"",VLOOKUP($P4,$P$98:$CS$631,BI$30,FALSE))) -> 21.61 | BJ4: =IF(Süt!$B6="","",IF(Süt!$C6<=0,"",VLOOKUP($P4,$P$98:$CS$631,BJ$30,FALSE))) -> 15.04 | BK4: =IF(Süt!$B6="","",IF(Süt!$C6<=0,"",VLOOKUP($P4,$P$98:$CS$631,BK$30,FALSE))) -> 5.51 | BL4: =IF(Süt!$B6="","",IF(Süt!$C6<=0,"",VLOOKUP($P4,$P$98:$CS$631,BL$30,FALSE))) -> 1.5 | BM4: =IF(Süt!$B6="","",IF(Süt!$C6<=0,"",VLOOKUP($P4,$P$98:$CS$631,BM$30,FALSE))) -> 0.31 | BN4: =IF(Süt!$B6="","",IF(Süt!$C6<=0,"",VLOOKUP($P4,$P$98:$CS$631,BN$30,FALSE))) -> 0.3 | BO4: =IF(Süt!$B6="","",IF(Süt!$C6<=0,"",VLOOKUP($P4,$P$98:$CS$631,BO$30,FALSE))) -> 0.1 | BP4: =IF(Süt!$B6="","",IF(Süt!$C6<=0,"",VLOOKUP($P4,$P$98:$CS$631,BP$30,FALSE))) -> 0.64 | BQ4: =IF(Süt!$B6="","",IF(Süt!$C6<=0,"",VLOOKUP($P4,$P$98:$CS$631,BQ$30,FALSE))) -> 0.14 | BR4: =IF(Süt!$B6="","",IF(Süt!$C6<=0,"",VLOOKUP($P4,$P$98:$CS$631,BR$30,FALSE))) -> 0.16 | BS4: =IF(Süt!$B6="","",IF(Süt!$C6<=0,"",VLOOKUP($P4,$P$98:$CS$631,BS$30,FALSE))) -> 1.55 | BT4: =IF(Süt!$B6="","",IF(Süt!$C6<=0,"",VLOOKUP($P4,$P$98:$CS$631,BT$30,FALSE))) -> 0.9 | BU4: =IF(Süt!$B6="","",IF(Süt!$C6<=0,"",VLOOKUP($P4,$P$98:$CS$631,BU$30,FALSE))) -> 0.12 | BV4: =IF(Süt!$B6="","",IF(Süt!$C6<=0,"",VLOOKUP($P4,$P$98:$CS$631,BV$30,FALSE))) -> 0.9 | BW4: =IF(Süt!$B6="","",IF(Süt!$C6<=0,"",VLOOKUP($P4,$P$98:$CS$631,BW$30,FALSE))) -> 0.6 | BX4: =IF(Süt!$B6="","",IF(Süt!$C6<=0,"",VLOOKUP($P4,$P$98:$CS$631,BX$30,FALSE))) -> 0.9 | BY4: =IF(Süt!$B6="","",IF(Süt!$C6<=0,"",VLOOKUP($P4,$P$98:$CS$631,BY$30,FALSE))) -> 0.11 | BZ4: =IF(Süt!$B6="","",IF(Süt!$C6<=0,"",VLOOKUP($P4,$P$98:$CS$631,BZ$30,FALSE))) -> 1 | CA4: =IF(Süt!$B6="","",IF(Süt!$C6<=0,"",VLOOKUP($P4,$P$98:$CS$631,CA$30,FALSE))) -> 0 | CB4: =IF(Süt!$B6="","",IF(Süt!$C6<=0,"",VLOOKUP($P4,$P$98:$CS$631,CB$30,FALSE))) -> 1 | CC4: =IF(Süt!$B6="","",IF(Süt!$C6<=0,"",VLOOKUP($P4,$P$98:$CS$631,CC$30,FALSE))) -> 6 | CD4: =IF(Süt!$B6="","",IF(Süt!$C6<=0,"",VLOOKUP($P4,$P$98:$CS$631,CD$30,FALSE))) -> 0.04 | CE4: =IF(Süt!$B6="","",IF(Süt!$C6<=0,"",VLOOKUP($P4,$P$98:$CS$631,CE$30,FALSE))) -> 0 | CF4: =IF(Süt!$B6="","",IF(Süt!$C6<=0,"",VLOOKUP($P4,$P$98:$CS$631,CF$30,FALSE))) -> 0.85 | CG4: =IF(Süt!$B6="","",IF(Süt!$C6<=0,"",VLOOKUP($P4,$P$98:$CS$631,CG$30,FALSE))) -> 172 | CH4: =IF(Süt!$B6="","",IF(Süt!$C6<=0,"",VLOOKUP($P4,$P$98:$CS$631,CH$30,FALSE))) -> 0.1 | CI4: =IF(Süt!$B6="","",IF(Süt!$C6<=0,"",VLOOKUP($P4,$P$98:$CS$631,CI$30,FALSE))) -> 67 | CJ4: =IF(Süt!$B6="","",IF(Süt!$C6<=0,"",VLOOKUP($P4,$P$98:$CS$631,CJ$30,FALSE))) -> 0.01 | CK4: =IF(Süt!$B6="","",IF(Süt!$C6<=0,"",VLOOKUP($P4,$P$98:$CS$631,CK$30,FALSE))) -> 0 | CL4: =IF(Süt!$B6="","",IF(Süt!$C6<=0,"",VLOOKUP($P4,$P$98:$CS$631,CL$30,FALSE))) -> 1 | CM4: =IF(Süt!$B6="","",IF(Süt!$C6<=0,"",VLOOKUP($P4,$P$98:$CS$631,CM$30,FALSE))) -> 16 | CN4: =IF(Süt!$B6="","",IF(Süt!$C6<=0,"",VLOOKUP($P4,$P$98:$CS$631,CN$30,FALSE))) -> 0.15 | CO4: =IF(Süt!$B6="","",IF(Süt!$C6<=0,"",VLOOKUP($P4,$P$98:$CS$631,CO$30,FALSE))) -> 1.3 | CP4: =IF(Süt!$B6="","",IF(Süt!$C6<=0,"",VLOOKUP($P4,$P$98:$CS$631,CP$30,FALSE))) -> 0 | CQ4: =IF(Süt!$B6="","",IF(Süt!$C6<=0,"",VLOOKUP($P4,$P$98:$CS$631,CQ$30,FALSE))) -> 0 | CR4: =IF(Süt!$B6="","",IF(Süt!$C6<=0,"",VLOOKUP($P4,$P$98:$CS$631,CR$30,FALSE))) -> 0 | CS4: =IF(Süt!$B6="","",IF(Süt!$C6<=0,"",VLOOKUP($P4,$P$98:$CS$631,CS$30,FALSE))) -> 0 | CT4: 14 | CU4: 0 | CV4: 0.027 | CW4: UseTargetADG | CX4: 1 | CY4: Büyüme ihyiyaçlarını belirlemek için; | DJ4: Kurudaki İnek
A5: =IF(Süt!A5="","",Süt!A5) -> 1 | B5: =IF(Süt!B5="","",Süt!B5) -> Mısır Silajı, %29-33 KM | C5: =IF(Süt!C5="","",Süt!C5) -> 25 | D5: =Süt!D5 -> 2.5 | E5: =Süt!E5 -> 0 | F5: =Süt!F5 -> 25 | G5: Rasyon Kaba Yem Oranı, % | I5: =100-PercentConc -> 70.35086971 | M5: 7.5 | O5: 59.5 | P5: =IF(Süt!B7="","",IF(Süt!C7<=0,"",Süt!B7)) -> Yonca Kuru Otu, 4.kalite, %15-17 HP, %44-48 NDF | Q5: =IF(Süt!$B7="","",IF(Süt!$C7<=0,"",VLOOKUP($P5,$P$98:$CS$631,Q$30,FALSE))) -> 0 | R5: =IF(Süt!$B7="","",IF(Süt!$C7<=0,"",VLOOKUP($P5,$P$98:$CS$631,R$30,FALSE))) -> 52.7 | S5: =IF(Süt!$B7="","",IF(Süt!$C7<=0,"",VLOOKUP($P5,$P$98:$CS$631,S$30,FALSE))) -> Forage | T5: =IF(Süt!$B7="","",IF(Süt!$C7<=0,"",VLOOKUP($P5,$P$98:$CS$631,T$30,FALSE))) -> 1 | U5: =IF(Süt!$B7="","",IF(Süt!$C7<=0,"",VLOOKUP($P5,$P$98:$CS$631,U$30,FALSE))) -> 2.41 | V5: =IF(Süt!$B7="","",IF(Süt!$C7<=0,"",VLOOKUP($P5,$P$98:$CS$631,V$30,FALSE))) -> 1.84 | W5: =IF(Süt!$B7="","",IF(Süt!$C7<=0,"",VLOOKUP($P5,$P$98:$CS$631,W$30,FALSE))) -> 1.1 | X5: =IF(Süt!$B7="","",IF(Süt!$C7<=0,"",VLOOKUP($P5,$P$98:$CS$631,X$30,FALSE))) -> 1.06 | Y5: =IF(Süt!$B7="","",IF(Süt!$C7<=0,"",VLOOKUP($P5,$P$98:$CS$631,Y$30,FALSE))) -> 1.03 | Z5: =IF(Süt!$B7="","",IF(Süt!$C7<=0,"",VLOOKUP($P5,$P$98:$CS$631,Z$30,FALSE))) -> 0.46 | AA5: =IF(Süt!$B7="","",IF(Süt!$C7<=0,"",VLOOKUP($P5,$P$98:$CS$631,AA$30,FALSE))) -> 91.27 | AB5: =IF(Süt!$B7="","",IF(Süt!$C7<=0,"",VLOOKUP($P5,$P$98:$CS$631,AB$30,FALSE))) -> 16.08 | AC5: =IF(Süt!$B7="","",IF(Süt!$C7<=0,"",VLOOKUP($P5,$P$98:$CS$631,AC$30,FALSE))) -> 1 | AD5: =IF(Süt!$B7="","",IF(Süt!$C7<=0,"",VLOOKUP($P5,$P$98:$CS$631,AD$30,FALSE))) -> 3.3 | AE5: =IF(Süt!$B7="","",IF(Süt!$C7<=0,"",VLOOKUP($P5,$P$98:$CS$631,AE$30,FALSE))) -> 1.5 | AF5: =IF(Süt!$B7="","",IF(Süt!$C7<=0,"",VLOOKUP($P5,$P$98:$CS$631,AF$30,FALSE))) -> 2.6 | AG5: =IF(Süt!$B7="","",IF(Süt!$C7<=0,"",VLOOKUP($P5,$P$98:$CS$631,AG$30,FALSE))) -> 1 | AH5: =IF(Süt!$B7="","",IF(Süt!$C7<=0,"",VLOOKUP($P5,$P$98:$CS$631,AH$30,FALSE))) -> 47.4 | AI5: =IF(Süt!$B7="","",IF(Süt!$C7<=0,"",VLOOKUP($P5,$P$98:$CS$631,AI$30,FALSE))) -> 0.48 | AJ5: =IF(Süt!$B7="","",IF(Süt!$C7<=0,"",VLOOKUP($P5,$P$98:$CS$631,AJ$30,FALSE))) -> 37.7 | AK5: =IF(Süt!$B7="","",IF(Süt!$C7<=0,"",VLOOKUP($P5,$P$98:$CS$631,AK$30,FALSE))) -> 9.1 | AL5: =IF(Süt!$B7="","",IF(Süt!$C7<=0,"",VLOOKUP($P5,$P$98:$CS$631,AL$30,FALSE))) -> 8.9 | AM5: =IF(Süt!$B7="","",IF(Süt!$C7<=0,"",VLOOKUP($P5,$P$98:$CS$631,AM$30,FALSE))) -> Dry | AN5: =IF(Süt!$B7="","",IF(Süt!$C7<=0,"",VLOOKUP($P5,$P$98:$CS$631,AN$30,FALSE))) -> Grass/Legume Forage | AO5: =IF(Süt!$B7="","",IF(Süt!$C7<=0,"",VLOOKUP($P5,$P$98:$CS$631,AO$30,FALSE))) -> 0 | AP5: =IF(Süt!$B7="","",IF(Süt!$C7<=0,"",VLOOKUP($P5,$P$98:$CS$631,AP$30,FALSE))) -> 7 | AQ5: =IF(Süt!$B7="","",IF(Süt!$C7<=0,"",VLOOKUP($P5,$P$98:$CS$631,AQ$30,FALSE))) -> 32.5 | AR5: =IF(Süt!$B7="","",IF(Süt!$C7<=0,"",VLOOKUP($P5,$P$98:$CS$631,AR$30,FALSE))) -> 49.7 | AS5: =IF(Süt!$B7="","",IF(Süt!$C7<=0,"",VLOOKUP($P5,$P$98:$CS$631,AS$30,FALSE))) -> 9 | AT5: =IF(Süt!$B7="","",IF(Süt!$C7<=0,"",VLOOKUP($P5,$P$98:$CS$631,AT$30,FALSE))) -> 14 | AU5: =IF(Süt!$B7="","",IF(Süt!$C7<=0,"",VLOOKUP($P5,$P$98:$CS$631,AU$30,FALSE))) -> 32 | AV5: =IF(Süt!$B7="","",IF(Süt!$C7<=0,"",VLOOKUP($P5,$P$98:$CS$631,AV$30,FALSE))) -> 33.1 | AW5: =IF(Süt!$B7="","",IF(Süt!$C7<=0,"",VLOOKUP($P5,$P$98:$CS$631,AW$30,FALSE))) -> 65.9 | AX5: =IF(Süt!$B7="","",IF(Süt!$C7<=0,"",VLOOKUP($P5,$P$98:$CS$631,AX$30,FALSE))) -> 5.14 | AY5: =IF(Süt!$B7="","",IF(Süt!$C7<=0,"",VLOOKUP($P5,$P$98:$CS$631,AY$30,FALSE))) -> 1.95 | AZ5: =IF(Süt!$B7="","",IF(Süt!$C7<=0,"",VLOOKUP($P5,$P$98:$CS$631,AZ$30,FALSE))) -> 4.22 | BA5: =IF(Süt!$B7="","",IF(Süt!$C7<=0,"",VLOOKUP($P5,$P$98:$CS$631,BA$30,FALSE))) -> 7.35 | BB5: =IF(Süt!$B7="","",IF(Süt!$C7<=0,"",VLOOKUP($P5,$P$98:$CS$631,BB$30,FALSE))) -> 5.08 | BC5: =IF(Süt!$B7="","",IF(Süt!$C7<=0,"",VLOOKUP($P5,$P$98:$CS$631,BC$30,FALSE))) -> 1.56 | BD5: =IF(Süt!$B7="","",IF(Süt!$C7<=0,"",VLOOKUP($P5,$P$98:$CS$631,BD$30,FALSE))) -> 1.42 | BE5: =IF(Süt!$B7="","",IF(Süt!$C7<=0,"",VLOOKUP($P5,$P$98:$CS$631,BE$30,FALSE))) -> 4.78 | BF5: =IF(Süt!$B7="","",IF(Süt!$C7<=0,"",VLOOKUP($P5,$P$98:$CS$631,BF$30,FALSE))) -> 4.37 | BG5: =IF(Süt!$B7="","",IF(Süt!$C7<=0,"",VLOOKUP($P5,$P$98:$CS$631,BG$30,FALSE))) -> 1.5 | BH5: =IF(Süt!$B7="","",IF(Süt!$C7<=0,"",VLOOKUP($P5,$P$98:$CS$631,BH$30,FALSE))) -> 5.23 | BI5: =IF(Süt!$B7="","",IF(Süt!$C7<=0,"",VLOOKUP($P5,$P$98:$CS$631,BI$30,FALSE))) -> 41.18 | BJ5: =IF(Süt!$B7="","",IF(Süt!$C7<=0,"",VLOOKUP($P5,$P$98:$CS$631,BJ$30,FALSE))) -> 12.34 | BK5: =IF(Süt!$B7="","",IF(Süt!$C7<=0,"",VLOOKUP($P5,$P$98:$CS$631,BK$30,FALSE))) -> 3.79 | BL5: =IF(Süt!$B7="","",IF(Süt!$C7<=0,"",VLOOKUP($P5,$P$98:$CS$631,BL$30,FALSE))) -> 8.5 | BM5: =IF(Süt!$B7="","",IF(Süt!$C7<=0,"",VLOOKUP($P5,$P$98:$CS$631,BM$30,FALSE))) -> 1.19 | BN5: =IF(Süt!$B7="","",IF(Süt!$C7<=0,"",VLOOKUP($P5,$P$98:$CS$631,BN$30,FALSE))) -> 0.3 | BO5: =IF(Süt!$B7="","",IF(Süt!$C7<=0,"",VLOOKUP($P5,$P$98:$CS$631,BO$30,FALSE))) -> 0.24 | BP5: =IF(Süt!$B7="","",IF(Süt!$C7<=0,"",VLOOKUP($P5,$P$98:$CS$631,BP$30,FALSE))) -> 0.64 | BQ5: =IF(Süt!$B7="","",IF(Süt!$C7<=0,"",VLOOKUP($P5,$P$98:$CS$631,BQ$30,FALSE))) -> 0.27 | BR5: =IF(Süt!$B7="","",IF(Süt!$C7<=0,"",VLOOKUP($P5,$P$98:$CS$631,BR$30,FALSE))) -> 0.16 | BS5: =IF(Süt!$B7="","",IF(Süt!$C7<=0,"",VLOOKUP($P5,$P$98:$CS$631,BS$30,FALSE))) -> 1.56 | BT5: =IF(Süt!$B7="","",IF(Süt!$C7<=0,"",VLOOKUP($P5,$P$98:$CS$631,BT$30,FALSE))) -> 0.9 | BU5: =IF(Süt!$B7="","",IF(Süt!$C7<=0,"",VLOOKUP($P5,$P$98:$CS$631,BU$30,FALSE))) -> 0.07 | BV5: =IF(Süt!$B7="","",IF(Süt!$C7<=0,"",VLOOKUP($P5,$P$98:$CS$631,BV$30,FALSE))) -> 0.9 | BW5: =IF(Süt!$B7="","",IF(Süt!$C7<=0,"",VLOOKUP($P5,$P$98:$CS$631,BW$30,FALSE))) -> 0 | BX5: =IF(Süt!$B7="","",IF(Süt!$C7<=0,"",VLOOKUP($P5,$P$98:$CS$631,BX$30,FALSE))) -> 0.9 | BY5: =IF(Süt!$B7="","",IF(Süt!$C7<=0,"",VLOOKUP($P5,$P$98:$CS$631,BY$30,FALSE))) -> 0.3 | BZ5: =IF(Süt!$B7="","",IF(Süt!$C7<=0,"",VLOOKUP($P5,$P$98:$CS$631,BZ$30,FALSE))) -> 1 | CA5: =IF(Süt!$B7="","",IF(Süt!$C7<=0,"",VLOOKUP($P5,$P$98:$CS$631,CA$30,FALSE))) -> 0.23 | CB5: =IF(Süt!$B7="","",IF(Süt!$C7<=0,"",VLOOKUP($P5,$P$98:$CS$631,CB$30,FALSE))) -> 1 | CC5: =IF(Süt!$B7="","",IF(Süt!$C7<=0,"",VLOOKUP($P5,$P$98:$CS$631,CC$30,FALSE))) -> 9.9 | CD5: =IF(Süt!$B7="","",IF(Süt!$C7<=0,"",VLOOKUP($P5,$P$98:$CS$631,CD$30,FALSE))) -> 0.04 | CE5: =IF(Süt!$B7="","",IF(Süt!$C7<=0,"",VLOOKUP($P5,$P$98:$CS$631,CE$30,FALSE))) -> 0.13 | CF5: =IF(Süt!$B7="","",IF(Süt!$C7<=0,"",VLOOKUP($P5,$P$98:$CS$631,CF$30,FALSE))) -> 0.85 | CG5: =IF(Süt!$B7="","",IF(Süt!$C7<=0,"",VLOOKUP($P5,$P$98:$CS$631,CG$30,FALSE))) -> 160 | CH5: =IF(Süt!$B7="","",IF(Süt!$C7<=0,"",VLOOKUP($P5,$P$98:$CS$631,CH$30,FALSE))) -> 0.1 | CI5: =IF(Süt!$B7="","",IF(Süt!$C7<=0,"",VLOOKUP($P5,$P$98:$CS$631,CI$30,FALSE))) -> 42.3 | CJ5: =IF(Süt!$B7="","",IF(Süt!$C7<=0,"",VLOOKUP($P5,$P$98:$CS$631,CJ$30,FALSE))) -> 0.01 | CK5: =IF(Süt!$B7="","",IF(Süt!$C7<=0,"",VLOOKUP($P5,$P$98:$CS$631,CK$30,FALSE))) -> 0.55 | CL5: =IF(Süt!$B7="","",IF(Süt!$C7<=0,"",VLOOKUP($P5,$P$98:$CS$631,CL$30,FALSE))) -> 1 | CM5: =IF(Süt!$B7="","",IF(Süt!$C7<=0,"",VLOOKUP($P5,$P$98:$CS$631,CM$30,FALSE))) -> 26.1 | CN5: =IF(Süt!$B7="","",IF(Süt!$C7<=0,"",VLOOKUP($P5,$P$98:$CS$631,CN$30,FALSE))) -> 0.15 | CO5: =IF(Süt!$B7="","",IF(Süt!$C7<=0,"",VLOOKUP($P5,$P$98:$CS$631,CO$30,FALSE))) -> 0 | CP5: =IF(Süt!$B7="","",IF(Süt!$C7<=0,"",VLOOKUP($P5,$P$98:$CS$631,CP$30,FALSE))) -> 0 | CQ5: =IF(Süt!$B7="","",IF(Süt!$C7<=0,"",VLOOKUP($P5,$P$98:$CS$631,CQ$30,FALSE))) -> 19.3 | CR5: =IF(Süt!$B7="","",IF(Süt!$C7<=0,"",VLOOKUP($P5,$P$98:$CS$631,CR$30,FALSE))) -> 1 | CS5: =IF(Süt!$B7="","",IF(Süt!$C7<=0,"",VLOOKUP($P5,$P$98:$CS$631,CS$30,FALSE))) -> 0 | CT5: 13 | CU5: 0 | CV5: 0.054 | CY5: 1 seçildiğinde program Target ADG yi kullanır, 0 seçildiğinde Desired ADG yi kullanır | DJ5: Damızlık Düve
A6: =IF(Süt!A6="","",Süt!A6) -> 2 | B6: =IF(Süt!B6="","",Süt!B6) -> Buğday Samanı | C6: =IF(Süt!C6="","",Süt!C6) -> 0.7087150009 | D6: =Süt!D6 -> 1.5 | E6: =Süt!E6 -> 0 | F6: =Süt!F6 -> 7 | G6: Ham Protein, g/gün | H6: =IF(AnimalType="Damızlık Düve",HeiferRDP+HeiferRUP,RDPReq+RUPReq) -> 2884.33 | I6: =DietCP*TotalDMFed*1000 -> 2951.987463 | J6: =IF(H6=""," ",IF(I6>(H6*1.05),"FAZLA",IF(I6<(H6*0.98),"EKSİK","TAMAM"))) -> TAMAM | O6: 48.75 | P6: =IF(Süt!B8="","",IF(Süt!C8<=0,"",Süt!B8)) -> Arpa, Ezme | Q6: =IF(Süt!$B8="","",IF(Süt!$C8<=0,"",VLOOKUP($P6,$P$98:$CS$631,Q$30,FALSE))) -> 4-00-528 | R6: =IF(Süt!$B8="","",IF(Süt!$C8<=0,"",VLOOKUP($P6,$P$98:$CS$631,R$30,FALSE))) -> 82.7 | S6: =IF(Süt!$B8="","",IF(Süt!$C8<=0,"",VLOOKUP($P6,$P$98:$CS$631,S$30,FALSE))) -> Conc | T6: =IF(Süt!$B8="","",IF(Süt!$C8<=0,"",VLOOKUP($P6,$P$98:$CS$631,T$30,FALSE))) -> 1.04 | U6: =IF(Süt!$B8="","",IF(Süt!$C8<=0,"",VLOOKUP($P6,$P$98:$CS$631,U$30,FALSE))) -> 3.64 | V6: =IF(Süt!$B8="","",IF(Süt!$C8<=0,"",VLOOKUP($P6,$P$98:$CS$631,V$30,FALSE))) -> 2.92 | W6: =IF(Süt!$B8="","",IF(Süt!$C8<=0,"",VLOOKUP($P6,$P$98:$CS$631,W$30,FALSE))) -> 1.86 | X6: =IF(Süt!$B8="","",IF(Süt!$C8<=0,"",VLOOKUP($P6,$P$98:$CS$631,X$30,FALSE))) -> 1.76 | Y6: =IF(Süt!$B8="","",IF(Süt!$C8<=0,"",VLOOKUP($P6,$P$98:$CS$631,Y$30,FALSE))) -> 2.02 | Z6: =IF(Süt!$B8="","",IF(Süt!$C8<=0,"",VLOOKUP($P6,$P$98:$CS$631,Z$30,FALSE))) -> 1.36 | AA6: =IF(Süt!$B8="","",IF(Süt!$C8<=0,"",VLOOKUP($P6,$P$98:$CS$631,AA$30,FALSE))) -> 91 | AB6: =IF(Süt!$B8="","",IF(Süt!$C8<=0,"",VLOOKUP($P6,$P$98:$CS$631,AB$30,FALSE))) -> 12.4 | AC6: =IF(Süt!$B8="","",IF(Süt!$C8<=0,"",VLOOKUP($P6,$P$98:$CS$631,AC$30,FALSE))) -> 1 | AD6: =IF(Süt!$B8="","",IF(Süt!$C8<=0,"",VLOOKUP($P6,$P$98:$CS$631,AD$30,FALSE))) -> 1.8 | AE6: =IF(Süt!$B8="","",IF(Süt!$C8<=0,"",VLOOKUP($P6,$P$98:$CS$631,AE$30,FALSE))) -> 0.5 | AF6: =IF(Süt!$B8="","",IF(Süt!$C8<=0,"",VLOOKUP($P6,$P$98:$CS$631,AF$30,FALSE))) -> 2.2 | AG6: =IF(Süt!$B8="","",IF(Süt!$C8<=0,"",VLOOKUP($P6,$P$98:$CS$631,AG$30,FALSE))) -> 1 | AH6: =IF(Süt!$B8="","",IF(Süt!$C8<=0,"",VLOOKUP($P6,$P$98:$CS$631,AH$30,FALSE))) -> 20.8 | AI6: =IF(Süt!$B8="","",IF(Süt!$C8<=0,"",VLOOKUP($P6,$P$98:$CS$631,AI$30,FALSE))) -> 0.48 | AJ6: =IF(Süt!$B8="","",IF(Süt!$C8<=0,"",VLOOKUP($P6,$P$98:$CS$631,AJ$30,FALSE))) -> 7.2 | AK6: =IF(Süt!$B8="","",IF(Süt!$C8<=0,"",VLOOKUP($P6,$P$98:$CS$631,AK$30,FALSE))) -> 1.9 | AL6: =IF(Süt!$B8="","",IF(Süt!$C8<=0,"",VLOOKUP($P6,$P$98:$CS$631,AL$30,FALSE))) -> 2.9 | AM6: =IF(Süt!$B8="","",IF(Süt!$C8<=0,"",VLOOKUP($P6,$P$98:$CS$631,AM$30,FALSE))) -> Conc | AN6: =IF(Süt!$B8="","",IF(Süt!$C8<=0,"",VLOOKUP($P6,$P$98:$CS$631,AN$30,FALSE))) -> Energy Source | AO6: =IF(Süt!$B8="","",IF(Süt!$C8<=0,"",VLOOKUP($P6,$P$98:$CS$631,AO$30,FALSE))) -> 0 | AP6: =IF(Süt!$B8="","",IF(Süt!$C8<=0,"",VLOOKUP($P6,$P$98:$CS$631,AP$30,FALSE))) -> 10 | AQ6: =IF(Süt!$B8="","",IF(Süt!$C8<=0,"",VLOOKUP($P6,$P$98:$CS$631,AQ$30,FALSE))) -> 30.2 | AR6: =IF(Süt!$B8="","",IF(Süt!$C8<=0,"",VLOOKUP($P6,$P$98:$CS$631,AR$30,FALSE))) -> 61.2 | AS6: =IF(Süt!$B8="","",IF(Süt!$C8<=0,"",VLOOKUP($P6,$P$98:$CS$631,AS$30,FALSE))) -> 8.6 | AT6: =IF(Süt!$B8="","",IF(Süt!$C8<=0,"",VLOOKUP($P6,$P$98:$CS$631,AT$30,FALSE))) -> 22.7 | AU6: =IF(Süt!$B8="","",IF(Süt!$C8<=0,"",VLOOKUP($P6,$P$98:$CS$631,AU$30,FALSE))) -> 18.1 | AV6: =IF(Süt!$B8="","",IF(Süt!$C8<=0,"",VLOOKUP($P6,$P$98:$CS$631,AV$30,FALSE))) -> 23.7 | AW6: =IF(Süt!$B8="","",IF(Süt!$C8<=0,"",VLOOKUP($P6,$P$98:$CS$631,AW$30,FALSE))) -> 85 | AX6: =IF(Süt!$B8="","",IF(Süt!$C8<=0,"",VLOOKUP($P6,$P$98:$CS$631,AX$30,FALSE))) -> 5.07 | AY6: =IF(Süt!$B8="","",IF(Süt!$C8<=0,"",VLOOKUP($P6,$P$98:$CS$631,AY$30,FALSE))) -> 2.3 | AZ6: =IF(Süt!$B8="","",IF(Süt!$C8<=0,"",VLOOKUP($P6,$P$98:$CS$631,AZ$30,FALSE))) -> 3.47 | BA6: =IF(Süt!$B8="","",IF(Süt!$C8<=0,"",VLOOKUP($P6,$P$98:$CS$631,BA$30,FALSE))) -> 6.97 | BB6: =IF(Süt!$B8="","",IF(Süt!$C8<=0,"",VLOOKUP($P6,$P$98:$CS$631,BB$30,FALSE))) -> 3.63 | BC6: =IF(Süt!$B8="","",IF(Süt!$C8<=0,"",VLOOKUP($P6,$P$98:$CS$631,BC$30,FALSE))) -> 1.7 | BD6: =IF(Süt!$B8="","",IF(Süt!$C8<=0,"",VLOOKUP($P6,$P$98:$CS$631,BD$30,FALSE))) -> 2.28 | BE6: =IF(Süt!$B8="","",IF(Süt!$C8<=0,"",VLOOKUP($P6,$P$98:$CS$631,BE$30,FALSE))) -> 5.11 | BF6: =IF(Süt!$B8="","",IF(Süt!$C8<=0,"",VLOOKUP($P6,$P$98:$CS$631,BF$30,FALSE))) -> 3.42 | BG6: =IF(Süt!$B8="","",IF(Süt!$C8<=0,"",VLOOKUP($P6,$P$98:$CS$631,BG$30,FALSE))) -> 1.17 | BH6: =IF(Süt!$B8="","",IF(Süt!$C8<=0,"",VLOOKUP($P6,$P$98:$CS$631,BH$30,FALSE))) -> 4.9 | BI6: =IF(Süt!$B8="","",IF(Süt!$C8<=0,"",VLOOKUP($P6,$P$98:$CS$631,BI$30,FALSE))) -> 37.74 | BJ6: =IF(Süt!$B8="","",IF(Süt!$C8<=0,"",VLOOKUP($P6,$P$98:$CS$631,BJ$30,FALSE))) -> 9.62 | BK6: =IF(Süt!$B8="","",IF(Süt!$C8<=0,"",VLOOKUP($P6,$P$98:$CS$631,BK$30,FALSE))) -> 4.5 | BL6: =IF(Süt!$B8="","",IF(Süt!$C8<=0,"",VLOOKUP($P6,$P$98:$CS$631,BL$30,FALSE))) -> 9.75 | BM6: =IF(Süt!$B8="","",IF(Süt!$C8<=0,"",VLOOKUP($P6,$P$98:$CS$631,BM$30,FALSE))) -> 0.06 | BN6: =IF(Süt!$B8="","",IF(Süt!$C8<=0,"",VLOOKUP($P6,$P$98:$CS$631,BN$30,FALSE))) -> 0.6 | BO6: =IF(Süt!$B8="","",IF(Süt!$C8<=0,"",VLOOKUP($P6,$P$98:$CS$631,BO$30,FALSE))) -> 0.39 | BP6: =IF(Süt!$B8="","",IF(Süt!$C8<=0,"",VLOOKUP($P6,$P$98:$CS$631,BP$30,FALSE))) -> 0.7 | BQ6: =IF(Süt!$B8="","",IF(Süt!$C8<=0,"",VLOOKUP($P6,$P$98:$CS$631,BQ$30,FALSE))) -> 0.14 | BR6: =IF(Süt!$B8="","",IF(Süt!$C8<=0,"",VLOOKUP($P6,$P$98:$CS$631,BR$30,FALSE))) -> 0.16 | BS6: =IF(Süt!$B8="","",IF(Süt!$C8<=0,"",VLOOKUP($P6,$P$98:$CS$631,BS$30,FALSE))) -> 0.56 | BT6: =IF(Süt!$B8="","",IF(Süt!$C8<=0,"",VLOOKUP($P6,$P$98:$CS$631,BT$30,FALSE))) -> 0.9 | BU6: =IF(Süt!$B8="","",IF(Süt!$C8<=0,"",VLOOKUP($P6,$P$98:$CS$631,BU$30,FALSE))) -> 0.02 | BV6: =IF(Süt!$B8="","",IF(Süt!$C8<=0,"",VLOOKUP($P6,$P$98:$CS$631,BV$30,FALSE))) -> 0.9 | BW6: =IF(Süt!$B8="","",IF(Süt!$C8<=0,"",VLOOKUP($P6,$P$98:$CS$631,BW$30,FALSE))) -> 0.13 | BX6: =IF(Süt!$B8="","",IF(Süt!$C8<=0,"",VLOOKUP($P6,$P$98:$CS$631,BX$30,FALSE))) -> 0.9 | BY6: =IF(Süt!$B8="","",IF(Süt!$C8<=0,"",VLOOKUP($P6,$P$98:$CS$631,BY$30,FALSE))) -> 0.12 | BZ6: =IF(Süt!$B8="","",IF(Süt!$C8<=0,"",VLOOKUP($P6,$P$98:$CS$631,BZ$30,FALSE))) -> 1 | CA6: =IF(Süt!$B8="","",IF(Süt!$C8<=0,"",VLOOKUP($P6,$P$98:$CS$631,CA$30,FALSE))) -> 0.35 | CB6: =IF(Süt!$B8="","",IF(Süt!$C8<=0,"",VLOOKUP($P6,$P$98:$CS$631,CB$30,FALSE))) -> 1 | CC6: =IF(Süt!$B8="","",IF(Süt!$C8<=0,"",VLOOKUP($P6,$P$98:$CS$631,CC$30,FALSE))) -> 6 | CD6: =IF(Süt!$B8="","",IF(Süt!$C8<=0,"",VLOOKUP($P6,$P$98:$CS$631,CD$30,FALSE))) -> 0.04 | CE6: =IF(Süt!$B8="","",IF(Süt!$C8<=0,"",VLOOKUP($P6,$P$98:$CS$631,CE$30,FALSE))) -> 0 | CF6: =IF(Süt!$B8="","",IF(Süt!$C8<=0,"",VLOOKUP($P6,$P$98:$CS$631,CF$30,FALSE))) -> 0.85 | CG6: =IF(Süt!$B8="","",IF(Süt!$C8<=0,"",VLOOKUP($P6,$P$98:$CS$631,CG$30,FALSE))) -> 70 | CH6: =IF(Süt!$B8="","",IF(Süt!$C8<=0,"",VLOOKUP($P6,$P$98:$CS$631,CH$30,FALSE))) -> 0.1 | CI6: =IF(Süt!$B8="","",IF(Süt!$C8<=0,"",VLOOKUP($P6,$P$98:$CS$631,CI$30,FALSE))) -> 22 | CJ6: =IF(Süt!$B8="","",IF(Süt!$C8<=0,"",VLOOKUP($P6,$P$98:$CS$631,CJ$30,FALSE))) -> 0.01 | CK6: =IF(Süt!$B8="","",IF(Süt!$C8<=0,"",VLOOKUP($P6,$P$98:$CS$631,CK$30,FALSE))) -> 0.11 | CL6: =IF(Süt!$B8="","",IF(Süt!$C8<=0,"",VLOOKUP($P6,$P$98:$CS$631,CL$30,FALSE))) -> 1 | CM6: =IF(Süt!$B8="","",IF(Süt!$C8<=0,"",VLOOKUP($P6,$P$98:$CS$631,CM$30,FALSE))) -> 38 | CN6: =IF(Süt!$B8="","",IF(Süt!$C8<=0,"",VLOOKUP($P6,$P$98:$CS$631,CN$30,FALSE))) -> 0.15 | CO6: =IF(Süt!$B8="","",IF(Süt!$C8<=0,"",VLOOKUP($P6,$P$98:$CS$631,CO$30,FALSE))) -> 1.1 | CP6: =IF(Süt!$B8="","",IF(Süt!$C8<=0,"",VLOOKUP($P6,$P$98:$CS$631,CP$30,FALSE))) -> 0 | CQ6: =IF(Süt!$B8="","",IF(Süt!$C8<=0,"",VLOOKUP($P6,$P$98:$CS$631,CQ$30,FALSE))) -> 0 | CR6: =IF(Süt!$B8="","",IF(Süt!$C8<=0,"",VLOOKUP($P6,$P$98:$CS$631,CR$30,FALSE))) -> 0 | CS6: =IF(Süt!$B8="","",IF(Süt!$C8<=0,"",VLOOKUP($P6,$P$98:$CS$631,CS$30,FALSE))) -> 0 | CT6: 12 | CU6: 0 | CV6: 0.081 | CW6: İstenilen canlı ağırlık artışı : | CX6: =IF(AnimalType="Damızlık Düve",ADG*1000,0) -> 0 | CY6: gram/gün
A7: =IF(Süt!A7="","",Süt!A7) -> 2 | B7: =IF(Süt!B7="","",Süt!B7) -> Yonca Kuru Otu, 4.kalite, %15-17 HP, %44-48 NDF | C7: =IF(Süt!C7="","",Süt!C7) -> 7 | D7: =Süt!D7 -> 8.5 | E7: =Süt!E7 -> 0 | F7: =Süt!F7 -> 7 | G7: Ham Protein, % KM | I7: =DietCP*100 -> 13.96520596 | M7: 0.1 | O7: 2.408622777e-07 | P7: =IF(Süt!B9="","",IF(Süt!C9<=0,"",Süt!B9)) -> Mısır, Pul Haline Getirilmiş | Q7: =IF(Süt!$B9="","",IF(Süt!$C9<=0,"",VLOOKUP($P7,$P$98:$CS$631,Q$30,FALSE))) -> 4-02-854 | R7: =IF(Süt!$B9="","",IF(Süt!$C9<=0,"",VLOOKUP($P7,$P$98:$CS$631,R$30,FALSE))) -> 91.7 | S7: =IF(Süt!$B9="","",IF(Süt!$C9<=0,"",VLOOKUP($P7,$P$98:$CS$631,S$30,FALSE))) -> Conc | T7: =IF(Süt!$B9="","",IF(Süt!$C9<=0,"",VLOOKUP($P7,$P$98:$CS$631,T$30,FALSE))) -> 1.04 | U7: =IF(Süt!$B9="","",IF(Süt!$C9<=0,"",VLOOKUP($P7,$P$98:$CS$631,U$30,FALSE))) -> 3.97 | V7: =IF(Süt!$B9="","",IF(Süt!$C9<=0,"",VLOOKUP($P7,$P$98:$CS$631,V$30,FALSE))) -> 3.24 | W7: =IF(Süt!$B9="","",IF(Süt!$C9<=0,"",VLOOKUP($P7,$P$98:$CS$631,W$30,FALSE))) -> 2.09 | X7: =IF(Süt!$B9="","",IF(Süt!$C9<=0,"",VLOOKUP($P7,$P$98:$CS$631,X$30,FALSE))) -> 1.98 | Y7: =IF(Süt!$B9="","",IF(Süt!$C9<=0,"",VLOOKUP($P7,$P$98:$CS$631,Y$30,FALSE))) -> 2.24 | Z7: =IF(Süt!$B9="","",IF(Süt!$C9<=0,"",VLOOKUP($P7,$P$98:$CS$631,Z$30,FALSE))) -> 1.55 | AA7: =IF(Süt!$B9="","",IF(Süt!$C9<=0,"",VLOOKUP($P7,$P$98:$CS$631,AA$30,FALSE))) -> 88.1 | AB7: =IF(Süt!$B9="","",IF(Süt!$C9<=0,"",VLOOKUP($P7,$P$98:$CS$631,AB$30,FALSE))) -> 9.4 | AC7: =IF(Süt!$B9="","",IF(Süt!$C9<=0,"",VLOOKUP($P7,$P$98:$CS$631,AC$30,FALSE))) -> 1 | AD7: =IF(Süt!$B9="","",IF(Süt!$C9<=0,"",VLOOKUP($P7,$P$98:$CS$631,AD$30,FALSE))) -> 0.7 | AE7: =IF(Süt!$B9="","",IF(Süt!$C9<=0,"",VLOOKUP($P7,$P$98:$CS$631,AE$30,FALSE))) -> 0.3 | AF7: =IF(Süt!$B9="","",IF(Süt!$C9<=0,"",VLOOKUP($P7,$P$98:$CS$631,AF$30,FALSE))) -> 4.2 | AG7: =IF(Süt!$B9="","",IF(Süt!$C9<=0,"",VLOOKUP($P7,$P$98:$CS$631,AG$30,FALSE))) -> 1 | AH7: =IF(Süt!$B9="","",IF(Süt!$C9<=0,"",VLOOKUP($P7,$P$98:$CS$631,AH$30,FALSE))) -> 9.5 | AI7: =IF(Süt!$B9="","",IF(Süt!$C9<=0,"",VLOOKUP($P7,$P$98:$CS$631,AI$30,FALSE))) -> 0.49 | AJ7: =IF(Süt!$B9="","",IF(Süt!$C9<=0,"",VLOOKUP($P7,$P$98:$CS$631,AJ$30,FALSE))) -> 3.4 | AK7: =IF(Süt!$B9="","",IF(Süt!$C9<=0,"",VLOOKUP($P7,$P$98:$CS$631,AK$30,FALSE))) -> 0.9 | AL7: =IF(Süt!$B9="","",IF(Süt!$C9<=0,"",VLOOKUP($P7,$P$98:$CS$631,AL$30,FALSE))) -> 1.5 | AM7: =IF(Süt!$B9="","",IF(Süt!$C9<=0,"",VLOOKUP($P7,$P$98:$CS$631,AM$30,FALSE))) -> Conc | AN7: =IF(Süt!$B9="","",IF(Süt!$C9<=0,"",VLOOKUP($P7,$P$98:$CS$631,AN$30,FALSE))) -> Energy Source | AO7: =IF(Süt!$B9="","",IF(Süt!$C9<=0,"",VLOOKUP($P7,$P$98:$CS$631,AO$30,FALSE))) -> 0 | AP7: =IF(Süt!$B9="","",IF(Süt!$C9<=0,"",VLOOKUP($P7,$P$98:$CS$631,AP$30,FALSE))) -> 10 | AQ7: =IF(Süt!$B9="","",IF(Süt!$C9<=0,"",VLOOKUP($P7,$P$98:$CS$631,AQ$30,FALSE))) -> 1.7 | AR7: =IF(Süt!$B9="","",IF(Süt!$C9<=0,"",VLOOKUP($P7,$P$98:$CS$631,AR$30,FALSE))) -> 82.8 | AS7: =IF(Süt!$B9="","",IF(Süt!$C9<=0,"",VLOOKUP($P7,$P$98:$CS$631,AS$30,FALSE))) -> 15.5 | AT7: =IF(Süt!$B9="","",IF(Süt!$C9<=0,"",VLOOKUP($P7,$P$98:$CS$631,AT$30,FALSE))) -> 3 | AU7: =IF(Süt!$B9="","",IF(Süt!$C9<=0,"",VLOOKUP($P7,$P$98:$CS$631,AU$30,FALSE))) -> 63.7 | AV7: =IF(Süt!$B9="","",IF(Süt!$C9<=0,"",VLOOKUP($P7,$P$98:$CS$631,AV$30,FALSE))) -> 74.5 | AW7: =IF(Süt!$B9="","",IF(Süt!$C9<=0,"",VLOOKUP($P7,$P$98:$CS$631,AW$30,FALSE))) -> 90 | AX7: =IF(Süt!$B9="","",IF(Süt!$C9<=0,"",VLOOKUP($P7,$P$98:$CS$631,AX$30,FALSE))) -> 4.73 | AY7: =IF(Süt!$B9="","",IF(Süt!$C9<=0,"",VLOOKUP($P7,$P$98:$CS$631,AY$30,FALSE))) -> 3.13 | AZ7: =IF(Süt!$B9="","",IF(Süt!$C9<=0,"",VLOOKUP($P7,$P$98:$CS$631,AZ$30,FALSE))) -> 3.34 | BA7: =IF(Süt!$B9="","",IF(Süt!$C9<=0,"",VLOOKUP($P7,$P$98:$CS$631,BA$30,FALSE))) -> 10.87 | BB7: =IF(Süt!$B9="","",IF(Süt!$C9<=0,"",VLOOKUP($P7,$P$98:$CS$631,BB$30,FALSE))) -> 3.05 | BC7: =IF(Süt!$B9="","",IF(Süt!$C9<=0,"",VLOOKUP($P7,$P$98:$CS$631,BC$30,FALSE))) -> 2.04 | BD7: =IF(Süt!$B9="","",IF(Süt!$C9<=0,"",VLOOKUP($P7,$P$98:$CS$631,BD$30,FALSE))) -> 2.22 | BE7: =IF(Süt!$B9="","",IF(Süt!$C9<=0,"",VLOOKUP($P7,$P$98:$CS$631,BE$30,FALSE))) -> 4.62 | BF7: =IF(Süt!$B9="","",IF(Süt!$C9<=0,"",VLOOKUP($P7,$P$98:$CS$631,BF$30,FALSE))) -> 3.66 | BG7: =IF(Süt!$B9="","",IF(Süt!$C9<=0,"",VLOOKUP($P7,$P$98:$CS$631,BG$30,FALSE))) -> 0.72 | BH7: =IF(Süt!$B9="","",IF(Süt!$C9<=0,"",VLOOKUP($P7,$P$98:$CS$631,BH$30,FALSE))) -> 4.75 | BI7: =IF(Süt!$B9="","",IF(Süt!$C9<=0,"",VLOOKUP($P7,$P$98:$CS$631,BI$30,FALSE))) -> 40.19 | BJ7: =IF(Süt!$B9="","",IF(Süt!$C9<=0,"",VLOOKUP($P7,$P$98:$CS$631,BJ$30,FALSE))) -> 7.45 | BK7: =IF(Süt!$B9="","",IF(Süt!$C9<=0,"",VLOOKUP($P7,$P$98:$CS$631,BK$30,FALSE))) -> 4.99 | BL7: =IF(Süt!$B9="","",IF(Süt!$C9<=0,"",VLOOKUP($P7,$P$98:$CS$631,BL$30,FALSE))) -> 11.5 | BM7: =IF(Süt!$B9="","",IF(Süt!$C9<=0,"",VLOOKUP($P7,$P$98:$CS$631,BM$30,FALSE))) -> 0.04 | BN7: =IF(Süt!$B9="","",IF(Süt!$C9<=0,"",VLOOKUP($P7,$P$98:$CS$631,BN$30,FALSE))) -> 0.6 | BO7: =IF(Süt!$B9="","",IF(Süt!$C9<=0,"",VLOOKUP($P7,$P$98:$CS$631,BO$30,FALSE))) -> 0.3 | BP7: =IF(Süt!$B9="","",IF(Süt!$C9<=0,"",VLOOKUP($P7,$P$98:$CS$631,BP$30,FALSE))) -> 0.7 | BQ7: =IF(Süt!$B9="","",IF(Süt!$C9<=0,"",VLOOKUP($P7,$P$98:$CS$631,BQ$30,FALSE))) -> 0.12 | BR7: =IF(Süt!$B9="","",IF(Süt!$C9<=0,"",VLOOKUP($P7,$P$98:$CS$631,BR$30,FALSE))) -> 0.16 | BS7: =IF(Süt!$B9="","",IF(Süt!$C9<=0,"",VLOOKUP($P7,$P$98:$CS$631,BS$30,FALSE))) -> 0.42 | BT7: =IF(Süt!$B9="","",IF(Süt!$C9<=0,"",VLOOKUP($P7,$P$98:$CS$631,BT$30,FALSE))) -> 0.9 | BU7: =IF(Süt!$B9="","",IF(Süt!$C9<=0,"",VLOOKUP($P7,$P$98:$CS$631,BU$30,FALSE))) -> 0.02 | BV7: =IF(Süt!$B9="","",IF(Süt!$C9<=0,"",VLOOKUP($P7,$P$98:$CS$631,BV$30,FALSE))) -> 0.9 | BW7: =IF(Süt!$B9="","",IF(Süt!$C9<=0,"",VLOOKUP($P7,$P$98:$CS$631,BW$30,FALSE))) -> 0.08 | BX7: =IF(Süt!$B9="","",IF(Süt!$C9<=0,"",VLOOKUP($P7,$P$98:$CS$631,BX$30,FALSE))) -> 0.9 | BY7: =IF(Süt!$B9="","",IF(Süt!$C9<=0,"",VLOOKUP($P7,$P$98:$CS$631,BY$30,FALSE))) -> 0.1 | BZ7: =IF(Süt!$B9="","",IF(Süt!$C9<=0,"",VLOOKUP($P7,$P$98:$CS$631,BZ$30,FALSE))) -> 1 | CA7: =IF(Süt!$B9="","",IF(Süt!$C9<=0,"",VLOOKUP($P7,$P$98:$CS$631,CA$30,FALSE))) -> 0 | CB7: =IF(Süt!$B9="","",IF(Süt!$C9<=0,"",VLOOKUP($P7,$P$98:$CS$631,CB$30,FALSE))) -> 1 | CC7: =IF(Süt!$B9="","",IF(Süt!$C9<=0,"",VLOOKUP($P7,$P$98:$CS$631,CC$30,FALSE))) -> 3 | CD7: =IF(Süt!$B9="","",IF(Süt!$C9<=0,"",VLOOKUP($P7,$P$98:$CS$631,CD$30,FALSE))) -> 0.04 | CE7: =IF(Süt!$B9="","",IF(Süt!$C9<=0,"",VLOOKUP($P7,$P$98:$CS$631,CE$30,FALSE))) -> 0 | CF7: =IF(Süt!$B9="","",IF(Süt!$C9<=0,"",VLOOKUP($P7,$P$98:$CS$631,CF$30,FALSE))) -> 0.85 | CG7: =IF(Süt!$B9="","",IF(Süt!$C9<=0,"",VLOOKUP($P7,$P$98:$CS$631,CG$30,FALSE))) -> 54 | CH7: =IF(Süt!$B9="","",IF(Süt!$C9<=0,"",VLOOKUP($P7,$P$98:$CS$631,CH$30,FALSE))) -> 0.1 | CI7: =IF(Süt!$B9="","",IF(Süt!$C9<=0,"",VLOOKUP($P7,$P$98:$CS$631,CI$30,FALSE))) -> 11 | CJ7: =IF(Süt!$B9="","",IF(Süt!$C9<=0,"",VLOOKUP($P7,$P$98:$CS$631,CJ$30,FALSE))) -> 0.01 | CK7: =IF(Süt!$B9="","",IF(Süt!$C9<=0,"",VLOOKUP($P7,$P$98:$CS$631,CK$30,FALSE))) -> 0.07 | CL7: =IF(Süt!$B9="","",IF(Süt!$C9<=0,"",VLOOKUP($P7,$P$98:$CS$631,CL$30,FALSE))) -> 1 | CM7: =IF(Süt!$B9="","",IF(Süt!$C9<=0,"",VLOOKUP($P7,$P$98:$CS$631,CM$30,FALSE))) -> 27 | CN7: =IF(Süt!$B9="","",IF(Süt!$C9<=0,"",VLOOKUP($P7,$P$98:$CS$631,CN$30,FALSE))) -> 0.15 | CO7: =IF(Süt!$B9="","",IF(Süt!$C9<=0,"",VLOOKUP($P7,$P$98:$CS$631,CO$30,FALSE))) -> 0.8 | CP7: =IF(Süt!$B9="","",IF(Süt!$C9<=0,"",VLOOKUP($P7,$P$98:$CS$631,CP$30,FALSE))) -> 0 | CQ7: =IF(Süt!$B9="","",IF(Süt!$C9<=0,"",VLOOKUP($P7,$P$98:$CS$631,CQ$30,FALSE))) -> 0 | CR7: =IF(Süt!$B9="","",IF(Süt!$C9<=0,"",VLOOKUP($P7,$P$98:$CS$631,CR$30,FALSE))) -> 0 | CS7: =IF(Süt!$B9="","",IF(Süt!$C9<=0,"",VLOOKUP($P7,$P$98:$CS$631,CS$30,FALSE))) -> 0 | CT7: 11 | CU7: 0 | CV7: 0.108 | CW7: MWFromBreed | CX7: =VLOOKUP(Breed,P65:X75,2,FALSE) -> 682 | CY7: Eğer hayvanın ergin ağırlığı ırkın bir fonksiyonu gibi kabul edilecekse
A8: =IF(Süt!A8="","",Süt!A8) -> 3 | B8: =IF(Süt!B8="","",Süt!B8) -> Arpa, Ezme | C8: =IF(Süt!C8="","",Süt!C8) -> 5 | D8: =Süt!D8 -> 9.75 | E8: =Süt!E8 -> 0 | F8: =Süt!F8 -> 5 | G8: Metabolik Protein, g/gün | H8: =IF(OR(AnimalType="Damızlık Düve",AnimalType="Kurudaki İnek")=TRUE,"",MP_TargetDietConc*H2) -> 1918.734132 | I8: =(MPFeed*1000)+MPBact+MPEndo -> 1898.010983 | J8: =IF(H8="","",IF(I8>(H8*1.05),"FAZLA",IF(I8<(H8*0.98),"EKSİK","TAMAM"))) -> TAMAM | M8: 1.7 | O8: 1.971124818e-07 | P8: =IF(Süt!B10="","",IF(Süt!C10<=0,"",Süt!B10)) -> Pamuk Tohumu Küspesi, Pres, %25 HP | Q8: =IF(Süt!$B10="","",IF(Süt!$C10<=0,"",VLOOKUP($P8,$P$98:$CS$631,Q$30,FALSE))) -> 0 | R8: =IF(Süt!$B10="","",IF(Süt!$C10<=0,"",VLOOKUP($P8,$P$98:$CS$631,R$30,FALSE))) -> 60 | S8: =IF(Süt!$B10="","",IF(Süt!$C10<=0,"",VLOOKUP($P8,$P$98:$CS$631,S$30,FALSE))) -> Conc | T8: =IF(Süt!$B10="","",IF(Süt!$C10<=0,"",VLOOKUP($P8,$P$98:$CS$631,T$30,FALSE))) -> 0 | U8: =IF(Süt!$B10="","",IF(Süt!$C10<=0,"",VLOOKUP($P8,$P$98:$CS$631,U$30,FALSE))) -> 2.9 | V8: =IF(Süt!$B10="","",IF(Süt!$C10<=0,"",VLOOKUP($P8,$P$98:$CS$631,V$30,FALSE))) -> 2.3 | W8: =IF(Süt!$B10="","",IF(Süt!$C10<=0,"",VLOOKUP($P8,$P$98:$CS$631,W$30,FALSE))) -> 1.4 | X8: =IF(Süt!$B10="","",IF(Süt!$C10<=0,"",VLOOKUP($P8,$P$98:$CS$631,X$30,FALSE))) -> 1.3 | Y8: =IF(Süt!$B10="","",IF(Süt!$C10<=0,"",VLOOKUP($P8,$P$98:$CS$631,Y$30,FALSE))) -> 1.5 | Z8: =IF(Süt!$B10="","",IF(Süt!$C10<=0,"",VLOOKUP($P8,$P$98:$CS$631,Z$30,FALSE))) -> 0.9 | AA8: =IF(Süt!$B10="","",IF(Süt!$C10<=0,"",VLOOKUP($P8,$P$98:$CS$631,AA$30,FALSE))) -> 90.5 | AB8: =IF(Süt!$B10="","",IF(Süt!$C10<=0,"",VLOOKUP($P8,$P$98:$CS$631,AB$30,FALSE))) -> 27.6 | AC8: =IF(Süt!$B10="","",IF(Süt!$C10<=0,"",VLOOKUP($P8,$P$98:$CS$631,AC$30,FALSE))) -> 1 | AD8: =IF(Süt!$B10="","",IF(Süt!$C10<=0,"",VLOOKUP($P8,$P$98:$CS$631,AD$30,FALSE))) -> 5.5 | AE8: =IF(Süt!$B10="","",IF(Süt!$C10<=0,"",VLOOKUP($P8,$P$98:$CS$631,AE$30,FALSE))) -> 1.4 | AF8: =IF(Süt!$B10="","",IF(Süt!$C10<=0,"",VLOOKUP($P8,$P$98:$CS$631,AF$30,FALSE))) -> 5 | AG8: =IF(Süt!$B10="","",IF(Süt!$C10<=0,"",VLOOKUP($P8,$P$98:$CS$631,AG$30,FALSE))) -> 1 | AH8: =IF(Süt!$B10="","",IF(Süt!$C10<=0,"",VLOOKUP($P8,$P$98:$CS$631,AH$30,FALSE))) -> 40 | AI8: =IF(Süt!$B10="","",IF(Süt!$C10<=0,"",VLOOKUP($P8,$P$98:$CS$631,AI$30,FALSE))) -> 0.27 | AJ8: =IF(Süt!$B10="","",IF(Süt!$C10<=0,"",VLOOKUP($P8,$P$98:$CS$631,AJ$30,FALSE))) -> 30 | AK8: =IF(Süt!$B10="","",IF(Süt!$C10<=0,"",VLOOKUP($P8,$P$98:$CS$631,AK$30,FALSE))) -> 9.5 | AL8: =IF(Süt!$B10="","",IF(Süt!$C10<=0,"",VLOOKUP($P8,$P$98:$CS$631,AL$30,FALSE))) -> 7.5 | AM8: =IF(Süt!$B10="","",IF(Süt!$C10<=0,"",VLOOKUP($P8,$P$98:$CS$631,AM$30,FALSE))) -> Conc | AN8: =IF(Süt!$B10="","",IF(Süt!$C10<=0,"",VLOOKUP($P8,$P$98:$CS$631,AN$30,FALSE))) -> Plant Protein | AO8: =IF(Süt!$B10="","",IF(Süt!$C10<=0,"",VLOOKUP($P8,$P$98:$CS$631,AO$30,FALSE))) -> 0 | AP8: =IF(Süt!$B10="","",IF(Süt!$C10<=0,"",VLOOKUP($P8,$P$98:$CS$631,AP$30,FALSE))) -> 5 | AQ8: =IF(Süt!$B10="","",IF(Süt!$C10<=0,"",VLOOKUP($P8,$P$98:$CS$631,AQ$30,FALSE))) -> 36 | AR8: =IF(Süt!$B10="","",IF(Süt!$C10<=0,"",VLOOKUP($P8,$P$98:$CS$631,AR$30,FALSE))) -> 56 | AS8: =IF(Süt!$B10="","",IF(Süt!$C10<=0,"",VLOOKUP($P8,$P$98:$CS$631,AS$30,FALSE))) -> 8 | AT8: =IF(Süt!$B10="","",IF(Süt!$C10<=0,"",VLOOKUP($P8,$P$98:$CS$631,AT$30,FALSE))) -> 20 | AU8: =IF(Süt!$B10="","",IF(Süt!$C10<=0,"",VLOOKUP($P8,$P$98:$CS$631,AU$30,FALSE))) -> 42 | AV8: =IF(Süt!$B10="","",IF(Süt!$C10<=0,"",VLOOKUP($P8,$P$98:$CS$631,AV$30,FALSE))) -> 48 | AW8: =IF(Süt!$B10="","",IF(Süt!$C10<=0,"",VLOOKUP($P8,$P$98:$CS$631,AW$30,FALSE))) -> 90 | AX8: =IF(Süt!$B10="","",IF(Süt!$C10<=0,"",VLOOKUP($P8,$P$98:$CS$631,AX$30,FALSE))) -> 8.5 | AY8: =IF(Süt!$B10="","",IF(Süt!$C10<=0,"",VLOOKUP($P8,$P$98:$CS$631,AY$30,FALSE))) -> 2.65 | AZ8: =IF(Süt!$B10="","",IF(Süt!$C10<=0,"",VLOOKUP($P8,$P$98:$CS$631,AZ$30,FALSE))) -> 3.8 | BA8: =IF(Süt!$B10="","",IF(Süt!$C10<=0,"",VLOOKUP($P8,$P$98:$CS$631,BA$30,FALSE))) -> 6.3 | BB8: =IF(Süt!$B10="","",IF(Süt!$C10<=0,"",VLOOKUP($P8,$P$98:$CS$631,BB$30,FALSE))) -> 3.7 | BC8: =IF(Süt!$B10="","",IF(Süt!$C10<=0,"",VLOOKUP($P8,$P$98:$CS$631,BC$30,FALSE))) -> 1.5 | BD8: =IF(Süt!$B10="","",IF(Süt!$C10<=0,"",VLOOKUP($P8,$P$98:$CS$631,BD$30,FALSE))) -> 1.6 | BE8: =IF(Süt!$B10="","",IF(Süt!$C10<=0,"",VLOOKUP($P8,$P$98:$CS$631,BE$30,FALSE))) -> 4.8 | BF8: =IF(Süt!$B10="","",IF(Süt!$C10<=0,"",VLOOKUP($P8,$P$98:$CS$631,BF$30,FALSE))) -> 3.1 | BG8: =IF(Süt!$B10="","",IF(Süt!$C10<=0,"",VLOOKUP($P8,$P$98:$CS$631,BG$30,FALSE))) -> 1.2 | BH8: =IF(Süt!$B10="","",IF(Süt!$C10<=0,"",VLOOKUP($P8,$P$98:$CS$631,BH$30,FALSE))) -> 4 | BI8: =IF(Süt!$B10="","",IF(Süt!$C10<=0,"",VLOOKUP($P8,$P$98:$CS$631,BI$30,FALSE))) -> 41.15 | BJ8: =IF(Süt!$B10="","",IF(Süt!$C10<=0,"",VLOOKUP($P8,$P$98:$CS$631,BJ$30,FALSE))) -> 8.7 | BK8: =IF(Süt!$B10="","",IF(Süt!$C10<=0,"",VLOOKUP($P8,$P$98:$CS$631,BK$30,FALSE))) -> 3.5 | BL8: =IF(Süt!$B10="","",IF(Süt!$C10<=0,"",VLOOKUP($P8,$P$98:$CS$631,BL$30,FALSE))) -> 12 | BM8: =IF(Süt!$B10="","",IF(Süt!$C10<=0,"",VLOOKUP($P8,$P$98:$CS$631,BM$30,FALSE))) -> 0.2 | BN8: =IF(Süt!$B10="","",IF(Süt!$C10<=0,"",VLOOKUP($P8,$P$98:$CS$631,BN$30,FALSE))) -> 0.6 | BO8: =IF(Süt!$B10="","",IF(Süt!$C10<=0,"",VLOOKUP($P8,$P$98:$CS$631,BO$30,FALSE))) -> 1 | BP8: =IF(Süt!$B10="","",IF(Süt!$C10<=0,"",VLOOKUP($P8,$P$98:$CS$631,BP$30,FALSE))) -> 0.7 | BQ8: =IF(Süt!$B10="","",IF(Süt!$C10<=0,"",VLOOKUP($P8,$P$98:$CS$631,BQ$30,FALSE))) -> 0.62 | BR8: =IF(Süt!$B10="","",IF(Süt!$C10<=0,"",VLOOKUP($P8,$P$98:$CS$631,BR$30,FALSE))) -> 0.16 | BS8: =IF(Süt!$B10="","",IF(Süt!$C10<=0,"",VLOOKUP($P8,$P$98:$CS$631,BS$30,FALSE))) -> 1.5 | BT8: =IF(Süt!$B10="","",IF(Süt!$C10<=0,"",VLOOKUP($P8,$P$98:$CS$631,BT$30,FALSE))) -> 0.9 | BU8: =IF(Süt!$B10="","",IF(Süt!$C10<=0,"",VLOOKUP($P8,$P$98:$CS$631,BU$30,FALSE))) -> 0.05 | BV8: =IF(Süt!$B10="","",IF(Süt!$C10<=0,"",VLOOKUP($P8,$P$98:$CS$631,BV$30,FALSE))) -> 0.9 | BW8: =IF(Süt!$B10="","",IF(Süt!$C10<=0,"",VLOOKUP($P8,$P$98:$CS$631,BW$30,FALSE))) -> 0.08 | BX8: =IF(Süt!$B10="","",IF(Süt!$C10<=0,"",VLOOKUP($P8,$P$98:$CS$631,BX$30,FALSE))) -> 0.9 | BY8: =IF(Süt!$B10="","",IF(Süt!$C10<=0,"",VLOOKUP($P8,$P$98:$CS$631,BY$30,FALSE))) -> 0.37 | BZ8: =IF(Süt!$B10="","",IF(Süt!$C10<=0,"",VLOOKUP($P8,$P$98:$CS$631,BZ$30,FALSE))) -> 1 | CA8: =IF(Süt!$B10="","",IF(Süt!$C10<=0,"",VLOOKUP($P8,$P$98:$CS$631,CA$30,FALSE))) -> 0 | CB8: =IF(Süt!$B10="","",IF(Süt!$C10<=0,"",VLOOKUP($P8,$P$98:$CS$631,CB$30,FALSE))) -> 1 | CC8: =IF(Süt!$B10="","",IF(Süt!$C10<=0,"",VLOOKUP($P8,$P$98:$CS$631,CC$30,FALSE))) -> 10 | CD8: =IF(Süt!$B10="","",IF(Süt!$C10<=0,"",VLOOKUP($P8,$P$98:$CS$631,CD$30,FALSE))) -> 0.04 | CE8: =IF(Süt!$B10="","",IF(Süt!$C10<=0,"",VLOOKUP($P8,$P$98:$CS$631,CE$30,FALSE))) -> 0 | CF8: =IF(Süt!$B10="","",IF(Süt!$C10<=0,"",VLOOKUP($P8,$P$98:$CS$631,CF$30,FALSE))) -> 0.85 | CG8: =IF(Süt!$B10="","",IF(Süt!$C10<=0,"",VLOOKUP($P8,$P$98:$CS$631,CG$30,FALSE))) -> 110 | CH8: =IF(Süt!$B10="","",IF(Süt!$C10<=0,"",VLOOKUP($P8,$P$98:$CS$631,CH$30,FALSE))) -> 0.1 | CI8: =IF(Süt!$B10="","",IF(Süt!$C10<=0,"",VLOOKUP($P8,$P$98:$CS$631,CI$30,FALSE))) -> 21 | CJ8: =IF(Süt!$B10="","",IF(Süt!$C10<=0,"",VLOOKUP($P8,$P$98:$CS$631,CJ$30,FALSE))) -> 0.01 | CK8: =IF(Süt!$B10="","",IF(Süt!$C10<=0,"",VLOOKUP($P8,$P$98:$CS$631,CK$30,FALSE))) -> 0.22 | CL8: =IF(Süt!$B10="","",IF(Süt!$C10<=0,"",VLOOKUP($P8,$P$98:$CS$631,CL$30,FALSE))) -> 1 | CM8: =IF(Süt!$B10="","",IF(Süt!$C10<=0,"",VLOOKUP($P8,$P$98:$CS$631,CM$30,FALSE))) -> 54 | CN8: =IF(Süt!$B10="","",IF(Süt!$C10<=0,"",VLOOKUP($P8,$P$98:$CS$631,CN$30,FALSE))) -> 0.15 | CO8: =IF(Süt!$B10="","",IF(Süt!$C10<=0,"",VLOOKUP($P8,$P$98:$CS$631,CO$30,FALSE))) -> 2.4 | CP8: =IF(Süt!$B10="","",IF(Süt!$C10<=0,"",VLOOKUP($P8,$P$98:$CS$631,CP$30,FALSE))) -> 0 | CQ8: =IF(Süt!$B10="","",IF(Süt!$C10<=0,"",VLOOKUP($P8,$P$98:$CS$631,CQ$30,FALSE))) -> 0 | CR8: =IF(Süt!$B10="","",IF(Süt!$C10<=0,"",VLOOKUP($P8,$P$98:$CS$631,CR$30,FALSE))) -> 0 | CS8: =IF(Süt!$B10="","",IF(Süt!$C10<=0,"",VLOOKUP($P8,$P$98:$CS$631,CS$30,FALSE))) -> 0 | CT8: 10 | CU8: 0 | CV8: 0.135 | CW8: Buzağı doğum ağırlığı : | CX8: =0.06275 * MW -> 42.7955 | CY8: kg | DJ8: Kondisyon Skoru - Laktasyon Sayısı
A9: =IF(Süt!A9="","",Süt!A9) -> 3 | B9: =IF(Süt!B9="","",Süt!B9) -> Mısır, Pul Haline Getirilmiş | C9: =IF(Süt!C9="","",Süt!C9) -> 2.094454588e-08 | D9: =Süt!D9 -> 11.5 | E9: =Süt!E9 -> 0 | F9: =Süt!F9 -> 10 | G9: Rumende Yıkılabilir Protein, g/gün | H9: =IF(OR(AnimalType="Damızlık Düve",AnimalType="Kurudaki İnek")=TRUE,"",RDPReq) -> 2024 | I9: =F77*1000 -> 2061.587216 | J9: =IF(H9="","",IF(I9>(H9*1.02),"FAZLA",IF(I9<(H9*0.98),"EKSİK","TAMAM"))) -> TAMAM | M9: 1.264955376 | O9: 29.80781746 | P9: =IF(Süt!B11="","",IF(Süt!C11<=0,"",Süt!B11)) -> Soya Küspesi, Solvent, %44 | Q9: =IF(Süt!$B11="","",IF(Süt!$C11<=0,"",VLOOKUP($P9,$P$98:$CS$631,Q$30,FALSE))) -> 0 | R9: =IF(Süt!$B11="","",IF(Süt!$C11<=0,"",VLOOKUP($P9,$P$98:$CS$631,R$30,FALSE))) -> 78 | S9: =IF(Süt!$B11="","",IF(Süt!$C11<=0,"",VLOOKUP($P9,$P$98:$CS$631,S$30,FALSE))) -> Conc | T9: =IF(Süt!$B11="","",IF(Süt!$C11<=0,"",VLOOKUP($P9,$P$98:$CS$631,T$30,FALSE))) -> 0 | U9: =IF(Süt!$B11="","",IF(Süt!$C11<=0,"",VLOOKUP($P9,$P$98:$CS$631,U$30,FALSE))) -> 3.8 | V9: =IF(Süt!$B11="","",IF(Süt!$C11<=0,"",VLOOKUP($P9,$P$98:$CS$631,V$30,FALSE))) -> 3 | W9: =IF(Süt!$B11="","",IF(Süt!$C11<=0,"",VLOOKUP($P9,$P$98:$CS$631,W$30,FALSE))) -> 1.9 | X9: =IF(Süt!$B11="","",IF(Süt!$C11<=0,"",VLOOKUP($P9,$P$98:$CS$631,X$30,FALSE))) -> 1.8 | Y9: =IF(Süt!$B11="","",IF(Süt!$C11<=0,"",VLOOKUP($P9,$P$98:$CS$631,Y$30,FALSE))) -> 2 | Z9: =IF(Süt!$B11="","",IF(Süt!$C11<=0,"",VLOOKUP($P9,$P$98:$CS$631,Z$30,FALSE))) -> 1.3 | AA9: =IF(Süt!$B11="","",IF(Süt!$C11<=0,"",VLOOKUP($P9,$P$98:$CS$631,AA$30,FALSE))) -> 89.1 | AB9: =IF(Süt!$B11="","",IF(Süt!$C11<=0,"",VLOOKUP($P9,$P$98:$CS$631,AB$30,FALSE))) -> 49 | AC9: =IF(Süt!$B11="","",IF(Süt!$C11<=0,"",VLOOKUP($P9,$P$98:$CS$631,AC$30,FALSE))) -> 1 | AD9: =IF(Süt!$B11="","",IF(Süt!$C11<=0,"",VLOOKUP($P9,$P$98:$CS$631,AD$30,FALSE))) -> 0.7 | AE9: =IF(Süt!$B11="","",IF(Süt!$C11<=0,"",VLOOKUP($P9,$P$98:$CS$631,AE$30,FALSE))) -> 0.4 | AF9: =IF(Süt!$B11="","",IF(Süt!$C11<=0,"",VLOOKUP($P9,$P$98:$CS$631,AF$30,FALSE))) -> 1.6 | AG9: =IF(Süt!$B11="","",IF(Süt!$C11<=0,"",VLOOKUP($P9,$P$98:$CS$631,AG$30,FALSE))) -> 1 | AH9: =IF(Süt!$B11="","",IF(Süt!$C11<=0,"",VLOOKUP($P9,$P$98:$CS$631,AH$30,FALSE))) -> 20 | AI9: =IF(Süt!$B11="","",IF(Süt!$C11<=0,"",VLOOKUP($P9,$P$98:$CS$631,AI$30,FALSE))) -> 0.59 | AJ9: =IF(Süt!$B11="","",IF(Süt!$C11<=0,"",VLOOKUP($P9,$P$98:$CS$631,AJ$30,FALSE))) -> 15 | AK9: =IF(Süt!$B11="","",IF(Süt!$C11<=0,"",VLOOKUP($P9,$P$98:$CS$631,AK$30,FALSE))) -> 1.2 | AL9: =IF(Süt!$B11="","",IF(Süt!$C11<=0,"",VLOOKUP($P9,$P$98:$CS$631,AL$30,FALSE))) -> 6.6 | AM9: =IF(Süt!$B11="","",IF(Süt!$C11<=0,"",VLOOKUP($P9,$P$98:$CS$631,AM$30,FALSE))) -> Conc | AN9: =IF(Süt!$B11="","",IF(Süt!$C11<=0,"",VLOOKUP($P9,$P$98:$CS$631,AN$30,FALSE))) -> Plant Protein | AO9: =IF(Süt!$B11="","",IF(Süt!$C11<=0,"",VLOOKUP($P9,$P$98:$CS$631,AO$30,FALSE))) -> 0 | AP9: =IF(Süt!$B11="","",IF(Süt!$C11<=0,"",VLOOKUP($P9,$P$98:$CS$631,AP$30,FALSE))) -> 5 | AQ9: =IF(Süt!$B11="","",IF(Süt!$C11<=0,"",VLOOKUP($P9,$P$98:$CS$631,AQ$30,FALSE))) -> 22.5 | AR9: =IF(Süt!$B11="","",IF(Süt!$C11<=0,"",VLOOKUP($P9,$P$98:$CS$631,AR$30,FALSE))) -> 76.8 | AS9: =IF(Süt!$B11="","",IF(Süt!$C11<=0,"",VLOOKUP($P9,$P$98:$CS$631,AS$30,FALSE))) -> 0.7 | AT9: =IF(Süt!$B11="","",IF(Süt!$C11<=0,"",VLOOKUP($P9,$P$98:$CS$631,AT$30,FALSE))) -> 9.4 | AU9: =IF(Süt!$B11="","",IF(Süt!$C11<=0,"",VLOOKUP($P9,$P$98:$CS$631,AU$30,FALSE))) -> 24.3 | AV9: =IF(Süt!$B11="","",IF(Süt!$C11<=0,"",VLOOKUP($P9,$P$98:$CS$631,AV$30,FALSE))) -> 34.6 | AW9: =IF(Süt!$B11="","",IF(Süt!$C11<=0,"",VLOOKUP($P9,$P$98:$CS$631,AW$30,FALSE))) -> 93 | AX9: =IF(Süt!$B11="","",IF(Süt!$C11<=0,"",VLOOKUP($P9,$P$98:$CS$631,AX$30,FALSE))) -> 7.38 | AY9: =IF(Süt!$B11="","",IF(Süt!$C11<=0,"",VLOOKUP($P9,$P$98:$CS$631,AY$30,FALSE))) -> 2.77 | AZ9: =IF(Süt!$B11="","",IF(Süt!$C11<=0,"",VLOOKUP($P9,$P$98:$CS$631,AZ$30,FALSE))) -> 4.56 | BA9: =IF(Süt!$B11="","",IF(Süt!$C11<=0,"",VLOOKUP($P9,$P$98:$CS$631,BA$30,FALSE))) -> 7.81 | BB9: =IF(Süt!$B11="","",IF(Süt!$C11<=0,"",VLOOKUP($P9,$P$98:$CS$631,BB$30,FALSE))) -> 6.28 | BC9: =IF(Süt!$B11="","",IF(Süt!$C11<=0,"",VLOOKUP($P9,$P$98:$CS$631,BC$30,FALSE))) -> 1.45 | BD9: =IF(Süt!$B11="","",IF(Süt!$C11<=0,"",VLOOKUP($P9,$P$98:$CS$631,BD$30,FALSE))) -> 1.52 | BE9: =IF(Süt!$B11="","",IF(Süt!$C11<=0,"",VLOOKUP($P9,$P$98:$CS$631,BE$30,FALSE))) -> 5.26 | BF9: =IF(Süt!$B11="","",IF(Süt!$C11<=0,"",VLOOKUP($P9,$P$98:$CS$631,BF$30,FALSE))) -> 3.98 | BG9: =IF(Süt!$B11="","",IF(Süt!$C11<=0,"",VLOOKUP($P9,$P$98:$CS$631,BG$30,FALSE))) -> 1.27 | BH9: =IF(Süt!$B11="","",IF(Süt!$C11<=0,"",VLOOKUP($P9,$P$98:$CS$631,BH$30,FALSE))) -> 7.81 | BI9: =IF(Süt!$B11="","",IF(Süt!$C11<=0,"",VLOOKUP($P9,$P$98:$CS$631,BI$30,FALSE))) -> 45.43 | BJ9: =IF(Süt!$B11="","",IF(Süt!$C11<=0,"",VLOOKUP($P9,$P$98:$CS$631,BJ$30,FALSE))) -> 13.82 | BK9: =IF(Süt!$B11="","",IF(Süt!$C11<=0,"",VLOOKUP($P9,$P$98:$CS$631,BK$30,FALSE))) -> 3.19 | BL9: =IF(Süt!$B11="","",IF(Süt!$C11<=0,"",VLOOKUP($P9,$P$98:$CS$631,BL$30,FALSE))) -> 17 | BM9: =IF(Süt!$B11="","",IF(Süt!$C11<=0,"",VLOOKUP($P9,$P$98:$CS$631,BM$30,FALSE))) -> 0.4 | BN9: =IF(Süt!$B11="","",IF(Süt!$C11<=0,"",VLOOKUP($P9,$P$98:$CS$631,BN$30,FALSE))) -> 0.6 | BO9: =IF(Süt!$B11="","",IF(Süt!$C11<=0,"",VLOOKUP($P9,$P$98:$CS$631,BO$30,FALSE))) -> 0.71 | BP9: =IF(Süt!$B11="","",IF(Süt!$C11<=0,"",VLOOKUP($P9,$P$98:$CS$631,BP$30,FALSE))) -> 0.7 | BQ9: =IF(Süt!$B11="","",IF(Süt!$C11<=0,"",VLOOKUP($P9,$P$98:$CS$631,BQ$30,FALSE))) -> 0.31 | BR9: =IF(Süt!$B11="","",IF(Süt!$C11<=0,"",VLOOKUP($P9,$P$98:$CS$631,BR$30,FALSE))) -> 0.16 | BS9: =IF(Süt!$B11="","",IF(Süt!$C11<=0,"",VLOOKUP($P9,$P$98:$CS$631,BS$30,FALSE))) -> 2.22 | BT9: =IF(Süt!$B11="","",IF(Süt!$C11<=0,"",VLOOKUP($P9,$P$98:$CS$631,BT$30,FALSE))) -> 0.9 | BU9: =IF(Süt!$B11="","",IF(Süt!$C11<=0,"",VLOOKUP($P9,$P$98:$CS$631,BU$30,FALSE))) -> 0.04 | BV9: =IF(Süt!$B11="","",IF(Süt!$C11<=0,"",VLOOKUP($P9,$P$98:$CS$631,BV$30,FALSE))) -> 0.9 | BW9: =IF(Süt!$B11="","",IF(Süt!$C11<=0,"",VLOOKUP($P9,$P$98:$CS$631,BW$30,FALSE))) -> 0.13 | BX9: =IF(Süt!$B11="","",IF(Süt!$C11<=0,"",VLOOKUP($P9,$P$98:$CS$631,BX$30,FALSE))) -> 0.9 | BY9: =IF(Süt!$B11="","",IF(Süt!$C11<=0,"",VLOOKUP($P9,$P$98:$CS$631,BY$30,FALSE))) -> 0.46 | BZ9: =IF(Süt!$B11="","",IF(Süt!$C11<=0,"",VLOOKUP($P9,$P$98:$CS$631,BZ$30,FALSE))) -> 1 | CA9: =IF(Süt!$B11="","",IF(Süt!$C11<=0,"",VLOOKUP($P9,$P$98:$CS$631,CA$30,FALSE))) -> 0 | CB9: =IF(Süt!$B11="","",IF(Süt!$C11<=0,"",VLOOKUP($P9,$P$98:$CS$631,CB$30,FALSE))) -> 1 | CC9: =IF(Süt!$B11="","",IF(Süt!$C11<=0,"",VLOOKUP($P9,$P$98:$CS$631,CC$30,FALSE))) -> 22 | CD9: =IF(Süt!$B11="","",IF(Süt!$C11<=0,"",VLOOKUP($P9,$P$98:$CS$631,CD$30,FALSE))) -> 0.04 | CE9: =IF(Süt!$B11="","",IF(Süt!$C11<=0,"",VLOOKUP($P9,$P$98:$CS$631,CE$30,FALSE))) -> 0 | CF9: =IF(Süt!$B11="","",IF(Süt!$C11<=0,"",VLOOKUP($P9,$P$98:$CS$631,CF$30,FALSE))) -> 0.85 | CG9: =IF(Süt!$B11="","",IF(Süt!$C11<=0,"",VLOOKUP($P9,$P$98:$CS$631,CG$30,FALSE))) -> 185 | CH9: =IF(Süt!$B11="","",IF(Süt!$C11<=0,"",VLOOKUP($P9,$P$98:$CS$631,CH$30,FALSE))) -> 0.1 | CI9: =IF(Süt!$B11="","",IF(Süt!$C11<=0,"",VLOOKUP($P9,$P$98:$CS$631,CI$30,FALSE))) -> 35 | CJ9: =IF(Süt!$B11="","",IF(Süt!$C11<=0,"",VLOOKUP($P9,$P$98:$CS$631,CJ$30,FALSE))) -> 0.01 | CK9: =IF(Süt!$B11="","",IF(Süt!$C11<=0,"",VLOOKUP($P9,$P$98:$CS$631,CK$30,FALSE))) -> 0.21 | CL9: =IF(Süt!$B11="","",IF(Süt!$C11<=0,"",VLOOKUP($P9,$P$98:$CS$631,CL$30,FALSE))) -> 1 | CM9: =IF(Süt!$B11="","",IF(Süt!$C11<=0,"",VLOOKUP($P9,$P$98:$CS$631,CM$30,FALSE))) -> 57 | CN9: =IF(Süt!$B11="","",IF(Süt!$C11<=0,"",VLOOKUP($P9,$P$98:$CS$631,CN$30,FALSE))) -> 0.15 | CO9: =IF(Süt!$B11="","",IF(Süt!$C11<=0,"",VLOOKUP($P9,$P$98:$CS$631,CO$30,FALSE))) -> 0.1 | CP9: =IF(Süt!$B11="","",IF(Süt!$C11<=0,"",VLOOKUP($P9,$P$98:$CS$631,CP$30,FALSE))) -> 0 | CQ9: =IF(Süt!$B11="","",IF(Süt!$C11<=0,"",VLOOKUP($P9,$P$98:$CS$631,CQ$30,FALSE))) -> 0 | CR9: =IF(Süt!$B11="","",IF(Süt!$C11<=0,"",VLOOKUP($P9,$P$98:$CS$631,CR$30,FALSE))) -> 0 | CS9: =IF(Süt!$B11="","",IF(Süt!$C11<=0,"",VLOOKUP($P9,$P$98:$CS$631,CS$30,FALSE))) -> 0 | CT9: 9 | CU9: 0 | CV9: 0.162 | CW9: Gebelik ihtiyaçları | DJ9: 1
A10: =IF(Süt!A10="","",Süt!A10) -> 4 | B10: =IF(Süt!B10="","",Süt!B10) -> Pamuk Tohumu Küspesi, Pres, %25 HP | C10: =IF(Süt!C10="","",Süt!C10) -> 1.642604015e-08 | D10: =Süt!D10 -> 12 | E10: =Süt!E10 -> 0 | F10: =Süt!F10 -> 5 | G10: Rumende Yıkımlanmayan Protein, g/gün | H10: =IF(OR(AnimalType="Damızlık Düve",AnimalType="Kurudaki İnek")=TRUE,"",RUPReq) -> 860.33 | I10: =E77*1000 -> 890.4002472 | J10: =IF(H10="","",IF(I10>(H10*1.05),"FAZLA",IF(I10<(H10*0.98),"EKSİK","TAMAM"))) -> TAMAM | M10: 0 | P10: =IF(Süt!B12="","",IF(Süt!C12<=0,"",Süt!B12)) ->  | Q10: =IF(Süt!$B12="","",IF(Süt!$C12<=0,"",VLOOKUP($P10,$P$98:$CS$631,Q$30,FALSE))) ->  | R10: =IF(Süt!$B12="","",IF(Süt!$C12<=0,"",VLOOKUP($P10,$P$98:$CS$631,R$30,FALSE))) ->  | S10: =IF(Süt!$B12="","",IF(Süt!$C12<=0,"",VLOOKUP($P10,$P$98:$CS$631,S$30,FALSE))) ->  | T10: =IF(Süt!$B12="","",IF(Süt!$C12<=0,"",VLOOKUP($P10,$P$98:$CS$631,T$30,FALSE))) ->  | U10: =IF(Süt!$B12="","",IF(Süt!$C12<=0,"",VLOOKUP($P10,$P$98:$CS$631,U$30,FALSE))) ->  | V10: =IF(Süt!$B12="","",IF(Süt!$C12<=0,"",VLOOKUP($P10,$P$98:$CS$631,V$30,FALSE))) ->  | W10: =IF(Süt!$B12="","",IF(Süt!$C12<=0,"",VLOOKUP($P10,$P$98:$CS$631,W$30,FALSE))) ->  | X10: =IF(Süt!$B12="","",IF(Süt!$C12<=0,"",VLOOKUP($P10,$P$98:$CS$631,X$30,FALSE))) ->  | Y10: =IF(Süt!$B12="","",IF(Süt!$C12<=0,"",VLOOKUP($P10,$P$98:$CS$631,Y$30,FALSE))) ->  | Z10: =IF(Süt!$B12="","",IF(Süt!$C12<=0,"",VLOOKUP($P10,$P$98:$CS$631,Z$30,FALSE))) ->  | AA10: =IF(Süt!$B12="","",IF(Süt!$C12<=0,"",VLOOKUP($P10,$P$98:$CS$631,AA$30,FALSE))) ->  | AB10: =IF(Süt!$B12="","",IF(Süt!$C12<=0,"",VLOOKUP($P10,$P$98:$CS$631,AB$30,FALSE))) ->  | AC10: =IF(Süt!$B12="","",IF(Süt!$C12<=0,"",VLOOKUP($P10,$P$98:$CS$631,AC$30,FALSE))) ->  | AD10: =IF(Süt!$B12="","",IF(Süt!$C12<=0,"",VLOOKUP($P10,$P$98:$CS$631,AD$30,FALSE))) ->  | AE10: =IF(Süt!$B12="","",IF(Süt!$C12<=0,"",VLOOKUP($P10,$P$98:$CS$631,AE$30,FALSE))) ->  | AF10: =IF(Süt!$B12="","",IF(Süt!$C12<=0,"",VLOOKUP($P10,$P$98:$CS$631,AF$30,FALSE))) ->  | AG10: =IF(Süt!$B12="","",IF(Süt!$C12<=0,"",VLOOKUP($P10,$P$98:$CS$631,AG$30,FALSE))) ->  | AH10: =IF(Süt!$B12="","",IF(Süt!$C12<=0,"",VLOOKUP($P10,$P$98:$CS$631,AH$30,FALSE))) ->  | AI10: =IF(Süt!$B12="","",IF(Süt!$C12<=0,"",VLOOKUP($P10,$P$98:$CS$631,AI$30,FALSE))) ->  | AJ10: =IF(Süt!$B12="","",IF(Süt!$C12<=0,"",VLOOKUP($P10,$P$98:$CS$631,AJ$30,FALSE))) ->  | AK10: =IF(Süt!$B12="","",IF(Süt!$C12<=0,"",VLOOKUP($P10,$P$98:$CS$631,AK$30,FALSE))) ->  | AL10: =IF(Süt!$B12="","",IF(Süt!$C12<=0,"",VLOOKUP($P10,$P$98:$CS$631,AL$30,FALSE))) ->  | AM10: =IF(Süt!$B12="","",IF(Süt!$C12<=0,"",VLOOKUP($P10,$P$98:$CS$631,AM$30,FALSE))) ->  | AN10: =IF(Süt!$B12="","",IF(Süt!$C12<=0,"",VLOOKUP($P10,$P$98:$CS$631,AN$30,FALSE))) ->  | AO10: =IF(Süt!$B12="","",IF(Süt!$C12<=0,"",VLOOKUP($P10,$P$98:$CS$631,AO$30,FALSE))) ->  | AP10: =IF(Süt!$B12="","",IF(Süt!$C12<=0,"",VLOOKUP($P10,$P$98:$CS$631,AP$30,FALSE))) ->  | AQ10: =IF(Süt!$B12="","",IF(Süt!$C12<=0,"",VLOOKUP($P10,$P$98:$CS$631,AQ$30,FALSE))) ->  | AR10: =IF(Süt!$B12="","",IF(Süt!$C12<=0,"",VLOOKUP($P10,$P$98:$CS$631,AR$30,FALSE))) ->  | AS10: =IF(Süt!$B12="","",IF(Süt!$C12<=0,"",VLOOKUP($P10,$P$98:$CS$631,AS$30,FALSE))) ->  | AT10: =IF(Süt!$B12="","",IF(Süt!$C12<=0,"",VLOOKUP($P10,$P$98:$CS$631,AT$30,FALSE))) ->  | AU10: =IF(Süt!$B12="","",IF(Süt!$C12<=0,"",VLOOKUP($P10,$P$98:$CS$631,AU$30,FALSE))) ->  | AV10: =IF(Süt!$B12="","",IF(Süt!$C12<=0,"",VLOOKUP($P10,$P$98:$CS$631,AV$30,FALSE))) ->  | AW10: =IF(Süt!$B12="","",IF(Süt!$C12<=0,"",VLOOKUP($P10,$P$98:$CS$631,AW$30,FALSE))) ->  | AX10: =IF(Süt!$B12="","",IF(Süt!$C12<=0,"",VLOOKUP($P10,$P$98:$CS$631,AX$30,FALSE))) ->  | AY10: =IF(Süt!$B12="","",IF(Süt!$C12<=0,"",VLOOKUP($P10,$P$98:$CS$631,AY$30,FALSE))) ->  | AZ10: =IF(Süt!$B12="","",IF(Süt!$C12<=0,"",VLOOKUP($P10,$P$98:$CS$631,AZ$30,FALSE))) ->  | BA10: =IF(Süt!$B12="","",IF(Süt!$C12<=0,"",VLOOKUP($P10,$P$98:$CS$631,BA$30,FALSE))) ->  | BB10: =IF(Süt!$B12="","",IF(Süt!$C12<=0,"",VLOOKUP($P10,$P$98:$CS$631,BB$30,FALSE))) ->  | BC10: =IF(Süt!$B12="","",IF(Süt!$C12<=0,"",VLOOKUP($P10,$P$98:$CS$631,BC$30,FALSE))) ->  | BD10: =IF(Süt!$B12="","",IF(Süt!$C12<=0,"",VLOOKUP($P10,$P$98:$CS$631,BD$30,FALSE))) ->  | BE10: =IF(Süt!$B12="","",IF(Süt!$C12<=0,"",VLOOKUP($P10,$P$98:$CS$631,BE$30,FALSE))) ->  | BF10: =IF(Süt!$B12="","",IF(Süt!$C12<=0,"",VLOOKUP($P10,$P$98:$CS$631,BF$30,FALSE))) ->  | BG10: =IF(Süt!$B12="","",IF(Süt!$C12<=0,"",VLOOKUP($P10,$P$98:$CS$631,BG$30,FALSE))) ->  | BH10: =IF(Süt!$B12="","",IF(Süt!$C12<=0,"",VLOOKUP($P10,$P$98:$CS$631,BH$30,FALSE))) ->  | BI10: =IF(Süt!$B12="","",IF(Süt!$C12<=0,"",VLOOKUP($P10,$P$98:$CS$631,BI$30,FALSE))) ->  | BJ10: =IF(Süt!$B12="","",IF(Süt!$C12<=0,"",VLOOKUP($P10,$P$98:$CS$631,BJ$30,FALSE))) ->  | BK10: =IF(Süt!$B12="","",IF(Süt!$C12<=0,"",VLOOKUP($P10,$P$98:$CS$631,BK$30,FALSE))) ->  | BL10: =IF(Süt!$B12="","",IF(Süt!$C12<=0,"",VLOOKUP($P10,$P$98:$CS$631,BL$30,FALSE))) ->  | BM10: =IF(Süt!$B12="","",IF(Süt!$C12<=0,"",VLOOKUP($P10,$P$98:$CS$631,BM$30,FALSE))) ->  | BN10: =IF(Süt!$B12="","",IF(Süt!$C12<=0,"",VLOOKUP($P10,$P$98:$CS$631,BN$30,FALSE))) ->  | BO10: =IF(Süt!$B12="","",IF(Süt!$C12<=0,"",VLOOKUP($P10,$P$98:$CS$631,BO$30,FALSE))) ->  | BP10: =IF(Süt!$B12="","",IF(Süt!$C12<=0,"",VLOOKUP($P10,$P$98:$CS$631,BP$30,FALSE))) ->  | BQ10: =IF(Süt!$B12="","",IF(Süt!$C12<=0,"",VLOOKUP($P10,$P$98:$CS$631,BQ$30,FALSE))) ->  | BR10: =IF(Süt!$B12="","",IF(Süt!$C12<=0,"",VLOOKUP($P10,$P$98:$CS$631,BR$30,FALSE))) ->  | BS10: =IF(Süt!$B12="","",IF(Süt!$C12<=0,"",VLOOKUP($P10,$P$98:$CS$631,BS$30,FALSE))) ->  | BT10: =IF(Süt!$B12="","",IF(Süt!$C12<=0,"",VLOOKUP($P10,$P$98:$CS$631,BT$30,FALSE))) ->  | BU10: =IF(Süt!$B12="","",IF(Süt!$C12<=0,"",VLOOKUP($P10,$P$98:$CS$631,BU$30,FALSE))) ->  | BV10: =IF(Süt!$B12="","",IF(Süt!$C12<=0,"",VLOOKUP($P10,$P$98:$CS$631,BV$30,FALSE))) ->  | BW10: =IF(Süt!$B12="","",IF(Süt!$C12<=0,"",VLOOKUP($P10,$P$98:$CS$631,BW$30,FALSE))) ->  | BX10: =IF(Süt!$B12="","",IF(Süt!$C12<=0,"",VLOOKUP($P10,$P$98:$CS$631,BX$30,FALSE))) ->  | BY10: =IF(Süt!$B12="","",IF(Süt!$C12<=0,"",VLOOKUP($P10,$P$98:$CS$631,BY$30,FALSE))) ->  | BZ10: =IF(Süt!$B12="","",IF(Süt!$C12<=0,"",VLOOKUP($P10,$P$98:$CS$631,BZ$30,FALSE))) ->  | CA10: =IF(Süt!$B12="","",IF(Süt!$C12<=0,"",VLOOKUP($P10,$P$98:$CS$631,CA$30,FALSE))) ->  | CB10: =IF(Süt!$B12="","",IF(Süt!$C12<=0,"",VLOOKUP($P10,$P$98:$CS$631,CB$30,FALSE))) ->  | CC10: =IF(Süt!$B12="","",IF(Süt!$C12<=0,"",VLOOKUP($P10,$P$98:$CS$631,CC$30,FALSE))) ->  | CD10: =IF(Süt!$B12="","",IF(Süt!$C12<=0,"",VLOOKUP($P10,$P$98:$CS$631,CD$30,FALSE))) ->  | CE10: =IF(Süt!$B12="","",IF(Süt!$C12<=0,"",VLOOKUP($P10,$P$98:$CS$631,CE$30,FALSE))) ->  | CF10: =IF(Süt!$B12="","",IF(Süt!$C12<=0,"",VLOOKUP($P10,$P$98:$CS$631,CF$30,FALSE))) ->  | CG10: =IF(Süt!$B12="","",IF(Süt!$C12<=0,"",VLOOKUP($P10,$P$98:$CS$631,CG$30,FALSE))) ->  | CH10: =IF(Süt!$B12="","",IF(Süt!$C12<=0,"",VLOOKUP($P10,$P$98:$CS$631,CH$30,FALSE))) ->  | CI10: =IF(Süt!$B12="","",IF(Süt!$C12<=0,"",VLOOKUP($P10,$P$98:$CS$631,CI$30,FALSE))) ->  | CJ10: =IF(Süt!$B12="","",IF(Süt!$C12<=0,"",VLOOKUP($P10,$P$98:$CS$631,CJ$30,FALSE))) ->  | CK10: =IF(Süt!$B12="","",IF(Süt!$C12<=0,"",VLOOKUP($P10,$P$98:$CS$631,CK$30,FALSE))) ->  | CL10: =IF(Süt!$B12="","",IF(Süt!$C12<=0,"",VLOOKUP($P10,$P$98:$CS$631,CL$30,FALSE))) ->  | CM10: =IF(Süt!$B12="","",IF(Süt!$C12<=0,"",VLOOKUP($P10,$P$98:$CS$631,CM$30,FALSE))) ->  | CN10: =IF(Süt!$B12="","",IF(Süt!$C12<=0,"",VLOOKUP($P10,$P$98:$CS$631,CN$30,FALSE))) ->  | CO10: =IF(Süt!$B12="","",IF(Süt!$C12<=0,"",VLOOKUP($P10,$P$98:$CS$631,CO$30,FALSE))) ->  | CP10: =IF(Süt!$B12="","",IF(Süt!$C12<=0,"",VLOOKUP($P10,$P$98:$CS$631,CP$30,FALSE))) ->  | CQ10: =IF(Süt!$B12="","",IF(Süt!$C12<=0,"",VLOOKUP($P10,$P$98:$CS$631,CQ$30,FALSE))) ->  | CR10: =IF(Süt!$B12="","",IF(Süt!$C12<=0,"",VLOOKUP($P10,$P$98:$CS$631,CR$30,FALSE))) ->  | CS10: =IF(Süt!$B12="","",IF(Süt!$C12<=0,"",VLOOKUP($P10,$P$98:$CS$631,CS$30,FALSE))) ->  | CT10: 8 | CU10: 0 | CV10: 0.189 | CW10: MEPreg | CX10: =IF(DaysPreg < 190,0,(((2 * 0.00159 * DaysPreg) - 0.0352) * (CBW / 45)) / 0.14) -> 0 | CY10: Mcal/gün, Gebelik için metabolic enerji ihtiyacı | DJ10: 2
A11: =IF(Süt!A11="","",Süt!A11) -> 4 | B11: =IF(Süt!B11="","",Süt!B11) -> Soya Küspesi, Solvent, %44 | C11: =IF(Süt!C11="","",Süt!C11) -> 1.753401027 | D11: =Süt!D11 -> 17 | E11: =Süt!E11 -> 0 | F11: =Süt!F11 -> 5 | G11: ME, Mcal/kg KM | I11: =DietME -> 2.433030364 | M11: 0 | P11: =IF(Süt!B13="","",IF(Süt!C13<=0,"",Süt!B13)) ->  | Q11: =IF(Süt!$B13="","",IF(Süt!$C13<=0,"",VLOOKUP($P11,$P$98:$CS$631,Q$30,FALSE))) ->  | R11: =IF(Süt!$B13="","",IF(Süt!$C13<=0,"",VLOOKUP($P11,$P$98:$CS$631,R$30,FALSE))) ->  | S11: =IF(Süt!$B13="","",IF(Süt!$C13<=0,"",VLOOKUP($P11,$P$98:$CS$631,S$30,FALSE))) ->  | T11: =IF(Süt!$B13="","",IF(Süt!$C13<=0,"",VLOOKUP($P11,$P$98:$CS$631,T$30,FALSE))) ->  | U11: =IF(Süt!$B13="","",IF(Süt!$C13<=0,"",VLOOKUP($P11,$P$98:$CS$631,U$30,FALSE))) ->  | V11: =IF(Süt!$B13="","",IF(Süt!$C13<=0,"",VLOOKUP($P11,$P$98:$CS$631,V$30,FALSE))) ->  | W11: =IF(Süt!$B13="","",IF(Süt!$C13<=0,"",VLOOKUP($P11,$P$98:$CS$631,W$30,FALSE))) ->  | X11: =IF(Süt!$B13="","",IF(Süt!$C13<=0,"",VLOOKUP($P11,$P$98:$CS$631,X$30,FALSE))) ->  | Y11: =IF(Süt!$B13="","",IF(Süt!$C13<=0,"",VLOOKUP($P11,$P$98:$CS$631,Y$30,FALSE))) ->  | Z11: =IF(Süt!$B13="","",IF(Süt!$C13<=0,"",VLOOKUP($P11,$P$98:$CS$631,Z$30,FALSE))) ->  | AA11: =IF(Süt!$B13="","",IF(Süt!$C13<=0,"",VLOOKUP($P11,$P$98:$CS$631,AA$30,FALSE))) ->  | AB11: =IF(Süt!$B13="","",IF(Süt!$C13<=0,"",VLOOKUP($P11,$P$98:$CS$631,AB$30,FALSE))) ->  | AC11: =IF(Süt!$B13="","",IF(Süt!$C13<=0,"",VLOOKUP($P11,$P$98:$CS$631,AC$30,FALSE))) ->  | AD11: =IF(Süt!$B13="","",IF(Süt!$C13<=0,"",VLOOKUP($P11,$P$98:$CS$631,AD$30,FALSE))) ->  | AE11: =IF(Süt!$B13="","",IF(Süt!$C13<=0,"",VLOOKUP($P11,$P$98:$CS$631,AE$30,FALSE))) ->  | AF11: =IF(Süt!$B13="","",IF(Süt!$C13<=0,"",VLOOKUP($P11,$P$98:$CS$631,AF$30,FALSE))) ->  | AG11: =IF(Süt!$B13="","",IF(Süt!$C13<=0,"",VLOOKUP($P11,$P$98:$CS$631,AG$30,FALSE))) ->  | AH11: =IF(Süt!$B13="","",IF(Süt!$C13<=0,"",VLOOKUP($P11,$P$98:$CS$631,AH$30,FALSE))) ->  | AI11: =IF(Süt!$B13="","",IF(Süt!$C13<=0,"",VLOOKUP($P11,$P$98:$CS$631,AI$30,FALSE))) ->  | AJ11: =IF(Süt!$B13="","",IF(Süt!$C13<=0,"",VLOOKUP($P11,$P$98:$CS$631,AJ$30,FALSE))) ->  | AK11: =IF(Süt!$B13="","",IF(Süt!$C13<=0,"",VLOOKUP($P11,$P$98:$CS$631,AK$30,FALSE))) ->  | AL11: =IF(Süt!$B13="","",IF(Süt!$C13<=0,"",VLOOKUP($P11,$P$98:$CS$631,AL$30,FALSE))) ->  | AM11: =IF(Süt!$B13="","",IF(Süt!$C13<=0,"",VLOOKUP($P11,$P$98:$CS$631,AM$30,FALSE))) ->  | AN11: =IF(Süt!$B13="","",IF(Süt!$C13<=0,"",VLOOKUP($P11,$P$98:$CS$631,AN$30,FALSE))) ->  | AO11: =IF(Süt!$B13="","",IF(Süt!$C13<=0,"",VLOOKUP($P11,$P$98:$CS$631,AO$30,FALSE))) ->  | AP11: =IF(Süt!$B13="","",IF(Süt!$C13<=0,"",VLOOKUP($P11,$P$98:$CS$631,AP$30,FALSE))) ->  | AQ11: =IF(Süt!$B13="","",IF(Süt!$C13<=0,"",VLOOKUP($P11,$P$98:$CS$631,AQ$30,FALSE))) ->  | AR11: =IF(Süt!$B13="","",IF(Süt!$C13<=0,"",VLOOKUP($P11,$P$98:$CS$631,AR$30,FALSE))) ->  | AS11: =IF(Süt!$B13="","",IF(Süt!$C13<=0,"",VLOOKUP($P11,$P$98:$CS$631,AS$30,FALSE))) ->  | AT11: =IF(Süt!$B13="","",IF(Süt!$C13<=0,"",VLOOKUP($P11,$P$98:$CS$631,AT$30,FALSE))) ->  | AU11: =IF(Süt!$B13="","",IF(Süt!$C13<=0,"",VLOOKUP($P11,$P$98:$CS$631,AU$30,FALSE))) ->  | AV11: =IF(Süt!$B13="","",IF(Süt!$C13<=0,"",VLOOKUP($P11,$P$98:$CS$631,AV$30,FALSE))) ->  | AW11: =IF(Süt!$B13="","",IF(Süt!$C13<=0,"",VLOOKUP($P11,$P$98:$CS$631,AW$30,FALSE))) ->  | AX11: =IF(Süt!$B13="","",IF(Süt!$C13<=0,"",VLOOKUP($P11,$P$98:$CS$631,AX$30,FALSE))) ->  | AY11: =IF(Süt!$B13="","",IF(Süt!$C13<=0,"",VLOOKUP($P11,$P$98:$CS$631,AY$30,FALSE))) ->  | AZ11: =IF(Süt!$B13="","",IF(Süt!$C13<=0,"",VLOOKUP($P11,$P$98:$CS$631,AZ$30,FALSE))) ->  | BA11: =IF(Süt!$B13="","",IF(Süt!$C13<=0,"",VLOOKUP($P11,$P$98:$CS$631,BA$30,FALSE))) ->  | BB11: =IF(Süt!$B13="","",IF(Süt!$C13<=0,"",VLOOKUP($P11,$P$98:$CS$631,BB$30,FALSE))) ->  | BC11: =IF(Süt!$B13="","",IF(Süt!$C13<=0,"",VLOOKUP($P11,$P$98:$CS$631,BC$30,FALSE))) ->  | BD11: =IF(Süt!$B13="","",IF(Süt!$C13<=0,"",VLOOKUP($P11,$P$98:$CS$631,BD$30,FALSE))) ->  | BE11: =IF(Süt!$B13="","",IF(Süt!$C13<=0,"",VLOOKUP($P11,$P$98:$CS$631,BE$30,FALSE))) ->  | BF11: =IF(Süt!$B13="","",IF(Süt!$C13<=0,"",VLOOKUP($P11,$P$98:$CS$631,BF$30,FALSE))) ->  | BG11: =IF(Süt!$B13="","",IF(Süt!$C13<=0,"",VLOOKUP($P11,$P$98:$CS$631,BG$30,FALSE))) ->  | BH11: =IF(Süt!$B13="","",IF(Süt!$C13<=0,"",VLOOKUP($P11,$P$98:$CS$631,BH$30,FALSE))) ->  | BI11: =IF(Süt!$B13="","",IF(Süt!$C13<=0,"",VLOOKUP($P11,$P$98:$CS$631,BI$30,FALSE))) ->  | BJ11: =IF(Süt!$B13="","",IF(Süt!$C13<=0,"",VLOOKUP($P11,$P$98:$CS$631,BJ$30,FALSE))) ->  | BK11: =IF(Süt!$B13="","",IF(Süt!$C13<=0,"",VLOOKUP($P11,$P$98:$CS$631,BK$30,FALSE))) ->  | BL11: =IF(Süt!$B13="","",IF(Süt!$C13<=0,"",VLOOKUP($P11,$P$98:$CS$631,BL$30,FALSE))) ->  | BM11: =IF(Süt!$B13="","",IF(Süt!$C13<=0,"",VLOOKUP($P11,$P$98:$CS$631,BM$30,FALSE))) ->  | BN11: =IF(Süt!$B13="","",IF(Süt!$C13<=0,"",VLOOKUP($P11,$P$98:$CS$631,BN$30,FALSE))) ->  | BO11: =IF(Süt!$B13="","",IF(Süt!$C13<=0,"",VLOOKUP($P11,$P$98:$CS$631,BO$30,FALSE))) ->  | BP11: =IF(Süt!$B13="","",IF(Süt!$C13<=0,"",VLOOKUP($P11,$P$98:$CS$631,BP$30,FALSE))) ->  | BQ11: =IF(Süt!$B13="","",IF(Süt!$C13<=0,"",VLOOKUP($P11,$P$98:$CS$631,BQ$30,FALSE))) ->  | BR11: =IF(Süt!$B13="","",IF(Süt!$C13<=0,"",VLOOKUP($P11,$P$98:$CS$631,BR$30,FALSE))) ->  | BS11: =IF(Süt!$B13="","",IF(Süt!$C13<=0,"",VLOOKUP($P11,$P$98:$CS$631,BS$30,FALSE))) ->  | BT11: =IF(Süt!$B13="","",IF(Süt!$C13<=0,"",VLOOKUP($P11,$P$98:$CS$631,BT$30,FALSE))) ->  | BU11: =IF(Süt!$B13="","",IF(Süt!$C13<=0,"",VLOOKUP($P11,$P$98:$CS$631,BU$30,FALSE))) ->  | BV11: =IF(Süt!$B13="","",IF(Süt!$C13<=0,"",VLOOKUP($P11,$P$98:$CS$631,BV$30,FALSE))) ->  | BW11: =IF(Süt!$B13="","",IF(Süt!$C13<=0,"",VLOOKUP($P11,$P$98:$CS$631,BW$30,FALSE))) ->  | BX11: =IF(Süt!$B13="","",IF(Süt!$C13<=0,"",VLOOKUP($P11,$P$98:$CS$631,BX$30,FALSE))) ->  | BY11: =IF(Süt!$B13="","",IF(Süt!$C13<=0,"",VLOOKUP($P11,$P$98:$CS$631,BY$30,FALSE))) ->  | BZ11: =IF(Süt!$B13="","",IF(Süt!$C13<=0,"",VLOOKUP($P11,$P$98:$CS$631,BZ$30,FALSE))) ->  | CA11: =IF(Süt!$B13="","",IF(Süt!$C13<=0,"",VLOOKUP($P11,$P$98:$CS$631,CA$30,FALSE))) ->  | CB11: =IF(Süt!$B13="","",IF(Süt!$C13<=0,"",VLOOKUP($P11,$P$98:$CS$631,CB$30,FALSE))) ->  | CC11: =IF(Süt!$B13="","",IF(Süt!$C13<=0,"",VLOOKUP($P11,$P$98:$CS$631,CC$30,FALSE))) ->  | CD11: =IF(Süt!$B13="","",IF(Süt!$C13<=0,"",VLOOKUP($P11,$P$98:$CS$631,CD$30,FALSE))) ->  | CE11: =IF(Süt!$B13="","",IF(Süt!$C13<=0,"",VLOOKUP($P11,$P$98:$CS$631,CE$30,FALSE))) ->  | CF11: =IF(Süt!$B13="","",IF(Süt!$C13<=0,"",VLOOKUP($P11,$P$98:$CS$631,CF$30,FALSE))) ->  | CG11: =IF(Süt!$B13="","",IF(Süt!$C13<=0,"",VLOOKUP($P11,$P$98:$CS$631,CG$30,FALSE))) ->  | CH11: =IF(Süt!$B13="","",IF(Süt!$C13<=0,"",VLOOKUP($P11,$P$98:$CS$631,CH$30,FALSE))) ->  | CI11: =IF(Süt!$B13="","",IF(Süt!$C13<=0,"",VLOOKUP($P11,$P$98:$CS$631,CI$30,FALSE))) ->  | CJ11: =IF(Süt!$B13="","",IF(Süt!$C13<=0,"",VLOOKUP($P11,$P$98:$CS$631,CJ$30,FALSE))) ->  | CK11: =IF(Süt!$B13="","",IF(Süt!$C13<=0,"",VLOOKUP($P11,$P$98:$CS$631,CK$30,FALSE))) ->  | CL11: =IF(Süt!$B13="","",IF(Süt!$C13<=0,"",VLOOKUP($P11,$P$98:$CS$631,CL$30,FALSE))) ->  | CM11: =IF(Süt!$B13="","",IF(Süt!$C13<=0,"",VLOOKUP($P11,$P$98:$CS$631,CM$30,FALSE))) ->  | CN11: =IF(Süt!$B13="","",IF(Süt!$C13<=0,"",VLOOKUP($P11,$P$98:$CS$631,CN$30,FALSE))) ->  | CO11: =IF(Süt!$B13="","",IF(Süt!$C13<=0,"",VLOOKUP($P11,$P$98:$CS$631,CO$30,FALSE))) ->  | CP11: =IF(Süt!$B13="","",IF(Süt!$C13<=0,"",VLOOKUP($P11,$P$98:$CS$631,CP$30,FALSE))) ->  | CQ11: =IF(Süt!$B13="","",IF(Süt!$C13<=0,"",VLOOKUP($P11,$P$98:$CS$631,CQ$30,FALSE))) ->  | CR11: =IF(Süt!$B13="","",IF(Süt!$C13<=0,"",VLOOKUP($P11,$P$98:$CS$631,CR$30,FALSE))) ->  | CS11: =IF(Süt!$B13="","",IF(Süt!$C13<=0,"",VLOOKUP($P11,$P$98:$CS$631,CS$30,FALSE))) ->  | CT11: 7 | CU11: 0 | CV11: 0.216 | CW11: NEPreg | CX11: =MEPreg * 0.64 -> 0 | CY11: g/gün, Gebelik için gerekli net enerji | DJ11: 3
A12: =IF(Süt!A12="","",Süt!A12) -> 5 | B12: =IF(Süt!B12="","",Süt!B12) -> Buğday Kepeği, Razmol | C12: =IF(Süt!C12="","",Süt!C12) -> 0 | D12: =Süt!D12 -> 12 | E12: =Süt!E12 -> 0 | F12: =Süt!F12 -> 2 | G12: =IF(AnimalType<>"Damızlık Düve","NEl, Mcal/kg KM","NEb, Mcal/gün") -> NEl, Mcal/kg KM | H12: =IF(AnimalType<>"Damızlık Düve","",HeiferNEG) ->  | I12: =IF(AnimalType <> "Damızlık Düve",NEl_Total/TotalDMFed,NEGrowthDiet) -> 1.377288027 | M12: 0 | P12: =IF(Süt!B14="","",IF(Süt!C14<=0,"",Süt!B14)) ->  | Q12: =IF(Süt!$B14="","",IF(Süt!$C14<=0,"",VLOOKUP($P12,$P$98:$CS$631,Q$30,FALSE))) ->  | R12: =IF(Süt!$B14="","",IF(Süt!$C14<=0,"",VLOOKUP($P12,$P$98:$CS$631,R$30,FALSE))) ->  | S12: =IF(Süt!$B14="","",IF(Süt!$C14<=0,"",VLOOKUP($P12,$P$98:$CS$631,S$30,FALSE))) ->  | T12: =IF(Süt!$B14="","",IF(Süt!$C14<=0,"",VLOOKUP($P12,$P$98:$CS$631,T$30,FALSE))) ->  | U12: =IF(Süt!$B14="","",IF(Süt!$C14<=0,"",VLOOKUP($P12,$P$98:$CS$631,U$30,FALSE))) ->  | V12: =IF(Süt!$B14="","",IF(Süt!$C14<=0,"",VLOOKUP($P12,$P$98:$CS$631,V$30,FALSE))) ->  | W12: =IF(Süt!$B14="","",IF(Süt!$C14<=0,"",VLOOKUP($P12,$P$98:$CS$631,W$30,FALSE))) ->  | X12: =IF(Süt!$B14="","",IF(Süt!$C14<=0,"",VLOOKUP($P12,$P$98:$CS$631,X$30,FALSE))) ->  | Y12: =IF(Süt!$B14="","",IF(Süt!$C14<=0,"",VLOOKUP($P12,$P$98:$CS$631,Y$30,FALSE))) ->  | Z12: =IF(Süt!$B14="","",IF(Süt!$C14<=0,"",VLOOKUP($P12,$P$98:$CS$631,Z$30,FALSE))) ->  | AA12: =IF(Süt!$B14="","",IF(Süt!$C14<=0,"",VLOOKUP($P12,$P$98:$CS$631,AA$30,FALSE))) ->  | AB12: =IF(Süt!$B14="","",IF(Süt!$C14<=0,"",VLOOKUP($P12,$P$98:$CS$631,AB$30,FALSE))) ->  | AC12: =IF(Süt!$B14="","",IF(Süt!$C14<=0,"",VLOOKUP($P12,$P$98:$CS$631,AC$30,FALSE))) ->  | AD12: =IF(Süt!$B14="","",IF(Süt!$C14<=0,"",VLOOKUP($P12,$P$98:$CS$631,AD$30,FALSE))) ->  | AE12: =IF(Süt!$B14="","",IF(Süt!$C14<=0,"",VLOOKUP($P12,$P$98:$CS$631,AE$30,FALSE))) ->  | AF12: =IF(Süt!$B14="","",IF(Süt!$C14<=0,"",VLOOKUP($P12,$P$98:$CS$631,AF$30,FALSE))) ->  | AG12: =IF(Süt!$B14="","",IF(Süt!$C14<=0,"",VLOOKUP($P12,$P$98:$CS$631,AG$30,FALSE))) ->  | AH12: =IF(Süt!$B14="","",IF(Süt!$C14<=0,"",VLOOKUP($P12,$P$98:$CS$631,AH$30,FALSE))) ->  | AI12: =IF(Süt!$B14="","",IF(Süt!$C14<=0,"",VLOOKUP($P12,$P$98:$CS$631,AI$30,FALSE))) ->  | AJ12: =IF(Süt!$B14="","",IF(Süt!$C14<=0,"",VLOOKUP($P12,$P$98:$CS$631,AJ$30,FALSE))) ->  | AK12: =IF(Süt!$B14="","",IF(Süt!$C14<=0,"",VLOOKUP($P12,$P$98:$CS$631,AK$30,FALSE))) ->  | AL12: =IF(Süt!$B14="","",IF(Süt!$C14<=0,"",VLOOKUP($P12,$P$98:$CS$631,AL$30,FALSE))) ->  | AM12: =IF(Süt!$B14="","",IF(Süt!$C14<=0,"",VLOOKUP($P12,$P$98:$CS$631,AM$30,FALSE))) ->  | AN12: =IF(Süt!$B14="","",IF(Süt!$C14<=0,"",VLOOKUP($P12,$P$98:$CS$631,AN$30,FALSE))) ->  | AO12: =IF(Süt!$B14="","",IF(Süt!$C14<=0,"",VLOOKUP($P12,$P$98:$CS$631,AO$30,FALSE))) ->  | AP12: =IF(Süt!$B14="","",IF(Süt!$C14<=0,"",VLOOKUP($P12,$P$98:$CS$631,AP$30,FALSE))) ->  | AQ12: =IF(Süt!$B14="","",IF(Süt!$C14<=0,"",VLOOKUP($P12,$P$98:$CS$631,AQ$30,FALSE))) ->  | AR12: =IF(Süt!$B14="","",IF(Süt!$C14<=0,"",VLOOKUP($P12,$P$98:$CS$631,AR$30,FALSE))) ->  | AS12: =IF(Süt!$B14="","",IF(Süt!$C14<=0,"",VLOOKUP($P12,$P$98:$CS$631,AS$30,FALSE))) ->  | AT12: =IF(Süt!$B14="","",IF(Süt!$C14<=0,"",VLOOKUP($P12,$P$98:$CS$631,AT$30,FALSE))) ->  | AU12: =IF(Süt!$B14="","",IF(Süt!$C14<=0,"",VLOOKUP($P12,$P$98:$CS$631,AU$30,FALSE))) ->  | AV12: =IF(Süt!$B14="","",IF(Süt!$C14<=0,"",VLOOKUP($P12,$P$98:$CS$631,AV$30,FALSE))) ->  | AW12: =IF(Süt!$B14="","",IF(Süt!$C14<=0,"",VLOOKUP($P12,$P$98:$CS$631,AW$30,FALSE))) ->  | AX12: =IF(Süt!$B14="","",IF(Süt!$C14<=0,"",VLOOKUP($P12,$P$98:$CS$631,AX$30,FALSE))) ->  | AY12: =IF(Süt!$B14="","",IF(Süt!$C14<=0,"",VLOOKUP($P12,$P$98:$CS$631,AY$30,FALSE))) ->  | AZ12: =IF(Süt!$B14="","",IF(Süt!$C14<=0,"",VLOOKUP($P12,$P$98:$CS$631,AZ$30,FALSE))) ->  | BA12: =IF(Süt!$B14="","",IF(Süt!$C14<=0,"",VLOOKUP($P12,$P$98:$CS$631,BA$30,FALSE))) ->  | BB12: =IF(Süt!$B14="","",IF(Süt!$C14<=0,"",VLOOKUP($P12,$P$98:$CS$631,BB$30,FALSE))) ->  | BC12: =IF(Süt!$B14="","",IF(Süt!$C14<=0,"",VLOOKUP($P12,$P$98:$CS$631,BC$30,FALSE))) ->  | BD12: =IF(Süt!$B14="","",IF(Süt!$C14<=0,"",VLOOKUP($P12,$P$98:$CS$631,BD$30,FALSE))) ->  | BE12: =IF(Süt!$B14="","",IF(Süt!$C14<=0,"",VLOOKUP($P12,$P$98:$CS$631,BE$30,FALSE))) ->  | BF12: =IF(Süt!$B14="","",IF(Süt!$C14<=0,"",VLOOKUP($P12,$P$98:$CS$631,BF$30,FALSE))) ->  | BG12: =IF(Süt!$B14="","",IF(Süt!$C14<=0,"",VLOOKUP($P12,$P$98:$CS$631,BG$30,FALSE))) ->  | BH12: =IF(Süt!$B14="","",IF(Süt!$C14<=0,"",VLOOKUP($P12,$P$98:$CS$631,BH$30,FALSE))) ->  | BI12: =IF(Süt!$B14="","",IF(Süt!$C14<=0,"",VLOOKUP($P12,$P$98:$CS$631,BI$30,FALSE))) ->  | BJ12: =IF(Süt!$B14="","",IF(Süt!$C14<=0,"",VLOOKUP($P12,$P$98:$CS$631,BJ$30,FALSE))) ->  | BK12: =IF(Süt!$B14="","",IF(Süt!$C14<=0,"",VLOOKUP($P12,$P$98:$CS$631,BK$30,FALSE))) ->  | BL12: =IF(Süt!$B14="","",IF(Süt!$C14<=0,"",VLOOKUP($P12,$P$98:$CS$631,BL$30,FALSE))) ->  | BM12: =IF(Süt!$B14="","",IF(Süt!$C14<=0,"",VLOOKUP($P12,$P$98:$CS$631,BM$30,FALSE))) ->  | BN12: =IF(Süt!$B14="","",IF(Süt!$C14<=0,"",VLOOKUP($P12,$P$98:$CS$631,BN$30,FALSE))) ->  | BO12: =IF(Süt!$B14="","",IF(Süt!$C14<=0,"",VLOOKUP($P12,$P$98:$CS$631,BO$30,FALSE))) ->  | BP12: =IF(Süt!$B14="","",IF(Süt!$C14<=0,"",VLOOKUP($P12,$P$98:$CS$631,BP$30,FALSE))) ->  | BQ12: =IF(Süt!$B14="","",IF(Süt!$C14<=0,"",VLOOKUP($P12,$P$98:$CS$631,BQ$30,FALSE))) ->  | BR12: =IF(Süt!$B14="","",IF(Süt!$C14<=0,"",VLOOKUP($P12,$P$98:$CS$631,BR$30,FALSE))) ->  | BS12: =IF(Süt!$B14="","",IF(Süt!$C14<=0,"",VLOOKUP($P12,$P$98:$CS$631,BS$30,FALSE))) ->  | BT12: =IF(Süt!$B14="","",IF(Süt!$C14<=0,"",VLOOKUP($P12,$P$98:$CS$631,BT$30,FALSE))) ->  | BU12: =IF(Süt!$B14="","",IF(Süt!$C14<=0,"",VLOOKUP($P12,$P$98:$CS$631,BU$30,FALSE))) ->  | BV12: =IF(Süt!$B14="","",IF(Süt!$C14<=0,"",VLOOKUP($P12,$P$98:$CS$631,BV$30,FALSE))) ->  | BW12: =IF(Süt!$B14="","",IF(Süt!$C14<=0,"",VLOOKUP($P12,$P$98:$CS$631,BW$30,FALSE))) ->  | BX12: =IF(Süt!$B14="","",IF(Süt!$C14<=0,"",VLOOKUP($P12,$P$98:$CS$631,BX$30,FALSE))) ->  | BY12: =IF(Süt!$B14="","",IF(Süt!$C14<=0,"",VLOOKUP($P12,$P$98:$CS$631,BY$30,FALSE))) ->  | BZ12: =IF(Süt!$B14="","",IF(Süt!$C14<=0,"",VLOOKUP($P12,$P$98:$CS$631,BZ$30,FALSE))) ->  | CA12: =IF(Süt!$B14="","",IF(Süt!$C14<=0,"",VLOOKUP($P12,$P$98:$CS$631,CA$30,FALSE))) ->  | CB12: =IF(Süt!$B14="","",IF(Süt!$C14<=0,"",VLOOKUP($P12,$P$98:$CS$631,CB$30,FALSE))) ->  | CC12: =IF(Süt!$B14="","",IF(Süt!$C14<=0,"",VLOOKUP($P12,$P$98:$CS$631,CC$30,FALSE))) ->  | CD12: =IF(Süt!$B14="","",IF(Süt!$C14<=0,"",VLOOKUP($P12,$P$98:$CS$631,CD$30,FALSE))) ->  | CE12: =IF(Süt!$B14="","",IF(Süt!$C14<=0,"",VLOOKUP($P12,$P$98:$CS$631,CE$30,FALSE))) ->  | CF12: =IF(Süt!$B14="","",IF(Süt!$C14<=0,"",VLOOKUP($P12,$P$98:$CS$631,CF$30,FALSE))) ->  | CG12: =IF(Süt!$B14="","",IF(Süt!$C14<=0,"",VLOOKUP($P12,$P$98:$CS$631,CG$30,FALSE))) ->  | CH12: =IF(Süt!$B14="","",IF(Süt!$C14<=0,"",VLOOKUP($P12,$P$98:$CS$631,CH$30,FALSE))) ->  | CI12: =IF(Süt!$B14="","",IF(Süt!$C14<=0,"",VLOOKUP($P12,$P$98:$CS$631,CI$30,FALSE))) ->  | CJ12: =IF(Süt!$B14="","",IF(Süt!$C14<=0,"",VLOOKUP($P12,$P$98:$CS$631,CJ$30,FALSE))) ->  | CK12: =IF(Süt!$B14="","",IF(Süt!$C14<=0,"",VLOOKUP($P12,$P$98:$CS$631,CK$30,FALSE))) ->  | CL12: =IF(Süt!$B14="","",IF(Süt!$C14<=0,"",VLOOKUP($P12,$P$98:$CS$631,CL$30,FALSE))) ->  | CM12: =IF(Süt!$B14="","",IF(Süt!$C14<=0,"",VLOOKUP($P12,$P$98:$CS$631,CM$30,FALSE))) ->  | CN12: =IF(Süt!$B14="","",IF(Süt!$C14<=0,"",VLOOKUP($P12,$P$98:$CS$631,CN$30,FALSE))) ->  | CO12: =IF(Süt!$B14="","",IF(Süt!$C14<=0,"",VLOOKUP($P12,$P$98:$CS$631,CO$30,FALSE))) ->  | CP12: =IF(Süt!$B14="","",IF(Süt!$C14<=0,"",VLOOKUP($P12,$P$98:$CS$631,CP$30,FALSE))) ->  | CQ12: =IF(Süt!$B14="","",IF(Süt!$C14<=0,"",VLOOKUP($P12,$P$98:$CS$631,CQ$30,FALSE))) ->  | CR12: =IF(Süt!$B14="","",IF(Süt!$C14<=0,"",VLOOKUP($P12,$P$98:$CS$631,CR$30,FALSE))) ->  | CS12: =IF(Süt!$B14="","",IF(Süt!$C14<=0,"",VLOOKUP($P12,$P$98:$CS$631,CS$30,FALSE))) ->  | CT12: 6 | CU12: 0 | CV12: 0.243 | CW12: MPPreg | CX12: =IF(DaysPreg < 190,0,(((0.69 * DaysPreg) - 69.2) * (CBW / 45)) / 0.33) -> 0 | CY12: g/gün, Gebelik için metabolic protein ihtiyacı | DJ12: 4
A13: =IF(Süt!A13="","",Süt!A13) -> 5 | B13: =IF(Süt!B13="","",Süt!B13) -> Şeker Pancarı Posası,Yaş, Ambalajlı | C13: =IF(Süt!C13="","",Süt!C13) -> 0 | D13: =Süt!D13 -> 2.5 | E13: =Süt!E13 -> 0 | F13: =Süt!F13 -> 10 | G13: =CONCATENATE(IF(AnimalType<>"Damızlık Düve","NEl,","ME,")," Mcal/gün") -> NEl, Mcal/gün | H13: =IF(AnimalType <> "Damızlık Düve",NEMaint+NEPreg+NELact+NEGrowth,HeiferME) -> 28.19010779 | I13: =IF(AnimalType <> "Damızlık Düve",NEl_Total,MEng_Total) -> 29.11333352 | J13: =IF(H13=""," ",IF(I13>(H13*1.05),"FAZLA",IF(I13<(H13*0.98),"EKSİK","TAMAM"))) -> TAMAM | M13: 0 | P13: =IF(Süt!B15="","",IF(Süt!C15<=0,"",Süt!B15)) ->  | Q13: =IF(Süt!$B15="","",IF(Süt!$C15<=0,"",VLOOKUP($P13,$P$98:$CS$631,Q$30,FALSE))) ->  | R13: =IF(Süt!$B15="","",IF(Süt!$C15<=0,"",VLOOKUP($P13,$P$98:$CS$631,R$30,FALSE))) ->  | S13: =IF(Süt!$B15="","",IF(Süt!$C15<=0,"",VLOOKUP($P13,$P$98:$CS$631,S$30,FALSE))) ->  | T13: =IF(Süt!$B15="","",IF(Süt!$C15<=0,"",VLOOKUP($P13,$P$98:$CS$631,T$30,FALSE))) ->  | U13: =IF(Süt!$B15="","",IF(Süt!$C15<=0,"",VLOOKUP($P13,$P$98:$CS$631,U$30,FALSE))) ->  | V13: =IF(Süt!$B15="","",IF(Süt!$C15<=0,"",VLOOKUP($P13,$P$98:$CS$631,V$30,FALSE))) ->  | W13: =IF(Süt!$B15="","",IF(Süt!$C15<=0,"",VLOOKUP($P13,$P$98:$CS$631,W$30,FALSE))) ->  | X13: =IF(Süt!$B15="","",IF(Süt!$C15<=0,"",VLOOKUP($P13,$P$98:$CS$631,X$30,FALSE))) ->  | Y13: =IF(Süt!$B15="","",IF(Süt!$C15<=0,"",VLOOKUP($P13,$P$98:$CS$631,Y$30,FALSE))) ->  | Z13: =IF(Süt!$B15="","",IF(Süt!$C15<=0,"",VLOOKUP($P13,$P$98:$CS$631,Z$30,FALSE))) ->  | AA13: =IF(Süt!$B15="","",IF(Süt!$C15<=0,"",VLOOKUP($P13,$P$98:$CS$631,AA$30,FALSE))) ->  | AB13: =IF(Süt!$B15="","",IF(Süt!$C15<=0,"",VLOOKUP($P13,$P$98:$CS$631,AB$30,FALSE))) ->  | AC13: =IF(Süt!$B15="","",IF(Süt!$C15<=0,"",VLOOKUP($P13,$P$98:$CS$631,AC$30,FALSE))) ->  | AD13: =IF(Süt!$B15="","",IF(Süt!$C15<=0,"",VLOOKUP($P13,$P$98:$CS$631,AD$30,FALSE))) ->  | AE13: =IF(Süt!$B15="","",IF(Süt!$C15<=0,"",VLOOKUP($P13,$P$98:$CS$631,AE$30,FALSE))) ->  | AF13: =IF(Süt!$B15="","",IF(Süt!$C15<=0,"",VLOOKUP($P13,$P$98:$CS$631,AF$30,FALSE))) ->  | AG13: =IF(Süt!$B15="","",IF(Süt!$C15<=0,"",VLOOKUP($P13,$P$98:$CS$631,AG$30,FALSE))) ->  | AH13: =IF(Süt!$B15="","",IF(Süt!$C15<=0,"",VLOOKUP($P13,$P$98:$CS$631,AH$30,FALSE))) ->  | AI13: =IF(Süt!$B15="","",IF(Süt!$C15<=0,"",VLOOKUP($P13,$P$98:$CS$631,AI$30,FALSE))) ->  | AJ13: =IF(Süt!$B15="","",IF(Süt!$C15<=0,"",VLOOKUP($P13,$P$98:$CS$631,AJ$30,FALSE))) ->  | AK13: =IF(Süt!$B15="","",IF(Süt!$C15<=0,"",VLOOKUP($P13,$P$98:$CS$631,AK$30,FALSE))) ->  | AL13: =IF(Süt!$B15="","",IF(Süt!$C15<=0,"",VLOOKUP($P13,$P$98:$CS$631,AL$30,FALSE))) ->  | AM13: =IF(Süt!$B15="","",IF(Süt!$C15<=0,"",VLOOKUP($P13,$P$98:$CS$631,AM$30,FALSE))) ->  | AN13: =IF(Süt!$B15="","",IF(Süt!$C15<=0,"",VLOOKUP($P13,$P$98:$CS$631,AN$30,FALSE))) ->  | AO13: =IF(Süt!$B15="","",IF(Süt!$C15<=0,"",VLOOKUP($P13,$P$98:$CS$631,AO$30,FALSE))) ->  | AP13: =IF(Süt!$B15="","",IF(Süt!$C15<=0,"",VLOOKUP($P13,$P$98:$CS$631,AP$30,FALSE))) ->  | AQ13: =IF(Süt!$B15="","",IF(Süt!$C15<=0,"",VLOOKUP($P13,$P$98:$CS$631,AQ$30,FALSE))) ->  | AR13: =IF(Süt!$B15="","",IF(Süt!$C15<=0,"",VLOOKUP($P13,$P$98:$CS$631,AR$30,FALSE))) ->  | AS13: =IF(Süt!$B15="","",IF(Süt!$C15<=0,"",VLOOKUP($P13,$P$98:$CS$631,AS$30,FALSE))) ->  | AT13: =IF(Süt!$B15="","",IF(Süt!$C15<=0,"",VLOOKUP($P13,$P$98:$CS$631,AT$30,FALSE))) ->  | AU13: =IF(Süt!$B15="","",IF(Süt!$C15<=0,"",VLOOKUP($P13,$P$98:$CS$631,AU$30,FALSE))) ->  | AV13: =IF(Süt!$B15="","",IF(Süt!$C15<=0,"",VLOOKUP($P13,$P$98:$CS$631,AV$30,FALSE))) ->  | AW13: =IF(Süt!$B15="","",IF(Süt!$C15<=0,"",VLOOKUP($P13,$P$98:$CS$631,AW$30,FALSE))) ->  | AX13: =IF(Süt!$B15="","",IF(Süt!$C15<=0,"",VLOOKUP($P13,$P$98:$CS$631,AX$30,FALSE))) ->  | AY13: =IF(Süt!$B15="","",IF(Süt!$C15<=0,"",VLOOKUP($P13,$P$98:$CS$631,AY$30,FALSE))) ->  | AZ13: =IF(Süt!$B15="","",IF(Süt!$C15<=0,"",VLOOKUP($P13,$P$98:$CS$631,AZ$30,FALSE))) ->  | BA13: =IF(Süt!$B15="","",IF(Süt!$C15<=0,"",VLOOKUP($P13,$P$98:$CS$631,BA$30,FALSE))) ->  | BB13: =IF(Süt!$B15="","",IF(Süt!$C15<=0,"",VLOOKUP($P13,$P$98:$CS$631,BB$30,FALSE))) ->  | BC13: =IF(Süt!$B15="","",IF(Süt!$C15<=0,"",VLOOKUP($P13,$P$98:$CS$631,BC$30,FALSE))) ->  | BD13: =IF(Süt!$B15="","",IF(Süt!$C15<=0,"",VLOOKUP($P13,$P$98:$CS$631,BD$30,FALSE))) ->  | BE13: =IF(Süt!$B15="","",IF(Süt!$C15<=0,"",VLOOKUP($P13,$P$98:$CS$631,BE$30,FALSE))) ->  | BF13: =IF(Süt!$B15="","",IF(Süt!$C15<=0,"",VLOOKUP($P13,$P$98:$CS$631,BF$30,FALSE))) ->  | BG13: =IF(Süt!$B15="","",IF(Süt!$C15<=0,"",VLOOKUP($P13,$P$98:$CS$631,BG$30,FALSE))) ->  | BH13: =IF(Süt!$B15="","",IF(Süt!$C15<=0,"",VLOOKUP($P13,$P$98:$CS$631,BH$30,FALSE))) ->  | BI13: =IF(Süt!$B15="","",IF(Süt!$C15<=0,"",VLOOKUP($P13,$P$98:$CS$631,BI$30,FALSE))) ->  | BJ13: =IF(Süt!$B15="","",IF(Süt!$C15<=0,"",VLOOKUP($P13,$P$98:$CS$631,BJ$30,FALSE))) ->  | BK13: =IF(Süt!$B15="","",IF(Süt!$C15<=0,"",VLOOKUP($P13,$P$98:$CS$631,BK$30,FALSE))) ->  | BL13: =IF(Süt!$B15="","",IF(Süt!$C15<=0,"",VLOOKUP($P13,$P$98:$CS$631,BL$30,FALSE))) ->  | BM13: =IF(Süt!$B15="","",IF(Süt!$C15<=0,"",VLOOKUP($P13,$P$98:$CS$631,BM$30,FALSE))) ->  | BN13: =IF(Süt!$B15="","",IF(Süt!$C15<=0,"",VLOOKUP($P13,$P$98:$CS$631,BN$30,FALSE))) ->  | BO13: =IF(Süt!$B15="","",IF(Süt!$C15<=0,"",VLOOKUP($P13,$P$98:$CS$631,BO$30,FALSE))) ->  | BP13: =IF(Süt!$B15="","",IF(Süt!$C15<=0,"",VLOOKUP($P13,$P$98:$CS$631,BP$30,FALSE))) ->  | BQ13: =IF(Süt!$B15="","",IF(Süt!$C15<=0,"",VLOOKUP($P13,$P$98:$CS$631,BQ$30,FALSE))) ->  | BR13: =IF(Süt!$B15="","",IF(Süt!$C15<=0,"",VLOOKUP($P13,$P$98:$CS$631,BR$30,FALSE))) ->  | BS13: =IF(Süt!$B15="","",IF(Süt!$C15<=0,"",VLOOKUP($P13,$P$98:$CS$631,BS$30,FALSE))) ->  | BT13: =IF(Süt!$B15="","",IF(Süt!$C15<=0,"",VLOOKUP($P13,$P$98:$CS$631,BT$30,FALSE))) ->  | BU13: =IF(Süt!$B15="","",IF(Süt!$C15<=0,"",VLOOKUP($P13,$P$98:$CS$631,BU$30,FALSE))) ->  | BV13: =IF(Süt!$B15="","",IF(Süt!$C15<=0,"",VLOOKUP($P13,$P$98:$CS$631,BV$30,FALSE))) ->  | BW13: =IF(Süt!$B15="","",IF(Süt!$C15<=0,"",VLOOKUP($P13,$P$98:$CS$631,BW$30,FALSE))) ->  | BX13: =IF(Süt!$B15="","",IF(Süt!$C15<=0,"",VLOOKUP($P13,$P$98:$CS$631,BX$30,FALSE))) ->  | BY13: =IF(Süt!$B15="","",IF(Süt!$C15<=0,"",VLOOKUP($P13,$P$98:$CS$631,BY$30,FALSE))) ->  | BZ13: =IF(Süt!$B15="","",IF(Süt!$C15<=0,"",VLOOKUP($P13,$P$98:$CS$631,BZ$30,FALSE))) ->  | CA13: =IF(Süt!$B15="","",IF(Süt!$C15<=0,"",VLOOKUP($P13,$P$98:$CS$631,CA$30,FALSE))) ->  | CB13: =IF(Süt!$B15="","",IF(Süt!$C15<=0,"",VLOOKUP($P13,$P$98:$CS$631,CB$30,FALSE))) ->  | CC13: =IF(Süt!$B15="","",IF(Süt!$C15<=0,"",VLOOKUP($P13,$P$98:$CS$631,CC$30,FALSE))) ->  | CD13: =IF(Süt!$B15="","",IF(Süt!$C15<=0,"",VLOOKUP($P13,$P$98:$CS$631,CD$30,FALSE))) ->  | CE13: =IF(Süt!$B15="","",IF(Süt!$C15<=0,"",VLOOKUP($P13,$P$98:$CS$631,CE$30,FALSE))) ->  | CF13: =IF(Süt!$B15="","",IF(Süt!$C15<=0,"",VLOOKUP($P13,$P$98:$CS$631,CF$30,FALSE))) ->  | CG13: =IF(Süt!$B15="","",IF(Süt!$C15<=0,"",VLOOKUP($P13,$P$98:$CS$631,CG$30,FALSE))) ->  | CH13: =IF(Süt!$B15="","",IF(Süt!$C15<=0,"",VLOOKUP($P13,$P$98:$CS$631,CH$30,FALSE))) ->  | CI13: =IF(Süt!$B15="","",IF(Süt!$C15<=0,"",VLOOKUP($P13,$P$98:$CS$631,CI$30,FALSE))) ->  | CJ13: =IF(Süt!$B15="","",IF(Süt!$C15<=0,"",VLOOKUP($P13,$P$98:$CS$631,CJ$30,FALSE))) ->  | CK13: =IF(Süt!$B15="","",IF(Süt!$C15<=0,"",VLOOKUP($P13,$P$98:$CS$631,CK$30,FALSE))) ->  | CL13: =IF(Süt!$B15="","",IF(Süt!$C15<=0,"",VLOOKUP($P13,$P$98:$CS$631,CL$30,FALSE))) ->  | CM13: =IF(Süt!$B15="","",IF(Süt!$C15<=0,"",VLOOKUP($P13,$P$98:$CS$631,CM$30,FALSE))) ->  | CN13: =IF(Süt!$B15="","",IF(Süt!$C15<=0,"",VLOOKUP($P13,$P$98:$CS$631,CN$30,FALSE))) ->  | CO13: =IF(Süt!$B15="","",IF(Süt!$C15<=0,"",VLOOKUP($P13,$P$98:$CS$631,CO$30,FALSE))) ->  | CP13: =IF(Süt!$B15="","",IF(Süt!$C15<=0,"",VLOOKUP($P13,$P$98:$CS$631,CP$30,FALSE))) ->  | CQ13: =IF(Süt!$B15="","",IF(Süt!$C15<=0,"",VLOOKUP($P13,$P$98:$CS$631,CQ$30,FALSE))) ->  | CR13: =IF(Süt!$B15="","",IF(Süt!$C15<=0,"",VLOOKUP($P13,$P$98:$CS$631,CR$30,FALSE))) ->  | CS13: =IF(Süt!$B15="","",IF(Süt!$C15<=0,"",VLOOKUP($P13,$P$98:$CS$631,CS$30,FALSE))) ->  | CT13: 5 | CU13: 0 | CV13: 0.27 | CW13: CW | CX13: =IF(DaysPreg < 190,0,(18 + ((DaysPreg - 190) * 0.665)) * (CBW / 45)) -> 0 | CY13: kg, fötus ağırlığı | DJ13: 5
A14: =IF(Süt!A14="","",Süt!A14) ->  | B14: =IF(Süt!B14="","",Süt!B14) ->  | C14: =IF(Süt!C14="","",Süt!C14) ->  | D14: =Süt!D14 -> 0 | E14: =Süt!E14 -> 0 | F14: =Süt!F14 -> 0 | G14: Emilebilir Ca, g/gün | H14: =Ca Total -> 51.17 | I14: =Ca Absorbable -> 50.83283607 | J14: =IF(H14=""," ",IF(I14>(H14*1.5),"FAZLA",IF(I14<(H14*0.99),"EKSİK","TAMAM"))) -> TAMAM | M14: 0 | P14: =IF(Süt!B16="","",IF(Süt!C16<=0,"",Süt!B16)) ->  | Q14: =IF(Süt!$B16="","",IF(Süt!$C16<=0,"",VLOOKUP($P14,$P$98:$CS$631,Q$30,FALSE))) ->  | R14: =IF(Süt!$B16="","",IF(Süt!$C16<=0,"",VLOOKUP($P14,$P$98:$CS$631,R$30,FALSE))) ->  | S14: =IF(Süt!$B16="","",IF(Süt!$C16<=0,"",VLOOKUP($P14,$P$98:$CS$631,S$30,FALSE))) ->  | T14: =IF(Süt!$B16="","",IF(Süt!$C16<=0,"",VLOOKUP($P14,$P$98:$CS$631,T$30,FALSE))) ->  | U14: =IF(Süt!$B16="","",IF(Süt!$C16<=0,"",VLOOKUP($P14,$P$98:$CS$631,U$30,FALSE))) ->  | V14: =IF(Süt!$B16="","",IF(Süt!$C16<=0,"",VLOOKUP($P14,$P$98:$CS$631,V$30,FALSE))) ->  | W14: =IF(Süt!$B16="","",IF(Süt!$C16<=0,"",VLOOKUP($P14,$P$98:$CS$631,W$30,FALSE))) ->  | X14: =IF(Süt!$B16="","",IF(Süt!$C16<=0,"",VLOOKUP($P14,$P$98:$CS$631,X$30,FALSE))) ->  | Y14: =IF(Süt!$B16="","",IF(Süt!$C16<=0,"",VLOOKUP($P14,$P$98:$CS$631,Y$30,FALSE))) ->  | Z14: =IF(Süt!$B16="","",IF(Süt!$C16<=0,"",VLOOKUP($P14,$P$98:$CS$631,Z$30,FALSE))) ->  | AA14: =IF(Süt!$B16="","",IF(Süt!$C16<=0,"",VLOOKUP($P14,$P$98:$CS$631,AA$30,FALSE))) ->  | AB14: =IF(Süt!$B16="","",IF(Süt!$C16<=0,"",VLOOKUP($P14,$P$98:$CS$631,AB$30,FALSE))) ->  | AC14: =IF(Süt!$B16="","",IF(Süt!$C16<=0,"",VLOOKUP($P14,$P$98:$CS$631,AC$30,FALSE))) ->  | AD14: =IF(Süt!$B16="","",IF(Süt!$C16<=0,"",VLOOKUP($P14,$P$98:$CS$631,AD$30,FALSE))) ->  | AE14: =IF(Süt!$B16="","",IF(Süt!$C16<=0,"",VLOOKUP($P14,$P$98:$CS$631,AE$30,FALSE))) ->  | AF14: =IF(Süt!$B16="","",IF(Süt!$C16<=0,"",VLOOKUP($P14,$P$98:$CS$631,AF$30,FALSE))) ->  | AG14: =IF(Süt!$B16="","",IF(Süt!$C16<=0,"",VLOOKUP($P14,$P$98:$CS$631,AG$30,FALSE))) ->  | AH14: =IF(Süt!$B16="","",IF(Süt!$C16<=0,"",VLOOKUP($P14,$P$98:$CS$631,AH$30,FALSE))) ->  | AI14: =IF(Süt!$B16="","",IF(Süt!$C16<=0,"",VLOOKUP($P14,$P$98:$CS$631,AI$30,FALSE))) ->  | AJ14: =IF(Süt!$B16="","",IF(Süt!$C16<=0,"",VLOOKUP($P14,$P$98:$CS$631,AJ$30,FALSE))) ->  | AK14: =IF(Süt!$B16="","",IF(Süt!$C16<=0,"",VLOOKUP($P14,$P$98:$CS$631,AK$30,FALSE))) ->  | AL14: =IF(Süt!$B16="","",IF(Süt!$C16<=0,"",VLOOKUP($P14,$P$98:$CS$631,AL$30,FALSE))) ->  | AM14: =IF(Süt!$B16="","",IF(Süt!$C16<=0,"",VLOOKUP($P14,$P$98:$CS$631,AM$30,FALSE))) ->  | AN14: =IF(Süt!$B16="","",IF(Süt!$C16<=0,"",VLOOKUP($P14,$P$98:$CS$631,AN$30,FALSE))) ->  | AO14: =IF(Süt!$B16="","",IF(Süt!$C16<=0,"",VLOOKUP($P14,$P$98:$CS$631,AO$30,FALSE))) ->  | AP14: =IF(Süt!$B16="","",IF(Süt!$C16<=0,"",VLOOKUP($P14,$P$98:$CS$631,AP$30,FALSE))) ->  | AQ14: =IF(Süt!$B16="","",IF(Süt!$C16<=0,"",VLOOKUP($P14,$P$98:$CS$631,AQ$30,FALSE))) ->  | AR14: =IF(Süt!$B16="","",IF(Süt!$C16<=0,"",VLOOKUP($P14,$P$98:$CS$631,AR$30,FALSE))) ->  | AS14: =IF(Süt!$B16="","",IF(Süt!$C16<=0,"",VLOOKUP($P14,$P$98:$CS$631,AS$30,FALSE))) ->  | AT14: =IF(Süt!$B16="","",IF(Süt!$C16<=0,"",VLOOKUP($P14,$P$98:$CS$631,AT$30,FALSE))) ->  | AU14: =IF(Süt!$B16="","",IF(Süt!$C16<=0,"",VLOOKUP($P14,$P$98:$CS$631,AU$30,FALSE))) ->  | AV14: =IF(Süt!$B16="","",IF(Süt!$C16<=0,"",VLOOKUP($P14,$P$98:$CS$631,AV$30,FALSE))) ->  | AW14: =IF(Süt!$B16="","",IF(Süt!$C16<=0,"",VLOOKUP($P14,$P$98:$CS$631,AW$30,FALSE))) ->  | AX14: =IF(Süt!$B16="","",IF(Süt!$C16<=0,"",VLOOKUP($P14,$P$98:$CS$631,AX$30,FALSE))) ->  | AY14: =IF(Süt!$B16="","",IF(Süt!$C16<=0,"",VLOOKUP($P14,$P$98:$CS$631,AY$30,FALSE))) ->  | AZ14: =IF(Süt!$B16="","",IF(Süt!$C16<=0,"",VLOOKUP($P14,$P$98:$CS$631,AZ$30,FALSE))) ->  | BA14: =IF(Süt!$B16="","",IF(Süt!$C16<=0,"",VLOOKUP($P14,$P$98:$CS$631,BA$30,FALSE))) ->  | BB14: =IF(Süt!$B16="","",IF(Süt!$C16<=0,"",VLOOKUP($P14,$P$98:$CS$631,BB$30,FALSE))) ->  | BC14: =IF(Süt!$B16="","",IF(Süt!$C16<=0,"",VLOOKUP($P14,$P$98:$CS$631,BC$30,FALSE))) ->  | BD14: =IF(Süt!$B16="","",IF(Süt!$C16<=0,"",VLOOKUP($P14,$P$98:$CS$631,BD$30,FALSE))) ->  | BE14: =IF(Süt!$B16="","",IF(Süt!$C16<=0,"",VLOOKUP($P14,$P$98:$CS$631,BE$30,FALSE))) ->  | BF14: =IF(Süt!$B16="","",IF(Süt!$C16<=0,"",VLOOKUP($P14,$P$98:$CS$631,BF$30,FALSE))) ->  | BG14: =IF(Süt!$B16="","",IF(Süt!$C16<=0,"",VLOOKUP($P14,$P$98:$CS$631,BG$30,FALSE))) ->  | BH14: =IF(Süt!$B16="","",IF(Süt!$C16<=0,"",VLOOKUP($P14,$P$98:$CS$631,BH$30,FALSE))) ->  | BI14: =IF(Süt!$B16="","",IF(Süt!$C16<=0,"",VLOOKUP($P14,$P$98:$CS$631,BI$30,FALSE))) ->  | BJ14: =IF(Süt!$B16="","",IF(Süt!$C16<=0,"",VLOOKUP($P14,$P$98:$CS$631,BJ$30,FALSE))) ->  | BK14: =IF(Süt!$B16="","",IF(Süt!$C16<=0,"",VLOOKUP($P14,$P$98:$CS$631,BK$30,FALSE))) ->  | BL14: =IF(Süt!$B16="","",IF(Süt!$C16<=0,"",VLOOKUP($P14,$P$98:$CS$631,BL$30,FALSE))) ->  | BM14: =IF(Süt!$B16="","",IF(Süt!$C16<=0,"",VLOOKUP($P14,$P$98:$CS$631,BM$30,FALSE))) ->  | BN14: =IF(Süt!$B16="","",IF(Süt!$C16<=0,"",VLOOKUP($P14,$P$98:$CS$631,BN$30,FALSE))) ->  | BO14: =IF(Süt!$B16="","",IF(Süt!$C16<=0,"",VLOOKUP($P14,$P$98:$CS$631,BO$30,FALSE))) ->  | BP14: =IF(Süt!$B16="","",IF(Süt!$C16<=0,"",VLOOKUP($P14,$P$98:$CS$631,BP$30,FALSE))) ->  | BQ14: =IF(Süt!$B16="","",IF(Süt!$C16<=0,"",VLOOKUP($P14,$P$98:$CS$631,BQ$30,FALSE))) ->  | BR14: =IF(Süt!$B16="","",IF(Süt!$C16<=0,"",VLOOKUP($P14,$P$98:$CS$631,BR$30,FALSE))) ->  | BS14: =IF(Süt!$B16="","",IF(Süt!$C16<=0,"",VLOOKUP($P14,$P$98:$CS$631,BS$30,FALSE))) ->  | BT14: =IF(Süt!$B16="","",IF(Süt!$C16<=0,"",VLOOKUP($P14,$P$98:$CS$631,BT$30,FALSE))) ->  | BU14: =IF(Süt!$B16="","",IF(Süt!$C16<=0,"",VLOOKUP($P14,$P$98:$CS$631,BU$30,FALSE))) ->  | BV14: =IF(Süt!$B16="","",IF(Süt!$C16<=0,"",VLOOKUP($P14,$P$98:$CS$631,BV$30,FALSE))) ->  | BW14: =IF(Süt!$B16="","",IF(Süt!$C16<=0,"",VLOOKUP($P14,$P$98:$CS$631,BW$30,FALSE))) ->  | BX14: =IF(Süt!$B16="","",IF(Süt!$C16<=0,"",VLOOKUP($P14,$P$98:$CS$631,BX$30,FALSE))) ->  | BY14: =IF(Süt!$B16="","",IF(Süt!$C16<=0,"",VLOOKUP($P14,$P$98:$CS$631,BY$30,FALSE))) ->  | BZ14: =IF(Süt!$B16="","",IF(Süt!$C16<=0,"",VLOOKUP($P14,$P$98:$CS$631,BZ$30,FALSE))) ->  | CA14: =IF(Süt!$B16="","",IF(Süt!$C16<=0,"",VLOOKUP($P14,$P$98:$CS$631,CA$30,FALSE))) ->  | CB14: =IF(Süt!$B16="","",IF(Süt!$C16<=0,"",VLOOKUP($P14,$P$98:$CS$631,CB$30,FALSE))) ->  | CC14: =IF(Süt!$B16="","",IF(Süt!$C16<=0,"",VLOOKUP($P14,$P$98:$CS$631,CC$30,FALSE))) ->  | CD14: =IF(Süt!$B16="","",IF(Süt!$C16<=0,"",VLOOKUP($P14,$P$98:$CS$631,CD$30,FALSE))) ->  | CE14: =IF(Süt!$B16="","",IF(Süt!$C16<=0,"",VLOOKUP($P14,$P$98:$CS$631,CE$30,FALSE))) ->  | CF14: =IF(Süt!$B16="","",IF(Süt!$C16<=0,"",VLOOKUP($P14,$P$98:$CS$631,CF$30,FALSE))) ->  | CG14: =IF(Süt!$B16="","",IF(Süt!$C16<=0,"",VLOOKUP($P14,$P$98:$CS$631,CG$30,FALSE))) ->  | CH14: =IF(Süt!$B16="","",IF(Süt!$C16<=0,"",VLOOKUP($P14,$P$98:$CS$631,CH$30,FALSE))) ->  | CI14: =IF(Süt!$B16="","",IF(Süt!$C16<=0,"",VLOOKUP($P14,$P$98:$CS$631,CI$30,FALSE))) ->  | CJ14: =IF(Süt!$B16="","",IF(Süt!$C16<=0,"",VLOOKUP($P14,$P$98:$CS$631,CJ$30,FALSE))) ->  | CK14: =IF(Süt!$B16="","",IF(Süt!$C16<=0,"",VLOOKUP($P14,$P$98:$CS$631,CK$30,FALSE))) ->  | CL14: =IF(Süt!$B16="","",IF(Süt!$C16<=0,"",VLOOKUP($P14,$P$98:$CS$631,CL$30,FALSE))) ->  | CM14: =IF(Süt!$B16="","",IF(Süt!$C16<=0,"",VLOOKUP($P14,$P$98:$CS$631,CM$30,FALSE))) ->  | CN14: =IF(Süt!$B16="","",IF(Süt!$C16<=0,"",VLOOKUP($P14,$P$98:$CS$631,CN$30,FALSE))) ->  | CO14: =IF(Süt!$B16="","",IF(Süt!$C16<=0,"",VLOOKUP($P14,$P$98:$CS$631,CO$30,FALSE))) ->  | CP14: =IF(Süt!$B16="","",IF(Süt!$C16<=0,"",VLOOKUP($P14,$P$98:$CS$631,CP$30,FALSE))) ->  | CQ14: =IF(Süt!$B16="","",IF(Süt!$C16<=0,"",VLOOKUP($P14,$P$98:$CS$631,CQ$30,FALSE))) ->  | CR14: =IF(Süt!$B16="","",IF(Süt!$C16<=0,"",VLOOKUP($P14,$P$98:$CS$631,CR$30,FALSE))) ->  | CS14: =IF(Süt!$B16="","",IF(Süt!$C16<=0,"",VLOOKUP($P14,$P$98:$CS$631,CS$30,FALSE))) ->  | CT14: 4 | CU14: 0.027 | CV14: 0.297 | CW14: ADGPreg | CX14: =IF(DaysPreg < 190,0,665 * (CBW / 45)) -> 0 | CY14: g/gün, gebelik büyümesine bağlı günlük ağırlık artışı | DJ14: 6
A15: =IF(Süt!A15="","",Süt!A15) ->  | B15: =IF(Süt!B15="","",Süt!B15) ->  | C15: =IF(Süt!C15="","",Süt!C15) ->  | D15: =Süt!D15 -> 0 | E15: =Süt!E15 -> 0 | F15: =Süt!F15 -> 0 | G15: Ca, % KM | I15: =(Ca Supplied/TotalDMFed)/10 -> 0.5854514799 | M15: 0 | P15: =IF(Süt!B17="","",IF(Süt!C17<=0,"",Süt!B17)) ->  | Q15: =IF(Süt!$B17="","",IF(Süt!$C17<=0,"",VLOOKUP($P15,$P$98:$CS$631,Q$30,FALSE))) ->  | R15: =IF(Süt!$B17="","",IF(Süt!$C17<=0,"",VLOOKUP($P15,$P$98:$CS$631,R$30,FALSE))) ->  | S15: =IF(Süt!$B17="","",IF(Süt!$C17<=0,"",VLOOKUP($P15,$P$98:$CS$631,S$30,FALSE))) ->  | T15: =IF(Süt!$B17="","",IF(Süt!$C17<=0,"",VLOOKUP($P15,$P$98:$CS$631,T$30,FALSE))) ->  | U15: =IF(Süt!$B17="","",IF(Süt!$C17<=0,"",VLOOKUP($P15,$P$98:$CS$631,U$30,FALSE))) ->  | V15: =IF(Süt!$B17="","",IF(Süt!$C17<=0,"",VLOOKUP($P15,$P$98:$CS$631,V$30,FALSE))) ->  | W15: =IF(Süt!$B17="","",IF(Süt!$C17<=0,"",VLOOKUP($P15,$P$98:$CS$631,W$30,FALSE))) ->  | X15: =IF(Süt!$B17="","",IF(Süt!$C17<=0,"",VLOOKUP($P15,$P$98:$CS$631,X$30,FALSE))) ->  | Y15: =IF(Süt!$B17="","",IF(Süt!$C17<=0,"",VLOOKUP($P15,$P$98:$CS$631,Y$30,FALSE))) ->  | Z15: =IF(Süt!$B17="","",IF(Süt!$C17<=0,"",VLOOKUP($P15,$P$98:$CS$631,Z$30,FALSE))) ->  | AA15: =IF(Süt!$B17="","",IF(Süt!$C17<=0,"",VLOOKUP($P15,$P$98:$CS$631,AA$30,FALSE))) ->  | AB15: =IF(Süt!$B17="","",IF(Süt!$C17<=0,"",VLOOKUP($P15,$P$98:$CS$631,AB$30,FALSE))) ->  | AC15: =IF(Süt!$B17="","",IF(Süt!$C17<=0,"",VLOOKUP($P15,$P$98:$CS$631,AC$30,FALSE))) ->  | AD15: =IF(Süt!$B17="","",IF(Süt!$C17<=0,"",VLOOKUP($P15,$P$98:$CS$631,AD$30,FALSE))) ->  | AE15: =IF(Süt!$B17="","",IF(Süt!$C17<=0,"",VLOOKUP($P15,$P$98:$CS$631,AE$30,FALSE))) ->  | AF15: =IF(Süt!$B17="","",IF(Süt!$C17<=0,"",VLOOKUP($P15,$P$98:$CS$631,AF$30,FALSE))) ->  | AG15: =IF(Süt!$B17="","",IF(Süt!$C17<=0,"",VLOOKUP($P15,$P$98:$CS$631,AG$30,FALSE))) ->  | AH15: =IF(Süt!$B17="","",IF(Süt!$C17<=0,"",VLOOKUP($P15,$P$98:$CS$631,AH$30,FALSE))) ->  | AI15: =IF(Süt!$B17="","",IF(Süt!$C17<=0,"",VLOOKUP($P15,$P$98:$CS$631,AI$30,FALSE))) ->  | AJ15: =IF(Süt!$B17="","",IF(Süt!$C17<=0,"",VLOOKUP($P15,$P$98:$CS$631,AJ$30,FALSE))) ->  | AK15: =IF(Süt!$B17="","",IF(Süt!$C17<=0,"",VLOOKUP($P15,$P$98:$CS$631,AK$30,FALSE))) ->  | AL15: =IF(Süt!$B17="","",IF(Süt!$C17<=0,"",VLOOKUP($P15,$P$98:$CS$631,AL$30,FALSE))) ->  | AM15: =IF(Süt!$B17="","",IF(Süt!$C17<=0,"",VLOOKUP($P15,$P$98:$CS$631,AM$30,FALSE))) ->  | AN15: =IF(Süt!$B17="","",IF(Süt!$C17<=0,"",VLOOKUP($P15,$P$98:$CS$631,AN$30,FALSE))) ->  | AO15: =IF(Süt!$B17="","",IF(Süt!$C17<=0,"",VLOOKUP($P15,$P$98:$CS$631,AO$30,FALSE))) ->  | AP15: =IF(Süt!$B17="","",IF(Süt!$C17<=0,"",VLOOKUP($P15,$P$98:$CS$631,AP$30,FALSE))) ->  | AQ15: =IF(Süt!$B17="","",IF(Süt!$C17<=0,"",VLOOKUP($P15,$P$98:$CS$631,AQ$30,FALSE))) ->  | AR15: =IF(Süt!$B17="","",IF(Süt!$C17<=0,"",VLOOKUP($P15,$P$98:$CS$631,AR$30,FALSE))) ->  | AS15: =IF(Süt!$B17="","",IF(Süt!$C17<=0,"",VLOOKUP($P15,$P$98:$CS$631,AS$30,FALSE))) ->  | AT15: =IF(Süt!$B17="","",IF(Süt!$C17<=0,"",VLOOKUP($P15,$P$98:$CS$631,AT$30,FALSE))) ->  | AU15: =IF(Süt!$B17="","",IF(Süt!$C17<=0,"",VLOOKUP($P15,$P$98:$CS$631,AU$30,FALSE))) ->  | AV15: =IF(Süt!$B17="","",IF(Süt!$C17<=0,"",VLOOKUP($P15,$P$98:$CS$631,AV$30,FALSE))) ->  | AW15: =IF(Süt!$B17="","",IF(Süt!$C17<=0,"",VLOOKUP($P15,$P$98:$CS$631,AW$30,FALSE))) ->  | AX15: =IF(Süt!$B17="","",IF(Süt!$C17<=0,"",VLOOKUP($P15,$P$98:$CS$631,AX$30,FALSE))) ->  | AY15: =IF(Süt!$B17="","",IF(Süt!$C17<=0,"",VLOOKUP($P15,$P$98:$CS$631,AY$30,FALSE))) ->  | AZ15: =IF(Süt!$B17="","",IF(Süt!$C17<=0,"",VLOOKUP($P15,$P$98:$CS$631,AZ$30,FALSE))) ->  | BA15: =IF(Süt!$B17="","",IF(Süt!$C17<=0,"",VLOOKUP($P15,$P$98:$CS$631,BA$30,FALSE))) ->  | BB15: =IF(Süt!$B17="","",IF(Süt!$C17<=0,"",VLOOKUP($P15,$P$98:$CS$631,BB$30,FALSE))) ->  | BC15: =IF(Süt!$B17="","",IF(Süt!$C17<=0,"",VLOOKUP($P15,$P$98:$CS$631,BC$30,FALSE))) ->  | BD15: =IF(Süt!$B17="","",IF(Süt!$C17<=0,"",VLOOKUP($P15,$P$98:$CS$631,BD$30,FALSE))) ->  | BE15: =IF(Süt!$B17="","",IF(Süt!$C17<=0,"",VLOOKUP($P15,$P$98:$CS$631,BE$30,FALSE))) ->  | BF15: =IF(Süt!$B17="","",IF(Süt!$C17<=0,"",VLOOKUP($P15,$P$98:$CS$631,BF$30,FALSE))) ->  | BG15: =IF(Süt!$B17="","",IF(Süt!$C17<=0,"",VLOOKUP($P15,$P$98:$CS$631,BG$30,FALSE))) ->  | BH15: =IF(Süt!$B17="","",IF(Süt!$C17<=0,"",VLOOKUP($P15,$P$98:$CS$631,BH$30,FALSE))) ->  | BI15: =IF(Süt!$B17="","",IF(Süt!$C17<=0,"",VLOOKUP($P15,$P$98:$CS$631,BI$30,FALSE))) ->  | BJ15: =IF(Süt!$B17="","",IF(Süt!$C17<=0,"",VLOOKUP($P15,$P$98:$CS$631,BJ$30,FALSE))) ->  | BK15: =IF(Süt!$B17="","",IF(Süt!$C17<=0,"",VLOOKUP($P15,$P$98:$CS$631,BK$30,FALSE))) ->  | BL15: =IF(Süt!$B17="","",IF(Süt!$C17<=0,"",VLOOKUP($P15,$P$98:$CS$631,BL$30,FALSE))) ->  | BM15: =IF(Süt!$B17="","",IF(Süt!$C17<=0,"",VLOOKUP($P15,$P$98:$CS$631,BM$30,FALSE))) ->  | BN15: =IF(Süt!$B17="","",IF(Süt!$C17<=0,"",VLOOKUP($P15,$P$98:$CS$631,BN$30,FALSE))) ->  | BO15: =IF(Süt!$B17="","",IF(Süt!$C17<=0,"",VLOOKUP($P15,$P$98:$CS$631,BO$30,FALSE))) ->  | BP15: =IF(Süt!$B17="","",IF(Süt!$C17<=0,"",VLOOKUP($P15,$P$98:$CS$631,BP$30,FALSE))) ->  | BQ15: =IF(Süt!$B17="","",IF(Süt!$C17<=0,"",VLOOKUP($P15,$P$98:$CS$631,BQ$30,FALSE))) ->  | BR15: =IF(Süt!$B17="","",IF(Süt!$C17<=0,"",VLOOKUP($P15,$P$98:$CS$631,BR$30,FALSE))) ->  | BS15: =IF(Süt!$B17="","",IF(Süt!$C17<=0,"",VLOOKUP($P15,$P$98:$CS$631,BS$30,FALSE))) ->  | BT15: =IF(Süt!$B17="","",IF(Süt!$C17<=0,"",VLOOKUP($P15,$P$98:$CS$631,BT$30,FALSE))) ->  | BU15: =IF(Süt!$B17="","",IF(Süt!$C17<=0,"",VLOOKUP($P15,$P$98:$CS$631,BU$30,FALSE))) ->  | BV15: =IF(Süt!$B17="","",IF(Süt!$C17<=0,"",VLOOKUP($P15,$P$98:$CS$631,BV$30,FALSE))) ->  | BW15: =IF(Süt!$B17="","",IF(Süt!$C17<=0,"",VLOOKUP($P15,$P$98:$CS$631,BW$30,FALSE))) ->  | BX15: =IF(Süt!$B17="","",IF(Süt!$C17<=0,"",VLOOKUP($P15,$P$98:$CS$631,BX$30,FALSE))) ->  | BY15: =IF(Süt!$B17="","",IF(Süt!$C17<=0,"",VLOOKUP($P15,$P$98:$CS$631,BY$30,FALSE))) ->  | BZ15: =IF(Süt!$B17="","",IF(Süt!$C17<=0,"",VLOOKUP($P15,$P$98:$CS$631,BZ$30,FALSE))) ->  | CA15: =IF(Süt!$B17="","",IF(Süt!$C17<=0,"",VLOOKUP($P15,$P$98:$CS$631,CA$30,FALSE))) ->  | CB15: =IF(Süt!$B17="","",IF(Süt!$C17<=0,"",VLOOKUP($P15,$P$98:$CS$631,CB$30,FALSE))) ->  | CC15: =IF(Süt!$B17="","",IF(Süt!$C17<=0,"",VLOOKUP($P15,$P$98:$CS$631,CC$30,FALSE))) ->  | CD15: =IF(Süt!$B17="","",IF(Süt!$C17<=0,"",VLOOKUP($P15,$P$98:$CS$631,CD$30,FALSE))) ->  | CE15: =IF(Süt!$B17="","",IF(Süt!$C17<=0,"",VLOOKUP($P15,$P$98:$CS$631,CE$30,FALSE))) ->  | CF15: =IF(Süt!$B17="","",IF(Süt!$C17<=0,"",VLOOKUP($P15,$P$98:$CS$631,CF$30,FALSE))) ->  | CG15: =IF(Süt!$B17="","",IF(Süt!$C17<=0,"",VLOOKUP($P15,$P$98:$CS$631,CG$30,FALSE))) ->  | CH15: =IF(Süt!$B17="","",IF(Süt!$C17<=0,"",VLOOKUP($P15,$P$98:$CS$631,CH$30,FALSE))) ->  | CI15: =IF(Süt!$B17="","",IF(Süt!$C17<=0,"",VLOOKUP($P15,$P$98:$CS$631,CI$30,FALSE))) ->  | CJ15: =IF(Süt!$B17="","",IF(Süt!$C17<=0,"",VLOOKUP($P15,$P$98:$CS$631,CJ$30,FALSE))) ->  | CK15: =IF(Süt!$B17="","",IF(Süt!$C17<=0,"",VLOOKUP($P15,$P$98:$CS$631,CK$30,FALSE))) ->  | CL15: =IF(Süt!$B17="","",IF(Süt!$C17<=0,"",VLOOKUP($P15,$P$98:$CS$631,CL$30,FALSE))) ->  | CM15: =IF(Süt!$B17="","",IF(Süt!$C17<=0,"",VLOOKUP($P15,$P$98:$CS$631,CM$30,FALSE))) ->  | CN15: =IF(Süt!$B17="","",IF(Süt!$C17<=0,"",VLOOKUP($P15,$P$98:$CS$631,CN$30,FALSE))) ->  | CO15: =IF(Süt!$B17="","",IF(Süt!$C17<=0,"",VLOOKUP($P15,$P$98:$CS$631,CO$30,FALSE))) ->  | CP15: =IF(Süt!$B17="","",IF(Süt!$C17<=0,"",VLOOKUP($P15,$P$98:$CS$631,CP$30,FALSE))) ->  | CQ15: =IF(Süt!$B17="","",IF(Süt!$C17<=0,"",VLOOKUP($P15,$P$98:$CS$631,CQ$30,FALSE))) ->  | CR15: =IF(Süt!$B17="","",IF(Süt!$C17<=0,"",VLOOKUP($P15,$P$98:$CS$631,CR$30,FALSE))) ->  | CS15: =IF(Süt!$B17="","",IF(Süt!$C17<=0,"",VLOOKUP($P15,$P$98:$CS$631,CS$30,FALSE))) ->  | CT15: 3 | CU15: 0.054 | CV15: 0.324 | CW15: Laktasyon ihtiyaçları | DJ15: 7
A16: =IF(Süt!A16="","",Süt!A16) ->  | B16: =IF(Süt!B16="","",Süt!B16) ->  | C16: =IF(Süt!C16="","",Süt!C16) ->  | D16: =Süt!D16 -> 0 | E16: =Süt!E16 -> 0 | F16: =Süt!F16 -> 0 | G16: Emilebilir P, g/gün | H16: =P Total -> 44.93815915 | I16: =P Absorbable -> 44.66135014 | J16: =IF(H16=""," ",IF(I16>(H16*1.5),"FAZLA",IF(I16<(H16*0.99),"EKSİK","TAMAM"))) -> TAMAM | M16: 0 | P16: =IF(Süt!B18="","",IF(Süt!C18<=0,"",Süt!B18)) ->  | Q16: =IF(Süt!$B18="","",IF(Süt!$C18<=0,"",VLOOKUP($P16,$P$98:$CS$631,Q$30,FALSE))) ->  | R16: =IF(Süt!$B18="","",IF(Süt!$C18<=0,"",VLOOKUP($P16,$P$98:$CS$631,R$30,FALSE))) ->  | S16: =IF(Süt!$B18="","",IF(Süt!$C18<=0,"",VLOOKUP($P16,$P$98:$CS$631,S$30,FALSE))) ->  | T16: =IF(Süt!$B18="","",IF(Süt!$C18<=0,"",VLOOKUP($P16,$P$98:$CS$631,T$30,FALSE))) ->  | U16: =IF(Süt!$B18="","",IF(Süt!$C18<=0,"",VLOOKUP($P16,$P$98:$CS$631,U$30,FALSE))) ->  | V16: =IF(Süt!$B18="","",IF(Süt!$C18<=0,"",VLOOKUP($P16,$P$98:$CS$631,V$30,FALSE))) ->  | W16: =IF(Süt!$B18="","",IF(Süt!$C18<=0,"",VLOOKUP($P16,$P$98:$CS$631,W$30,FALSE))) ->  | X16: =IF(Süt!$B18="","",IF(Süt!$C18<=0,"",VLOOKUP($P16,$P$98:$CS$631,X$30,FALSE))) ->  | Y16: =IF(Süt!$B18="","",IF(Süt!$C18<=0,"",VLOOKUP($P16,$P$98:$CS$631,Y$30,FALSE))) ->  | Z16: =IF(Süt!$B18="","",IF(Süt!$C18<=0,"",VLOOKUP($P16,$P$98:$CS$631,Z$30,FALSE))) ->  | AA16: =IF(Süt!$B18="","",IF(Süt!$C18<=0,"",VLOOKUP($P16,$P$98:$CS$631,AA$30,FALSE))) ->  | AB16: =IF(Süt!$B18="","",IF(Süt!$C18<=0,"",VLOOKUP($P16,$P$98:$CS$631,AB$30,FALSE))) ->  | AC16: =IF(Süt!$B18="","",IF(Süt!$C18<=0,"",VLOOKUP($P16,$P$98:$CS$631,AC$30,FALSE))) ->  | AD16: =IF(Süt!$B18="","",IF(Süt!$C18<=0,"",VLOOKUP($P16,$P$98:$CS$631,AD$30,FALSE))) ->  | AE16: =IF(Süt!$B18="","",IF(Süt!$C18<=0,"",VLOOKUP($P16,$P$98:$CS$631,AE$30,FALSE))) ->  | AF16: =IF(Süt!$B18="","",IF(Süt!$C18<=0,"",VLOOKUP($P16,$P$98:$CS$631,AF$30,FALSE))) ->  | AG16: =IF(Süt!$B18="","",IF(Süt!$C18<=0,"",VLOOKUP($P16,$P$98:$CS$631,AG$30,FALSE))) ->  | AH16: =IF(Süt!$B18="","",IF(Süt!$C18<=0,"",VLOOKUP($P16,$P$98:$CS$631,AH$30,FALSE))) ->  | AI16: =IF(Süt!$B18="","",IF(Süt!$C18<=0,"",VLOOKUP($P16,$P$98:$CS$631,AI$30,FALSE))) ->  | AJ16: =IF(Süt!$B18="","",IF(Süt!$C18<=0,"",VLOOKUP($P16,$P$98:$CS$631,AJ$30,FALSE))) ->  | AK16: =IF(Süt!$B18="","",IF(Süt!$C18<=0,"",VLOOKUP($P16,$P$98:$CS$631,AK$30,FALSE))) ->  | AL16: =IF(Süt!$B18="","",IF(Süt!$C18<=0,"",VLOOKUP($P16,$P$98:$CS$631,AL$30,FALSE))) ->  | AM16: =IF(Süt!$B18="","",IF(Süt!$C18<=0,"",VLOOKUP($P16,$P$98:$CS$631,AM$30,FALSE))) ->  | AN16: =IF(Süt!$B18="","",IF(Süt!$C18<=0,"",VLOOKUP($P16,$P$98:$CS$631,AN$30,FALSE))) ->  | AO16: =IF(Süt!$B18="","",IF(Süt!$C18<=0,"",VLOOKUP($P16,$P$98:$CS$631,AO$30,FALSE))) ->  | AP16: =IF(Süt!$B18="","",IF(Süt!$C18<=0,"",VLOOKUP($P16,$P$98:$CS$631,AP$30,FALSE))) ->  | AQ16: =IF(Süt!$B18="","",IF(Süt!$C18<=0,"",VLOOKUP($P16,$P$98:$CS$631,AQ$30,FALSE))) ->  | AR16: =IF(Süt!$B18="","",IF(Süt!$C18<=0,"",VLOOKUP($P16,$P$98:$CS$631,AR$30,FALSE))) ->  | AS16: =IF(Süt!$B18="","",IF(Süt!$C18<=0,"",VLOOKUP($P16,$P$98:$CS$631,AS$30,FALSE))) ->  | AT16: =IF(Süt!$B18="","",IF(Süt!$C18<=0,"",VLOOKUP($P16,$P$98:$CS$631,AT$30,FALSE))) ->  | AU16: =IF(Süt!$B18="","",IF(Süt!$C18<=0,"",VLOOKUP($P16,$P$98:$CS$631,AU$30,FALSE))) ->  | AV16: =IF(Süt!$B18="","",IF(Süt!$C18<=0,"",VLOOKUP($P16,$P$98:$CS$631,AV$30,FALSE))) ->  | AW16: =IF(Süt!$B18="","",IF(Süt!$C18<=0,"",VLOOKUP($P16,$P$98:$CS$631,AW$30,FALSE))) ->  | AX16: =IF(Süt!$B18="","",IF(Süt!$C18<=0,"",VLOOKUP($P16,$P$98:$CS$631,AX$30,FALSE))) ->  | AY16: =IF(Süt!$B18="","",IF(Süt!$C18<=0,"",VLOOKUP($P16,$P$98:$CS$631,AY$30,FALSE))) ->  | AZ16: =IF(Süt!$B18="","",IF(Süt!$C18<=0,"",VLOOKUP($P16,$P$98:$CS$631,AZ$30,FALSE))) ->  | BA16: =IF(Süt!$B18="","",IF(Süt!$C18<=0,"",VLOOKUP($P16,$P$98:$CS$631,BA$30,FALSE))) ->  | BB16: =IF(Süt!$B18="","",IF(Süt!$C18<=0,"",VLOOKUP($P16,$P$98:$CS$631,BB$30,FALSE))) ->  | BC16: =IF(Süt!$B18="","",IF(Süt!$C18<=0,"",VLOOKUP($P16,$P$98:$CS$631,BC$30,FALSE))) ->  | BD16: =IF(Süt!$B18="","",IF(Süt!$C18<=0,"",VLOOKUP($P16,$P$98:$CS$631,BD$30,FALSE))) ->  | BE16: =IF(Süt!$B18="","",IF(Süt!$C18<=0,"",VLOOKUP($P16,$P$98:$CS$631,BE$30,FALSE))) ->  | BF16: =IF(Süt!$B18="","",IF(Süt!$C18<=0,"",VLOOKUP($P16,$P$98:$CS$631,BF$30,FALSE))) ->  | BG16: =IF(Süt!$B18="","",IF(Süt!$C18<=0,"",VLOOKUP($P16,$P$98:$CS$631,BG$30,FALSE))) ->  | BH16: =IF(Süt!$B18="","",IF(Süt!$C18<=0,"",VLOOKUP($P16,$P$98:$CS$631,BH$30,FALSE))) ->  | BI16: =IF(Süt!$B18="","",IF(Süt!$C18<=0,"",VLOOKUP($P16,$P$98:$CS$631,BI$30,FALSE))) ->  | BJ16: =IF(Süt!$B18="","",IF(Süt!$C18<=0,"",VLOOKUP($P16,$P$98:$CS$631,BJ$30,FALSE))) ->  | BK16: =IF(Süt!$B18="","",IF(Süt!$C18<=0,"",VLOOKUP($P16,$P$98:$CS$631,BK$30,FALSE))) ->  | BL16: =IF(Süt!$B18="","",IF(Süt!$C18<=0,"",VLOOKUP($P16,$P$98:$CS$631,BL$30,FALSE))) ->  | BM16: =IF(Süt!$B18="","",IF(Süt!$C18<=0,"",VLOOKUP($P16,$P$98:$CS$631,BM$30,FALSE))) ->  | BN16: =IF(Süt!$B18="","",IF(Süt!$C18<=0,"",VLOOKUP($P16,$P$98:$CS$631,BN$30,FALSE))) ->  | BO16: =IF(Süt!$B18="","",IF(Süt!$C18<=0,"",VLOOKUP($P16,$P$98:$CS$631,BO$30,FALSE))) ->  | BP16: =IF(Süt!$B18="","",IF(Süt!$C18<=0,"",VLOOKUP($P16,$P$98:$CS$631,BP$30,FALSE))) ->  | BQ16: =IF(Süt!$B18="","",IF(Süt!$C18<=0,"",VLOOKUP($P16,$P$98:$CS$631,BQ$30,FALSE))) ->  | BR16: =IF(Süt!$B18="","",IF(Süt!$C18<=0,"",VLOOKUP($P16,$P$98:$CS$631,BR$30,FALSE))) ->  | BS16: =IF(Süt!$B18="","",IF(Süt!$C18<=0,"",VLOOKUP($P16,$P$98:$CS$631,BS$30,FALSE))) ->  | BT16: =IF(Süt!$B18="","",IF(Süt!$C18<=0,"",VLOOKUP($P16,$P$98:$CS$631,BT$30,FALSE))) ->  | BU16: =IF(Süt!$B18="","",IF(Süt!$C18<=0,"",VLOOKUP($P16,$P$98:$CS$631,BU$30,FALSE))) ->  | BV16: =IF(Süt!$B18="","",IF(Süt!$C18<=0,"",VLOOKUP($P16,$P$98:$CS$631,BV$30,FALSE))) ->  | BW16: =IF(Süt!$B18="","",IF(Süt!$C18<=0,"",VLOOKUP($P16,$P$98:$CS$631,BW$30,FALSE))) ->  | BX16: =IF(Süt!$B18="","",IF(Süt!$C18<=0,"",VLOOKUP($P16,$P$98:$CS$631,BX$30,FALSE))) ->  | BY16: =IF(Süt!$B18="","",IF(Süt!$C18<=0,"",VLOOKUP($P16,$P$98:$CS$631,BY$30,FALSE))) ->  | BZ16: =IF(Süt!$B18="","",IF(Süt!$C18<=0,"",VLOOKUP($P16,$P$98:$CS$631,BZ$30,FALSE))) ->  | CA16: =IF(Süt!$B18="","",IF(Süt!$C18<=0,"",VLOOKUP($P16,$P$98:$CS$631,CA$30,FALSE))) ->  | CB16: =IF(Süt!$B18="","",IF(Süt!$C18<=0,"",VLOOKUP($P16,$P$98:$CS$631,CB$30,FALSE))) ->  | CC16: =IF(Süt!$B18="","",IF(Süt!$C18<=0,"",VLOOKUP($P16,$P$98:$CS$631,CC$30,FALSE))) ->  | CD16: =IF(Süt!$B18="","",IF(Süt!$C18<=0,"",VLOOKUP($P16,$P$98:$CS$631,CD$30,FALSE))) ->  | CE16: =IF(Süt!$B18="","",IF(Süt!$C18<=0,"",VLOOKUP($P16,$P$98:$CS$631,CE$30,FALSE))) ->  | CF16: =IF(Süt!$B18="","",IF(Süt!$C18<=0,"",VLOOKUP($P16,$P$98:$CS$631,CF$30,FALSE))) ->  | CG16: =IF(Süt!$B18="","",IF(Süt!$C18<=0,"",VLOOKUP($P16,$P$98:$CS$631,CG$30,FALSE))) ->  | CH16: =IF(Süt!$B18="","",IF(Süt!$C18<=0,"",VLOOKUP($P16,$P$98:$CS$631,CH$30,FALSE))) ->  | CI16: =IF(Süt!$B18="","",IF(Süt!$C18<=0,"",VLOOKUP($P16,$P$98:$CS$631,CI$30,FALSE))) ->  | CJ16: =IF(Süt!$B18="","",IF(Süt!$C18<=0,"",VLOOKUP($P16,$P$98:$CS$631,CJ$30,FALSE))) ->  | CK16: =IF(Süt!$B18="","",IF(Süt!$C18<=0,"",VLOOKUP($P16,$P$98:$CS$631,CK$30,FALSE))) ->  | CL16: =IF(Süt!$B18="","",IF(Süt!$C18<=0,"",VLOOKUP($P16,$P$98:$CS$631,CL$30,FALSE))) ->  | CM16: =IF(Süt!$B18="","",IF(Süt!$C18<=0,"",VLOOKUP($P16,$P$98:$CS$631,CM$30,FALSE))) ->  | CN16: =IF(Süt!$B18="","",IF(Süt!$C18<=0,"",VLOOKUP($P16,$P$98:$CS$631,CN$30,FALSE))) ->  | CO16: =IF(Süt!$B18="","",IF(Süt!$C18<=0,"",VLOOKUP($P16,$P$98:$CS$631,CO$30,FALSE))) ->  | CP16: =IF(Süt!$B18="","",IF(Süt!$C18<=0,"",VLOOKUP($P16,$P$98:$CS$631,CP$30,FALSE))) ->  | CQ16: =IF(Süt!$B18="","",IF(Süt!$C18<=0,"",VLOOKUP($P16,$P$98:$CS$631,CQ$30,FALSE))) ->  | CR16: =IF(Süt!$B18="","",IF(Süt!$C18<=0,"",VLOOKUP($P16,$P$98:$CS$631,CR$30,FALSE))) ->  | CS16: =IF(Süt!$B18="","",IF(Süt!$C18<=0,"",VLOOKUP($P16,$P$98:$CS$631,CS$30,FALSE))) ->  | CT16: 2 | CU16: 0.081 | CV16: 0.351 | CW16: MilkEN | CX16: =IF(MilkProd = 0,0,IF((Lactose = 0),(0.0929 * MilkFat) + (0.0547 * (MilkTrueProtein / 0.93)) + 0.192,(0.0929 * MilkFat) + (0.0547 * (MilkTrueProtein / 0.93)) + (0.0395 * Lactose))) -> 0.7156633333 | CY16: Mcal/ Nel/kg, Sütün enerji içeriği | DJ16: 8
A17: =IF(Süt!A17="","",Süt!A17) ->  | B17: =IF(Süt!B17="","",Süt!B17) ->  | C17: =IF(Süt!C17="","",Süt!C17) ->  | D17: =Süt!D17 -> 0 | E17: =Süt!E17 -> 0 | F17: =Süt!F17 -> 0 | G17: P, % KM | I17: =(P Supplied/TotalDMFed)/10 -> 0.3083169578 | M17: 0 | P17: =IF(Süt!B19="","",IF(Süt!C19<=0,"",Süt!B19)) ->  | Q17: =IF(Süt!$B19="","",IF(Süt!$C19<=0,"",VLOOKUP($P17,$P$98:$CS$631,Q$30,FALSE))) ->  | R17: =IF(Süt!$B19="","",IF(Süt!$C19<=0,"",VLOOKUP($P17,$P$98:$CS$631,R$30,FALSE))) ->  | S17: =IF(Süt!$B19="","",IF(Süt!$C19<=0,"",VLOOKUP($P17,$P$98:$CS$631,S$30,FALSE))) ->  | T17: =IF(Süt!$B19="","",IF(Süt!$C19<=0,"",VLOOKUP($P17,$P$98:$CS$631,T$30,FALSE))) ->  | U17: =IF(Süt!$B19="","",IF(Süt!$C19<=0,"",VLOOKUP($P17,$P$98:$CS$631,U$30,FALSE))) ->  | V17: =IF(Süt!$B19="","",IF(Süt!$C19<=0,"",VLOOKUP($P17,$P$98:$CS$631,V$30,FALSE))) ->  | W17: =IF(Süt!$B19="","",IF(Süt!$C19<=0,"",VLOOKUP($P17,$P$98:$CS$631,W$30,FALSE))) ->  | X17: =IF(Süt!$B19="","",IF(Süt!$C19<=0,"",VLOOKUP($P17,$P$98:$CS$631,X$30,FALSE))) ->  | Y17: =IF(Süt!$B19="","",IF(Süt!$C19<=0,"",VLOOKUP($P17,$P$98:$CS$631,Y$30,FALSE))) ->  | Z17: =IF(Süt!$B19="","",IF(Süt!$C19<=0,"",VLOOKUP($P17,$P$98:$CS$631,Z$30,FALSE))) ->  | AA17: =IF(Süt!$B19="","",IF(Süt!$C19<=0,"",VLOOKUP($P17,$P$98:$CS$631,AA$30,FALSE))) ->  | AB17: =IF(Süt!$B19="","",IF(Süt!$C19<=0,"",VLOOKUP($P17,$P$98:$CS$631,AB$30,FALSE))) ->  | AC17: =IF(Süt!$B19="","",IF(Süt!$C19<=0,"",VLOOKUP($P17,$P$98:$CS$631,AC$30,FALSE))) ->  | AD17: =IF(Süt!$B19="","",IF(Süt!$C19<=0,"",VLOOKUP($P17,$P$98:$CS$631,AD$30,FALSE))) ->  | AE17: =IF(Süt!$B19="","",IF(Süt!$C19<=0,"",VLOOKUP($P17,$P$98:$CS$631,AE$30,FALSE))) ->  | AF17: =IF(Süt!$B19="","",IF(Süt!$C19<=0,"",VLOOKUP($P17,$P$98:$CS$631,AF$30,FALSE))) ->  | AG17: =IF(Süt!$B19="","",IF(Süt!$C19<=0,"",VLOOKUP($P17,$P$98:$CS$631,AG$30,FALSE))) ->  | AH17: =IF(Süt!$B19="","",IF(Süt!$C19<=0,"",VLOOKUP($P17,$P$98:$CS$631,AH$30,FALSE))) ->  | AI17: =IF(Süt!$B19="","",IF(Süt!$C19<=0,"",VLOOKUP($P17,$P$98:$CS$631,AI$30,FALSE))) ->  | AJ17: =IF(Süt!$B19="","",IF(Süt!$C19<=0,"",VLOOKUP($P17,$P$98:$CS$631,AJ$30,FALSE))) ->  | AK17: =IF(Süt!$B19="","",IF(Süt!$C19<=0,"",VLOOKUP($P17,$P$98:$CS$631,AK$30,FALSE))) ->  | AL17: =IF(Süt!$B19="","",IF(Süt!$C19<=0,"",VLOOKUP($P17,$P$98:$CS$631,AL$30,FALSE))) ->  | AM17: =IF(Süt!$B19="","",IF(Süt!$C19<=0,"",VLOOKUP($P17,$P$98:$CS$631,AM$30,FALSE))) ->  | AN17: =IF(Süt!$B19="","",IF(Süt!$C19<=0,"",VLOOKUP($P17,$P$98:$CS$631,AN$30,FALSE))) ->  | AO17: =IF(Süt!$B19="","",IF(Süt!$C19<=0,"",VLOOKUP($P17,$P$98:$CS$631,AO$30,FALSE))) ->  | AP17: =IF(Süt!$B19="","",IF(Süt!$C19<=0,"",VLOOKUP($P17,$P$98:$CS$631,AP$30,FALSE))) ->  | AQ17: =IF(Süt!$B19="","",IF(Süt!$C19<=0,"",VLOOKUP($P17,$P$98:$CS$631,AQ$30,FALSE))) ->  | AR17: =IF(Süt!$B19="","",IF(Süt!$C19<=0,"",VLOOKUP($P17,$P$98:$CS$631,AR$30,FALSE))) ->  | AS17: =IF(Süt!$B19="","",IF(Süt!$C19<=0,"",VLOOKUP($P17,$P$98:$CS$631,AS$30,FALSE))) ->  | AT17: =IF(Süt!$B19="","",IF(Süt!$C19<=0,"",VLOOKUP($P17,$P$98:$CS$631,AT$30,FALSE))) ->  | AU17: =IF(Süt!$B19="","",IF(Süt!$C19<=0,"",VLOOKUP($P17,$P$98:$CS$631,AU$30,FALSE))) ->  | AV17: =IF(Süt!$B19="","",IF(Süt!$C19<=0,"",VLOOKUP($P17,$P$98:$CS$631,AV$30,FALSE))) ->  | AW17: =IF(Süt!$B19="","",IF(Süt!$C19<=0,"",VLOOKUP($P17,$P$98:$CS$631,AW$30,FALSE))) ->  | AX17: =IF(Süt!$B19="","",IF(Süt!$C19<=0,"",VLOOKUP($P17,$P$98:$CS$631,AX$30,FALSE))) ->  | AY17: =IF(Süt!$B19="","",IF(Süt!$C19<=0,"",VLOOKUP($P17,$P$98:$CS$631,AY$30,FALSE))) ->  | AZ17: =IF(Süt!$B19="","",IF(Süt!$C19<=0,"",VLOOKUP($P17,$P$98:$CS$631,AZ$30,FALSE))) ->  | BA17: =IF(Süt!$B19="","",IF(Süt!$C19<=0,"",VLOOKUP($P17,$P$98:$CS$631,BA$30,FALSE))) ->  | BB17: =IF(Süt!$B19="","",IF(Süt!$C19<=0,"",VLOOKUP($P17,$P$98:$CS$631,BB$30,FALSE))) ->  | BC17: =IF(Süt!$B19="","",IF(Süt!$C19<=0,"",VLOOKUP($P17,$P$98:$CS$631,BC$30,FALSE))) ->  | BD17: =IF(Süt!$B19="","",IF(Süt!$C19<=0,"",VLOOKUP($P17,$P$98:$CS$631,BD$30,FALSE))) ->  | BE17: =IF(Süt!$B19="","",IF(Süt!$C19<=0,"",VLOOKUP($P17,$P$98:$CS$631,BE$30,FALSE))) ->  | BF17: =IF(Süt!$B19="","",IF(Süt!$C19<=0,"",VLOOKUP($P17,$P$98:$CS$631,BF$30,FALSE))) ->  | BG17: =IF(Süt!$B19="","",IF(Süt!$C19<=0,"",VLOOKUP($P17,$P$98:$CS$631,BG$30,FALSE))) ->  | BH17: =IF(Süt!$B19="","",IF(Süt!$C19<=0,"",VLOOKUP($P17,$P$98:$CS$631,BH$30,FALSE))) ->  | BI17: =IF(Süt!$B19="","",IF(Süt!$C19<=0,"",VLOOKUP($P17,$P$98:$CS$631,BI$30,FALSE))) ->  | BJ17: =IF(Süt!$B19="","",IF(Süt!$C19<=0,"",VLOOKUP($P17,$P$98:$CS$631,BJ$30,FALSE))) ->  | BK17: =IF(Süt!$B19="","",IF(Süt!$C19<=0,"",VLOOKUP($P17,$P$98:$CS$631,BK$30,FALSE))) ->  | BL17: =IF(Süt!$B19="","",IF(Süt!$C19<=0,"",VLOOKUP($P17,$P$98:$CS$631,BL$30,FALSE))) ->  | BM17: =IF(Süt!$B19="","",IF(Süt!$C19<=0,"",VLOOKUP($P17,$P$98:$CS$631,BM$30,FALSE))) ->  | BN17: =IF(Süt!$B19="","",IF(Süt!$C19<=0,"",VLOOKUP($P17,$P$98:$CS$631,BN$30,FALSE))) ->  | BO17: =IF(Süt!$B19="","",IF(Süt!$C19<=0,"",VLOOKUP($P17,$P$98:$CS$631,BO$30,FALSE))) ->  | BP17: =IF(Süt!$B19="","",IF(Süt!$C19<=0,"",VLOOKUP($P17,$P$98:$CS$631,BP$30,FALSE))) ->  | BQ17: =IF(Süt!$B19="","",IF(Süt!$C19<=0,"",VLOOKUP($P17,$P$98:$CS$631,BQ$30,FALSE))) ->  | BR17: =IF(Süt!$B19="","",IF(Süt!$C19<=0,"",VLOOKUP($P17,$P$98:$CS$631,BR$30,FALSE))) ->  | BS17: =IF(Süt!$B19="","",IF(Süt!$C19<=0,"",VLOOKUP($P17,$P$98:$CS$631,BS$30,FALSE))) ->  | BT17: =IF(Süt!$B19="","",IF(Süt!$C19<=0,"",VLOOKUP($P17,$P$98:$CS$631,BT$30,FALSE))) ->  | BU17: =IF(Süt!$B19="","",IF(Süt!$C19<=0,"",VLOOKUP($P17,$P$98:$CS$631,BU$30,FALSE))) ->  | BV17: =IF(Süt!$B19="","",IF(Süt!$C19<=0,"",VLOOKUP($P17,$P$98:$CS$631,BV$30,FALSE))) ->  | BW17: =IF(Süt!$B19="","",IF(Süt!$C19<=0,"",VLOOKUP($P17,$P$98:$CS$631,BW$30,FALSE))) ->  | BX17: =IF(Süt!$B19="","",IF(Süt!$C19<=0,"",VLOOKUP($P17,$P$98:$CS$631,BX$30,FALSE))) ->  | BY17: =IF(Süt!$B19="","",IF(Süt!$C19<=0,"",VLOOKUP($P17,$P$98:$CS$631,BY$30,FALSE))) ->  | BZ17: =IF(Süt!$B19="","",IF(Süt!$C19<=0,"",VLOOKUP($P17,$P$98:$CS$631,BZ$30,FALSE))) ->  | CA17: =IF(Süt!$B19="","",IF(Süt!$C19<=0,"",VLOOKUP($P17,$P$98:$CS$631,CA$30,FALSE))) ->  | CB17: =IF(Süt!$B19="","",IF(Süt!$C19<=0,"",VLOOKUP($P17,$P$98:$CS$631,CB$30,FALSE))) ->  | CC17: =IF(Süt!$B19="","",IF(Süt!$C19<=0,"",VLOOKUP($P17,$P$98:$CS$631,CC$30,FALSE))) ->  | CD17: =IF(Süt!$B19="","",IF(Süt!$C19<=0,"",VLOOKUP($P17,$P$98:$CS$631,CD$30,FALSE))) ->  | CE17: =IF(Süt!$B19="","",IF(Süt!$C19<=0,"",VLOOKUP($P17,$P$98:$CS$631,CE$30,FALSE))) ->  | CF17: =IF(Süt!$B19="","",IF(Süt!$C19<=0,"",VLOOKUP($P17,$P$98:$CS$631,CF$30,FALSE))) ->  | CG17: =IF(Süt!$B19="","",IF(Süt!$C19<=0,"",VLOOKUP($P17,$P$98:$CS$631,CG$30,FALSE))) ->  | CH17: =IF(Süt!$B19="","",IF(Süt!$C19<=0,"",VLOOKUP($P17,$P$98:$CS$631,CH$30,FALSE))) ->  | CI17: =IF(Süt!$B19="","",IF(Süt!$C19<=0,"",VLOOKUP($P17,$P$98:$CS$631,CI$30,FALSE))) ->  | CJ17: =IF(Süt!$B19="","",IF(Süt!$C19<=0,"",VLOOKUP($P17,$P$98:$CS$631,CJ$30,FALSE))) ->  | CK17: =IF(Süt!$B19="","",IF(Süt!$C19<=0,"",VLOOKUP($P17,$P$98:$CS$631,CK$30,FALSE))) ->  | CL17: =IF(Süt!$B19="","",IF(Süt!$C19<=0,"",VLOOKUP($P17,$P$98:$CS$631,CL$30,FALSE))) ->  | CM17: =IF(Süt!$B19="","",IF(Süt!$C19<=0,"",VLOOKUP($P17,$P$98:$CS$631,CM$30,FALSE))) ->  | CN17: =IF(Süt!$B19="","",IF(Süt!$C19<=0,"",VLOOKUP($P17,$P$98:$CS$631,CN$30,FALSE))) ->  | CO17: =IF(Süt!$B19="","",IF(Süt!$C19<=0,"",VLOOKUP($P17,$P$98:$CS$631,CO$30,FALSE))) ->  | CP17: =IF(Süt!$B19="","",IF(Süt!$C19<=0,"",VLOOKUP($P17,$P$98:$CS$631,CP$30,FALSE))) ->  | CQ17: =IF(Süt!$B19="","",IF(Süt!$C19<=0,"",VLOOKUP($P17,$P$98:$CS$631,CQ$30,FALSE))) ->  | CR17: =IF(Süt!$B19="","",IF(Süt!$C19<=0,"",VLOOKUP($P17,$P$98:$CS$631,CR$30,FALSE))) ->  | CS17: =IF(Süt!$B19="","",IF(Süt!$C19<=0,"",VLOOKUP($P17,$P$98:$CS$631,CS$30,FALSE))) ->  | CT17: 1 | CU17: 0.108 | CV17: 0.378 | CW17: YEn | CX17: =MilkEN * MilkProd -> 17.89158333 | CY17: Mcal/ Nel/kg, Sütte salgılanan günlük enerji
A18: =IF(Süt!A18="","",Süt!A18) ->  | B18: =IF(Süt!B18="","",Süt!B18) ->  | C18: =IF(Süt!C18="","",Süt!C18) ->  | D18: =Süt!D18 -> 0 | E18: =Süt!E18 -> 0 | F18: =Süt!F18 -> 0 | G18: Ca / P | H18: =IF(ISERROR(H14/H16)=TRUE,0,H14/H16) -> 1.138675926 | I18: =IF(ISERROR(I14/I16)=TRUE,0,I14/I16) -> 1.138184043 | J18: =IF(H18="","",IF(I18>(H18*1.5),"FAZLA",IF(I18<H18*0.99,"EKSİK","TAMAM"))) -> TAMAM | M18: 0 | P18: =IF(Süt!B20="","",IF(Süt!C20<=0,"",Süt!B20)) ->  | Q18: =IF(Süt!$B20="","",IF(Süt!$C20<=0,"",VLOOKUP($P18,$P$98:$CS$631,Q$30,FALSE))) ->  | R18: =IF(Süt!$B20="","",IF(Süt!$C20<=0,"",VLOOKUP($P18,$P$98:$CS$631,R$30,FALSE))) ->  | S18: =IF(Süt!$B20="","",IF(Süt!$C20<=0,"",VLOOKUP($P18,$P$98:$CS$631,S$30,FALSE))) ->  | T18: =IF(Süt!$B20="","",IF(Süt!$C20<=0,"",VLOOKUP($P18,$P$98:$CS$631,T$30,FALSE))) ->  | U18: =IF(Süt!$B20="","",IF(Süt!$C20<=0,"",VLOOKUP($P18,$P$98:$CS$631,U$30,FALSE))) ->  | V18: =IF(Süt!$B20="","",IF(Süt!$C20<=0,"",VLOOKUP($P18,$P$98:$CS$631,V$30,FALSE))) ->  | W18: =IF(Süt!$B20="","",IF(Süt!$C20<=0,"",VLOOKUP($P18,$P$98:$CS$631,W$30,FALSE))) ->  | X18: =IF(Süt!$B20="","",IF(Süt!$C20<=0,"",VLOOKUP($P18,$P$98:$CS$631,X$30,FALSE))) ->  | Y18: =IF(Süt!$B20="","",IF(Süt!$C20<=0,"",VLOOKUP($P18,$P$98:$CS$631,Y$30,FALSE))) ->  | Z18: =IF(Süt!$B20="","",IF(Süt!$C20<=0,"",VLOOKUP($P18,$P$98:$CS$631,Z$30,FALSE))) ->  | AA18: =IF(Süt!$B20="","",IF(Süt!$C20<=0,"",VLOOKUP($P18,$P$98:$CS$631,AA$30,FALSE))) ->  | AB18: =IF(Süt!$B20="","",IF(Süt!$C20<=0,"",VLOOKUP($P18,$P$98:$CS$631,AB$30,FALSE))) ->  | AC18: =IF(Süt!$B20="","",IF(Süt!$C20<=0,"",VLOOKUP($P18,$P$98:$CS$631,AC$30,FALSE))) ->  | AD18: =IF(Süt!$B20="","",IF(Süt!$C20<=0,"",VLOOKUP($P18,$P$98:$CS$631,AD$30,FALSE))) ->  | AE18: =IF(Süt!$B20="","",IF(Süt!$C20<=0,"",VLOOKUP($P18,$P$98:$CS$631,AE$30,FALSE))) ->  | AF18: =IF(Süt!$B20="","",IF(Süt!$C20<=0,"",VLOOKUP($P18,$P$98:$CS$631,AF$30,FALSE))) ->  | AG18: =IF(Süt!$B20="","",IF(Süt!$C20<=0,"",VLOOKUP($P18,$P$98:$CS$631,AG$30,FALSE))) ->  | AH18: =IF(Süt!$B20="","",IF(Süt!$C20<=0,"",VLOOKUP($P18,$P$98:$CS$631,AH$30,FALSE))) ->  | AI18: =IF(Süt!$B20="","",IF(Süt!$C20<=0,"",VLOOKUP($P18,$P$98:$CS$631,AI$30,FALSE))) ->  | AJ18: =IF(Süt!$B20="","",IF(Süt!$C20<=0,"",VLOOKUP($P18,$P$98:$CS$631,AJ$30,FALSE))) ->  | AK18: =IF(Süt!$B20="","",IF(Süt!$C20<=0,"",VLOOKUP($P18,$P$98:$CS$631,AK$30,FALSE))) ->  | AL18: =IF(Süt!$B20="","",IF(Süt!$C20<=0,"",VLOOKUP($P18,$P$98:$CS$631,AL$30,FALSE))) ->  | AM18: =IF(Süt!$B20="","",IF(Süt!$C20<=0,"",VLOOKUP($P18,$P$98:$CS$631,AM$30,FALSE))) ->  | AN18: =IF(Süt!$B20="","",IF(Süt!$C20<=0,"",VLOOKUP($P18,$P$98:$CS$631,AN$30,FALSE))) ->  | AO18: =IF(Süt!$B20="","",IF(Süt!$C20<=0,"",VLOOKUP($P18,$P$98:$CS$631,AO$30,FALSE))) ->  | AP18: =IF(Süt!$B20="","",IF(Süt!$C20<=0,"",VLOOKUP($P18,$P$98:$CS$631,AP$30,FALSE))) ->  | AQ18: =IF(Süt!$B20="","",IF(Süt!$C20<=0,"",VLOOKUP($P18,$P$98:$CS$631,AQ$30,FALSE))) ->  | AR18: =IF(Süt!$B20="","",IF(Süt!$C20<=0,"",VLOOKUP($P18,$P$98:$CS$631,AR$30,FALSE))) ->  | AS18: =IF(Süt!$B20="","",IF(Süt!$C20<=0,"",VLOOKUP($P18,$P$98:$CS$631,AS$30,FALSE))) ->  | AT18: =IF(Süt!$B20="","",IF(Süt!$C20<=0,"",VLOOKUP($P18,$P$98:$CS$631,AT$30,FALSE))) ->  | AU18: =IF(Süt!$B20="","",IF(Süt!$C20<=0,"",VLOOKUP($P18,$P$98:$CS$631,AU$30,FALSE))) ->  | AV18: =IF(Süt!$B20="","",IF(Süt!$C20<=0,"",VLOOKUP($P18,$P$98:$CS$631,AV$30,FALSE))) ->  | AW18: =IF(Süt!$B20="","",IF(Süt!$C20<=0,"",VLOOKUP($P18,$P$98:$CS$631,AW$30,FALSE))) ->  | AX18: =IF(Süt!$B20="","",IF(Süt!$C20<=0,"",VLOOKUP($P18,$P$98:$CS$631,AX$30,FALSE))) ->  | AY18: =IF(Süt!$B20="","",IF(Süt!$C20<=0,"",VLOOKUP($P18,$P$98:$CS$631,AY$30,FALSE))) ->  | AZ18: =IF(Süt!$B20="","",IF(Süt!$C20<=0,"",VLOOKUP($P18,$P$98:$CS$631,AZ$30,FALSE))) ->  | BA18: =IF(Süt!$B20="","",IF(Süt!$C20<=0,"",VLOOKUP($P18,$P$98:$CS$631,BA$30,FALSE))) ->  | BB18: =IF(Süt!$B20="","",IF(Süt!$C20<=0,"",VLOOKUP($P18,$P$98:$CS$631,BB$30,FALSE))) ->  | BC18: =IF(Süt!$B20="","",IF(Süt!$C20<=0,"",VLOOKUP($P18,$P$98:$CS$631,BC$30,FALSE))) ->  | BD18: =IF(Süt!$B20="","",IF(Süt!$C20<=0,"",VLOOKUP($P18,$P$98:$CS$631,BD$30,FALSE))) ->  | BE18: =IF(Süt!$B20="","",IF(Süt!$C20<=0,"",VLOOKUP($P18,$P$98:$CS$631,BE$30,FALSE))) ->  | BF18: =IF(Süt!$B20="","",IF(Süt!$C20<=0,"",VLOOKUP($P18,$P$98:$CS$631,BF$30,FALSE))) ->  | BG18: =IF(Süt!$B20="","",IF(Süt!$C20<=0,"",VLOOKUP($P18,$P$98:$CS$631,BG$30,FALSE))) ->  | BH18: =IF(Süt!$B20="","",IF(Süt!$C20<=0,"",VLOOKUP($P18,$P$98:$CS$631,BH$30,FALSE))) ->  | BI18: =IF(Süt!$B20="","",IF(Süt!$C20<=0,"",VLOOKUP($P18,$P$98:$CS$631,BI$30,FALSE))) ->  | BJ18: =IF(Süt!$B20="","",IF(Süt!$C20<=0,"",VLOOKUP($P18,$P$98:$CS$631,BJ$30,FALSE))) ->  | BK18: =IF(Süt!$B20="","",IF(Süt!$C20<=0,"",VLOOKUP($P18,$P$98:$CS$631,BK$30,FALSE))) ->  | BL18: =IF(Süt!$B20="","",IF(Süt!$C20<=0,"",VLOOKUP($P18,$P$98:$CS$631,BL$30,FALSE))) ->  | BM18: =IF(Süt!$B20="","",IF(Süt!$C20<=0,"",VLOOKUP($P18,$P$98:$CS$631,BM$30,FALSE))) ->  | BN18: =IF(Süt!$B20="","",IF(Süt!$C20<=0,"",VLOOKUP($P18,$P$98:$CS$631,BN$30,FALSE))) ->  | BO18: =IF(Süt!$B20="","",IF(Süt!$C20<=0,"",VLOOKUP($P18,$P$98:$CS$631,BO$30,FALSE))) ->  | BP18: =IF(Süt!$B20="","",IF(Süt!$C20<=0,"",VLOOKUP($P18,$P$98:$CS$631,BP$30,FALSE))) ->  | BQ18: =IF(Süt!$B20="","",IF(Süt!$C20<=0,"",VLOOKUP($P18,$P$98:$CS$631,BQ$30,FALSE))) ->  | BR18: =IF(Süt!$B20="","",IF(Süt!$C20<=0,"",VLOOKUP($P18,$P$98:$CS$631,BR$30,FALSE))) ->  | BS18: =IF(Süt!$B20="","",IF(Süt!$C20<=0,"",VLOOKUP($P18,$P$98:$CS$631,BS$30,FALSE))) ->  | BT18: =IF(Süt!$B20="","",IF(Süt!$C20<=0,"",VLOOKUP($P18,$P$98:$CS$631,BT$30,FALSE))) ->  | BU18: =IF(Süt!$B20="","",IF(Süt!$C20<=0,"",VLOOKUP($P18,$P$98:$CS$631,BU$30,FALSE))) ->  | BV18: =IF(Süt!$B20="","",IF(Süt!$C20<=0,"",VLOOKUP($P18,$P$98:$CS$631,BV$30,FALSE))) ->  | BW18: =IF(Süt!$B20="","",IF(Süt!$C20<=0,"",VLOOKUP($P18,$P$98:$CS$631,BW$30,FALSE))) ->  | BX18: =IF(Süt!$B20="","",IF(Süt!$C20<=0,"",VLOOKUP($P18,$P$98:$CS$631,BX$30,FALSE))) ->  | BY18: =IF(Süt!$B20="","",IF(Süt!$C20<=0,"",VLOOKUP($P18,$P$98:$CS$631,BY$30,FALSE))) ->  | BZ18: =IF(Süt!$B20="","",IF(Süt!$C20<=0,"",VLOOKUP($P18,$P$98:$CS$631,BZ$30,FALSE))) ->  | CA18: =IF(Süt!$B20="","",IF(Süt!$C20<=0,"",VLOOKUP($P18,$P$98:$CS$631,CA$30,FALSE))) ->  | CB18: =IF(Süt!$B20="","",IF(Süt!$C20<=0,"",VLOOKUP($P18,$P$98:$CS$631,CB$30,FALSE))) ->  | CC18: =IF(Süt!$B20="","",IF(Süt!$C20<=0,"",VLOOKUP($P18,$P$98:$CS$631,CC$30,FALSE))) ->  | CD18: =IF(Süt!$B20="","",IF(Süt!$C20<=0,"",VLOOKUP($P18,$P$98:$CS$631,CD$30,FALSE))) ->  | CE18: =IF(Süt!$B20="","",IF(Süt!$C20<=0,"",VLOOKUP($P18,$P$98:$CS$631,CE$30,FALSE))) ->  | CF18: =IF(Süt!$B20="","",IF(Süt!$C20<=0,"",VLOOKUP($P18,$P$98:$CS$631,CF$30,FALSE))) ->  | CG18: =IF(Süt!$B20="","",IF(Süt!$C20<=0,"",VLOOKUP($P18,$P$98:$CS$631,CG$30,FALSE))) ->  | CH18: =IF(Süt!$B20="","",IF(Süt!$C20<=0,"",VLOOKUP($P18,$P$98:$CS$631,CH$30,FALSE))) ->  | CI18: =IF(Süt!$B20="","",IF(Süt!$C20<=0,"",VLOOKUP($P18,$P$98:$CS$631,CI$30,FALSE))) ->  | CJ18: =IF(Süt!$B20="","",IF(Süt!$C20<=0,"",VLOOKUP($P18,$P$98:$CS$631,CJ$30,FALSE))) ->  | CK18: =IF(Süt!$B20="","",IF(Süt!$C20<=0,"",VLOOKUP($P18,$P$98:$CS$631,CK$30,FALSE))) ->  | CL18: =IF(Süt!$B20="","",IF(Süt!$C20<=0,"",VLOOKUP($P18,$P$98:$CS$631,CL$30,FALSE))) ->  | CM18: =IF(Süt!$B20="","",IF(Süt!$C20<=0,"",VLOOKUP($P18,$P$98:$CS$631,CM$30,FALSE))) ->  | CN18: =IF(Süt!$B20="","",IF(Süt!$C20<=0,"",VLOOKUP($P18,$P$98:$CS$631,CN$30,FALSE))) ->  | CO18: =IF(Süt!$B20="","",IF(Süt!$C20<=0,"",VLOOKUP($P18,$P$98:$CS$631,CO$30,FALSE))) ->  | CP18: =IF(Süt!$B20="","",IF(Süt!$C20<=0,"",VLOOKUP($P18,$P$98:$CS$631,CP$30,FALSE))) ->  | CQ18: =IF(Süt!$B20="","",IF(Süt!$C20<=0,"",VLOOKUP($P18,$P$98:$CS$631,CQ$30,FALSE))) ->  | CR18: =IF(Süt!$B20="","",IF(Süt!$C20<=0,"",VLOOKUP($P18,$P$98:$CS$631,CR$30,FALSE))) ->  | CS18: =IF(Süt!$B20="","",IF(Süt!$C20<=0,"",VLOOKUP($P18,$P$98:$CS$631,CS$30,FALSE))) ->  | CT18: 0 | CU18: 0.135 | CV18: 0.405 | CW18: NELact | CX18: =IF(MilkProd = 0,0,YEn) -> 17.89158333 | CY18: Mcal/gün, Laktasyon için net enerji ihtiyacı | DJ18: Merada Otluyor mu?
A19: =IF(Süt!A19="","",Süt!A19) ->  | B19: =IF(Süt!B19="","",Süt!B19) ->  | C19: =IF(Süt!C19="","",Süt!C19) ->  | D19: =Süt!D19 -> 0 | E19: =Süt!E19 -> 0 | F19: =Süt!F19 -> 0 | G19: NDF, % KM, enaz | H19: =NDFmin -> 25 | I19: =DietNDF*100 -> 42.1333482 | J19: =IF(H19="","",IF(I19<H19,"EKSİK","TAMAM")) -> TAMAM | M19: 0 | P19: =IF(Süt!B21="","",IF(Süt!C21<=0,"",Süt!B21)) ->  | Q19: =IF(Süt!$B21="","",IF(Süt!$C21<=0,"",VLOOKUP($P19,$P$98:$CS$631,Q$30,FALSE))) ->  | R19: =IF(Süt!$B21="","",IF(Süt!$C21<=0,"",VLOOKUP($P19,$P$98:$CS$631,R$30,FALSE))) ->  | S19: =IF(Süt!$B21="","",IF(Süt!$C21<=0,"",VLOOKUP($P19,$P$98:$CS$631,S$30,FALSE))) ->  | T19: =IF(Süt!$B21="","",IF(Süt!$C21<=0,"",VLOOKUP($P19,$P$98:$CS$631,T$30,FALSE))) ->  | U19: =IF(Süt!$B21="","",IF(Süt!$C21<=0,"",VLOOKUP($P19,$P$98:$CS$631,U$30,FALSE))) ->  | V19: =IF(Süt!$B21="","",IF(Süt!$C21<=0,"",VLOOKUP($P19,$P$98:$CS$631,V$30,FALSE))) ->  | W19: =IF(Süt!$B21="","",IF(Süt!$C21<=0,"",VLOOKUP($P19,$P$98:$CS$631,W$30,FALSE))) ->  | X19: =IF(Süt!$B21="","",IF(Süt!$C21<=0,"",VLOOKUP($P19,$P$98:$CS$631,X$30,FALSE))) ->  | Y19: =IF(Süt!$B21="","",IF(Süt!$C21<=0,"",VLOOKUP($P19,$P$98:$CS$631,Y$30,FALSE))) ->  | Z19: =IF(Süt!$B21="","",IF(Süt!$C21<=0,"",VLOOKUP($P19,$P$98:$CS$631,Z$30,FALSE))) ->  | AA19: =IF(Süt!$B21="","",IF(Süt!$C21<=0,"",VLOOKUP($P19,$P$98:$CS$631,AA$30,FALSE))) ->  | AB19: =IF(Süt!$B21="","",IF(Süt!$C21<=0,"",VLOOKUP($P19,$P$98:$CS$631,AB$30,FALSE))) ->  | AC19: =IF(Süt!$B21="","",IF(Süt!$C21<=0,"",VLOOKUP($P19,$P$98:$CS$631,AC$30,FALSE))) ->  | AD19: =IF(Süt!$B21="","",IF(Süt!$C21<=0,"",VLOOKUP($P19,$P$98:$CS$631,AD$30,FALSE))) ->  | AE19: =IF(Süt!$B21="","",IF(Süt!$C21<=0,"",VLOOKUP($P19,$P$98:$CS$631,AE$30,FALSE))) ->  | AF19: =IF(Süt!$B21="","",IF(Süt!$C21<=0,"",VLOOKUP($P19,$P$98:$CS$631,AF$30,FALSE))) ->  | AG19: =IF(Süt!$B21="","",IF(Süt!$C21<=0,"",VLOOKUP($P19,$P$98:$CS$631,AG$30,FALSE))) ->  | AH19: =IF(Süt!$B21="","",IF(Süt!$C21<=0,"",VLOOKUP($P19,$P$98:$CS$631,AH$30,FALSE))) ->  | AI19: =IF(Süt!$B21="","",IF(Süt!$C21<=0,"",VLOOKUP($P19,$P$98:$CS$631,AI$30,FALSE))) ->  | AJ19: =IF(Süt!$B21="","",IF(Süt!$C21<=0,"",VLOOKUP($P19,$P$98:$CS$631,AJ$30,FALSE))) ->  | AK19: =IF(Süt!$B21="","",IF(Süt!$C21<=0,"",VLOOKUP($P19,$P$98:$CS$631,AK$30,FALSE))) ->  | AL19: =IF(Süt!$B21="","",IF(Süt!$C21<=0,"",VLOOKUP($P19,$P$98:$CS$631,AL$30,FALSE))) ->  | AM19: =IF(Süt!$B21="","",IF(Süt!$C21<=0,"",VLOOKUP($P19,$P$98:$CS$631,AM$30,FALSE))) ->  | AN19: =IF(Süt!$B21="","",IF(Süt!$C21<=0,"",VLOOKUP($P19,$P$98:$CS$631,AN$30,FALSE))) ->  | AO19: =IF(Süt!$B21="","",IF(Süt!$C21<=0,"",VLOOKUP($P19,$P$98:$CS$631,AO$30,FALSE))) ->  | AP19: =IF(Süt!$B21="","",IF(Süt!$C21<=0,"",VLOOKUP($P19,$P$98:$CS$631,AP$30,FALSE))) ->  | AQ19: =IF(Süt!$B21="","",IF(Süt!$C21<=0,"",VLOOKUP($P19,$P$98:$CS$631,AQ$30,FALSE))) ->  | AR19: =IF(Süt!$B21="","",IF(Süt!$C21<=0,"",VLOOKUP($P19,$P$98:$CS$631,AR$30,FALSE))) ->  | AS19: =IF(Süt!$B21="","",IF(Süt!$C21<=0,"",VLOOKUP($P19,$P$98:$CS$631,AS$30,FALSE))) ->  | AT19: =IF(Süt!$B21="","",IF(Süt!$C21<=0,"",VLOOKUP($P19,$P$98:$CS$631,AT$30,FALSE))) ->  | AU19: =IF(Süt!$B21="","",IF(Süt!$C21<=0,"",VLOOKUP($P19,$P$98:$CS$631,AU$30,FALSE))) ->  | AV19: =IF(Süt!$B21="","",IF(Süt!$C21<=0,"",VLOOKUP($P19,$P$98:$CS$631,AV$30,FALSE))) ->  | AW19: =IF(Süt!$B21="","",IF(Süt!$C21<=0,"",VLOOKUP($P19,$P$98:$CS$631,AW$30,FALSE))) ->  | AX19: =IF(Süt!$B21="","",IF(Süt!$C21<=0,"",VLOOKUP($P19,$P$98:$CS$631,AX$30,FALSE))) ->  | AY19: =IF(Süt!$B21="","",IF(Süt!$C21<=0,"",VLOOKUP($P19,$P$98:$CS$631,AY$30,FALSE))) ->  | AZ19: =IF(Süt!$B21="","",IF(Süt!$C21<=0,"",VLOOKUP($P19,$P$98:$CS$631,AZ$30,FALSE))) ->  | BA19: =IF(Süt!$B21="","",IF(Süt!$C21<=0,"",VLOOKUP($P19,$P$98:$CS$631,BA$30,FALSE))) ->  | BB19: =IF(Süt!$B21="","",IF(Süt!$C21<=0,"",VLOOKUP($P19,$P$98:$CS$631,BB$30,FALSE))) ->  | BC19: =IF(Süt!$B21="","",IF(Süt!$C21<=0,"",VLOOKUP($P19,$P$98:$CS$631,BC$30,FALSE))) ->  | BD19: =IF(Süt!$B21="","",IF(Süt!$C21<=0,"",VLOOKUP($P19,$P$98:$CS$631,BD$30,FALSE))) ->  | BE19: =IF(Süt!$B21="","",IF(Süt!$C21<=0,"",VLOOKUP($P19,$P$98:$CS$631,BE$30,FALSE))) ->  | BF19: =IF(Süt!$B21="","",IF(Süt!$C21<=0,"",VLOOKUP($P19,$P$98:$CS$631,BF$30,FALSE))) ->  | BG19: =IF(Süt!$B21="","",IF(Süt!$C21<=0,"",VLOOKUP($P19,$P$98:$CS$631,BG$30,FALSE))) ->  | BH19: =IF(Süt!$B21="","",IF(Süt!$C21<=0,"",VLOOKUP($P19,$P$98:$CS$631,BH$30,FALSE))) ->  | BI19: =IF(Süt!$B21="","",IF(Süt!$C21<=0,"",VLOOKUP($P19,$P$98:$CS$631,BI$30,FALSE))) ->  | BJ19: =IF(Süt!$B21="","",IF(Süt!$C21<=0,"",VLOOKUP($P19,$P$98:$CS$631,BJ$30,FALSE))) ->  | BK19: =IF(Süt!$B21="","",IF(Süt!$C21<=0,"",VLOOKUP($P19,$P$98:$CS$631,BK$30,FALSE))) ->  | BL19: =IF(Süt!$B21="","",IF(Süt!$C21<=0,"",VLOOKUP($P19,$P$98:$CS$631,BL$30,FALSE))) ->  | BM19: =IF(Süt!$B21="","",IF(Süt!$C21<=0,"",VLOOKUP($P19,$P$98:$CS$631,BM$30,FALSE))) ->  | BN19: =IF(Süt!$B21="","",IF(Süt!$C21<=0,"",VLOOKUP($P19,$P$98:$CS$631,BN$30,FALSE))) ->  | BO19: =IF(Süt!$B21="","",IF(Süt!$C21<=0,"",VLOOKUP($P19,$P$98:$CS$631,BO$30,FALSE))) ->  | BP19: =IF(Süt!$B21="","",IF(Süt!$C21<=0,"",VLOOKUP($P19,$P$98:$CS$631,BP$30,FALSE))) ->  | BQ19: =IF(Süt!$B21="","",IF(Süt!$C21<=0,"",VLOOKUP($P19,$P$98:$CS$631,BQ$30,FALSE))) ->  | BR19: =IF(Süt!$B21="","",IF(Süt!$C21<=0,"",VLOOKUP($P19,$P$98:$CS$631,BR$30,FALSE))) ->  | BS19: =IF(Süt!$B21="","",IF(Süt!$C21<=0,"",VLOOKUP($P19,$P$98:$CS$631,BS$30,FALSE))) ->  | BT19: =IF(Süt!$B21="","",IF(Süt!$C21<=0,"",VLOOKUP($P19,$P$98:$CS$631,BT$30,FALSE))) ->  | BU19: =IF(Süt!$B21="","",IF(Süt!$C21<=0,"",VLOOKUP($P19,$P$98:$CS$631,BU$30,FALSE))) ->  | BV19: =IF(Süt!$B21="","",IF(Süt!$C21<=0,"",VLOOKUP($P19,$P$98:$CS$631,BV$30,FALSE))) ->  | BW19: =IF(Süt!$B21="","",IF(Süt!$C21<=0,"",VLOOKUP($P19,$P$98:$CS$631,BW$30,FALSE))) ->  | BX19: =IF(Süt!$B21="","",IF(Süt!$C21<=0,"",VLOOKUP($P19,$P$98:$CS$631,BX$30,FALSE))) ->  | BY19: =IF(Süt!$B21="","",IF(Süt!$C21<=0,"",VLOOKUP($P19,$P$98:$CS$631,BY$30,FALSE))) ->  | BZ19: =IF(Süt!$B21="","",IF(Süt!$C21<=0,"",VLOOKUP($P19,$P$98:$CS$631,BZ$30,FALSE))) ->  | CA19: =IF(Süt!$B21="","",IF(Süt!$C21<=0,"",VLOOKUP($P19,$P$98:$CS$631,CA$30,FALSE))) ->  | CB19: =IF(Süt!$B21="","",IF(Süt!$C21<=0,"",VLOOKUP($P19,$P$98:$CS$631,CB$30,FALSE))) ->  | CC19: =IF(Süt!$B21="","",IF(Süt!$C21<=0,"",VLOOKUP($P19,$P$98:$CS$631,CC$30,FALSE))) ->  | CD19: =IF(Süt!$B21="","",IF(Süt!$C21<=0,"",VLOOKUP($P19,$P$98:$CS$631,CD$30,FALSE))) ->  | CE19: =IF(Süt!$B21="","",IF(Süt!$C21<=0,"",VLOOKUP($P19,$P$98:$CS$631,CE$30,FALSE))) ->  | CF19: =IF(Süt!$B21="","",IF(Süt!$C21<=0,"",VLOOKUP($P19,$P$98:$CS$631,CF$30,FALSE))) ->  | CG19: =IF(Süt!$B21="","",IF(Süt!$C21<=0,"",VLOOKUP($P19,$P$98:$CS$631,CG$30,FALSE))) ->  | CH19: =IF(Süt!$B21="","",IF(Süt!$C21<=0,"",VLOOKUP($P19,$P$98:$CS$631,CH$30,FALSE))) ->  | CI19: =IF(Süt!$B21="","",IF(Süt!$C21<=0,"",VLOOKUP($P19,$P$98:$CS$631,CI$30,FALSE))) ->  | CJ19: =IF(Süt!$B21="","",IF(Süt!$C21<=0,"",VLOOKUP($P19,$P$98:$CS$631,CJ$30,FALSE))) ->  | CK19: =IF(Süt!$B21="","",IF(Süt!$C21<=0,"",VLOOKUP($P19,$P$98:$CS$631,CK$30,FALSE))) ->  | CL19: =IF(Süt!$B21="","",IF(Süt!$C21<=0,"",VLOOKUP($P19,$P$98:$CS$631,CL$30,FALSE))) ->  | CM19: =IF(Süt!$B21="","",IF(Süt!$C21<=0,"",VLOOKUP($P19,$P$98:$CS$631,CM$30,FALSE))) ->  | CN19: =IF(Süt!$B21="","",IF(Süt!$C21<=0,"",VLOOKUP($P19,$P$98:$CS$631,CN$30,FALSE))) ->  | CO19: =IF(Süt!$B21="","",IF(Süt!$C21<=0,"",VLOOKUP($P19,$P$98:$CS$631,CO$30,FALSE))) ->  | CP19: =IF(Süt!$B21="","",IF(Süt!$C21<=0,"",VLOOKUP($P19,$P$98:$CS$631,CP$30,FALSE))) ->  | CQ19: =IF(Süt!$B21="","",IF(Süt!$C21<=0,"",VLOOKUP($P19,$P$98:$CS$631,CQ$30,FALSE))) ->  | CR19: =IF(Süt!$B21="","",IF(Süt!$C21<=0,"",VLOOKUP($P19,$P$98:$CS$631,CR$30,FALSE))) ->  | CS19: =IF(Süt!$B21="","",IF(Süt!$C21<=0,"",VLOOKUP($P19,$P$98:$CS$631,CS$30,FALSE))) ->  | CT19: =CT18-1 -> -1 | CU19: 0.162 | CV19: 0.432 | CW19: YProtn | CX19: =IF(MilkProd = 0,0,MilkProd * (MilkTrueProtein / 100)) -> 0.775 | CY19: kg/day, Laktasyonun mevcut durumunda günlük süt proteini verimi | DJ19: Otluyor
A20: =IF(Süt!A20="","",Süt!A20) ->  | B20: =IF(Süt!B20="","",Süt!B20) ->  | C20: =IF(Süt!C20="","",Süt!C20) ->  | D20: =Süt!D20 -> 0 | E20: =Süt!E20 -> 0 | F20: =Süt!F20 -> 0 | G20: Kaba yem NDF, % KM, enaz | H20: =P90 -> 19 | I20: =ForageNDF/TotalDMFed*100 -> 36.17797592 | J20: =IF(H20="","",IF(I20<H20,"EKSİK","TAMAM")) -> TAMAM | M20: 0 | P20: =IF(Süt!B22="","",IF(Süt!C22<=0,"",Süt!B22)) ->  | Q20: =IF(Süt!$B22="","",IF(Süt!$C22<=0,"",VLOOKUP($P20,$P$98:$CS$631,Q$30,FALSE))) ->  | R20: =IF(Süt!$B22="","",IF(Süt!$C22<=0,"",VLOOKUP($P20,$P$98:$CS$631,R$30,FALSE))) ->  | S20: =IF(Süt!$B22="","",IF(Süt!$C22<=0,"",VLOOKUP($P20,$P$98:$CS$631,S$30,FALSE))) ->  | T20: =IF(Süt!$B22="","",IF(Süt!$C22<=0,"",VLOOKUP($P20,$P$98:$CS$631,T$30,FALSE))) ->  | U20: =IF(Süt!$B22="","",IF(Süt!$C22<=0,"",VLOOKUP($P20,$P$98:$CS$631,U$30,FALSE))) ->  | V20: =IF(Süt!$B22="","",IF(Süt!$C22<=0,"",VLOOKUP($P20,$P$98:$CS$631,V$30,FALSE))) ->  | W20: =IF(Süt!$B22="","",IF(Süt!$C22<=0,"",VLOOKUP($P20,$P$98:$CS$631,W$30,FALSE))) ->  | X20: =IF(Süt!$B22="","",IF(Süt!$C22<=0,"",VLOOKUP($P20,$P$98:$CS$631,X$30,FALSE))) ->  | Y20: =IF(Süt!$B22="","",IF(Süt!$C22<=0,"",VLOOKUP($P20,$P$98:$CS$631,Y$30,FALSE))) ->  | Z20: =IF(Süt!$B22="","",IF(Süt!$C22<=0,"",VLOOKUP($P20,$P$98:$CS$631,Z$30,FALSE))) ->  | AA20: =IF(Süt!$B22="","",IF(Süt!$C22<=0,"",VLOOKUP($P20,$P$98:$CS$631,AA$30,FALSE))) ->  | AB20: =IF(Süt!$B22="","",IF(Süt!$C22<=0,"",VLOOKUP($P20,$P$98:$CS$631,AB$30,FALSE))) ->  | AC20: =IF(Süt!$B22="","",IF(Süt!$C22<=0,"",VLOOKUP($P20,$P$98:$CS$631,AC$30,FALSE))) ->  | AD20: =IF(Süt!$B22="","",IF(Süt!$C22<=0,"",VLOOKUP($P20,$P$98:$CS$631,AD$30,FALSE))) ->  | AE20: =IF(Süt!$B22="","",IF(Süt!$C22<=0,"",VLOOKUP($P20,$P$98:$CS$631,AE$30,FALSE))) ->  | AF20: =IF(Süt!$B22="","",IF(Süt!$C22<=0,"",VLOOKUP($P20,$P$98:$CS$631,AF$30,FALSE))) ->  | AG20: =IF(Süt!$B22="","",IF(Süt!$C22<=0,"",VLOOKUP($P20,$P$98:$CS$631,AG$30,FALSE))) ->  | AH20: =IF(Süt!$B22="","",IF(Süt!$C22<=0,"",VLOOKUP($P20,$P$98:$CS$631,AH$30,FALSE))) ->  | AI20: =IF(Süt!$B22="","",IF(Süt!$C22<=0,"",VLOOKUP($P20,$P$98:$CS$631,AI$30,FALSE))) ->  | AJ20: =IF(Süt!$B22="","",IF(Süt!$C22<=0,"",VLOOKUP($P20,$P$98:$CS$631,AJ$30,FALSE))) ->  | AK20: =IF(Süt!$B22="","",IF(Süt!$C22<=0,"",VLOOKUP($P20,$P$98:$CS$631,AK$30,FALSE))) ->  | AL20: =IF(Süt!$B22="","",IF(Süt!$C22<=0,"",VLOOKUP($P20,$P$98:$CS$631,AL$30,FALSE))) ->  | AM20: =IF(Süt!$B22="","",IF(Süt!$C22<=0,"",VLOOKUP($P20,$P$98:$CS$631,AM$30,FALSE))) ->  | AN20: =IF(Süt!$B22="","",IF(Süt!$C22<=0,"",VLOOKUP($P20,$P$98:$CS$631,AN$30,FALSE))) ->  | AO20: =IF(Süt!$B22="","",IF(Süt!$C22<=0,"",VLOOKUP($P20,$P$98:$CS$631,AO$30,FALSE))) ->  | AP20: =IF(Süt!$B22="","",IF(Süt!$C22<=0,"",VLOOKUP($P20,$P$98:$CS$631,AP$30,FALSE))) ->  | AQ20: =IF(Süt!$B22="","",IF(Süt!$C22<=0,"",VLOOKUP($P20,$P$98:$CS$631,AQ$30,FALSE))) ->  | AR20: =IF(Süt!$B22="","",IF(Süt!$C22<=0,"",VLOOKUP($P20,$P$98:$CS$631,AR$30,FALSE))) ->  | AS20: =IF(Süt!$B22="","",IF(Süt!$C22<=0,"",VLOOKUP($P20,$P$98:$CS$631,AS$30,FALSE))) ->  | AT20: =IF(Süt!$B22="","",IF(Süt!$C22<=0,"",VLOOKUP($P20,$P$98:$CS$631,AT$30,FALSE))) ->  | AU20: =IF(Süt!$B22="","",IF(Süt!$C22<=0,"",VLOOKUP($P20,$P$98:$CS$631,AU$30,FALSE))) ->  | AV20: =IF(Süt!$B22="","",IF(Süt!$C22<=0,"",VLOOKUP($P20,$P$98:$CS$631,AV$30,FALSE))) ->  | AW20: =IF(Süt!$B22="","",IF(Süt!$C22<=0,"",VLOOKUP($P20,$P$98:$CS$631,AW$30,FALSE))) ->  | AX20: =IF(Süt!$B22="","",IF(Süt!$C22<=0,"",VLOOKUP($P20,$P$98:$CS$631,AX$30,FALSE))) ->  | AY20: =IF(Süt!$B22="","",IF(Süt!$C22<=0,"",VLOOKUP($P20,$P$98:$CS$631,AY$30,FALSE))) ->  | AZ20: =IF(Süt!$B22="","",IF(Süt!$C22<=0,"",VLOOKUP($P20,$P$98:$CS$631,AZ$30,FALSE))) ->  | BA20: =IF(Süt!$B22="","",IF(Süt!$C22<=0,"",VLOOKUP($P20,$P$98:$CS$631,BA$30,FALSE))) ->  | BB20: =IF(Süt!$B22="","",IF(Süt!$C22<=0,"",VLOOKUP($P20,$P$98:$CS$631,BB$30,FALSE))) ->  | BC20: =IF(Süt!$B22="","",IF(Süt!$C22<=0,"",VLOOKUP($P20,$P$98:$CS$631,BC$30,FALSE))) ->  | BD20: =IF(Süt!$B22="","",IF(Süt!$C22<=0,"",VLOOKUP($P20,$P$98:$CS$631,BD$30,FALSE))) ->  | BE20: =IF(Süt!$B22="","",IF(Süt!$C22<=0,"",VLOOKUP($P20,$P$98:$CS$631,BE$30,FALSE))) ->  | BF20: =IF(Süt!$B22="","",IF(Süt!$C22<=0,"",VLOOKUP($P20,$P$98:$CS$631,BF$30,FALSE))) ->  | BG20: =IF(Süt!$B22="","",IF(Süt!$C22<=0,"",VLOOKUP($P20,$P$98:$CS$631,BG$30,FALSE))) ->  | BH20: =IF(Süt!$B22="","",IF(Süt!$C22<=0,"",VLOOKUP($P20,$P$98:$CS$631,BH$30,FALSE))) ->  | BI20: =IF(Süt!$B22="","",IF(Süt!$C22<=0,"",VLOOKUP($P20,$P$98:$CS$631,BI$30,FALSE))) ->  | BJ20: =IF(Süt!$B22="","",IF(Süt!$C22<=0,"",VLOOKUP($P20,$P$98:$CS$631,BJ$30,FALSE))) ->  | BK20: =IF(Süt!$B22="","",IF(Süt!$C22<=0,"",VLOOKUP($P20,$P$98:$CS$631,BK$30,FALSE))) ->  | BL20: =IF(Süt!$B22="","",IF(Süt!$C22<=0,"",VLOOKUP($P20,$P$98:$CS$631,BL$30,FALSE))) ->  | BM20: =IF(Süt!$B22="","",IF(Süt!$C22<=0,"",VLOOKUP($P20,$P$98:$CS$631,BM$30,FALSE))) ->  | BN20: =IF(Süt!$B22="","",IF(Süt!$C22<=0,"",VLOOKUP($P20,$P$98:$CS$631,BN$30,FALSE))) ->  | BO20: =IF(Süt!$B22="","",IF(Süt!$C22<=0,"",VLOOKUP($P20,$P$98:$CS$631,BO$30,FALSE))) ->  | BP20: =IF(Süt!$B22="","",IF(Süt!$C22<=0,"",VLOOKUP($P20,$P$98:$CS$631,BP$30,FALSE))) ->  | BQ20: =IF(Süt!$B22="","",IF(Süt!$C22<=0,"",VLOOKUP($P20,$P$98:$CS$631,BQ$30,FALSE))) ->  | BR20: =IF(Süt!$B22="","",IF(Süt!$C22<=0,"",VLOOKUP($P20,$P$98:$CS$631,BR$30,FALSE))) ->  | BS20: =IF(Süt!$B22="","",IF(Süt!$C22<=0,"",VLOOKUP($P20,$P$98:$CS$631,BS$30,FALSE))) ->  | BT20: =IF(Süt!$B22="","",IF(Süt!$C22<=0,"",VLOOKUP($P20,$P$98:$CS$631,BT$30,FALSE))) ->  | BU20: =IF(Süt!$B22="","",IF(Süt!$C22<=0,"",VLOOKUP($P20,$P$98:$CS$631,BU$30,FALSE))) ->  | BV20: =IF(Süt!$B22="","",IF(Süt!$C22<=0,"",VLOOKUP($P20,$P$98:$CS$631,BV$30,FALSE))) ->  | BW20: =IF(Süt!$B22="","",IF(Süt!$C22<=0,"",VLOOKUP($P20,$P$98:$CS$631,BW$30,FALSE))) ->  | BX20: =IF(Süt!$B22="","",IF(Süt!$C22<=0,"",VLOOKUP($P20,$P$98:$CS$631,BX$30,FALSE))) ->  | BY20: =IF(Süt!$B22="","",IF(Süt!$C22<=0,"",VLOOKUP($P20,$P$98:$CS$631,BY$30,FALSE))) ->  | BZ20: =IF(Süt!$B22="","",IF(Süt!$C22<=0,"",VLOOKUP($P20,$P$98:$CS$631,BZ$30,FALSE))) ->  | CA20: =IF(Süt!$B22="","",IF(Süt!$C22<=0,"",VLOOKUP($P20,$P$98:$CS$631,CA$30,FALSE))) ->  | CB20: =IF(Süt!$B22="","",IF(Süt!$C22<=0,"",VLOOKUP($P20,$P$98:$CS$631,CB$30,FALSE))) ->  | CC20: =IF(Süt!$B22="","",IF(Süt!$C22<=0,"",VLOOKUP($P20,$P$98:$CS$631,CC$30,FALSE))) ->  | CD20: =IF(Süt!$B22="","",IF(Süt!$C22<=0,"",VLOOKUP($P20,$P$98:$CS$631,CD$30,FALSE))) ->  | CE20: =IF(Süt!$B22="","",IF(Süt!$C22<=0,"",VLOOKUP($P20,$P$98:$CS$631,CE$30,FALSE))) ->  | CF20: =IF(Süt!$B22="","",IF(Süt!$C22<=0,"",VLOOKUP($P20,$P$98:$CS$631,CF$30,FALSE))) ->  | CG20: =IF(Süt!$B22="","",IF(Süt!$C22<=0,"",VLOOKUP($P20,$P$98:$CS$631,CG$30,FALSE))) ->  | CH20: =IF(Süt!$B22="","",IF(Süt!$C22<=0,"",VLOOKUP($P20,$P$98:$CS$631,CH$30,FALSE))) ->  | CI20: =IF(Süt!$B22="","",IF(Süt!$C22<=0,"",VLOOKUP($P20,$P$98:$CS$631,CI$30,FALSE))) ->  | CJ20: =IF(Süt!$B22="","",IF(Süt!$C22<=0,"",VLOOKUP($P20,$P$98:$CS$631,CJ$30,FALSE))) ->  | CK20: =IF(Süt!$B22="","",IF(Süt!$C22<=0,"",VLOOKUP($P20,$P$98:$CS$631,CK$30,FALSE))) ->  | CL20: =IF(Süt!$B22="","",IF(Süt!$C22<=0,"",VLOOKUP($P20,$P$98:$CS$631,CL$30,FALSE))) ->  | CM20: =IF(Süt!$B22="","",IF(Süt!$C22<=0,"",VLOOKUP($P20,$P$98:$CS$631,CM$30,FALSE))) ->  | CN20: =IF(Süt!$B22="","",IF(Süt!$C22<=0,"",VLOOKUP($P20,$P$98:$CS$631,CN$30,FALSE))) ->  | CO20: =IF(Süt!$B22="","",IF(Süt!$C22<=0,"",VLOOKUP($P20,$P$98:$CS$631,CO$30,FALSE))) ->  | CP20: =IF(Süt!$B22="","",IF(Süt!$C22<=0,"",VLOOKUP($P20,$P$98:$CS$631,CP$30,FALSE))) ->  | CQ20: =IF(Süt!$B22="","",IF(Süt!$C22<=0,"",VLOOKUP($P20,$P$98:$CS$631,CQ$30,FALSE))) ->  | CR20: =IF(Süt!$B22="","",IF(Süt!$C22<=0,"",VLOOKUP($P20,$P$98:$CS$631,CR$30,FALSE))) ->  | CS20: =IF(Süt!$B22="","",IF(Süt!$C22<=0,"",VLOOKUP($P20,$P$98:$CS$631,CS$30,FALSE))) ->  | CT20: -2 | CU20: 0.189 | CV20: 0.459 | CW20: YFatn | CX20: =IF(MilkProd = 0,0,MilkProd * (MilkFat / 100)) -> 0.925 | CY20: kg/day, Laktasyonun mevcut durumunda günlük süt yağı verimi | DJ20: Otlamıyor
A21: =IF(Süt!A21="","",Süt!A21) ->  | B21: =IF(Süt!B21="","",Süt!B21) ->  | C21: =IF(Süt!C21="","",Süt!C21) ->  | D21: =Süt!D21 -> 0 | E21: =Süt!E21 -> 0 | F21: =Süt!F21 -> 0 | G21: ADF, % KM, enaz | H21: =ADFmin -> 17 | I21: =DietADF*100 -> 27.10112948 | J21: =IF(H21="","",IF(I21<H21,"EKSİK","TAMAM")) -> TAMAM | M21: 0 | O21: 0.08 | P21: =IF(Süt!B23="","",IF(Süt!C23<=0,"",Süt!B23)) -> Mermer tozu | Q21: =IF(Süt!$B23="","",IF(Süt!$C23<=0,"",VLOOKUP($P21,$P$98:$CS$631,Q$30,FALSE))) -> 0 | R21: =IF(Süt!$B23="","",IF(Süt!$C23<=0,"",VLOOKUP($P21,$P$98:$CS$631,R$30,FALSE))) -> 0 | S21: =IF(Süt!$B23="","",IF(Süt!$C23<=0,"",VLOOKUP($P21,$P$98:$CS$631,S$30,FALSE))) -> 0 | T21: =IF(Süt!$B23="","",IF(Süt!$C23<=0,"",VLOOKUP($P21,$P$98:$CS$631,T$30,FALSE))) -> 0 | U21: =IF(Süt!$B23="","",IF(Süt!$C23<=0,"",VLOOKUP($P21,$P$98:$CS$631,U$30,FALSE))) -> 0 | V21: =IF(Süt!$B23="","",IF(Süt!$C23<=0,"",VLOOKUP($P21,$P$98:$CS$631,V$30,FALSE))) -> 0 | W21: =IF(Süt!$B23="","",IF(Süt!$C23<=0,"",VLOOKUP($P21,$P$98:$CS$631,W$30,FALSE))) -> 0 | X21: =IF(Süt!$B23="","",IF(Süt!$C23<=0,"",VLOOKUP($P21,$P$98:$CS$631,X$30,FALSE))) -> 0 | Y21: =IF(Süt!$B23="","",IF(Süt!$C23<=0,"",VLOOKUP($P21,$P$98:$CS$631,Y$30,FALSE))) -> 0 | Z21: =IF(Süt!$B23="","",IF(Süt!$C23<=0,"",VLOOKUP($P21,$P$98:$CS$631,Z$30,FALSE))) -> 0 | AA21: =IF(Süt!$B23="","",IF(Süt!$C23<=0,"",VLOOKUP($P21,$P$98:$CS$631,AA$30,FALSE))) -> 100 | AB21: =IF(Süt!$B23="","",IF(Süt!$C23<=0,"",VLOOKUP($P21,$P$98:$CS$631,AB$30,FALSE))) -> 0 | AC21: =IF(Süt!$B23="","",IF(Süt!$C23<=0,"",VLOOKUP($P21,$P$98:$CS$631,AC$30,FALSE))) -> 0 | AD21: =IF(Süt!$B23="","",IF(Süt!$C23<=0,"",VLOOKUP($P21,$P$98:$CS$631,AD$30,FALSE))) -> 0 | AE21: =IF(Süt!$B23="","",IF(Süt!$C23<=0,"",VLOOKUP($P21,$P$98:$CS$631,AE$30,FALSE))) -> 0 | AF21: =IF(Süt!$B23="","",IF(Süt!$C23<=0,"",VLOOKUP($P21,$P$98:$CS$631,AF$30,FALSE))) -> 0 | AG21: =IF(Süt!$B23="","",IF(Süt!$C23<=0,"",VLOOKUP($P21,$P$98:$CS$631,AG$30,FALSE))) -> 0 | AH21: =IF(Süt!$B23="","",IF(Süt!$C23<=0,"",VLOOKUP($P21,$P$98:$CS$631,AH$30,FALSE))) -> 0 | AI21: =IF(Süt!$B23="","",IF(Süt!$C23<=0,"",VLOOKUP($P21,$P$98:$CS$631,AI$30,FALSE))) -> 0 | AJ21: =IF(Süt!$B23="","",IF(Süt!$C23<=0,"",VLOOKUP($P21,$P$98:$CS$631,AJ$30,FALSE))) -> 0 | AK21: =IF(Süt!$B23="","",IF(Süt!$C23<=0,"",VLOOKUP($P21,$P$98:$CS$631,AK$30,FALSE))) -> 0 | AL21: =IF(Süt!$B23="","",IF(Süt!$C23<=0,"",VLOOKUP($P21,$P$98:$CS$631,AL$30,FALSE))) -> 100 | AM21: =IF(Süt!$B23="","",IF(Süt!$C23<=0,"",VLOOKUP($P21,$P$98:$CS$631,AM$30,FALSE))) -> Conc | AN21: =IF(Süt!$B23="","",IF(Süt!$C23<=0,"",VLOOKUP($P21,$P$98:$CS$631,AN$30,FALSE))) -> Calf Feed-Vit/Min | AO21: =IF(Süt!$B23="","",IF(Süt!$C23<=0,"",VLOOKUP($P21,$P$98:$CS$631,AO$30,FALSE))) -> 0 | AP21: =IF(Süt!$B23="","",IF(Süt!$C23<=0,"",VLOOKUP($P21,$P$98:$CS$631,AP$30,FALSE))) -> 0.5 | AQ21: =IF(Süt!$B23="","",IF(Süt!$C23<=0,"",VLOOKUP($P21,$P$98:$CS$631,AQ$30,FALSE))) -> 0 | AR21: =IF(Süt!$B23="","",IF(Süt!$C23<=0,"",VLOOKUP($P21,$P$98:$CS$631,AR$30,FALSE))) -> 0 | AS21: =IF(Süt!$B23="","",IF(Süt!$C23<=0,"",VLOOKUP($P21,$P$98:$CS$631,AS$30,FALSE))) -> 0 | AT21: =IF(Süt!$B23="","",IF(Süt!$C23<=0,"",VLOOKUP($P21,$P$98:$CS$631,AT$30,FALSE))) -> 0 | AU21: =IF(Süt!$B23="","",IF(Süt!$C23<=0,"",VLOOKUP($P21,$P$98:$CS$631,AU$30,FALSE))) -> 0 | AV21: =IF(Süt!$B23="","",IF(Süt!$C23<=0,"",VLOOKUP($P21,$P$98:$CS$631,AV$30,FALSE))) -> 0 | AW21: =IF(Süt!$B23="","",IF(Süt!$C23<=0,"",VLOOKUP($P21,$P$98:$CS$631,AW$30,FALSE))) -> 0 | AX21: =IF(Süt!$B23="","",IF(Süt!$C23<=0,"",VLOOKUP($P21,$P$98:$CS$631,AX$30,FALSE))) -> 0 | AY21: =IF(Süt!$B23="","",IF(Süt!$C23<=0,"",VLOOKUP($P21,$P$98:$CS$631,AY$30,FALSE))) -> 0 | AZ21: =IF(Süt!$B23="","",IF(Süt!$C23<=0,"",VLOOKUP($P21,$P$98:$CS$631,AZ$30,FALSE))) -> 0 | BA21: =IF(Süt!$B23="","",IF(Süt!$C23<=0,"",VLOOKUP($P21,$P$98:$CS$631,BA$30,FALSE))) -> 0 | BB21: =IF(Süt!$B23="","",IF(Süt!$C23<=0,"",VLOOKUP($P21,$P$98:$CS$631,BB$30,FALSE))) -> 0 | BC21: =IF(Süt!$B23="","",IF(Süt!$C23<=0,"",VLOOKUP($P21,$P$98:$CS$631,BC$30,FALSE))) -> 0 | BD21: =IF(Süt!$B23="","",IF(Süt!$C23<=0,"",VLOOKUP($P21,$P$98:$CS$631,BD$30,FALSE))) -> 0 | BE21: =IF(Süt!$B23="","",IF(Süt!$C23<=0,"",VLOOKUP($P21,$P$98:$CS$631,BE$30,FALSE))) -> 0 | BF21: =IF(Süt!$B23="","",IF(Süt!$C23<=0,"",VLOOKUP($P21,$P$98:$CS$631,BF$30,FALSE))) -> 0 | BG21: =IF(Süt!$B23="","",IF(Süt!$C23<=0,"",VLOOKUP($P21,$P$98:$CS$631,BG$30,FALSE))) -> 0 | BH21: =IF(Süt!$B23="","",IF(Süt!$C23<=0,"",VLOOKUP($P21,$P$98:$CS$631,BH$30,FALSE))) -> 0 | BI21: =IF(Süt!$B23="","",IF(Süt!$C23<=0,"",VLOOKUP($P21,$P$98:$CS$631,BI$30,FALSE))) -> 0 | BJ21: =IF(Süt!$B23="","",IF(Süt!$C23<=0,"",VLOOKUP($P21,$P$98:$CS$631,BJ$30,FALSE))) -> 0 | BK21: =IF(Süt!$B23="","",IF(Süt!$C23<=0,"",VLOOKUP($P21,$P$98:$CS$631,BK$30,FALSE))) -> 0 | BL21: =IF(Süt!$B23="","",IF(Süt!$C23<=0,"",VLOOKUP($P21,$P$98:$CS$631,BL$30,FALSE))) -> 2 | BM21: =IF(Süt!$B23="","",IF(Süt!$C23<=0,"",VLOOKUP($P21,$P$98:$CS$631,BM$30,FALSE))) -> 37 | BN21: =IF(Süt!$B23="","",IF(Süt!$C23<=0,"",VLOOKUP($P21,$P$98:$CS$631,BN$30,FALSE))) -> 0.6 | BO21: =IF(Süt!$B23="","",IF(Süt!$C23<=0,"",VLOOKUP($P21,$P$98:$CS$631,BO$30,FALSE))) -> 0 | BP21: =IF(Süt!$B23="","",IF(Süt!$C23<=0,"",VLOOKUP($P21,$P$98:$CS$631,BP$30,FALSE))) -> 0 | BQ21: =IF(Süt!$B23="","",IF(Süt!$C23<=0,"",VLOOKUP($P21,$P$98:$CS$631,BQ$30,FALSE))) -> 0 | BR21: =IF(Süt!$B23="","",IF(Süt!$C23<=0,"",VLOOKUP($P21,$P$98:$CS$631,BR$30,FALSE))) -> 0.5 | BS21: =IF(Süt!$B23="","",IF(Süt!$C23<=0,"",VLOOKUP($P21,$P$98:$CS$631,BS$30,FALSE))) -> 0 | BT21: =IF(Süt!$B23="","",IF(Süt!$C23<=0,"",VLOOKUP($P21,$P$98:$CS$631,BT$30,FALSE))) -> 0.9 | BU21: =IF(Süt!$B23="","",IF(Süt!$C23<=0,"",VLOOKUP($P21,$P$98:$CS$631,BU$30,FALSE))) -> 0 | BV21: =IF(Süt!$B23="","",IF(Süt!$C23<=0,"",VLOOKUP($P21,$P$98:$CS$631,BV$30,FALSE))) -> 0.9 | BW21: =IF(Süt!$B23="","",IF(Süt!$C23<=0,"",VLOOKUP($P21,$P$98:$CS$631,BW$30,FALSE))) -> 0 | BX21: =IF(Süt!$B23="","",IF(Süt!$C23<=0,"",VLOOKUP($P21,$P$98:$CS$631,BX$30,FALSE))) -> 0.9 | BY21: =IF(Süt!$B23="","",IF(Süt!$C23<=0,"",VLOOKUP($P21,$P$98:$CS$631,BY$30,FALSE))) -> 0 | BZ21: =IF(Süt!$B23="","",IF(Süt!$C23<=0,"",VLOOKUP($P21,$P$98:$CS$631,BZ$30,FALSE))) -> 1 | CA21: =IF(Süt!$B23="","",IF(Süt!$C23<=0,"",VLOOKUP($P21,$P$98:$CS$631,CA$30,FALSE))) -> 0 | CB21: =IF(Süt!$B23="","",IF(Süt!$C23<=0,"",VLOOKUP($P21,$P$98:$CS$631,CB$30,FALSE))) -> 1 | CC21: =IF(Süt!$B23="","",IF(Süt!$C23<=0,"",VLOOKUP($P21,$P$98:$CS$631,CC$30,FALSE))) -> 0 | CD21: =IF(Süt!$B23="","",IF(Süt!$C23<=0,"",VLOOKUP($P21,$P$98:$CS$631,CD$30,FALSE))) -> 0.04 | CE21: =IF(Süt!$B23="","",IF(Süt!$C23<=0,"",VLOOKUP($P21,$P$98:$CS$631,CE$30,FALSE))) -> 0 | CF21: =IF(Süt!$B23="","",IF(Süt!$C23<=0,"",VLOOKUP($P21,$P$98:$CS$631,CF$30,FALSE))) -> 0.85 | CG21: =IF(Süt!$B23="","",IF(Süt!$C23<=0,"",VLOOKUP($P21,$P$98:$CS$631,CG$30,FALSE))) -> 0 | CH21: =IF(Süt!$B23="","",IF(Süt!$C23<=0,"",VLOOKUP($P21,$P$98:$CS$631,CH$30,FALSE))) -> 0.1 | CI21: =IF(Süt!$B23="","",IF(Süt!$C23<=0,"",VLOOKUP($P21,$P$98:$CS$631,CI$30,FALSE))) -> 0 | CJ21: =IF(Süt!$B23="","",IF(Süt!$C23<=0,"",VLOOKUP($P21,$P$98:$CS$631,CJ$30,FALSE))) -> 0.01 | CK21: =IF(Süt!$B23="","",IF(Süt!$C23<=0,"",VLOOKUP($P21,$P$98:$CS$631,CK$30,FALSE))) -> 0 | CL21: =IF(Süt!$B23="","",IF(Süt!$C23<=0,"",VLOOKUP($P21,$P$98:$CS$631,CL$30,FALSE))) -> 1 | CM21: =IF(Süt!$B23="","",IF(Süt!$C23<=0,"",VLOOKUP($P21,$P$98:$CS$631,CM$30,FALSE))) -> 0 | CN21: =IF(Süt!$B23="","",IF(Süt!$C23<=0,"",VLOOKUP($P21,$P$98:$CS$631,CN$30,FALSE))) -> 0.15 | CO21: =IF(Süt!$B23="","",IF(Süt!$C23<=0,"",VLOOKUP($P21,$P$98:$CS$631,CO$30,FALSE))) -> 0 | CP21: =IF(Süt!$B23="","",IF(Süt!$C23<=0,"",VLOOKUP($P21,$P$98:$CS$631,CP$30,FALSE))) -> 0 | CQ21: =IF(Süt!$B23="","",IF(Süt!$C23<=0,"",VLOOKUP($P21,$P$98:$CS$631,CQ$30,FALSE))) -> 0 | CR21: =IF(Süt!$B23="","",IF(Süt!$C23<=0,"",VLOOKUP($P21,$P$98:$CS$631,CR$30,FALSE))) -> 0 | CS21: =IF(Süt!$B23="","",IF(Süt!$C23<=0,"",VLOOKUP($P21,$P$98:$CS$631,CS$30,FALSE))) -> 0 | CT21: -3 | CU21: 0.216 | CV21: 0.486 | CW21: MPLact | CX21: =IF(MilkProd = 0,0,(YProtn / 0.67) * 1000) -> 1156.716418 | CY21: g/gün, Laktasyon için metabolik protein ihtiyacı
A22: =IF(Süt!A22="","",Süt!A22) ->  | B22: =IF(Süt!B22="","",Süt!B22) ->  | C22: =IF(Süt!C22="","",Süt!C22) ->  | D22: =Süt!D22 -> 0 | E22: =Süt!E22 -> 0 | F22: =Süt!F22 -> 0 | G22: NFC, % KM, ençok | H22: =NFCmak -> 44 | I22: =IF(ISERROR(DietaryNFC/TotalDMFed*100)=TRUE,0,DietaryNFC/TotalDMFed*100) -> 36.39106469 | J22: =IF(H22="","",IF(I22>H22,"FAZLA","TAMAM")) -> TAMAM | M22: 0 | O22: 0.1425 | P22: =IF(Süt!B24="","",IF(Süt!C24<=0,"",Süt!B24)) -> Tuz | Q22: =IF(Süt!$B24="","",IF(Süt!$C24<=0,"",VLOOKUP($P22,$P$98:$CS$631,Q$30,FALSE))) -> 6-04-152 | R22: =IF(Süt!$B24="","",IF(Süt!$C24<=0,"",VLOOKUP($P22,$P$98:$CS$631,R$30,FALSE))) -> 0 | S22: =IF(Süt!$B24="","",IF(Süt!$C24<=0,"",VLOOKUP($P22,$P$98:$CS$631,S$30,FALSE))) -> 0 | T22: =IF(Süt!$B24="","",IF(Süt!$C24<=0,"",VLOOKUP($P22,$P$98:$CS$631,T$30,FALSE))) -> 0 | U22: =IF(Süt!$B24="","",IF(Süt!$C24<=0,"",VLOOKUP($P22,$P$98:$CS$631,U$30,FALSE))) -> 0 | V22: =IF(Süt!$B24="","",IF(Süt!$C24<=0,"",VLOOKUP($P22,$P$98:$CS$631,V$30,FALSE))) -> 0 | W22: =IF(Süt!$B24="","",IF(Süt!$C24<=0,"",VLOOKUP($P22,$P$98:$CS$631,W$30,FALSE))) -> 0 | X22: =IF(Süt!$B24="","",IF(Süt!$C24<=0,"",VLOOKUP($P22,$P$98:$CS$631,X$30,FALSE))) -> 0 | Y22: =IF(Süt!$B24="","",IF(Süt!$C24<=0,"",VLOOKUP($P22,$P$98:$CS$631,Y$30,FALSE))) -> 0 | Z22: =IF(Süt!$B24="","",IF(Süt!$C24<=0,"",VLOOKUP($P22,$P$98:$CS$631,Z$30,FALSE))) -> 0 | AA22: =IF(Süt!$B24="","",IF(Süt!$C24<=0,"",VLOOKUP($P22,$P$98:$CS$631,AA$30,FALSE))) -> 100 | AB22: =IF(Süt!$B24="","",IF(Süt!$C24<=0,"",VLOOKUP($P22,$P$98:$CS$631,AB$30,FALSE))) -> 0 | AC22: =IF(Süt!$B24="","",IF(Süt!$C24<=0,"",VLOOKUP($P22,$P$98:$CS$631,AC$30,FALSE))) -> 0 | AD22: =IF(Süt!$B24="","",IF(Süt!$C24<=0,"",VLOOKUP($P22,$P$98:$CS$631,AD$30,FALSE))) -> 0 | AE22: =IF(Süt!$B24="","",IF(Süt!$C24<=0,"",VLOOKUP($P22,$P$98:$CS$631,AE$30,FALSE))) -> 0 | AF22: =IF(Süt!$B24="","",IF(Süt!$C24<=0,"",VLOOKUP($P22,$P$98:$CS$631,AF$30,FALSE))) -> 0 | AG22: =IF(Süt!$B24="","",IF(Süt!$C24<=0,"",VLOOKUP($P22,$P$98:$CS$631,AG$30,FALSE))) -> 0 | AH22: =IF(Süt!$B24="","",IF(Süt!$C24<=0,"",VLOOKUP($P22,$P$98:$CS$631,AH$30,FALSE))) -> 0 | AI22: =IF(Süt!$B24="","",IF(Süt!$C24<=0,"",VLOOKUP($P22,$P$98:$CS$631,AI$30,FALSE))) -> 0 | AJ22: =IF(Süt!$B24="","",IF(Süt!$C24<=0,"",VLOOKUP($P22,$P$98:$CS$631,AJ$30,FALSE))) -> 0 | AK22: =IF(Süt!$B24="","",IF(Süt!$C24<=0,"",VLOOKUP($P22,$P$98:$CS$631,AK$30,FALSE))) -> 0 | AL22: =IF(Süt!$B24="","",IF(Süt!$C24<=0,"",VLOOKUP($P22,$P$98:$CS$631,AL$30,FALSE))) -> 100 | AM22: =IF(Süt!$B24="","",IF(Süt!$C24<=0,"",VLOOKUP($P22,$P$98:$CS$631,AM$30,FALSE))) -> Conc | AN22: =IF(Süt!$B24="","",IF(Süt!$C24<=0,"",VLOOKUP($P22,$P$98:$CS$631,AN$30,FALSE))) -> Calf Feed-Vit/Min | AO22: =IF(Süt!$B24="","",IF(Süt!$C24<=0,"",VLOOKUP($P22,$P$98:$CS$631,AO$30,FALSE))) -> 0.05 | AP22: =IF(Süt!$B24="","",IF(Süt!$C24<=0,"",VLOOKUP($P22,$P$98:$CS$631,AP$30,FALSE))) -> 0.1 | AQ22: =IF(Süt!$B24="","",IF(Süt!$C24<=0,"",VLOOKUP($P22,$P$98:$CS$631,AQ$30,FALSE))) -> 0 | AR22: =IF(Süt!$B24="","",IF(Süt!$C24<=0,"",VLOOKUP($P22,$P$98:$CS$631,AR$30,FALSE))) -> 0 | AS22: =IF(Süt!$B24="","",IF(Süt!$C24<=0,"",VLOOKUP($P22,$P$98:$CS$631,AS$30,FALSE))) -> 0 | AT22: =IF(Süt!$B24="","",IF(Süt!$C24<=0,"",VLOOKUP($P22,$P$98:$CS$631,AT$30,FALSE))) -> 0 | AU22: =IF(Süt!$B24="","",IF(Süt!$C24<=0,"",VLOOKUP($P22,$P$98:$CS$631,AU$30,FALSE))) -> 0 | AV22: =IF(Süt!$B24="","",IF(Süt!$C24<=0,"",VLOOKUP($P22,$P$98:$CS$631,AV$30,FALSE))) -> 0 | AW22: =IF(Süt!$B24="","",IF(Süt!$C24<=0,"",VLOOKUP($P22,$P$98:$CS$631,AW$30,FALSE))) -> 0 | AX22: =IF(Süt!$B24="","",IF(Süt!$C24<=0,"",VLOOKUP($P22,$P$98:$CS$631,AX$30,FALSE))) -> 0 | AY22: =IF(Süt!$B24="","",IF(Süt!$C24<=0,"",VLOOKUP($P22,$P$98:$CS$631,AY$30,FALSE))) -> 0 | AZ22: =IF(Süt!$B24="","",IF(Süt!$C24<=0,"",VLOOKUP($P22,$P$98:$CS$631,AZ$30,FALSE))) -> 0 | BA22: =IF(Süt!$B24="","",IF(Süt!$C24<=0,"",VLOOKUP($P22,$P$98:$CS$631,BA$30,FALSE))) -> 0 | BB22: =IF(Süt!$B24="","",IF(Süt!$C24<=0,"",VLOOKUP($P22,$P$98:$CS$631,BB$30,FALSE))) -> 0 | BC22: =IF(Süt!$B24="","",IF(Süt!$C24<=0,"",VLOOKUP($P22,$P$98:$CS$631,BC$30,FALSE))) -> 0 | BD22: =IF(Süt!$B24="","",IF(Süt!$C24<=0,"",VLOOKUP($P22,$P$98:$CS$631,BD$30,FALSE))) -> 0 | BE22: =IF(Süt!$B24="","",IF(Süt!$C24<=0,"",VLOOKUP($P22,$P$98:$CS$631,BE$30,FALSE))) -> 0 | BF22: =IF(Süt!$B24="","",IF(Süt!$C24<=0,"",VLOOKUP($P22,$P$98:$CS$631,BF$30,FALSE))) -> 0 | BG22: =IF(Süt!$B24="","",IF(Süt!$C24<=0,"",VLOOKUP($P22,$P$98:$CS$631,BG$30,FALSE))) -> 0 | BH22: =IF(Süt!$B24="","",IF(Süt!$C24<=0,"",VLOOKUP($P22,$P$98:$CS$631,BH$30,FALSE))) -> 0 | BI22: =IF(Süt!$B24="","",IF(Süt!$C24<=0,"",VLOOKUP($P22,$P$98:$CS$631,BI$30,FALSE))) -> 0 | BJ22: =IF(Süt!$B24="","",IF(Süt!$C24<=0,"",VLOOKUP($P22,$P$98:$CS$631,BJ$30,FALSE))) -> 0 | BK22: =IF(Süt!$B24="","",IF(Süt!$C24<=0,"",VLOOKUP($P22,$P$98:$CS$631,BK$30,FALSE))) -> 0 | BL22: =IF(Süt!$B24="","",IF(Süt!$C24<=0,"",VLOOKUP($P22,$P$98:$CS$631,BL$30,FALSE))) -> 1.5 | BM22: =IF(Süt!$B24="","",IF(Süt!$C24<=0,"",VLOOKUP($P22,$P$98:$CS$631,BM$30,FALSE))) -> 0 | BN22: =IF(Süt!$B24="","",IF(Süt!$C24<=0,"",VLOOKUP($P22,$P$98:$CS$631,BN$30,FALSE))) -> 0.6 | BO22: =IF(Süt!$B24="","",IF(Süt!$C24<=0,"",VLOOKUP($P22,$P$98:$CS$631,BO$30,FALSE))) -> 0 | BP22: =IF(Süt!$B24="","",IF(Süt!$C24<=0,"",VLOOKUP($P22,$P$98:$CS$631,BP$30,FALSE))) -> 0.7 | BQ22: =IF(Süt!$B24="","",IF(Süt!$C24<=0,"",VLOOKUP($P22,$P$98:$CS$631,BQ$30,FALSE))) -> 0 | BR22: =IF(Süt!$B24="","",IF(Süt!$C24<=0,"",VLOOKUP($P22,$P$98:$CS$631,BR$30,FALSE))) -> 0.16 | BS22: =IF(Süt!$B24="","",IF(Süt!$C24<=0,"",VLOOKUP($P22,$P$98:$CS$631,BS$30,FALSE))) -> 0 | BT22: =IF(Süt!$B24="","",IF(Süt!$C24<=0,"",VLOOKUP($P22,$P$98:$CS$631,BT$30,FALSE))) -> 0.9 | BU22: =IF(Süt!$B24="","",IF(Süt!$C24<=0,"",VLOOKUP($P22,$P$98:$CS$631,BU$30,FALSE))) -> 39.34 | BV22: =IF(Süt!$B24="","",IF(Süt!$C24<=0,"",VLOOKUP($P22,$P$98:$CS$631,BV$30,FALSE))) -> 0.9 | BW22: =IF(Süt!$B24="","",IF(Süt!$C24<=0,"",VLOOKUP($P22,$P$98:$CS$631,BW$30,FALSE))) -> 60.66 | BX22: =IF(Süt!$B24="","",IF(Süt!$C24<=0,"",VLOOKUP($P22,$P$98:$CS$631,BX$30,FALSE))) -> 0.9 | BY22: =IF(Süt!$B24="","",IF(Süt!$C24<=0,"",VLOOKUP($P22,$P$98:$CS$631,BY$30,FALSE))) -> 0 | BZ22: =IF(Süt!$B24="","",IF(Süt!$C24<=0,"",VLOOKUP($P22,$P$98:$CS$631,BZ$30,FALSE))) -> 1 | CA22: =IF(Süt!$B24="","",IF(Süt!$C24<=0,"",VLOOKUP($P22,$P$98:$CS$631,CA$30,FALSE))) -> 0 | CB22: =IF(Süt!$B24="","",IF(Süt!$C24<=0,"",VLOOKUP($P22,$P$98:$CS$631,CB$30,FALSE))) -> 1 | CC22: =IF(Süt!$B24="","",IF(Süt!$C24<=0,"",VLOOKUP($P22,$P$98:$CS$631,CC$30,FALSE))) -> 0 | CD22: =IF(Süt!$B24="","",IF(Süt!$C24<=0,"",VLOOKUP($P22,$P$98:$CS$631,CD$30,FALSE))) -> 0.04 | CE22: =IF(Süt!$B24="","",IF(Süt!$C24<=0,"",VLOOKUP($P22,$P$98:$CS$631,CE$30,FALSE))) -> 0 | CF22: =IF(Süt!$B24="","",IF(Süt!$C24<=0,"",VLOOKUP($P22,$P$98:$CS$631,CF$30,FALSE))) -> 0.85 | CG22: =IF(Süt!$B24="","",IF(Süt!$C24<=0,"",VLOOKUP($P22,$P$98:$CS$631,CG$30,FALSE))) -> 0 | CH22: =IF(Süt!$B24="","",IF(Süt!$C24<=0,"",VLOOKUP($P22,$P$98:$CS$631,CH$30,FALSE))) -> 0.1 | CI22: =IF(Süt!$B24="","",IF(Süt!$C24<=0,"",VLOOKUP($P22,$P$98:$CS$631,CI$30,FALSE))) -> 0 | CJ22: =IF(Süt!$B24="","",IF(Süt!$C24<=0,"",VLOOKUP($P22,$P$98:$CS$631,CJ$30,FALSE))) -> 0.01 | CK22: =IF(Süt!$B24="","",IF(Süt!$C24<=0,"",VLOOKUP($P22,$P$98:$CS$631,CK$30,FALSE))) -> 0 | CL22: =IF(Süt!$B24="","",IF(Süt!$C24<=0,"",VLOOKUP($P22,$P$98:$CS$631,CL$30,FALSE))) -> 1 | CM22: =IF(Süt!$B24="","",IF(Süt!$C24<=0,"",VLOOKUP($P22,$P$98:$CS$631,CM$30,FALSE))) -> 0 | CN22: =IF(Süt!$B24="","",IF(Süt!$C24<=0,"",VLOOKUP($P22,$P$98:$CS$631,CN$30,FALSE))) -> 0.15 | CO22: =IF(Süt!$B24="","",IF(Süt!$C24<=0,"",VLOOKUP($P22,$P$98:$CS$631,CO$30,FALSE))) -> 0 | CP22: =IF(Süt!$B24="","",IF(Süt!$C24<=0,"",VLOOKUP($P22,$P$98:$CS$631,CP$30,FALSE))) -> 0 | CQ22: =IF(Süt!$B24="","",IF(Süt!$C24<=0,"",VLOOKUP($P22,$P$98:$CS$631,CQ$30,FALSE))) -> 0 | CR22: =IF(Süt!$B24="","",IF(Süt!$C24<=0,"",VLOOKUP($P22,$P$98:$CS$631,CR$30,FALSE))) -> 0 | CS22: =IF(Süt!$B24="","",IF(Süt!$C24<=0,"",VLOOKUP($P22,$P$98:$CS$631,CS$30,FALSE))) -> 0 | CT22: -4 | CU22: 0.243 | CV22: 0.513 | CW22: FCM | CX22: =IF(MilkProd = 0,0,(0.4 * MilkProd) + (15 * (MilkFat / 100) * MilkProd)) -> 23.875 | CY22: kg/gün, yağa göre düzeltilmiş süt verimi | DJ22: Arazinin durumu
A23: =IF(Süt!A23="","",Süt!A23) -> 7 | B23: =IF(Süt!B23="","",Süt!B23) -> Mermer tozu | C23: =IF(Süt!C23="","",Süt!C23) -> 0.04 | D23: =Süt!D23 -> 2 | E23: =Süt!E23 -> 0 | F23: =Süt!F23 -> 0.5 | G23: TSBM, % KM | I23: =TDNConc -> 66.05814171 | M23: 0.1 | O23: 0.5 | P23: =IF(Süt!B25="","",IF(Süt!C25<=0,"",Süt!B25)) -> Vit-Min. Kar. (Kavimix VM 902), 1 kg/ton | Q23: =IF(Süt!$B25="","",IF(Süt!$C25<=0,"",VLOOKUP($P23,$P$98:$CS$631,Q$30,FALSE))) -> 0 | R23: =IF(Süt!$B25="","",IF(Süt!$C25<=0,"",VLOOKUP($P23,$P$98:$CS$631,R$30,FALSE))) -> 0 | S23: =IF(Süt!$B25="","",IF(Süt!$C25<=0,"",VLOOKUP($P23,$P$98:$CS$631,S$30,FALSE))) -> 0 | T23: =IF(Süt!$B25="","",IF(Süt!$C25<=0,"",VLOOKUP($P23,$P$98:$CS$631,T$30,FALSE))) -> 0 | U23: =IF(Süt!$B25="","",IF(Süt!$C25<=0,"",VLOOKUP($P23,$P$98:$CS$631,U$30,FALSE))) -> 0 | V23: =IF(Süt!$B25="","",IF(Süt!$C25<=0,"",VLOOKUP($P23,$P$98:$CS$631,V$30,FALSE))) -> 0 | W23: =IF(Süt!$B25="","",IF(Süt!$C25<=0,"",VLOOKUP($P23,$P$98:$CS$631,W$30,FALSE))) -> 0 | X23: =IF(Süt!$B25="","",IF(Süt!$C25<=0,"",VLOOKUP($P23,$P$98:$CS$631,X$30,FALSE))) -> 0 | Y23: =IF(Süt!$B25="","",IF(Süt!$C25<=0,"",VLOOKUP($P23,$P$98:$CS$631,Y$30,FALSE))) -> 0 | Z23: =IF(Süt!$B25="","",IF(Süt!$C25<=0,"",VLOOKUP($P23,$P$98:$CS$631,Z$30,FALSE))) -> 0 | AA23: =IF(Süt!$B25="","",IF(Süt!$C25<=0,"",VLOOKUP($P23,$P$98:$CS$631,AA$30,FALSE))) -> 100 | AB23: =IF(Süt!$B25="","",IF(Süt!$C25<=0,"",VLOOKUP($P23,$P$98:$CS$631,AB$30,FALSE))) -> 0 | AC23: =IF(Süt!$B25="","",IF(Süt!$C25<=0,"",VLOOKUP($P23,$P$98:$CS$631,AC$30,FALSE))) -> 0 | AD23: =IF(Süt!$B25="","",IF(Süt!$C25<=0,"",VLOOKUP($P23,$P$98:$CS$631,AD$30,FALSE))) -> 0 | AE23: =IF(Süt!$B25="","",IF(Süt!$C25<=0,"",VLOOKUP($P23,$P$98:$CS$631,AE$30,FALSE))) -> 0 | AF23: =IF(Süt!$B25="","",IF(Süt!$C25<=0,"",VLOOKUP($P23,$P$98:$CS$631,AF$30,FALSE))) -> 0 | AG23: =IF(Süt!$B25="","",IF(Süt!$C25<=0,"",VLOOKUP($P23,$P$98:$CS$631,AG$30,FALSE))) -> 0 | AH23: =IF(Süt!$B25="","",IF(Süt!$C25<=0,"",VLOOKUP($P23,$P$98:$CS$631,AH$30,FALSE))) -> 0 | AI23: =IF(Süt!$B25="","",IF(Süt!$C25<=0,"",VLOOKUP($P23,$P$98:$CS$631,AI$30,FALSE))) -> 0 | AJ23: =IF(Süt!$B25="","",IF(Süt!$C25<=0,"",VLOOKUP($P23,$P$98:$CS$631,AJ$30,FALSE))) -> 0 | AK23: =IF(Süt!$B25="","",IF(Süt!$C25<=0,"",VLOOKUP($P23,$P$98:$CS$631,AK$30,FALSE))) -> 0 | AL23: =IF(Süt!$B25="","",IF(Süt!$C25<=0,"",VLOOKUP($P23,$P$98:$CS$631,AL$30,FALSE))) -> 100 | AM23: =IF(Süt!$B25="","",IF(Süt!$C25<=0,"",VLOOKUP($P23,$P$98:$CS$631,AM$30,FALSE))) -> Conc | AN23: =IF(Süt!$B25="","",IF(Süt!$C25<=0,"",VLOOKUP($P23,$P$98:$CS$631,AN$30,FALSE))) -> Calf Feed-Vit/Min | AO23: =IF(Süt!$B25="","",IF(Süt!$C25<=0,"",VLOOKUP($P23,$P$98:$CS$631,AO$30,FALSE))) -> 0.01 | AP23: =IF(Süt!$B25="","",IF(Süt!$C25<=0,"",VLOOKUP($P23,$P$98:$CS$631,AP$30,FALSE))) -> 0.05 | AQ23: =IF(Süt!$B25="","",IF(Süt!$C25<=0,"",VLOOKUP($P23,$P$98:$CS$631,AQ$30,FALSE))) -> 0 | AR23: =IF(Süt!$B25="","",IF(Süt!$C25<=0,"",VLOOKUP($P23,$P$98:$CS$631,AR$30,FALSE))) -> 0 | AS23: =IF(Süt!$B25="","",IF(Süt!$C25<=0,"",VLOOKUP($P23,$P$98:$CS$631,AS$30,FALSE))) -> 0 | AT23: =IF(Süt!$B25="","",IF(Süt!$C25<=0,"",VLOOKUP($P23,$P$98:$CS$631,AT$30,FALSE))) -> 0 | AU23: =IF(Süt!$B25="","",IF(Süt!$C25<=0,"",VLOOKUP($P23,$P$98:$CS$631,AU$30,FALSE))) -> 0 | AV23: =IF(Süt!$B25="","",IF(Süt!$C25<=0,"",VLOOKUP($P23,$P$98:$CS$631,AV$30,FALSE))) -> 0 | AW23: =IF(Süt!$B25="","",IF(Süt!$C25<=0,"",VLOOKUP($P23,$P$98:$CS$631,AW$30,FALSE))) -> 0 | AX23: =IF(Süt!$B25="","",IF(Süt!$C25<=0,"",VLOOKUP($P23,$P$98:$CS$631,AX$30,FALSE))) -> 0 | AY23: =IF(Süt!$B25="","",IF(Süt!$C25<=0,"",VLOOKUP($P23,$P$98:$CS$631,AY$30,FALSE))) -> 0 | AZ23: =IF(Süt!$B25="","",IF(Süt!$C25<=0,"",VLOOKUP($P23,$P$98:$CS$631,AZ$30,FALSE))) -> 0 | BA23: =IF(Süt!$B25="","",IF(Süt!$C25<=0,"",VLOOKUP($P23,$P$98:$CS$631,BA$30,FALSE))) -> 0 | BB23: =IF(Süt!$B25="","",IF(Süt!$C25<=0,"",VLOOKUP($P23,$P$98:$CS$631,BB$30,FALSE))) -> 0 | BC23: =IF(Süt!$B25="","",IF(Süt!$C25<=0,"",VLOOKUP($P23,$P$98:$CS$631,BC$30,FALSE))) -> 0 | BD23: =IF(Süt!$B25="","",IF(Süt!$C25<=0,"",VLOOKUP($P23,$P$98:$CS$631,BD$30,FALSE))) -> 0 | BE23: =IF(Süt!$B25="","",IF(Süt!$C25<=0,"",VLOOKUP($P23,$P$98:$CS$631,BE$30,FALSE))) -> 0 | BF23: =IF(Süt!$B25="","",IF(Süt!$C25<=0,"",VLOOKUP($P23,$P$98:$CS$631,BF$30,FALSE))) -> 0 | BG23: =IF(Süt!$B25="","",IF(Süt!$C25<=0,"",VLOOKUP($P23,$P$98:$CS$631,BG$30,FALSE))) -> 0 | BH23: =IF(Süt!$B25="","",IF(Süt!$C25<=0,"",VLOOKUP($P23,$P$98:$CS$631,BH$30,FALSE))) -> 0 | BI23: =IF(Süt!$B25="","",IF(Süt!$C25<=0,"",VLOOKUP($P23,$P$98:$CS$631,BI$30,FALSE))) -> 0 | BJ23: =IF(Süt!$B25="","",IF(Süt!$C25<=0,"",VLOOKUP($P23,$P$98:$CS$631,BJ$30,FALSE))) -> 0 | BK23: =IF(Süt!$B25="","",IF(Süt!$C25<=0,"",VLOOKUP($P23,$P$98:$CS$631,BK$30,FALSE))) -> 0 | BL23: =IF(Süt!$B25="","",IF(Süt!$C25<=0,"",VLOOKUP($P23,$P$98:$CS$631,BL$30,FALSE))) -> 25 | BM23: =IF(Süt!$B25="","",IF(Süt!$C25<=0,"",VLOOKUP($P23,$P$98:$CS$631,BM$30,FALSE))) -> 0 | BN23: =IF(Süt!$B25="","",IF(Süt!$C25<=0,"",VLOOKUP($P23,$P$98:$CS$631,BN$30,FALSE))) -> 0.6 | BO23: =IF(Süt!$B25="","",IF(Süt!$C25<=0,"",VLOOKUP($P23,$P$98:$CS$631,BO$30,FALSE))) -> 0 | BP23: =IF(Süt!$B25="","",IF(Süt!$C25<=0,"",VLOOKUP($P23,$P$98:$CS$631,BP$30,FALSE))) -> 0.7 | BQ23: =IF(Süt!$B25="","",IF(Süt!$C25<=0,"",VLOOKUP($P23,$P$98:$CS$631,BQ$30,FALSE))) -> 0 | BR23: =IF(Süt!$B25="","",IF(Süt!$C25<=0,"",VLOOKUP($P23,$P$98:$CS$631,BR$30,FALSE))) -> 0.16 | BS23: =IF(Süt!$B25="","",IF(Süt!$C25<=0,"",VLOOKUP($P23,$P$98:$CS$631,BS$30,FALSE))) -> 0 | BT23: =IF(Süt!$B25="","",IF(Süt!$C25<=0,"",VLOOKUP($P23,$P$98:$CS$631,BT$30,FALSE))) -> 0 | BU23: =IF(Süt!$B25="","",IF(Süt!$C25<=0,"",VLOOKUP($P23,$P$98:$CS$631,BU$30,FALSE))) -> 0 | BV23: =IF(Süt!$B25="","",IF(Süt!$C25<=0,"",VLOOKUP($P23,$P$98:$CS$631,BV$30,FALSE))) -> 0.9 | BW23: =IF(Süt!$B25="","",IF(Süt!$C25<=0,"",VLOOKUP($P23,$P$98:$CS$631,BW$30,FALSE))) -> 0 | BX23: =IF(Süt!$B25="","",IF(Süt!$C25<=0,"",VLOOKUP($P23,$P$98:$CS$631,BX$30,FALSE))) -> 0 | BY23: =IF(Süt!$B25="","",IF(Süt!$C25<=0,"",VLOOKUP($P23,$P$98:$CS$631,BY$30,FALSE))) -> 0 | BZ23: =IF(Süt!$B25="","",IF(Süt!$C25<=0,"",VLOOKUP($P23,$P$98:$CS$631,BZ$30,FALSE))) -> 0 | CA23: =IF(Süt!$B25="","",IF(Süt!$C25<=0,"",VLOOKUP($P23,$P$98:$CS$631,CA$30,FALSE))) -> 150 | CB23: =IF(Süt!$B25="","",IF(Süt!$C25<=0,"",VLOOKUP($P23,$P$98:$CS$631,CB$30,FALSE))) -> 1 | CC23: =IF(Süt!$B25="","",IF(Süt!$C25<=0,"",VLOOKUP($P23,$P$98:$CS$631,CC$30,FALSE))) -> 10000 | CD23: =IF(Süt!$B25="","",IF(Süt!$C25<=0,"",VLOOKUP($P23,$P$98:$CS$631,CD$30,FALSE))) -> 0.04 | CE23: =IF(Süt!$B25="","",IF(Süt!$C25<=0,"",VLOOKUP($P23,$P$98:$CS$631,CE$30,FALSE))) -> 800 | CF23: =IF(Süt!$B25="","",IF(Süt!$C25<=0,"",VLOOKUP($P23,$P$98:$CS$631,CF$30,FALSE))) -> 0.85 | CG23: =IF(Süt!$B25="","",IF(Süt!$C25<=0,"",VLOOKUP($P23,$P$98:$CS$631,CG$30,FALSE))) -> 50000 | CH23: =IF(Süt!$B25="","",IF(Süt!$C25<=0,"",VLOOKUP($P23,$P$98:$CS$631,CH$30,FALSE))) -> 0.1 | CI23: =IF(Süt!$B25="","",IF(Süt!$C25<=0,"",VLOOKUP($P23,$P$98:$CS$631,CI$30,FALSE))) -> 50000 | CJ23: =IF(Süt!$B25="","",IF(Süt!$C25<=0,"",VLOOKUP($P23,$P$98:$CS$631,CJ$30,FALSE))) -> 0.01 | CK23: =IF(Süt!$B25="","",IF(Süt!$C25<=0,"",VLOOKUP($P23,$P$98:$CS$631,CK$30,FALSE))) -> 150 | CL23: =IF(Süt!$B25="","",IF(Süt!$C25<=0,"",VLOOKUP($P23,$P$98:$CS$631,CL$30,FALSE))) -> 1 | CM23: =IF(Süt!$B25="","",IF(Süt!$C25<=0,"",VLOOKUP($P23,$P$98:$CS$631,CM$30,FALSE))) -> 50000 | CN23: =IF(Süt!$B25="","",IF(Süt!$C25<=0,"",VLOOKUP($P23,$P$98:$CS$631,CN$30,FALSE))) -> 0.15 | CO23: =IF(Süt!$B25="","",IF(Süt!$C25<=0,"",VLOOKUP($P23,$P$98:$CS$631,CO$30,FALSE))) -> 0 | CP23: =IF(Süt!$B25="","",IF(Süt!$C25<=0,"",VLOOKUP($P23,$P$98:$CS$631,CP$30,FALSE))) -> 0 | CQ23: =IF(Süt!$B25="","",IF(Süt!$C25<=0,"",VLOOKUP($P23,$P$98:$CS$631,CQ$30,FALSE))) -> 15000 | CR23: =IF(Süt!$B25="","",IF(Süt!$C25<=0,"",VLOOKUP($P23,$P$98:$CS$631,CR$30,FALSE))) -> 3000 | CS23: =IF(Süt!$B25="","",IF(Süt!$C25<=0,"",VLOOKUP($P23,$P$98:$CS$631,CS$30,FALSE))) -> 30000 | CT23: -5 | CU23: 0.27 | CV23: 0.54 | CW23: Damızlık dişiler için Hedef ağırlıklar ve CAA | DJ23: Düz arazi
A24: =IF(Süt!A24="","",Süt!A24) -> 7 | B24: =IF(Süt!B24="","",Süt!B24) -> Tuz | C24: =IF(Süt!C24="","",Süt!C24) -> 0.095 | D24: =Süt!D24 -> 1.5 | E24: =Süt!E24 -> 0.05 | F24: =Süt!F24 -> 0.1 | G24: Katyon-Anyon, meq/kg | H24: =IF(AnimalType="Kurudaki İnek",IF(DaysPreg>264,"Negatif",""),"") ->  | I24: =DCAD/1000 -> 160.7261867 | M24: 0.027 | P24: =IF(Süt!B26="","",IF(Süt!C26<=0,"",Süt!B26)) ->  | Q24: =IF(Süt!$B26="","",IF(Süt!$C26<=0,"",VLOOKUP($P24,$P$98:$CS$631,Q$30,FALSE))) ->  | R24: =IF(Süt!$B26="","",IF(Süt!$C26<=0,"",VLOOKUP($P24,$P$98:$CS$631,R$30,FALSE))) ->  | S24: =IF(Süt!$B26="","",IF(Süt!$C26<=0,"",VLOOKUP($P24,$P$98:$CS$631,S$30,FALSE))) ->  | T24: =IF(Süt!$B26="","",IF(Süt!$C26<=0,"",VLOOKUP($P24,$P$98:$CS$631,T$30,FALSE))) ->  | U24: =IF(Süt!$B26="","",IF(Süt!$C26<=0,"",VLOOKUP($P24,$P$98:$CS$631,U$30,FALSE))) ->  | V24: =IF(Süt!$B26="","",IF(Süt!$C26<=0,"",VLOOKUP($P24,$P$98:$CS$631,V$30,FALSE))) ->  | W24: =IF(Süt!$B26="","",IF(Süt!$C26<=0,"",VLOOKUP($P24,$P$98:$CS$631,W$30,FALSE))) ->  | X24: =IF(Süt!$B26="","",IF(Süt!$C26<=0,"",VLOOKUP($P24,$P$98:$CS$631,X$30,FALSE))) ->  | Y24: =IF(Süt!$B26="","",IF(Süt!$C26<=0,"",VLOOKUP($P24,$P$98:$CS$631,Y$30,FALSE))) ->  | Z24: =IF(Süt!$B26="","",IF(Süt!$C26<=0,"",VLOOKUP($P24,$P$98:$CS$631,Z$30,FALSE))) ->  | AA24: =IF(Süt!$B26="","",IF(Süt!$C26<=0,"",VLOOKUP($P24,$P$98:$CS$631,AA$30,FALSE))) ->  | AB24: =IF(Süt!$B26="","",IF(Süt!$C26<=0,"",VLOOKUP($P24,$P$98:$CS$631,AB$30,FALSE))) ->  | AC24: =IF(Süt!$B26="","",IF(Süt!$C26<=0,"",VLOOKUP($P24,$P$98:$CS$631,AC$30,FALSE))) ->  | AD24: =IF(Süt!$B26="","",IF(Süt!$C26<=0,"",VLOOKUP($P24,$P$98:$CS$631,AD$30,FALSE))) ->  | AE24: =IF(Süt!$B26="","",IF(Süt!$C26<=0,"",VLOOKUP($P24,$P$98:$CS$631,AE$30,FALSE))) ->  | AF24: =IF(Süt!$B26="","",IF(Süt!$C26<=0,"",VLOOKUP($P24,$P$98:$CS$631,AF$30,FALSE))) ->  | AG24: =IF(Süt!$B26="","",IF(Süt!$C26<=0,"",VLOOKUP($P24,$P$98:$CS$631,AG$30,FALSE))) ->  | AH24: =IF(Süt!$B26="","",IF(Süt!$C26<=0,"",VLOOKUP($P24,$P$98:$CS$631,AH$30,FALSE))) ->  | AI24: =IF(Süt!$B26="","",IF(Süt!$C26<=0,"",VLOOKUP($P24,$P$98:$CS$631,AI$30,FALSE))) ->  | AJ24: =IF(Süt!$B26="","",IF(Süt!$C26<=0,"",VLOOKUP($P24,$P$98:$CS$631,AJ$30,FALSE))) ->  | AK24: =IF(Süt!$B26="","",IF(Süt!$C26<=0,"",VLOOKUP($P24,$P$98:$CS$631,AK$30,FALSE))) ->  | AL24: =IF(Süt!$B26="","",IF(Süt!$C26<=0,"",VLOOKUP($P24,$P$98:$CS$631,AL$30,FALSE))) ->  | AM24: =IF(Süt!$B26="","",IF(Süt!$C26<=0,"",VLOOKUP($P24,$P$98:$CS$631,AM$30,FALSE))) ->  | AN24: =IF(Süt!$B26="","",IF(Süt!$C26<=0,"",VLOOKUP($P24,$P$98:$CS$631,AN$30,FALSE))) ->  | AO24: =IF(Süt!$B26="","",IF(Süt!$C26<=0,"",VLOOKUP($P24,$P$98:$CS$631,AO$30,FALSE))) ->  | AP24: =IF(Süt!$B26="","",IF(Süt!$C26<=0,"",VLOOKUP($P24,$P$98:$CS$631,AP$30,FALSE))) ->  | AQ24: =IF(Süt!$B26="","",IF(Süt!$C26<=0,"",VLOOKUP($P24,$P$98:$CS$631,AQ$30,FALSE))) ->  | AR24: =IF(Süt!$B26="","",IF(Süt!$C26<=0,"",VLOOKUP($P24,$P$98:$CS$631,AR$30,FALSE))) ->  | AS24: =IF(Süt!$B26="","",IF(Süt!$C26<=0,"",VLOOKUP($P24,$P$98:$CS$631,AS$30,FALSE))) ->  | AT24: =IF(Süt!$B26="","",IF(Süt!$C26<=0,"",VLOOKUP($P24,$P$98:$CS$631,AT$30,FALSE))) ->  | AU24: =IF(Süt!$B26="","",IF(Süt!$C26<=0,"",VLOOKUP($P24,$P$98:$CS$631,AU$30,FALSE))) ->  | AV24: =IF(Süt!$B26="","",IF(Süt!$C26<=0,"",VLOOKUP($P24,$P$98:$CS$631,AV$30,FALSE))) ->  | AW24: =IF(Süt!$B26="","",IF(Süt!$C26<=0,"",VLOOKUP($P24,$P$98:$CS$631,AW$30,FALSE))) ->  | AX24: =IF(Süt!$B26="","",IF(Süt!$C26<=0,"",VLOOKUP($P24,$P$98:$CS$631,AX$30,FALSE))) ->  | AY24: =IF(Süt!$B26="","",IF(Süt!$C26<=0,"",VLOOKUP($P24,$P$98:$CS$631,AY$30,FALSE))) ->  | AZ24: =IF(Süt!$B26="","",IF(Süt!$C26<=0,"",VLOOKUP($P24,$P$98:$CS$631,AZ$30,FALSE))) ->  | BA24: =IF(Süt!$B26="","",IF(Süt!$C26<=0,"",VLOOKUP($P24,$P$98:$CS$631,BA$30,FALSE))) ->  | BB24: =IF(Süt!$B26="","",IF(Süt!$C26<=0,"",VLOOKUP($P24,$P$98:$CS$631,BB$30,FALSE))) ->  | BC24: =IF(Süt!$B26="","",IF(Süt!$C26<=0,"",VLOOKUP($P24,$P$98:$CS$631,BC$30,FALSE))) ->  | BD24: =IF(Süt!$B26="","",IF(Süt!$C26<=0,"",VLOOKUP($P24,$P$98:$CS$631,BD$30,FALSE))) ->  | BE24: =IF(Süt!$B26="","",IF(Süt!$C26<=0,"",VLOOKUP($P24,$P$98:$CS$631,BE$30,FALSE))) ->  | BF24: =IF(Süt!$B26="","",IF(Süt!$C26<=0,"",VLOOKUP($P24,$P$98:$CS$631,BF$30,FALSE))) ->  | BG24: =IF(Süt!$B26="","",IF(Süt!$C26<=0,"",VLOOKUP($P24,$P$98:$CS$631,BG$30,FALSE))) ->  | BH24: =IF(Süt!$B26="","",IF(Süt!$C26<=0,"",VLOOKUP($P24,$P$98:$CS$631,BH$30,FALSE))) ->  | BI24: =IF(Süt!$B26="","",IF(Süt!$C26<=0,"",VLOOKUP($P24,$P$98:$CS$631,BI$30,FALSE))) ->  | BJ24: =IF(Süt!$B26="","",IF(Süt!$C26<=0,"",VLOOKUP($P24,$P$98:$CS$631,BJ$30,FALSE))) ->  | BK24: =IF(Süt!$B26="","",IF(Süt!$C26<=0,"",VLOOKUP($P24,$P$98:$CS$631,BK$30,FALSE))) ->  | BL24: =IF(Süt!$B26="","",IF(Süt!$C26<=0,"",VLOOKUP($P24,$P$98:$CS$631,BL$30,FALSE))) ->  | BM24: =IF(Süt!$B26="","",IF(Süt!$C26<=0,"",VLOOKUP($P24,$P$98:$CS$631,BM$30,FALSE))) ->  | BN24: =IF(Süt!$B26="","",IF(Süt!$C26<=0,"",VLOOKUP($P24,$P$98:$CS$631,BN$30,FALSE))) ->  | BO24: =IF(Süt!$B26="","",IF(Süt!$C26<=0,"",VLOOKUP($P24,$P$98:$CS$631,BO$30,FALSE))) ->  | BP24: =IF(Süt!$B26="","",IF(Süt!$C26<=0,"",VLOOKUP($P24,$P$98:$CS$631,BP$30,FALSE))) ->  | BQ24: =IF(Süt!$B26="","",IF(Süt!$C26<=0,"",VLOOKUP($P24,$P$98:$CS$631,BQ$30,FALSE))) ->  | BR24: =IF(Süt!$B26="","",IF(Süt!$C26<=0,"",VLOOKUP($P24,$P$98:$CS$631,BR$30,FALSE))) ->  | BS24: =IF(Süt!$B26="","",IF(Süt!$C26<=0,"",VLOOKUP($P24,$P$98:$CS$631,BS$30,FALSE))) ->  | BT24: =IF(Süt!$B26="","",IF(Süt!$C26<=0,"",VLOOKUP($P24,$P$98:$CS$631,BT$30,FALSE))) ->  | BU24: =IF(Süt!$B26="","",IF(Süt!$C26<=0,"",VLOOKUP($P24,$P$98:$CS$631,BU$30,FALSE))) ->  | BV24: =IF(Süt!$B26="","",IF(Süt!$C26<=0,"",VLOOKUP($P24,$P$98:$CS$631,BV$30,FALSE))) ->  | BW24: =IF(Süt!$B26="","",IF(Süt!$C26<=0,"",VLOOKUP($P24,$P$98:$CS$631,BW$30,FALSE))) ->  | BX24: =IF(Süt!$B26="","",IF(Süt!$C26<=0,"",VLOOKUP($P24,$P$98:$CS$631,BX$30,FALSE))) ->  | BY24: =IF(Süt!$B26="","",IF(Süt!$C26<=0,"",VLOOKUP($P24,$P$98:$CS$631,BY$30,FALSE))) ->  | BZ24: =IF(Süt!$B26="","",IF(Süt!$C26<=0,"",VLOOKUP($P24,$P$98:$CS$631,BZ$30,FALSE))) ->  | CA24: =IF(Süt!$B26="","",IF(Süt!$C26<=0,"",VLOOKUP($P24,$P$98:$CS$631,CA$30,FALSE))) ->  | CB24: =IF(Süt!$B26="","",IF(Süt!$C26<=0,"",VLOOKUP($P24,$P$98:$CS$631,CB$30,FALSE))) ->  | CC24: =IF(Süt!$B26="","",IF(Süt!$C26<=0,"",VLOOKUP($P24,$P$98:$CS$631,CC$30,FALSE))) ->  | CD24: =IF(Süt!$B26="","",IF(Süt!$C26<=0,"",VLOOKUP($P24,$P$98:$CS$631,CD$30,FALSE))) ->  | CE24: =IF(Süt!$B26="","",IF(Süt!$C26<=0,"",VLOOKUP($P24,$P$98:$CS$631,CE$30,FALSE))) ->  | CF24: =IF(Süt!$B26="","",IF(Süt!$C26<=0,"",VLOOKUP($P24,$P$98:$CS$631,CF$30,FALSE))) ->  | CG24: =IF(Süt!$B26="","",IF(Süt!$C26<=0,"",VLOOKUP($P24,$P$98:$CS$631,CG$30,FALSE))) ->  | CH24: =IF(Süt!$B26="","",IF(Süt!$C26<=0,"",VLOOKUP($P24,$P$98:$CS$631,CH$30,FALSE))) ->  | CI24: =IF(Süt!$B26="","",IF(Süt!$C26<=0,"",VLOOKUP($P24,$P$98:$CS$631,CI$30,FALSE))) ->  | CJ24: =IF(Süt!$B26="","",IF(Süt!$C26<=0,"",VLOOKUP($P24,$P$98:$CS$631,CJ$30,FALSE))) ->  | CK24: =IF(Süt!$B26="","",IF(Süt!$C26<=0,"",VLOOKUP($P24,$P$98:$CS$631,CK$30,FALSE))) ->  | CL24: =IF(Süt!$B26="","",IF(Süt!$C26<=0,"",VLOOKUP($P24,$P$98:$CS$631,CL$30,FALSE))) ->  | CM24: =IF(Süt!$B26="","",IF(Süt!$C26<=0,"",VLOOKUP($P24,$P$98:$CS$631,CM$30,FALSE))) ->  | CN24: =IF(Süt!$B26="","",IF(Süt!$C26<=0,"",VLOOKUP($P24,$P$98:$CS$631,CN$30,FALSE))) ->  | CO24: =IF(Süt!$B26="","",IF(Süt!$C26<=0,"",VLOOKUP($P24,$P$98:$CS$631,CO$30,FALSE))) ->  | CP24: =IF(Süt!$B26="","",IF(Süt!$C26<=0,"",VLOOKUP($P24,$P$98:$CS$631,CP$30,FALSE))) ->  | CQ24: =IF(Süt!$B26="","",IF(Süt!$C26<=0,"",VLOOKUP($P24,$P$98:$CS$631,CQ$30,FALSE))) ->  | CR24: =IF(Süt!$B26="","",IF(Süt!$C26<=0,"",VLOOKUP($P24,$P$98:$CS$631,CR$30,FALSE))) ->  | CS24: =IF(Süt!$B26="","",IF(Süt!$C26<=0,"",VLOOKUP($P24,$P$98:$CS$631,CS$30,FALSE))) ->  | CT24: -6 | CU24: 0.297 | CV24: 0.567 | CW24: Age2nd | CX24: =FirstCalf + CalfInt -> 36 | CY24: ay, İkinci buzağılama yaşı | DJ24: Engebeli
A25: =IF(Süt!A25="","",Süt!A25) -> 7 | B25: =IF(Süt!B25="","",Süt!B25) -> Vit-Min. Kar. (Kavimix VM 902), 1 kg/ton | C25: =IF(Süt!C25="","",Süt!C25) -> 0.02 | D25: =Süt!D25 -> 25 | E25: =Süt!E25 -> 0.01 | F25: =Süt!F25 -> 0.05 | G25: 1 KS için gerekli gün | I25: =DaysToChange -> 538.9541202 | M25: 0 | P25: =IF(Süt!B27="","",IF(Süt!C27<=0,"",Süt!B27)) ->  | Q25: =IF(Süt!$B27="","",IF(Süt!$C27<=0,"",VLOOKUP($P25,$P$98:$CS$631,Q$30,FALSE))) ->  | R25: =IF(Süt!$B27="","",IF(Süt!$C27<=0,"",VLOOKUP($P25,$P$98:$CS$631,R$30,FALSE))) ->  | S25: =IF(Süt!$B27="","",IF(Süt!$C27<=0,"",VLOOKUP($P25,$P$98:$CS$631,S$30,FALSE))) ->  | T25: =IF(Süt!$B27="","",IF(Süt!$C27<=0,"",VLOOKUP($P25,$P$98:$CS$631,T$30,FALSE))) ->  | U25: =IF(Süt!$B27="","",IF(Süt!$C27<=0,"",VLOOKUP($P25,$P$98:$CS$631,U$30,FALSE))) ->  | V25: =IF(Süt!$B27="","",IF(Süt!$C27<=0,"",VLOOKUP($P25,$P$98:$CS$631,V$30,FALSE))) ->  | W25: =IF(Süt!$B27="","",IF(Süt!$C27<=0,"",VLOOKUP($P25,$P$98:$CS$631,W$30,FALSE))) ->  | X25: =IF(Süt!$B27="","",IF(Süt!$C27<=0,"",VLOOKUP($P25,$P$98:$CS$631,X$30,FALSE))) ->  | Y25: =IF(Süt!$B27="","",IF(Süt!$C27<=0,"",VLOOKUP($P25,$P$98:$CS$631,Y$30,FALSE))) ->  | Z25: =IF(Süt!$B27="","",IF(Süt!$C27<=0,"",VLOOKUP($P25,$P$98:$CS$631,Z$30,FALSE))) ->  | AA25: =IF(Süt!$B27="","",IF(Süt!$C27<=0,"",VLOOKUP($P25,$P$98:$CS$631,AA$30,FALSE))) ->  | AB25: =IF(Süt!$B27="","",IF(Süt!$C27<=0,"",VLOOKUP($P25,$P$98:$CS$631,AB$30,FALSE))) ->  | AC25: =IF(Süt!$B27="","",IF(Süt!$C27<=0,"",VLOOKUP($P25,$P$98:$CS$631,AC$30,FALSE))) ->  | AD25: =IF(Süt!$B27="","",IF(Süt!$C27<=0,"",VLOOKUP($P25,$P$98:$CS$631,AD$30,FALSE))) ->  | AE25: =IF(Süt!$B27="","",IF(Süt!$C27<=0,"",VLOOKUP($P25,$P$98:$CS$631,AE$30,FALSE))) ->  | AF25: =IF(Süt!$B27="","",IF(Süt!$C27<=0,"",VLOOKUP($P25,$P$98:$CS$631,AF$30,FALSE))) ->  | AG25: =IF(Süt!$B27="","",IF(Süt!$C27<=0,"",VLOOKUP($P25,$P$98:$CS$631,AG$30,FALSE))) ->  | AH25: =IF(Süt!$B27="","",IF(Süt!$C27<=0,"",VLOOKUP($P25,$P$98:$CS$631,AH$30,FALSE))) ->  | AI25: =IF(Süt!$B27="","",IF(Süt!$C27<=0,"",VLOOKUP($P25,$P$98:$CS$631,AI$30,FALSE))) ->  | AJ25: =IF(Süt!$B27="","",IF(Süt!$C27<=0,"",VLOOKUP($P25,$P$98:$CS$631,AJ$30,FALSE))) ->  | AK25: =IF(Süt!$B27="","",IF(Süt!$C27<=0,"",VLOOKUP($P25,$P$98:$CS$631,AK$30,FALSE))) ->  | AL25: =IF(Süt!$B27="","",IF(Süt!$C27<=0,"",VLOOKUP($P25,$P$98:$CS$631,AL$30,FALSE))) ->  | AM25: =IF(Süt!$B27="","",IF(Süt!$C27<=0,"",VLOOKUP($P25,$P$98:$CS$631,AM$30,FALSE))) ->  | AN25: =IF(Süt!$B27="","",IF(Süt!$C27<=0,"",VLOOKUP($P25,$P$98:$CS$631,AN$30,FALSE))) ->  | AO25: =IF(Süt!$B27="","",IF(Süt!$C27<=0,"",VLOOKUP($P25,$P$98:$CS$631,AO$30,FALSE))) ->  | AP25: =IF(Süt!$B27="","",IF(Süt!$C27<=0,"",VLOOKUP($P25,$P$98:$CS$631,AP$30,FALSE))) ->  | AQ25: =IF(Süt!$B27="","",IF(Süt!$C27<=0,"",VLOOKUP($P25,$P$98:$CS$631,AQ$30,FALSE))) ->  | AR25: =IF(Süt!$B27="","",IF(Süt!$C27<=0,"",VLOOKUP($P25,$P$98:$CS$631,AR$30,FALSE))) ->  | AS25: =IF(Süt!$B27="","",IF(Süt!$C27<=0,"",VLOOKUP($P25,$P$98:$CS$631,AS$30,FALSE))) ->  | AT25: =IF(Süt!$B27="","",IF(Süt!$C27<=0,"",VLOOKUP($P25,$P$98:$CS$631,AT$30,FALSE))) ->  | AU25: =IF(Süt!$B27="","",IF(Süt!$C27<=0,"",VLOOKUP($P25,$P$98:$CS$631,AU$30,FALSE))) ->  | AV25: =IF(Süt!$B27="","",IF(Süt!$C27<=0,"",VLOOKUP($P25,$P$98:$CS$631,AV$30,FALSE))) ->  | AW25: =IF(Süt!$B27="","",IF(Süt!$C27<=0,"",VLOOKUP($P25,$P$98:$CS$631,AW$30,FALSE))) ->  | AX25: =IF(Süt!$B27="","",IF(Süt!$C27<=0,"",VLOOKUP($P25,$P$98:$CS$631,AX$30,FALSE))) ->  | AY25: =IF(Süt!$B27="","",IF(Süt!$C27<=0,"",VLOOKUP($P25,$P$98:$CS$631,AY$30,FALSE))) ->  | AZ25: =IF(Süt!$B27="","",IF(Süt!$C27<=0,"",VLOOKUP($P25,$P$98:$CS$631,AZ$30,FALSE))) ->  | BA25: =IF(Süt!$B27="","",IF(Süt!$C27<=0,"",VLOOKUP($P25,$P$98:$CS$631,BA$30,FALSE))) ->  | BB25: =IF(Süt!$B27="","",IF(Süt!$C27<=0,"",VLOOKUP($P25,$P$98:$CS$631,BB$30,FALSE))) ->  | BC25: =IF(Süt!$B27="","",IF(Süt!$C27<=0,"",VLOOKUP($P25,$P$98:$CS$631,BC$30,FALSE))) ->  | BD25: =IF(Süt!$B27="","",IF(Süt!$C27<=0,"",VLOOKUP($P25,$P$98:$CS$631,BD$30,FALSE))) ->  | BE25: =IF(Süt!$B27="","",IF(Süt!$C27<=0,"",VLOOKUP($P25,$P$98:$CS$631,BE$30,FALSE))) ->  | BF25: =IF(Süt!$B27="","",IF(Süt!$C27<=0,"",VLOOKUP($P25,$P$98:$CS$631,BF$30,FALSE))) ->  | BG25: =IF(Süt!$B27="","",IF(Süt!$C27<=0,"",VLOOKUP($P25,$P$98:$CS$631,BG$30,FALSE))) ->  | BH25: =IF(Süt!$B27="","",IF(Süt!$C27<=0,"",VLOOKUP($P25,$P$98:$CS$631,BH$30,FALSE))) ->  | BI25: =IF(Süt!$B27="","",IF(Süt!$C27<=0,"",VLOOKUP($P25,$P$98:$CS$631,BI$30,FALSE))) ->  | BJ25: =IF(Süt!$B27="","",IF(Süt!$C27<=0,"",VLOOKUP($P25,$P$98:$CS$631,BJ$30,FALSE))) ->  | BK25: =IF(Süt!$B27="","",IF(Süt!$C27<=0,"",VLOOKUP($P25,$P$98:$CS$631,BK$30,FALSE))) ->  | BL25: =IF(Süt!$B27="","",IF(Süt!$C27<=0,"",VLOOKUP($P25,$P$98:$CS$631,BL$30,FALSE))) ->  | BM25: =IF(Süt!$B27="","",IF(Süt!$C27<=0,"",VLOOKUP($P25,$P$98:$CS$631,BM$30,FALSE))) ->  | BN25: =IF(Süt!$B27="","",IF(Süt!$C27<=0,"",VLOOKUP($P25,$P$98:$CS$631,BN$30,FALSE))) ->  | BO25: =IF(Süt!$B27="","",IF(Süt!$C27<=0,"",VLOOKUP($P25,$P$98:$CS$631,BO$30,FALSE))) ->  | BP25: =IF(Süt!$B27="","",IF(Süt!$C27<=0,"",VLOOKUP($P25,$P$98:$CS$631,BP$30,FALSE))) ->  | BQ25: =IF(Süt!$B27="","",IF(Süt!$C27<=0,"",VLOOKUP($P25,$P$98:$CS$631,BQ$30,FALSE))) ->  | BR25: =IF(Süt!$B27="","",IF(Süt!$C27<=0,"",VLOOKUP($P25,$P$98:$CS$631,BR$30,FALSE))) ->  | BS25: =IF(Süt!$B27="","",IF(Süt!$C27<=0,"",VLOOKUP($P25,$P$98:$CS$631,BS$30,FALSE))) ->  | BT25: =IF(Süt!$B27="","",IF(Süt!$C27<=0,"",VLOOKUP($P25,$P$98:$CS$631,BT$30,FALSE))) ->  | BU25: =IF(Süt!$B27="","",IF(Süt!$C27<=0,"",VLOOKUP($P25,$P$98:$CS$631,BU$30,FALSE))) ->  | BV25: =IF(Süt!$B27="","",IF(Süt!$C27<=0,"",VLOOKUP($P25,$P$98:$CS$631,BV$30,FALSE))) ->  | BW25: =IF(Süt!$B27="","",IF(Süt!$C27<=0,"",VLOOKUP($P25,$P$98:$CS$631,BW$30,FALSE))) ->  | BX25: =IF(Süt!$B27="","",IF(Süt!$C27<=0,"",VLOOKUP($P25,$P$98:$CS$631,BX$30,FALSE))) ->  | BY25: =IF(Süt!$B27="","",IF(Süt!$C27<=0,"",VLOOKUP($P25,$P$98:$CS$631,BY$30,FALSE))) ->  | BZ25: =IF(Süt!$B27="","",IF(Süt!$C27<=0,"",VLOOKUP($P25,$P$98:$CS$631,BZ$30,FALSE))) ->  | CA25: =IF(Süt!$B27="","",IF(Süt!$C27<=0,"",VLOOKUP($P25,$P$98:$CS$631,CA$30,FALSE))) ->  | CB25: =IF(Süt!$B27="","",IF(Süt!$C27<=0,"",VLOOKUP($P25,$P$98:$CS$631,CB$30,FALSE))) ->  | CC25: =IF(Süt!$B27="","",IF(Süt!$C27<=0,"",VLOOKUP($P25,$P$98:$CS$631,CC$30,FALSE))) ->  | CD25: =IF(Süt!$B27="","",IF(Süt!$C27<=0,"",VLOOKUP($P25,$P$98:$CS$631,CD$30,FALSE))) ->  | CE25: =IF(Süt!$B27="","",IF(Süt!$C27<=0,"",VLOOKUP($P25,$P$98:$CS$631,CE$30,FALSE))) ->  | CF25: =IF(Süt!$B27="","",IF(Süt!$C27<=0,"",VLOOKUP($P25,$P$98:$CS$631,CF$30,FALSE))) ->  | CG25: =IF(Süt!$B27="","",IF(Süt!$C27<=0,"",VLOOKUP($P25,$P$98:$CS$631,CG$30,FALSE))) ->  | CH25: =IF(Süt!$B27="","",IF(Süt!$C27<=0,"",VLOOKUP($P25,$P$98:$CS$631,CH$30,FALSE))) ->  | CI25: =IF(Süt!$B27="","",IF(Süt!$C27<=0,"",VLOOKUP($P25,$P$98:$CS$631,CI$30,FALSE))) ->  | CJ25: =IF(Süt!$B27="","",IF(Süt!$C27<=0,"",VLOOKUP($P25,$P$98:$CS$631,CJ$30,FALSE))) ->  | CK25: =IF(Süt!$B27="","",IF(Süt!$C27<=0,"",VLOOKUP($P25,$P$98:$CS$631,CK$30,FALSE))) ->  | CL25: =IF(Süt!$B27="","",IF(Süt!$C27<=0,"",VLOOKUP($P25,$P$98:$CS$631,CL$30,FALSE))) ->  | CM25: =IF(Süt!$B27="","",IF(Süt!$C27<=0,"",VLOOKUP($P25,$P$98:$CS$631,CM$30,FALSE))) ->  | CN25: =IF(Süt!$B27="","",IF(Süt!$C27<=0,"",VLOOKUP($P25,$P$98:$CS$631,CN$30,FALSE))) ->  | CO25: =IF(Süt!$B27="","",IF(Süt!$C27<=0,"",VLOOKUP($P25,$P$98:$CS$631,CO$30,FALSE))) ->  | CP25: =IF(Süt!$B27="","",IF(Süt!$C27<=0,"",VLOOKUP($P25,$P$98:$CS$631,CP$30,FALSE))) ->  | CQ25: =IF(Süt!$B27="","",IF(Süt!$C27<=0,"",VLOOKUP($P25,$P$98:$CS$631,CQ$30,FALSE))) ->  | CR25: =IF(Süt!$B27="","",IF(Süt!$C27<=0,"",VLOOKUP($P25,$P$98:$CS$631,CR$30,FALSE))) ->  | CS25: =IF(Süt!$B27="","",IF(Süt!$C27<=0,"",VLOOKUP($P25,$P$98:$CS$631,CS$30,FALSE))) ->  | CT25: -7 | CU25: 0.324 | CV25: 0.594 | CW25: Age3rd | CX25: =Age2nd + CalfInt -> 48 | CY25: ay, Üçüncü buzağılama yaşı
A26: =IF(Süt!A26="","",Süt!A26) ->  | B26: =IF(Süt!B26="","",Süt!B26) ->  | C26: =IF(Süt!C26="","",Süt!C26) ->  | D26: =Süt!D26 -> 0 | E26: =Süt!E26 -> 0 | F26: =Süt!F26 -> 0 | G26: Rasyon maliyeti, TL | I26: =Fiyat -> 202.3433904 | M26: 0 | P26: =IF(Süt!B28="","",IF(Süt!C28<=0,"",Süt!B28)) ->  | Q26: =IF(Süt!$B28="","",IF(Süt!$C28<=0,"",VLOOKUP($P26,$P$98:$CS$631,Q$30,FALSE))) ->  | R26: =IF(Süt!$B28="","",IF(Süt!$C28<=0,"",VLOOKUP($P26,$P$98:$CS$631,R$30,FALSE))) ->  | S26: =IF(Süt!$B28="","",IF(Süt!$C28<=0,"",VLOOKUP($P26,$P$98:$CS$631,S$30,FALSE))) ->  | T26: =IF(Süt!$B28="","",IF(Süt!$C28<=0,"",VLOOKUP($P26,$P$98:$CS$631,T$30,FALSE))) ->  | U26: =IF(Süt!$B28="","",IF(Süt!$C28<=0,"",VLOOKUP($P26,$P$98:$CS$631,U$30,FALSE))) ->  | V26: =IF(Süt!$B28="","",IF(Süt!$C28<=0,"",VLOOKUP($P26,$P$98:$CS$631,V$30,FALSE))) ->  | W26: =IF(Süt!$B28="","",IF(Süt!$C28<=0,"",VLOOKUP($P26,$P$98:$CS$631,W$30,FALSE))) ->  | X26: =IF(Süt!$B28="","",IF(Süt!$C28<=0,"",VLOOKUP($P26,$P$98:$CS$631,X$30,FALSE))) ->  | Y26: =IF(Süt!$B28="","",IF(Süt!$C28<=0,"",VLOOKUP($P26,$P$98:$CS$631,Y$30,FALSE))) ->  | Z26: =IF(Süt!$B28="","",IF(Süt!$C28<=0,"",VLOOKUP($P26,$P$98:$CS$631,Z$30,FALSE))) ->  | AA26: =IF(Süt!$B28="","",IF(Süt!$C28<=0,"",VLOOKUP($P26,$P$98:$CS$631,AA$30,FALSE))) ->  | AB26: =IF(Süt!$B28="","",IF(Süt!$C28<=0,"",VLOOKUP($P26,$P$98:$CS$631,AB$30,FALSE))) ->  | AC26: =IF(Süt!$B28="","",IF(Süt!$C28<=0,"",VLOOKUP($P26,$P$98:$CS$631,AC$30,FALSE))) ->  | AD26: =IF(Süt!$B28="","",IF(Süt!$C28<=0,"",VLOOKUP($P26,$P$98:$CS$631,AD$30,FALSE))) ->  | AE26: =IF(Süt!$B28="","",IF(Süt!$C28<=0,"",VLOOKUP($P26,$P$98:$CS$631,AE$30,FALSE))) ->  | AF26: =IF(Süt!$B28="","",IF(Süt!$C28<=0,"",VLOOKUP($P26,$P$98:$CS$631,AF$30,FALSE))) ->  | AG26: =IF(Süt!$B28="","",IF(Süt!$C28<=0,"",VLOOKUP($P26,$P$98:$CS$631,AG$30,FALSE))) ->  | AH26: =IF(Süt!$B28="","",IF(Süt!$C28<=0,"",VLOOKUP($P26,$P$98:$CS$631,AH$30,FALSE))) ->  | AI26: =IF(Süt!$B28="","",IF(Süt!$C28<=0,"",VLOOKUP($P26,$P$98:$CS$631,AI$30,FALSE))) ->  | AJ26: =IF(Süt!$B28="","",IF(Süt!$C28<=0,"",VLOOKUP($P26,$P$98:$CS$631,AJ$30,FALSE))) ->  | AK26: =IF(Süt!$B28="","",IF(Süt!$C28<=0,"",VLOOKUP($P26,$P$98:$CS$631,AK$30,FALSE))) ->  | AL26: =IF(Süt!$B28="","",IF(Süt!$C28<=0,"",VLOOKUP($P26,$P$98:$CS$631,AL$30,FALSE))) ->  | AM26: =IF(Süt!$B28="","",IF(Süt!$C28<=0,"",VLOOKUP($P26,$P$98:$CS$631,AM$30,FALSE))) ->  | AN26: =IF(Süt!$B28="","",IF(Süt!$C28<=0,"",VLOOKUP($P26,$P$98:$CS$631,AN$30,FALSE))) ->  | AO26: =IF(Süt!$B28="","",IF(Süt!$C28<=0,"",VLOOKUP($P26,$P$98:$CS$631,AO$30,FALSE))) ->  | AP26: =IF(Süt!$B28="","",IF(Süt!$C28<=0,"",VLOOKUP($P26,$P$98:$CS$631,AP$30,FALSE))) ->  | AQ26: =IF(Süt!$B28="","",IF(Süt!$C28<=0,"",VLOOKUP($P26,$P$98:$CS$631,AQ$30,FALSE))) ->  | AR26: =IF(Süt!$B28="","",IF(Süt!$C28<=0,"",VLOOKUP($P26,$P$98:$CS$631,AR$30,FALSE))) ->  | AS26: =IF(Süt!$B28="","",IF(Süt!$C28<=0,"",VLOOKUP($P26,$P$98:$CS$631,AS$30,FALSE))) ->  | AT26: =IF(Süt!$B28="","",IF(Süt!$C28<=0,"",VLOOKUP($P26,$P$98:$CS$631,AT$30,FALSE))) ->  | AU26: =IF(Süt!$B28="","",IF(Süt!$C28<=0,"",VLOOKUP($P26,$P$98:$CS$631,AU$30,FALSE))) ->  | AV26: =IF(Süt!$B28="","",IF(Süt!$C28<=0,"",VLOOKUP($P26,$P$98:$CS$631,AV$30,FALSE))) ->  | AW26: =IF(Süt!$B28="","",IF(Süt!$C28<=0,"",VLOOKUP($P26,$P$98:$CS$631,AW$30,FALSE))) ->  | AX26: =IF(Süt!$B28="","",IF(Süt!$C28<=0,"",VLOOKUP($P26,$P$98:$CS$631,AX$30,FALSE))) ->  | AY26: =IF(Süt!$B28="","",IF(Süt!$C28<=0,"",VLOOKUP($P26,$P$98:$CS$631,AY$30,FALSE))) ->  | AZ26: =IF(Süt!$B28="","",IF(Süt!$C28<=0,"",VLOOKUP($P26,$P$98:$CS$631,AZ$30,FALSE))) ->  | BA26: =IF(Süt!$B28="","",IF(Süt!$C28<=0,"",VLOOKUP($P26,$P$98:$CS$631,BA$30,FALSE))) ->  | BB26: =IF(Süt!$B28="","",IF(Süt!$C28<=0,"",VLOOKUP($P26,$P$98:$CS$631,BB$30,FALSE))) ->  | BC26: =IF(Süt!$B28="","",IF(Süt!$C28<=0,"",VLOOKUP($P26,$P$98:$CS$631,BC$30,FALSE))) ->  | BD26: =IF(Süt!$B28="","",IF(Süt!$C28<=0,"",VLOOKUP($P26,$P$98:$CS$631,BD$30,FALSE))) ->  | BE26: =IF(Süt!$B28="","",IF(Süt!$C28<=0,"",VLOOKUP($P26,$P$98:$CS$631,BE$30,FALSE))) ->  | BF26: =IF(Süt!$B28="","",IF(Süt!$C28<=0,"",VLOOKUP($P26,$P$98:$CS$631,BF$30,FALSE))) ->  | BG26: =IF(Süt!$B28="","",IF(Süt!$C28<=0,"",VLOOKUP($P26,$P$98:$CS$631,BG$30,FALSE))) ->  | BH26: =IF(Süt!$B28="","",IF(Süt!$C28<=0,"",VLOOKUP($P26,$P$98:$CS$631,BH$30,FALSE))) ->  | BI26: =IF(Süt!$B28="","",IF(Süt!$C28<=0,"",VLOOKUP($P26,$P$98:$CS$631,BI$30,FALSE))) ->  | BJ26: =IF(Süt!$B28="","",IF(Süt!$C28<=0,"",VLOOKUP($P26,$P$98:$CS$631,BJ$30,FALSE))) ->  | BK26: =IF(Süt!$B28="","",IF(Süt!$C28<=0,"",VLOOKUP($P26,$P$98:$CS$631,BK$30,FALSE))) ->  | BL26: =IF(Süt!$B28="","",IF(Süt!$C28<=0,"",VLOOKUP($P26,$P$98:$CS$631,BL$30,FALSE))) ->  | BM26: =IF(Süt!$B28="","",IF(Süt!$C28<=0,"",VLOOKUP($P26,$P$98:$CS$631,BM$30,FALSE))) ->  | BN26: =IF(Süt!$B28="","",IF(Süt!$C28<=0,"",VLOOKUP($P26,$P$98:$CS$631,BN$30,FALSE))) ->  | BO26: =IF(Süt!$B28="","",IF(Süt!$C28<=0,"",VLOOKUP($P26,$P$98:$CS$631,BO$30,FALSE))) ->  | BP26: =IF(Süt!$B28="","",IF(Süt!$C28<=0,"",VLOOKUP($P26,$P$98:$CS$631,BP$30,FALSE))) ->  | BQ26: =IF(Süt!$B28="","",IF(Süt!$C28<=0,"",VLOOKUP($P26,$P$98:$CS$631,BQ$30,FALSE))) ->  | BR26: =IF(Süt!$B28="","",IF(Süt!$C28<=0,"",VLOOKUP($P26,$P$98:$CS$631,BR$30,FALSE))) ->  | BS26: =IF(Süt!$B28="","",IF(Süt!$C28<=0,"",VLOOKUP($P26,$P$98:$CS$631,BS$30,FALSE))) ->  | BT26: =IF(Süt!$B28="","",IF(Süt!$C28<=0,"",VLOOKUP($P26,$P$98:$CS$631,BT$30,FALSE))) ->  | BU26: =IF(Süt!$B28="","",IF(Süt!$C28<=0,"",VLOOKUP($P26,$P$98:$CS$631,BU$30,FALSE))) ->  | BV26: =IF(Süt!$B28="","",IF(Süt!$C28<=0,"",VLOOKUP($P26,$P$98:$CS$631,BV$30,FALSE))) ->  | BW26: =IF(Süt!$B28="","",IF(Süt!$C28<=0,"",VLOOKUP($P26,$P$98:$CS$631,BW$30,FALSE))) ->  | BX26: =IF(Süt!$B28="","",IF(Süt!$C28<=0,"",VLOOKUP($P26,$P$98:$CS$631,BX$30,FALSE))) ->  | BY26: =IF(Süt!$B28="","",IF(Süt!$C28<=0,"",VLOOKUP($P26,$P$98:$CS$631,BY$30,FALSE))) ->  | BZ26: =IF(Süt!$B28="","",IF(Süt!$C28<=0,"",VLOOKUP($P26,$P$98:$CS$631,BZ$30,FALSE))) ->  | CA26: =IF(Süt!$B28="","",IF(Süt!$C28<=0,"",VLOOKUP($P26,$P$98:$CS$631,CA$30,FALSE))) ->  | CB26: =IF(Süt!$B28="","",IF(Süt!$C28<=0,"",VLOOKUP($P26,$P$98:$CS$631,CB$30,FALSE))) ->  | CC26: =IF(Süt!$B28="","",IF(Süt!$C28<=0,"",VLOOKUP($P26,$P$98:$CS$631,CC$30,FALSE))) ->  | CD26: =IF(Süt!$B28="","",IF(Süt!$C28<=0,"",VLOOKUP($P26,$P$98:$CS$631,CD$30,FALSE))) ->  | CE26: =IF(Süt!$B28="","",IF(Süt!$C28<=0,"",VLOOKUP($P26,$P$98:$CS$631,CE$30,FALSE))) ->  | CF26: =IF(Süt!$B28="","",IF(Süt!$C28<=0,"",VLOOKUP($P26,$P$98:$CS$631,CF$30,FALSE))) ->  | CG26: =IF(Süt!$B28="","",IF(Süt!$C28<=0,"",VLOOKUP($P26,$P$98:$CS$631,CG$30,FALSE))) ->  | CH26: =IF(Süt!$B28="","",IF(Süt!$C28<=0,"",VLOOKUP($P26,$P$98:$CS$631,CH$30,FALSE))) ->  | CI26: =IF(Süt!$B28="","",IF(Süt!$C28<=0,"",VLOOKUP($P26,$P$98:$CS$631,CI$30,FALSE))) ->  | CJ26: =IF(Süt!$B28="","",IF(Süt!$C28<=0,"",VLOOKUP($P26,$P$98:$CS$631,CJ$30,FALSE))) ->  | CK26: =IF(Süt!$B28="","",IF(Süt!$C28<=0,"",VLOOKUP($P26,$P$98:$CS$631,CK$30,FALSE))) ->  | CL26: =IF(Süt!$B28="","",IF(Süt!$C28<=0,"",VLOOKUP($P26,$P$98:$CS$631,CL$30,FALSE))) ->  | CM26: =IF(Süt!$B28="","",IF(Süt!$C28<=0,"",VLOOKUP($P26,$P$98:$CS$631,CM$30,FALSE))) ->  | CN26: =IF(Süt!$B28="","",IF(Süt!$C28<=0,"",VLOOKUP($P26,$P$98:$CS$631,CN$30,FALSE))) ->  | CO26: =IF(Süt!$B28="","",IF(Süt!$C28<=0,"",VLOOKUP($P26,$P$98:$CS$631,CO$30,FALSE))) ->  | CP26: =IF(Süt!$B28="","",IF(Süt!$C28<=0,"",VLOOKUP($P26,$P$98:$CS$631,CP$30,FALSE))) ->  | CQ26: =IF(Süt!$B28="","",IF(Süt!$C28<=0,"",VLOOKUP($P26,$P$98:$CS$631,CQ$30,FALSE))) ->  | CR26: =IF(Süt!$B28="","",IF(Süt!$C28<=0,"",VLOOKUP($P26,$P$98:$CS$631,CR$30,FALSE))) ->  | CS26: =IF(Süt!$B28="","",IF(Süt!$C28<=0,"",VLOOKUP($P26,$P$98:$CS$631,CS$30,FALSE))) ->  | CT26: -8 | CU26: 0.351 | CV26: 0.621 | CW26: Age1stBred | CX26: =FirstCalf - (BreedGS / 30.4) -> 14.75657895 | CY26: ay, İlk sıfat yaşı | DJ26: Deri ve Kılların durumu
A27: =IF(Süt!A27="","",Süt!A27) ->  | B27: =IF(Süt!B27="","",Süt!B27) ->  | C27: =IF(Süt!C27="","",Süt!C27) ->  | D27: =Süt!D27 -> 0 | E27: =Süt!E27 -> 0 | F27: =Süt!F27 -> 0 | G27: =IF(AnimalType="Damızlık Düve","Proteinin sağlayabileceği GCAA, g",IF(AnimalType="Sağmal İnek","Proteinin sağlayabileceği süt, kg",0)) -> Proteinin sağlayabileceği süt, kg | I27: =IF(AnimalType="Damızlık Düve",IF(DaysPreg>0,MPAllowGainPreg*1000,MPAllowGain*1000),IF(AnimalType="Sağmal İnek",ProteinAllowableMilk,0)) -> 24.55211259 | M27: 0 | P27: =IF(Süt!B29="","",IF(Süt!C29<=0,"",Süt!B29)) ->  | Q27: =IF(Süt!$B29="","",IF(Süt!$C29<=0,"",VLOOKUP($P27,$P$98:$CS$631,Q$30,FALSE))) ->  | R27: =IF(Süt!$B29="","",IF(Süt!$C29<=0,"",VLOOKUP($P27,$P$98:$CS$631,R$30,FALSE))) ->  | S27: =IF(Süt!$B29="","",IF(Süt!$C29<=0,"",VLOOKUP($P27,$P$98:$CS$631,S$30,FALSE))) ->  | T27: =IF(Süt!$B29="","",IF(Süt!$C29<=0,"",VLOOKUP($P27,$P$98:$CS$631,T$30,FALSE))) ->  | U27: =IF(Süt!$B29="","",IF(Süt!$C29<=0,"",VLOOKUP($P27,$P$98:$CS$631,U$30,FALSE))) ->  | V27: =IF(Süt!$B29="","",IF(Süt!$C29<=0,"",VLOOKUP($P27,$P$98:$CS$631,V$30,FALSE))) ->  | W27: =IF(Süt!$B29="","",IF(Süt!$C29<=0,"",VLOOKUP($P27,$P$98:$CS$631,W$30,FALSE))) ->  | X27: =IF(Süt!$B29="","",IF(Süt!$C29<=0,"",VLOOKUP($P27,$P$98:$CS$631,X$30,FALSE))) ->  | Y27: =IF(Süt!$B29="","",IF(Süt!$C29<=0,"",VLOOKUP($P27,$P$98:$CS$631,Y$30,FALSE))) ->  | Z27: =IF(Süt!$B29="","",IF(Süt!$C29<=0,"",VLOOKUP($P27,$P$98:$CS$631,Z$30,FALSE))) ->  | AA27: =IF(Süt!$B29="","",IF(Süt!$C29<=0,"",VLOOKUP($P27,$P$98:$CS$631,AA$30,FALSE))) ->  | AB27: =IF(Süt!$B29="","",IF(Süt!$C29<=0,"",VLOOKUP($P27,$P$98:$CS$631,AB$30,FALSE))) ->  | AC27: =IF(Süt!$B29="","",IF(Süt!$C29<=0,"",VLOOKUP($P27,$P$98:$CS$631,AC$30,FALSE))) ->  | AD27: =IF(Süt!$B29="","",IF(Süt!$C29<=0,"",VLOOKUP($P27,$P$98:$CS$631,AD$30,FALSE))) ->  | AE27: =IF(Süt!$B29="","",IF(Süt!$C29<=0,"",VLOOKUP($P27,$P$98:$CS$631,AE$30,FALSE))) ->  | AF27: =IF(Süt!$B29="","",IF(Süt!$C29<=0,"",VLOOKUP($P27,$P$98:$CS$631,AF$30,FALSE))) ->  | AG27: =IF(Süt!$B29="","",IF(Süt!$C29<=0,"",VLOOKUP($P27,$P$98:$CS$631,AG$30,FALSE))) ->  | AH27: =IF(Süt!$B29="","",IF(Süt!$C29<=0,"",VLOOKUP($P27,$P$98:$CS$631,AH$30,FALSE))) ->  | AI27: =IF(Süt!$B29="","",IF(Süt!$C29<=0,"",VLOOKUP($P27,$P$98:$CS$631,AI$30,FALSE))) ->  | AJ27: =IF(Süt!$B29="","",IF(Süt!$C29<=0,"",VLOOKUP($P27,$P$98:$CS$631,AJ$30,FALSE))) ->  | AK27: =IF(Süt!$B29="","",IF(Süt!$C29<=0,"",VLOOKUP($P27,$P$98:$CS$631,AK$30,FALSE))) ->  | AL27: =IF(Süt!$B29="","",IF(Süt!$C29<=0,"",VLOOKUP($P27,$P$98:$CS$631,AL$30,FALSE))) ->  | AM27: =IF(Süt!$B29="","",IF(Süt!$C29<=0,"",VLOOKUP($P27,$P$98:$CS$631,AM$30,FALSE))) ->  | AN27: =IF(Süt!$B29="","",IF(Süt!$C29<=0,"",VLOOKUP($P27,$P$98:$CS$631,AN$30,FALSE))) ->  | AO27: =IF(Süt!$B29="","",IF(Süt!$C29<=0,"",VLOOKUP($P27,$P$98:$CS$631,AO$30,FALSE))) ->  | AP27: =IF(Süt!$B29="","",IF(Süt!$C29<=0,"",VLOOKUP($P27,$P$98:$CS$631,AP$30,FALSE))) ->  | AQ27: =IF(Süt!$B29="","",IF(Süt!$C29<=0,"",VLOOKUP($P27,$P$98:$CS$631,AQ$30,FALSE))) ->  | AR27: =IF(Süt!$B29="","",IF(Süt!$C29<=0,"",VLOOKUP($P27,$P$98:$CS$631,AR$30,FALSE))) ->  | AS27: =IF(Süt!$B29="","",IF(Süt!$C29<=0,"",VLOOKUP($P27,$P$98:$CS$631,AS$30,FALSE))) ->  | AT27: =IF(Süt!$B29="","",IF(Süt!$C29<=0,"",VLOOKUP($P27,$P$98:$CS$631,AT$30,FALSE))) ->  | AU27: =IF(Süt!$B29="","",IF(Süt!$C29<=0,"",VLOOKUP($P27,$P$98:$CS$631,AU$30,FALSE))) ->  | AV27: =IF(Süt!$B29="","",IF(Süt!$C29<=0,"",VLOOKUP($P27,$P$98:$CS$631,AV$30,FALSE))) ->  | AW27: =IF(Süt!$B29="","",IF(Süt!$C29<=0,"",VLOOKUP($P27,$P$98:$CS$631,AW$30,FALSE))) ->  | AX27: =IF(Süt!$B29="","",IF(Süt!$C29<=0,"",VLOOKUP($P27,$P$98:$CS$631,AX$30,FALSE))) ->  | AY27: =IF(Süt!$B29="","",IF(Süt!$C29<=0,"",VLOOKUP($P27,$P$98:$CS$631,AY$30,FALSE))) ->  | AZ27: =IF(Süt!$B29="","",IF(Süt!$C29<=0,"",VLOOKUP($P27,$P$98:$CS$631,AZ$30,FALSE))) ->  | BA27: =IF(Süt!$B29="","",IF(Süt!$C29<=0,"",VLOOKUP($P27,$P$98:$CS$631,BA$30,FALSE))) ->  | BB27: =IF(Süt!$B29="","",IF(Süt!$C29<=0,"",VLOOKUP($P27,$P$98:$CS$631,BB$30,FALSE))) ->  | BC27: =IF(Süt!$B29="","",IF(Süt!$C29<=0,"",VLOOKUP($P27,$P$98:$CS$631,BC$30,FALSE))) ->  | BD27: =IF(Süt!$B29="","",IF(Süt!$C29<=0,"",VLOOKUP($P27,$P$98:$CS$631,BD$30,FALSE))) ->  | BE27: =IF(Süt!$B29="","",IF(Süt!$C29<=0,"",VLOOKUP($P27,$P$98:$CS$631,BE$30,FALSE))) ->  | BF27: =IF(Süt!$B29="","",IF(Süt!$C29<=0,"",VLOOKUP($P27,$P$98:$CS$631,BF$30,FALSE))) ->  | BG27: =IF(Süt!$B29="","",IF(Süt!$C29<=0,"",VLOOKUP($P27,$P$98:$CS$631,BG$30,FALSE))) ->  | BH27: =IF(Süt!$B29="","",IF(Süt!$C29<=0,"",VLOOKUP($P27,$P$98:$CS$631,BH$30,FALSE))) ->  | BI27: =IF(Süt!$B29="","",IF(Süt!$C29<=0,"",VLOOKUP($P27,$P$98:$CS$631,BI$30,FALSE))) ->  | BJ27: =IF(Süt!$B29="","",IF(Süt!$C29<=0,"",VLOOKUP($P27,$P$98:$CS$631,BJ$30,FALSE))) ->  | BK27: =IF(Süt!$B29="","",IF(Süt!$C29<=0,"",VLOOKUP($P27,$P$98:$CS$631,BK$30,FALSE))) ->  | BL27: =IF(Süt!$B29="","",IF(Süt!$C29<=0,"",VLOOKUP($P27,$P$98:$CS$631,BL$30,FALSE))) ->  | BM27: =IF(Süt!$B29="","",IF(Süt!$C29<=0,"",VLOOKUP($P27,$P$98:$CS$631,BM$30,FALSE))) ->  | BN27: =IF(Süt!$B29="","",IF(Süt!$C29<=0,"",VLOOKUP($P27,$P$98:$CS$631,BN$30,FALSE))) ->  | BO27: =IF(Süt!$B29="","",IF(Süt!$C29<=0,"",VLOOKUP($P27,$P$98:$CS$631,BO$30,FALSE))) ->  | BP27: =IF(Süt!$B29="","",IF(Süt!$C29<=0,"",VLOOKUP($P27,$P$98:$CS$631,BP$30,FALSE))) ->  | BQ27: =IF(Süt!$B29="","",IF(Süt!$C29<=0,"",VLOOKUP($P27,$P$98:$CS$631,BQ$30,FALSE))) ->  | BR27: =IF(Süt!$B29="","",IF(Süt!$C29<=0,"",VLOOKUP($P27,$P$98:$CS$631,BR$30,FALSE))) ->  | BS27: =IF(Süt!$B29="","",IF(Süt!$C29<=0,"",VLOOKUP($P27,$P$98:$CS$631,BS$30,FALSE))) ->  | BT27: =IF(Süt!$B29="","",IF(Süt!$C29<=0,"",VLOOKUP($P27,$P$98:$CS$631,BT$30,FALSE))) ->  | BU27: =IF(Süt!$B29="","",IF(Süt!$C29<=0,"",VLOOKUP($P27,$P$98:$CS$631,BU$30,FALSE))) ->  | BV27: =IF(Süt!$B29="","",IF(Süt!$C29<=0,"",VLOOKUP($P27,$P$98:$CS$631,BV$30,FALSE))) ->  | BW27: =IF(Süt!$B29="","",IF(Süt!$C29<=0,"",VLOOKUP($P27,$P$98:$CS$631,BW$30,FALSE))) ->  | BX27: =IF(Süt!$B29="","",IF(Süt!$C29<=0,"",VLOOKUP($P27,$P$98:$CS$631,BX$30,FALSE))) ->  | BY27: =IF(Süt!$B29="","",IF(Süt!$C29<=0,"",VLOOKUP($P27,$P$98:$CS$631,BY$30,FALSE))) ->  | BZ27: =IF(Süt!$B29="","",IF(Süt!$C29<=0,"",VLOOKUP($P27,$P$98:$CS$631,BZ$30,FALSE))) ->  | CA27: =IF(Süt!$B29="","",IF(Süt!$C29<=0,"",VLOOKUP($P27,$P$98:$CS$631,CA$30,FALSE))) ->  | CB27: =IF(Süt!$B29="","",IF(Süt!$C29<=0,"",VLOOKUP($P27,$P$98:$CS$631,CB$30,FALSE))) ->  | CC27: =IF(Süt!$B29="","",IF(Süt!$C29<=0,"",VLOOKUP($P27,$P$98:$CS$631,CC$30,FALSE))) ->  | CD27: =IF(Süt!$B29="","",IF(Süt!$C29<=0,"",VLOOKUP($P27,$P$98:$CS$631,CD$30,FALSE))) ->  | CE27: =IF(Süt!$B29="","",IF(Süt!$C29<=0,"",VLOOKUP($P27,$P$98:$CS$631,CE$30,FALSE))) ->  | CF27: =IF(Süt!$B29="","",IF(Süt!$C29<=0,"",VLOOKUP($P27,$P$98:$CS$631,CF$30,FALSE))) ->  | CG27: =IF(Süt!$B29="","",IF(Süt!$C29<=0,"",VLOOKUP($P27,$P$98:$CS$631,CG$30,FALSE))) ->  | CH27: =IF(Süt!$B29="","",IF(Süt!$C29<=0,"",VLOOKUP($P27,$P$98:$CS$631,CH$30,FALSE))) ->  | CI27: =IF(Süt!$B29="","",IF(Süt!$C29<=0,"",VLOOKUP($P27,$P$98:$CS$631,CI$30,FALSE))) ->  | CJ27: =IF(Süt!$B29="","",IF(Süt!$C29<=0,"",VLOOKUP($P27,$P$98:$CS$631,CJ$30,FALSE))) ->  | CK27: =IF(Süt!$B29="","",IF(Süt!$C29<=0,"",VLOOKUP($P27,$P$98:$CS$631,CK$30,FALSE))) ->  | CL27: =IF(Süt!$B29="","",IF(Süt!$C29<=0,"",VLOOKUP($P27,$P$98:$CS$631,CL$30,FALSE))) ->  | CM27: =IF(Süt!$B29="","",IF(Süt!$C29<=0,"",VLOOKUP($P27,$P$98:$CS$631,CM$30,FALSE))) ->  | CN27: =IF(Süt!$B29="","",IF(Süt!$C29<=0,"",VLOOKUP($P27,$P$98:$CS$631,CN$30,FALSE))) ->  | CO27: =IF(Süt!$B29="","",IF(Süt!$C29<=0,"",VLOOKUP($P27,$P$98:$CS$631,CO$30,FALSE))) ->  | CP27: =IF(Süt!$B29="","",IF(Süt!$C29<=0,"",VLOOKUP($P27,$P$98:$CS$631,CP$30,FALSE))) ->  | CQ27: =IF(Süt!$B29="","",IF(Süt!$C29<=0,"",VLOOKUP($P27,$P$98:$CS$631,CQ$30,FALSE))) ->  | CR27: =IF(Süt!$B29="","",IF(Süt!$C29<=0,"",VLOOKUP($P27,$P$98:$CS$631,CR$30,FALSE))) ->  | CS27: =IF(Süt!$B29="","",IF(Süt!$C29<=0,"",VLOOKUP($P27,$P$98:$CS$631,CS$30,FALSE))) ->  | CT27: -9 | CU27: 0.378 | CV27: 0.648 | CW27: Wt1st | CX27: =MW*0.82 -> 559.24 | CY27: kg, İlk buzağılama ağırlığı | DJ27: Temiz/Kuru
A28: =IF(Süt!A28="","",Süt!A28) ->  | B28: =IF(Süt!B28="","",Süt!B28) ->  | C28: =IF(Süt!C28="","",Süt!C28) ->  | D28: =Süt!D28 -> 0 | E28: =Süt!E28 -> 0 | F28: =Süt!F28 -> 0 | G28: =IF(AnimalType="Damızlık Düve","Enerjinin sağlayabileceği GCAA, g",IF(AnimalType="Sağmal İnek","Enerjinin sağlayabileceği süt, kg",0)) -> Enerjinin sağlayabileceği süt, kg | I28: =IF(AnimalType="Damızlık Düve",IF(DaysPreg>0,MEAllowGainPreg*1000,MEAllowGain*1000),IF(AnimalType="Sağmal İnek",EnergyAllowableMilk,0)) -> 26.290028 | M28: 0 | P28: =IF(Süt!B30="","",IF(Süt!C30<=0,"",Süt!B30)) ->  | Q28: =IF(Süt!$B30="","",IF(Süt!$C30<=0,"",VLOOKUP($P28,$P$98:$CS$631,Q$30,FALSE))) ->  | R28: =IF(Süt!$B30="","",IF(Süt!$C30<=0,"",VLOOKUP($P28,$P$98:$CS$631,R$30,FALSE))) ->  | S28: =IF(Süt!$B30="","",IF(Süt!$C30<=0,"",VLOOKUP($P28,$P$98:$CS$631,S$30,FALSE))) ->  | T28: =IF(Süt!$B30="","",IF(Süt!$C30<=0,"",VLOOKUP($P28,$P$98:$CS$631,T$30,FALSE))) ->  | U28: =IF(Süt!$B30="","",IF(Süt!$C30<=0,"",VLOOKUP($P28,$P$98:$CS$631,U$30,FALSE))) ->  | V28: =IF(Süt!$B30="","",IF(Süt!$C30<=0,"",VLOOKUP($P28,$P$98:$CS$631,V$30,FALSE))) ->  | W28: =IF(Süt!$B30="","",IF(Süt!$C30<=0,"",VLOOKUP($P28,$P$98:$CS$631,W$30,FALSE))) ->  | X28: =IF(Süt!$B30="","",IF(Süt!$C30<=0,"",VLOOKUP($P28,$P$98:$CS$631,X$30,FALSE))) ->  | Y28: =IF(Süt!$B30="","",IF(Süt!$C30<=0,"",VLOOKUP($P28,$P$98:$CS$631,Y$30,FALSE))) ->  | Z28: =IF(Süt!$B30="","",IF(Süt!$C30<=0,"",VLOOKUP($P28,$P$98:$CS$631,Z$30,FALSE))) ->  | AA28: =IF(Süt!$B30="","",IF(Süt!$C30<=0,"",VLOOKUP($P28,$P$98:$CS$631,AA$30,FALSE))) ->  | AB28: =IF(Süt!$B30="","",IF(Süt!$C30<=0,"",VLOOKUP($P28,$P$98:$CS$631,AB$30,FALSE))) ->  | AC28: =IF(Süt!$B30="","",IF(Süt!$C30<=0,"",VLOOKUP($P28,$P$98:$CS$631,AC$30,FALSE))) ->  | AD28: =IF(Süt!$B30="","",IF(Süt!$C30<=0,"",VLOOKUP($P28,$P$98:$CS$631,AD$30,FALSE))) ->  | AE28: =IF(Süt!$B30="","",IF(Süt!$C30<=0,"",VLOOKUP($P28,$P$98:$CS$631,AE$30,FALSE))) ->  | AF28: =IF(Süt!$B30="","",IF(Süt!$C30<=0,"",VLOOKUP($P28,$P$98:$CS$631,AF$30,FALSE))) ->  | AG28: =IF(Süt!$B30="","",IF(Süt!$C30<=0,"",VLOOKUP($P28,$P$98:$CS$631,AG$30,FALSE))) ->  | AH28: =IF(Süt!$B30="","",IF(Süt!$C30<=0,"",VLOOKUP($P28,$P$98:$CS$631,AH$30,FALSE))) ->  | AI28: =IF(Süt!$B30="","",IF(Süt!$C30<=0,"",VLOOKUP($P28,$P$98:$CS$631,AI$30,FALSE))) ->  | AJ28: =IF(Süt!$B30="","",IF(Süt!$C30<=0,"",VLOOKUP($P28,$P$98:$CS$631,AJ$30,FALSE))) ->  | AK28: =IF(Süt!$B30="","",IF(Süt!$C30<=0,"",VLOOKUP($P28,$P$98:$CS$631,AK$30,FALSE))) ->  | AL28: =IF(Süt!$B30="","",IF(Süt!$C30<=0,"",VLOOKUP($P28,$P$98:$CS$631,AL$30,FALSE))) ->  | AM28: =IF(Süt!$B30="","",IF(Süt!$C30<=0,"",VLOOKUP($P28,$P$98:$CS$631,AM$30,FALSE))) ->  | AN28: =IF(Süt!$B30="","",IF(Süt!$C30<=0,"",VLOOKUP($P28,$P$98:$CS$631,AN$30,FALSE))) ->  | AO28: =IF(Süt!$B30="","",IF(Süt!$C30<=0,"",VLOOKUP($P28,$P$98:$CS$631,AO$30,FALSE))) ->  | AP28: =IF(Süt!$B30="","",IF(Süt!$C30<=0,"",VLOOKUP($P28,$P$98:$CS$631,AP$30,FALSE))) ->  | AQ28: =IF(Süt!$B30="","",IF(Süt!$C30<=0,"",VLOOKUP($P28,$P$98:$CS$631,AQ$30,FALSE))) ->  | AR28: =IF(Süt!$B30="","",IF(Süt!$C30<=0,"",VLOOKUP($P28,$P$98:$CS$631,AR$30,FALSE))) ->  | AS28: =IF(Süt!$B30="","",IF(Süt!$C30<=0,"",VLOOKUP($P28,$P$98:$CS$631,AS$30,FALSE))) ->  | AT28: =IF(Süt!$B30="","",IF(Süt!$C30<=0,"",VLOOKUP($P28,$P$98:$CS$631,AT$30,FALSE))) ->  | AU28: =IF(Süt!$B30="","",IF(Süt!$C30<=0,"",VLOOKUP($P28,$P$98:$CS$631,AU$30,FALSE))) ->  | AV28: =IF(Süt!$B30="","",IF(Süt!$C30<=0,"",VLOOKUP($P28,$P$98:$CS$631,AV$30,FALSE))) ->  | AW28: =IF(Süt!$B30="","",IF(Süt!$C30<=0,"",VLOOKUP($P28,$P$98:$CS$631,AW$30,FALSE))) ->  | AX28: =IF(Süt!$B30="","",IF(Süt!$C30<=0,"",VLOOKUP($P28,$P$98:$CS$631,AX$30,FALSE))) ->  | AY28: =IF(Süt!$B30="","",IF(Süt!$C30<=0,"",VLOOKUP($P28,$P$98:$CS$631,AY$30,FALSE))) ->  | AZ28: =IF(Süt!$B30="","",IF(Süt!$C30<=0,"",VLOOKUP($P28,$P$98:$CS$631,AZ$30,FALSE))) ->  | BA28: =IF(Süt!$B30="","",IF(Süt!$C30<=0,"",VLOOKUP($P28,$P$98:$CS$631,BA$30,FALSE))) ->  | BB28: =IF(Süt!$B30="","",IF(Süt!$C30<=0,"",VLOOKUP($P28,$P$98:$CS$631,BB$30,FALSE))) ->  | BC28: =IF(Süt!$B30="","",IF(Süt!$C30<=0,"",VLOOKUP($P28,$P$98:$CS$631,BC$30,FALSE))) ->  | BD28: =IF(Süt!$B30="","",IF(Süt!$C30<=0,"",VLOOKUP($P28,$P$98:$CS$631,BD$30,FALSE))) ->  | BE28: =IF(Süt!$B30="","",IF(Süt!$C30<=0,"",VLOOKUP($P28,$P$98:$CS$631,BE$30,FALSE))) ->  | BF28: =IF(Süt!$B30="","",IF(Süt!$C30<=0,"",VLOOKUP($P28,$P$98:$CS$631,BF$30,FALSE))) ->  | BG28: =IF(Süt!$B30="","",IF(Süt!$C30<=0,"",VLOOKUP($P28,$P$98:$CS$631,BG$30,FALSE))) ->  | BH28: =IF(Süt!$B30="","",IF(Süt!$C30<=0,"",VLOOKUP($P28,$P$98:$CS$631,BH$30,FALSE))) ->  | BI28: =IF(Süt!$B30="","",IF(Süt!$C30<=0,"",VLOOKUP($P28,$P$98:$CS$631,BI$30,FALSE))) ->  | BJ28: =IF(Süt!$B30="","",IF(Süt!$C30<=0,"",VLOOKUP($P28,$P$98:$CS$631,BJ$30,FALSE))) ->  | BK28: =IF(Süt!$B30="","",IF(Süt!$C30<=0,"",VLOOKUP($P28,$P$98:$CS$631,BK$30,FALSE))) ->  | BL28: =IF(Süt!$B30="","",IF(Süt!$C30<=0,"",VLOOKUP($P28,$P$98:$CS$631,BL$30,FALSE))) ->  | BM28: =IF(Süt!$B30="","",IF(Süt!$C30<=0,"",VLOOKUP($P28,$P$98:$CS$631,BM$30,FALSE))) ->  | BN28: =IF(Süt!$B30="","",IF(Süt!$C30<=0,"",VLOOKUP($P28,$P$98:$CS$631,BN$30,FALSE))) ->  | BO28: =IF(Süt!$B30="","",IF(Süt!$C30<=0,"",VLOOKUP($P28,$P$98:$CS$631,BO$30,FALSE))) ->  | BP28: =IF(Süt!$B30="","",IF(Süt!$C30<=0,"",VLOOKUP($P28,$P$98:$CS$631,BP$30,FALSE))) ->  | BQ28: =IF(Süt!$B30="","",IF(Süt!$C30<=0,"",VLOOKUP($P28,$P$98:$CS$631,BQ$30,FALSE))) ->  | BR28: =IF(Süt!$B30="","",IF(Süt!$C30<=0,"",VLOOKUP($P28,$P$98:$CS$631,BR$30,FALSE))) ->  | BS28: =IF(Süt!$B30="","",IF(Süt!$C30<=0,"",VLOOKUP($P28,$P$98:$CS$631,BS$30,FALSE))) ->  | BT28: =IF(Süt!$B30="","",IF(Süt!$C30<=0,"",VLOOKUP($P28,$P$98:$CS$631,BT$30,FALSE))) ->  | BU28: =IF(Süt!$B30="","",IF(Süt!$C30<=0,"",VLOOKUP($P28,$P$98:$CS$631,BU$30,FALSE))) ->  | BV28: =IF(Süt!$B30="","",IF(Süt!$C30<=0,"",VLOOKUP($P28,$P$98:$CS$631,BV$30,FALSE))) ->  | BW28: =IF(Süt!$B30="","",IF(Süt!$C30<=0,"",VLOOKUP($P28,$P$98:$CS$631,BW$30,FALSE))) ->  | BX28: =IF(Süt!$B30="","",IF(Süt!$C30<=0,"",VLOOKUP($P28,$P$98:$CS$631,BX$30,FALSE))) ->  | BY28: =IF(Süt!$B30="","",IF(Süt!$C30<=0,"",VLOOKUP($P28,$P$98:$CS$631,BY$30,FALSE))) ->  | BZ28: =IF(Süt!$B30="","",IF(Süt!$C30<=0,"",VLOOKUP($P28,$P$98:$CS$631,BZ$30,FALSE))) ->  | CA28: =IF(Süt!$B30="","",IF(Süt!$C30<=0,"",VLOOKUP($P28,$P$98:$CS$631,CA$30,FALSE))) ->  | CB28: =IF(Süt!$B30="","",IF(Süt!$C30<=0,"",VLOOKUP($P28,$P$98:$CS$631,CB$30,FALSE))) ->  | CC28: =IF(Süt!$B30="","",IF(Süt!$C30<=0,"",VLOOKUP($P28,$P$98:$CS$631,CC$30,FALSE))) ->  | CD28: =IF(Süt!$B30="","",IF(Süt!$C30<=0,"",VLOOKUP($P28,$P$98:$CS$631,CD$30,FALSE))) ->  | CE28: =IF(Süt!$B30="","",IF(Süt!$C30<=0,"",VLOOKUP($P28,$P$98:$CS$631,CE$30,FALSE))) ->  | CF28: =IF(Süt!$B30="","",IF(Süt!$C30<=0,"",VLOOKUP($P28,$P$98:$CS$631,CF$30,FALSE))) ->  | CG28: =IF(Süt!$B30="","",IF(Süt!$C30<=0,"",VLOOKUP($P28,$P$98:$CS$631,CG$30,FALSE))) ->  | CH28: =IF(Süt!$B30="","",IF(Süt!$C30<=0,"",VLOOKUP($P28,$P$98:$CS$631,CH$30,FALSE))) ->  | CI28: =IF(Süt!$B30="","",IF(Süt!$C30<=0,"",VLOOKUP($P28,$P$98:$CS$631,CI$30,FALSE))) ->  | CJ28: =IF(Süt!$B30="","",IF(Süt!$C30<=0,"",VLOOKUP($P28,$P$98:$CS$631,CJ$30,FALSE))) ->  | CK28: =IF(Süt!$B30="","",IF(Süt!$C30<=0,"",VLOOKUP($P28,$P$98:$CS$631,CK$30,FALSE))) ->  | CL28: =IF(Süt!$B30="","",IF(Süt!$C30<=0,"",VLOOKUP($P28,$P$98:$CS$631,CL$30,FALSE))) ->  | CM28: =IF(Süt!$B30="","",IF(Süt!$C30<=0,"",VLOOKUP($P28,$P$98:$CS$631,CM$30,FALSE))) ->  | CN28: =IF(Süt!$B30="","",IF(Süt!$C30<=0,"",VLOOKUP($P28,$P$98:$CS$631,CN$30,FALSE))) ->  | CO28: =IF(Süt!$B30="","",IF(Süt!$C30<=0,"",VLOOKUP($P28,$P$98:$CS$631,CO$30,FALSE))) ->  | CP28: =IF(Süt!$B30="","",IF(Süt!$C30<=0,"",VLOOKUP($P28,$P$98:$CS$631,CP$30,FALSE))) ->  | CQ28: =IF(Süt!$B30="","",IF(Süt!$C30<=0,"",VLOOKUP($P28,$P$98:$CS$631,CQ$30,FALSE))) ->  | CR28: =IF(Süt!$B30="","",IF(Süt!$C30<=0,"",VLOOKUP($P28,$P$98:$CS$631,CR$30,FALSE))) ->  | CS28: =IF(Süt!$B30="","",IF(Süt!$C30<=0,"",VLOOKUP($P28,$P$98:$CS$631,CS$30,FALSE))) ->  | CT28: -10 | CU28: 0.405 | CV28: 0.675 | CW28: Wt2nd | CX28: =MW*0.92 -> 627.44 | CY28: kg, İkinci buzağılama ağırlığı | DJ28: Biraz Çamurlu
A29: =IF(Süt!A29="","",Süt!A29) ->  | B29: =IF(Süt!B29="","",Süt!B29) ->  | C29: =IF(Süt!C29="","",Süt!C29) ->  | D29: =Süt!D29 -> 0 | E29: =Süt!E29 -> 0 | F29: =Süt!F29 -> 0 | G29: Kesif yem; Miktarı,kg | I29: =IF(OR(J2="TAMAM",J2="FAZLA")=TRUE,"",(H2-I2)) ->  | M29: 0 | P29: =IF(Süt!B31="","",IF(Süt!C31<=0,"",Süt!B31)) ->  | Q29: =IF(Süt!$B31="","",IF(Süt!$C31<=0,"",VLOOKUP($P29,$P$98:$CS$631,Q$30,FALSE))) ->  | R29: =IF(Süt!$B31="","",IF(Süt!$C31<=0,"",VLOOKUP($P29,$P$98:$CS$631,R$30,FALSE))) ->  | S29: =IF(Süt!$B31="","",IF(Süt!$C31<=0,"",VLOOKUP($P29,$P$98:$CS$631,S$30,FALSE))) ->  | T29: =IF(Süt!$B31="","",IF(Süt!$C31<=0,"",VLOOKUP($P29,$P$98:$CS$631,T$30,FALSE))) ->  | U29: =IF(Süt!$B31="","",IF(Süt!$C31<=0,"",VLOOKUP($P29,$P$98:$CS$631,U$30,FALSE))) ->  | V29: =IF(Süt!$B31="","",IF(Süt!$C31<=0,"",VLOOKUP($P29,$P$98:$CS$631,V$30,FALSE))) ->  | W29: =IF(Süt!$B31="","",IF(Süt!$C31<=0,"",VLOOKUP($P29,$P$98:$CS$631,W$30,FALSE))) ->  | X29: =IF(Süt!$B31="","",IF(Süt!$C31<=0,"",VLOOKUP($P29,$P$98:$CS$631,X$30,FALSE))) ->  | Y29: =IF(Süt!$B31="","",IF(Süt!$C31<=0,"",VLOOKUP($P29,$P$98:$CS$631,Y$30,FALSE))) ->  | Z29: =IF(Süt!$B31="","",IF(Süt!$C31<=0,"",VLOOKUP($P29,$P$98:$CS$631,Z$30,FALSE))) ->  | AA29: =IF(Süt!$B31="","",IF(Süt!$C31<=0,"",VLOOKUP($P29,$P$98:$CS$631,AA$30,FALSE))) ->  | AB29: =IF(Süt!$B31="","",IF(Süt!$C31<=0,"",VLOOKUP($P29,$P$98:$CS$631,AB$30,FALSE))) ->  | AC29: =IF(Süt!$B31="","",IF(Süt!$C31<=0,"",VLOOKUP($P29,$P$98:$CS$631,AC$30,FALSE))) ->  | AD29: =IF(Süt!$B31="","",IF(Süt!$C31<=0,"",VLOOKUP($P29,$P$98:$CS$631,AD$30,FALSE))) ->  | AE29: =IF(Süt!$B31="","",IF(Süt!$C31<=0,"",VLOOKUP($P29,$P$98:$CS$631,AE$30,FALSE))) ->  | AF29: =IF(Süt!$B31="","",IF(Süt!$C31<=0,"",VLOOKUP($P29,$P$98:$CS$631,AF$30,FALSE))) ->  | AG29: =IF(Süt!$B31="","",IF(Süt!$C31<=0,"",VLOOKUP($P29,$P$98:$CS$631,AG$30,FALSE))) ->  | AH29: =IF(Süt!$B31="","",IF(Süt!$C31<=0,"",VLOOKUP($P29,$P$98:$CS$631,AH$30,FALSE))) ->  | AI29: =IF(Süt!$B31="","",IF(Süt!$C31<=0,"",VLOOKUP($P29,$P$98:$CS$631,AI$30,FALSE))) ->  | AJ29: =IF(Süt!$B31="","",IF(Süt!$C31<=0,"",VLOOKUP($P29,$P$98:$CS$631,AJ$30,FALSE))) ->  | AK29: =IF(Süt!$B31="","",IF(Süt!$C31<=0,"",VLOOKUP($P29,$P$98:$CS$631,AK$30,FALSE))) ->  | AL29: =IF(Süt!$B31="","",IF(Süt!$C31<=0,"",VLOOKUP($P29,$P$98:$CS$631,AL$30,FALSE))) ->  | AM29: =IF(Süt!$B31="","",IF(Süt!$C31<=0,"",VLOOKUP($P29,$P$98:$CS$631,AM$30,FALSE))) ->  | AN29: =IF(Süt!$B31="","",IF(Süt!$C31<=0,"",VLOOKUP($P29,$P$98:$CS$631,AN$30,FALSE))) ->  | AO29: =IF(Süt!$B31="","",IF(Süt!$C31<=0,"",VLOOKUP($P29,$P$98:$CS$631,AO$30,FALSE))) ->  | AP29: =IF(Süt!$B31="","",IF(Süt!$C31<=0,"",VLOOKUP($P29,$P$98:$CS$631,AP$30,FALSE))) ->  | AQ29: =IF(Süt!$B31="","",IF(Süt!$C31<=0,"",VLOOKUP($P29,$P$98:$CS$631,AQ$30,FALSE))) ->  | AR29: =IF(Süt!$B31="","",IF(Süt!$C31<=0,"",VLOOKUP($P29,$P$98:$CS$631,AR$30,FALSE))) ->  | AS29: =IF(Süt!$B31="","",IF(Süt!$C31<=0,"",VLOOKUP($P29,$P$98:$CS$631,AS$30,FALSE))) ->  | AT29: =IF(Süt!$B31="","",IF(Süt!$C31<=0,"",VLOOKUP($P29,$P$98:$CS$631,AT$30,FALSE))) ->  | AU29: =IF(Süt!$B31="","",IF(Süt!$C31<=0,"",VLOOKUP($P29,$P$98:$CS$631,AU$30,FALSE))) ->  | AV29: =IF(Süt!$B31="","",IF(Süt!$C31<=0,"",VLOOKUP($P29,$P$98:$CS$631,AV$30,FALSE))) ->  | AW29: =IF(Süt!$B31="","",IF(Süt!$C31<=0,"",VLOOKUP($P29,$P$98:$CS$631,AW$30,FALSE))) ->  | AX29: =IF(Süt!$B31="","",IF(Süt!$C31<=0,"",VLOOKUP($P29,$P$98:$CS$631,AX$30,FALSE))) ->  | AY29: =IF(Süt!$B31="","",IF(Süt!$C31<=0,"",VLOOKUP($P29,$P$98:$CS$631,AY$30,FALSE))) ->  | AZ29: =IF(Süt!$B31="","",IF(Süt!$C31<=0,"",VLOOKUP($P29,$P$98:$CS$631,AZ$30,FALSE))) ->  | BA29: =IF(Süt!$B31="","",IF(Süt!$C31<=0,"",VLOOKUP($P29,$P$98:$CS$631,BA$30,FALSE))) ->  | BB29: =IF(Süt!$B31="","",IF(Süt!$C31<=0,"",VLOOKUP($P29,$P$98:$CS$631,BB$30,FALSE))) ->  | BC29: =IF(Süt!$B31="","",IF(Süt!$C31<=0,"",VLOOKUP($P29,$P$98:$CS$631,BC$30,FALSE))) ->  | BD29: =IF(Süt!$B31="","",IF(Süt!$C31<=0,"",VLOOKUP($P29,$P$98:$CS$631,BD$30,FALSE))) ->  | BE29: =IF(Süt!$B31="","",IF(Süt!$C31<=0,"",VLOOKUP($P29,$P$98:$CS$631,BE$30,FALSE))) ->  | BF29: =IF(Süt!$B31="","",IF(Süt!$C31<=0,"",VLOOKUP($P29,$P$98:$CS$631,BF$30,FALSE))) ->  | BG29: =IF(Süt!$B31="","",IF(Süt!$C31<=0,"",VLOOKUP($P29,$P$98:$CS$631,BG$30,FALSE))) ->  | BH29: =IF(Süt!$B31="","",IF(Süt!$C31<=0,"",VLOOKUP($P29,$P$98:$CS$631,BH$30,FALSE))) ->  | BI29: =IF(Süt!$B31="","",IF(Süt!$C31<=0,"",VLOOKUP($P29,$P$98:$CS$631,BI$30,FALSE))) ->  | BJ29: =IF(Süt!$B31="","",IF(Süt!$C31<=0,"",VLOOKUP($P29,$P$98:$CS$631,BJ$30,FALSE))) ->  | BK29: =IF(Süt!$B31="","",IF(Süt!$C31<=0,"",VLOOKUP($P29,$P$98:$CS$631,BK$30,FALSE))) ->  | BL29: =IF(Süt!$B31="","",IF(Süt!$C31<=0,"",VLOOKUP($P29,$P$98:$CS$631,BL$30,FALSE))) ->  | BM29: =IF(Süt!$B31="","",IF(Süt!$C31<=0,"",VLOOKUP($P29,$P$98:$CS$631,BM$30,FALSE))) ->  | BN29: =IF(Süt!$B31="","",IF(Süt!$C31<=0,"",VLOOKUP($P29,$P$98:$CS$631,BN$30,FALSE))) ->  | BO29: =IF(Süt!$B31="","",IF(Süt!$C31<=0,"",VLOOKUP($P29,$P$98:$CS$631,BO$30,FALSE))) ->  | BP29: =IF(Süt!$B31="","",IF(Süt!$C31<=0,"",VLOOKUP($P29,$P$98:$CS$631,BP$30,FALSE))) ->  | BQ29: =IF(Süt!$B31="","",IF(Süt!$C31<=0,"",VLOOKUP($P29,$P$98:$CS$631,BQ$30,FALSE))) ->  | BR29: =IF(Süt!$B31="","",IF(Süt!$C31<=0,"",VLOOKUP($P29,$P$98:$CS$631,BR$30,FALSE))) ->  | BS29: =IF(Süt!$B31="","",IF(Süt!$C31<=0,"",VLOOKUP($P29,$P$98:$CS$631,BS$30,FALSE))) ->  | BT29: =IF(Süt!$B31="","",IF(Süt!$C31<=0,"",VLOOKUP($P29,$P$98:$CS$631,BT$30,FALSE))) ->  | BU29: =IF(Süt!$B31="","",IF(Süt!$C31<=0,"",VLOOKUP($P29,$P$98:$CS$631,BU$30,FALSE))) ->  | BV29: =IF(Süt!$B31="","",IF(Süt!$C31<=0,"",VLOOKUP($P29,$P$98:$CS$631,BV$30,FALSE))) ->  | BW29: =IF(Süt!$B31="","",IF(Süt!$C31<=0,"",VLOOKUP($P29,$P$98:$CS$631,BW$30,FALSE))) ->  | BX29: =IF(Süt!$B31="","",IF(Süt!$C31<=0,"",VLOOKUP($P29,$P$98:$CS$631,BX$30,FALSE))) ->  | BY29: =IF(Süt!$B31="","",IF(Süt!$C31<=0,"",VLOOKUP($P29,$P$98:$CS$631,BY$30,FALSE))) ->  | BZ29: =IF(Süt!$B31="","",IF(Süt!$C31<=0,"",VLOOKUP($P29,$P$98:$CS$631,BZ$30,FALSE))) ->  | CA29: =IF(Süt!$B31="","",IF(Süt!$C31<=0,"",VLOOKUP($P29,$P$98:$CS$631,CA$30,FALSE))) ->  | CB29: =IF(Süt!$B31="","",IF(Süt!$C31<=0,"",VLOOKUP($P29,$P$98:$CS$631,CB$30,FALSE))) ->  | CC29: =IF(Süt!$B31="","",IF(Süt!$C31<=0,"",VLOOKUP($P29,$P$98:$CS$631,CC$30,FALSE))) ->  | CD29: =IF(Süt!$B31="","",IF(Süt!$C31<=0,"",VLOOKUP($P29,$P$98:$CS$631,CD$30,FALSE))) ->  | CE29: =IF(Süt!$B31="","",IF(Süt!$C31<=0,"",VLOOKUP($P29,$P$98:$CS$631,CE$30,FALSE))) ->  | CF29: =IF(Süt!$B31="","",IF(Süt!$C31<=0,"",VLOOKUP($P29,$P$98:$CS$631,CF$30,FALSE))) ->  | CG29: =IF(Süt!$B31="","",IF(Süt!$C31<=0,"",VLOOKUP($P29,$P$98:$CS$631,CG$30,FALSE))) ->  | CH29: =IF(Süt!$B31="","",IF(Süt!$C31<=0,"",VLOOKUP($P29,$P$98:$CS$631,CH$30,FALSE))) ->  | CI29: =IF(Süt!$B31="","",IF(Süt!$C31<=0,"",VLOOKUP($P29,$P$98:$CS$631,CI$30,FALSE))) ->  | CJ29: =IF(Süt!$B31="","",IF(Süt!$C31<=0,"",VLOOKUP($P29,$P$98:$CS$631,CJ$30,FALSE))) ->  | CK29: =IF(Süt!$B31="","",IF(Süt!$C31<=0,"",VLOOKUP($P29,$P$98:$CS$631,CK$30,FALSE))) ->  | CL29: =IF(Süt!$B31="","",IF(Süt!$C31<=0,"",VLOOKUP($P29,$P$98:$CS$631,CL$30,FALSE))) ->  | CM29: =IF(Süt!$B31="","",IF(Süt!$C31<=0,"",VLOOKUP($P29,$P$98:$CS$631,CM$30,FALSE))) ->  | CN29: =IF(Süt!$B31="","",IF(Süt!$C31<=0,"",VLOOKUP($P29,$P$98:$CS$631,CN$30,FALSE))) ->  | CO29: =IF(Süt!$B31="","",IF(Süt!$C31<=0,"",VLOOKUP($P29,$P$98:$CS$631,CO$30,FALSE))) ->  | CP29: =IF(Süt!$B31="","",IF(Süt!$C31<=0,"",VLOOKUP($P29,$P$98:$CS$631,CP$30,FALSE))) ->  | CQ29: =IF(Süt!$B31="","",IF(Süt!$C31<=0,"",VLOOKUP($P29,$P$98:$CS$631,CQ$30,FALSE))) ->  | CR29: =IF(Süt!$B31="","",IF(Süt!$C31<=0,"",VLOOKUP($P29,$P$98:$CS$631,CR$30,FALSE))) ->  | CS29: =IF(Süt!$B31="","",IF(Süt!$C31<=0,"",VLOOKUP($P29,$P$98:$CS$631,CS$30,FALSE))) ->  | CT29: -11 | CU29: 0.432 | CV29: 0.702 | CW29: Wt3rd | CX29: =MW -> 682 | CY29: kg, Üçüncü buzağılama ağırlığı | DJ29: Islak/Karışık
A30: =IF(Süt!A30="","",Süt!A30) ->  | B30: =IF(Süt!B30="","",Süt!B30) ->  | C30: =IF(Süt!C30="","",Süt!C30) ->  | D30: =Süt!D30 -> 0 | E30: =Süt!E30 -> 0 | F30: =Süt!F30 -> 0 | G30: HP,% KM | I30: =IF(OR(J6="TAMAM",J6="FAZLA")=TRUE,"",((H6-I6)/10)/($H2-$I2)) ->  | Q30: 2 | R30: =Q30+1 -> 3 | S30: 4 | T30: 5 | U30: 6 | V30: 7 | W30: 8 | X30: 9 | Y30: 10 | Z30: 11 | AA30: 12 | AB30: 13 | AC30: 14 | AD30: 15 | AE30: 16 | AF30: 17 | AG30: 18 | AH30: 19 | AI30: 20 | AJ30: 21 | AK30: 22 | AL30: 23 | AM30: 24 | AN30: 25 | AO30: 26 | AP30: 27 | AQ30: 28 | AR30: 29 | AS30: 30 | AT30: 31 | AU30: 32 | AV30: 33 | AW30: 34 | AX30: =AW30+1 -> 35 | AY30: 36 | AZ30: 37 | BA30: 38 | BB30: 39 | BC30: 40 | BD30: 41 | BE30: 42 | BF30: 43 | BG30: 44 | BH30: 45 | BI30: 46 | BJ30: 47 | BK30: 48 | BL30: 49 | BM30: 50 | BN30: 51 | BO30: 52 | BP30: 53 | BQ30: 54 | BR30: 55 | BS30: 56 | BT30: 57 | BU30: 58 | BV30: 59 | BW30: 60 | BX30: 61 | BY30: 62 | BZ30: 63 | CA30: 64 | CB30: 65 | CC30: 66 | CD30: =CC30+1 -> 67 | CE30: 68 | CF30: 69 | CG30: 70 | CH30: 71 | CI30: 72 | CJ30: 73 | CK30: 74 | CL30: 75 | CM30: 76 | CN30: 77 | CO30: 78 | CP30: 79 | CQ30: 80 | CR30: 81 | CS30: 82 | CT30: -12 | CU30: 0.459 | CV30: 0.729 | CW30: Wt1stBred | CX30: =MW*0.55 -> 375.1 | CY30: kg, İlk sıfattaki hedef ağırlığı | DJ30: Çamur yada Karla Kaplı
A31: =IF(Süt!A31="","",Süt!A31) ->  | B31: =IF(Süt!B31="","",Süt!B31) ->  | C31: =IF(Süt!C31="","",Süt!C31) ->  | D31: =Süt!D31 -> 0 | E31: =Süt!E31 -> 0 | F31: =Süt!F31 -> 0 | G31: ME,Mcal/kg KM | I31: =IF(OR(J13="TAMAM",J13="FAZLA")=TRUE,"",IF(OR(AnimalType="Sağmal İnek",AnimalType="Kurudaki İnek")=TRUE, (((H13-I13)/($H2-$I2))+0.45)/0.8, (H13-I13)/($H2-$I2) )) ->  | Q31: =SUM(Q34:Q60) -> 13.96347513 | R31: =SUM(R34:R60) -> 13432.9114 | S31: =SUM(S34:S60) -> 428.4111019 | T31: =SUM(T34:T50) -> 13490.64349 | U31: =SUM(U34:U60) -> 19.58988113 | V31: 51.42978306 | Y31: 32.43245426 | Z31: 19.85112907 | AA31: 21.13815915 | AB31: 2951.987463 | AC31: 121.5267416 | AD31: 214.58668 | AE31: 7.692401172 | AF31: =IF(TotalRegDMFed >0,SUM(AF34:AF60),0) -> 0.5677695475 | AG31: =IF(TotalDMFed > 0,SUM(AG34:AG60)/TotalDMFed,0) -> 1.693326052 | AH31: =SUM(AH34:AH60) -> 8.906214199 | AI31: 125.713 | AJ31: 5.728679882 | AK31: 443.4264216 | AL31: 20.27648409 | AM31: 6.267280348 | AO31: =SUM(AO34:AO60) -> 30.6 | AQ31: =SUM(AQ34:AQ60) -> 10.39179569 | AR31: =SUM(AR34:AR60) -> 10.34020735 | AS31: =SUM(AS34:AS60) -> 6.14835941 | AU31: =SUM(AU34:AU60) -> 2.061587216 | AV31: 0.8904002472 | AW31: 0.6767354265 | AX31: 44.4816375 | AY31: 19.3671941 | AZ31: 35.34301415 | BA31: 67.2038759 | BB31: 41.39984694 | BC31: 13.65960375 | BD31: 13.70349511 | BE31: 41.79070175 | BF31: 34.52101926 | BG31: 10.56077861 | BH31: 50.29859686 | BI31: 0 | BJ31: 0 | BK31: 0 | BL31: 7.647358128 | BM31: 0.1237536656 | BN31: 0.05083283607 | BO31: 0.06517252925 | BP31: 0.04466135014 | BQ31: 0.04268536942 | BR31: 0.006829659107 | BS31: 0.2639126348 | BT31: 0.2375213713 | BU31: 0.0449510167 | BV31: 0.04045591503 | BW31: 0.09220733727 | BX31: 0.08298660354 | BY31: 0.04349086621 | BZ31: 0.04349086621 | CA31: =SUM(CA34:CA60) -> 6.061947 | CB31: 6.061947 | CC31: 375.81215 | CD31: 15.032486 | CE31: 16.830557 | CF31: 14.30597345 | CG31: 3556.546216 | CH31: 355.6546216 | CI31: 1750.747862 | CJ31: 17.50747862 | CK31: 7.655473871 | CL31: 7.655473871 | CM31: 1627.01193 | CN31: 244.0517895 | CO31: 0 | CP31: 0 | CQ31: 423.30577 | CR31: 66.3889 | CS31: 600 | CT31: -13 | CU31: 0.486 | CV31: 0.756 | CW31: ADG1st | CX31: =IF((FirstCalf - Age) > 0,(Wt1st - (BW - CW)) / ((FirstCalf - Age) * 30.4),0) -> 0 | CY31: kg/gün, İlk buzağılamadaki ortalama GCAA
G32: Ca,% KM | I32: =IF(OR(J14="TAMAM",J14="FAZLA")=TRUE,"",(((H14-I14)/10))/0.6/($H2-$I2)) ->  | O32: =SUM(O34:O60) -> 39.61711607 | Q32: TotalTDN | R32: TDN-1X | S32: .TDN_ActX | T32: TDN_Act(X) | U32: DiscDE | V32: MEng | Y32: NEm | Z32: NEg | AA32: DM | AB32: CP | AC32: tdCP | AD32: tdNFC | AE32: DietaryNFC | AF32: Ether Extract | AG32: TotalDigestibleFat | AH32: NDF | AI32: dNDF | AJ32: ADF | AK32: .TDN | AL32: .DE | AM32: ConcSum | AN32: Kp | AO32: tdFat | AP32: ProMEng | AQ32: ProNEl | AR32: ProNEm | AS32: ProNEg | AT32: ilk | AU32: RDP(X) | AV32: RUP(X) | AW32: DigestedRUP | AX32: Arg | AY32: His | AZ32: Ile | BA32: Leu | BB32: Lys | BC32: Met | BD32: Cys | BE32: Phe | BF32: Thr | BG32: Trp | BH32: Val | BI32: CalfStarter | BJ32: MilkFeeds | BK32: RegFeeds | BL32: ForageNDF | BM32: Ca | BN32: Ca | BO32: P | BP32: P | BQ32: Mg | BR32: Mg | BS32: K | BT32: K | BU32: Na | BV32: Na | BW32: Cl | BX32: Cl | BY32: S | BZ32: S | CA32: Co | CB32: Co | CC32: Cu | CD32: Cu | CE32: I | CF32: I | CG32: Fe | CH32: Fe | CI32: Mn | CJ32: Mn | CK32: Se | CL32: Se | CM32: Zn | CN32: Zn | CO32: Mo | CP32: Mo | CQ32: Vit A=Abs | CR32: Vit D=Abs | CS32: Vit E=Abs | CT32: =CT31-1 -> -14 | CU32: 0.513 | CV32: 0.783 | CW32: ADG2nd | CX32: =IF(CalfInt > 0,(Wt2nd - Wt1st) / (CalfInt * 30.4),0) -> 0.1869517544 | CY32: kg/gün, İkinci buzağılamadaki ortalama GCAA | DJ32: Sıcaklık Stresi
G33: P,% KM | I33: =IF(OR(J16="TAMAM",J16="FAZLA")=TRUE,"",(((H16-I16)/10))/0.7/($H2-$I2)) ->  | O33: MİKTAR | P33: HESAPLAMALAR | R33: g | V33: Mcal/gün | Y33: Mcal/gün | Z33: Mcal/gün | AA33: kg | AB33: g | AF33: % | AH33: g/gün | AJ33: g/gün | AT33: RDP | AW33: % | AX33: %CP | AY33: %CP | AZ33: %CP | BA33: %CP | BB33: %CP | BC33: %CP | BD33: %CP | BE33: %CP | BF33: %CP | BG33: %CP | BH33: %CP | BL33: g/gün | BN33: Abs | BP33: Abs | BR33: Abs | BT33: Abs | BV33: Abs | BX33: Abs | BZ33: Abs | CA33: mg/kg | CB33: Abs | CC33: mg | CD33: Abs | CE33: mg | CF33: Abs | CG33: mg | CH33: Abs | CI33: mg | CJ33: Abs | CK33: mg | CL33: Abs | CM33: mg | CN33: Abs | CO33: mg | CP33: Abs | CQ33: (1000 IU/kg) | CR33: (1000 IU/kg) | CS33: (IU/kg) | CT33: -15 | CU33: 0.54 | CV33: 0.81 | CW33: ADG3rd | CX33: =IF(CalfInt > 0,(Wt3rd - Wt2nd) / (CalfInt * 30.4),0) -> 0.1495614035 | CY33: kg/gün, Üçüncü buzağılamadaki ortalama GCAA | DJ33: Yok
B34: Hayvan sayısını giriniz : | C34: 20 | O34: =IF(Süt!B5="","",IF(Süt!C5<=0,"",Süt!C5)) -> 25 | P34: =P3 -> Mısır Silajı, %29-33 KM | Q34: =IF(Süt!$B5="","",IF(Süt!$C5<=0,"",IF(MID(AN3,1,9)="Calf Feed",0,(AK34/100)*AA34))) -> 5.10533586 | R34: =IF(Süt!$B5="","",IF(Süt!$C5<=0,"",(R3/100)*(AA34*1000))) -> 4772.4675 | S34: =IF(Süt!$B5="","",IF(Süt!$C5<=0,"",IF(MID(AN3,1,9)="Calf Feed",0,AK34*Discount))) -> 63.03461743 | T34: =IF(Süt!$B5="","",IF(Süt!$C5<=0,"",(S34/100)*(AA34*1000))) -> 4932.458814 | U34: =IF(Süt!$B5="","",IF(Süt!$C5<=0,"",Discount*AL34)) -> 2.727160394 | V34: =IF(Süt!$B5="","",IF(Süt!$C5<=0,"",IF(AP34<0,0,AP34)*AA34)) -> 18.04657838 | Y34: =IF(Süt!$B5="","",IF(Süt!$C5<=0,"",IF(AR34<0,0,AR34)*AA34)) -> 11.2831148 | Z34: =IF(Süt!$B5="","",IF(Süt!$C5<=0,"",IF(AS34<0,0,AS34)*AA34)) -> 6.697198221 | AA34: =IF(Süt!$B5="","",IF(Süt!$C5<=0,"",$O34*AA3/100)) -> 7.825 | AB34: =IF(Süt!$B5="","",IF(Süt!$C5<=0,"",(AB3/ 100) * (AA34 * 1000))) -> 563.4 | AC34: =IF(Süt!$B5="","",IF(Süt!$C5<=0,"",IF(MID(AN3,1,9)<>"Calf Feed",IF(AB3 > 0,IF(S3="Forage", EXP((-1.2 * (AE3 / AB3))) * AB3,IF(AN3 = "Animal Protein",(AC3 * AB3),(1 - (0.4 * (AE3 / AB3))) * AB3)),0),0))) -> 6.407148751 | AD34: =IF(Süt!$B5="","",IF(Süt!$C5<=0,"",IF(MID(AN3,1,9)<>"Calf Feed",0.98 * (100 - AH3 - AB3 - AF3 - AL3 + AD3) * T3,0))) -> 29.75476 | AE34: =IF(Süt!$B5="","",IF(Süt!$C5<=0,"",IF(MID(AN3,1,9)<>"Calf Feed",((100 - AH3 - AB3 - AF3 - AL3 + AD3) /100)*AA34,0))) -> 2.527475 | AF34: =IF(Süt!$B5="","",IF(Süt!$C5<=0,"",IF(MID(AN3,1,9)="Calf Feed",0,(AF3/100)*AA34))) -> 0.26605 | AG34: =IF(Süt!$B5="","",IF(Süt!$C5<=0,"",IF(AN3 = "Fat and Oil",IF(S3 = "Fatty acids",(AF3 * AG3)*AA34,(10 + ((AF3 - 10) * AG3))*AA34),(AF3 - 1)*AA34))) -> 18.78 | AH34: =IF(Süt!$B5="","",IF(Süt!$C5<=0,"",AH3/100*$AA34)) -> 4.139425 | AI34: =IF(Süt!$B5="","",IF(Süt!$C5<=0,"",IF(MID(AN3,1,9)<>"Calf Feed",IF(AH3 >AD3,AI3*AH3,0),0))) -> 30.682 | AJ34: =IF(Süt!$B5="","",IF(Süt!$C5<=0,"",AJ3/100*$AA34)) -> 2.433575 | AK34: =IF(Süt!$B5="","",IF(Süt!$C5<=0,"",IF(MID(AN3,1,9)<>"Calf Feed",IF(AN3="Fat and Oil",IF(S3="Fatty acids",AF3*AG3*2.25,10+(((AF3-10)*AG3*2.25))),IF(AN3="Animal Protein",(AC3*AB3)+((AF3-1)*2.25)+((0.98*(100-AB3-AL3-AF3))-7),IF(AI34>0,AD34+AC34+AO34+AI34-7,IF(AB3>0,((0.98*T3)*(100-AB3-AF3-AL3))+(AB3*(1-(0.4*AE3/AB3)))+((2.25*(AF3-1)-7)),((0.98*T3)*(100-AF3-AL3))+(2.25*(AF3-1)-7))))),AA34))) -> 65.24390875 | AL34: =IF(Süt!$B5="","",IF(Süt!$C5<=0,"",IF(MID(AN3,1,9)<>"Calf Feed",IF(AN3="Fat and Oil",IF(S3="Fatty acids",AF3*AG3*0.094,((AF3-10)*AG3*0.094)+0.43),IF(AN3="Animal Protein",(AD34*0.042)+(AC34*0.056)+(0.094*(AO34/2.25))-0.3,IF(AI34>0,(AD34*0.042)+(AI34*0.042)+(AC34*0.056)+(0.094*(AO34/2.25))-0.3,IF(AB3>0,(0.98*T3*(0.042*(100-AB3-AF3-AL3))+(AB3*(0.056*(1-(0.4*AE3/AB3)))))+(0.094*(AF3-1))-0.3,(0.98*T3)*(0.042*(100-AF3-AL3))+(0.094*(AF3-1))-0.3)))),U3))) -> 2.82274425 | AM34: =IF(AM3="Conc",AA34,0) -> 0 | AN34: =IF(ISERROR(IF(AM3="Conc",2.904 + (1.375 * BW_DMI) - (0.02 * PercentConc),IF(AM3="Dry",3.362 + (0.479 * BW_DMI) - (0.017 * AH3) - (0.007 * PercentConc),IF(AM3="Wet",3.054 + (0.614 * BW_DMI),0)))<0)=TRUE,0,IF(AM3="Conc",2.904 + (1.375 * BW_DMI) - (0.02 * PercentConc),IF(AM3="Dry",3.362 + (0.479 * BW_DMI) - (0.017 * AH3) - (0.007 * PercentConc),IF(AM3="Wet",3.054 + (0.614 * BW_DMI),0)))) -> 5.050743034 | AO34: =IF(Süt!$B5="","",IF(Süt!$C5<=0,"",IF(MID(AN3,1,9)<>"Calf Feed",IF(AF3 <1,0,(AF3-1)*2.25),0))) -> 5.4 | AP34: =IF(Süt!$B5="","",IF(Süt!$C5<=0,"",IF(AN3 <> "Fat and Oil",IF(AF3 >= 3,IF(AnimalType <> "Damızlık Düve",(1.01 * U34) - 0.45 + (0.0046 * (AF3 - 3)),0.82 * AL34),IF(AND(AnimalType <> "Buzağı",AnimalType <> "Damızlık Düve")=TRUE,(1.01 * U34) - 0.45,0.82 * AL34)),U34))) -> 2.306271998 | AQ34: =IF(Süt!$B5="","",IF(Süt!$C5<=0,"",IF(IF(AN3 <> "Fat and Oil",IF(AF3 >= 3,(0.703 * AP34) - 0.19 + ((((0.097 * AP34) + 0.19) / 97) * (AF3 - 3)),(0.703 * AP34) - 0.19),0.8*U34)<0,0,IF(AN3 <> "Fat and Oil",IF(AF3 >= 3,(0.703 * AP34) - 0.19 + ((((0.097 * AP34) + 0.19) / 97) * (AF3 - 3)),(0.703 * AP34) - 0.19 ),0.8*U34)))) -> 1.433015229 | AR34: =IF(Süt!$B5="","",IF(Süt!$C5<=0,"",IF(MID(AN3,1,9)="Calf Feed",0.75*AA34*V34,IF(IF(AN3 <> "Fat and Oil", ((1.37 * 0.82 * AL34) - (0.138 * (0.82 * AL34) ^ 2)+ (0.0105 * (0.82 * AL34) ^ 3) - 1.12),0.8 * U34)<0,0,IF(AN3 <> "Fat and Oil", ((1.37 * 0.82 * AL34) - (0.138 * (0.82 * AL34) ^ 2)+ (0.0105 * (0.82 * AL34) ^ 3) - 1.12),0.8 * U34))))) -> 1.441931604 | AS34: =IF(Süt!$B5="","",IF(Süt!$C5<=0,"",IF(MID(AN3,1,9)="Calf Feed",0.57*AA34*V34,IF(IF(AN3 <> "Fat and Oil",((1.42 * 0.82 * AL34) - (0.174 * (0.82 * AL34)^2)+ (0.0122 * (0.82 * AL34)^3) - 1.65),0.55 * U34)<0,0,IF(AN3 <> "Fat and Oil",((1.42 * 0.82 * AL34) - (0.174 * (0.82 * AL34)^2)+ (0.0122 * (0.82 * AL34)^3) - 1.65),0.55 * U34))))) -> 0.8558719771 | AT34: =IF(Süt!$B5="","",IF(Süt!$C5<=0,"",IF((AT3+AN34)>0,((AT3/(AT3+AN34))*((((AR3/100)*(AB3/100))*AA34)))+(((AQ3/100)*(AB3/100))*AA34),0))) -> 0.3791991976 | AU34: =IF(Süt!$B5="","",IF(Süt!$C5<=0,"",IF(ISERROR(AB34/1000 - E80)=TRUE,0,AB34/1000 - E80))) -> 0.3905690658 | AV34: =IF(Süt!$B5="","",IF(Süt!$C5<=0,"",IF((AT3+AN34)>0, IF(BW_DMI<2, C80, C80+(BW_DMI-2)*((D80-C80)/2) ),0))) -> 0.1728309342 | AW34: =IF(Süt!$B5="","",IF(Süt!$C5<=0,"",E80*(AW3/100))) -> 0.1170065424 | AX34: =IF(Süt!$B5="","",IF(Süt!$C5<=0,"",IF(AND($AA34 > 0, $AB3 > 0, $AB34 > 0),((($AA34 / TotalDMFed) * ($AB3 / 100) * (($AV34 * 1000) / $AB34)* (AX3 / 100) * TotalDMFed) * 1000),0))) -> 3.404769403 | AY34: =IF(Süt!$B5="","",IF(Süt!$C5<=0,"",IF(AND($AA34 > 0, $AB3 > 0, $AB34 > 0),((($AA34 / TotalDMFed) * ($AB3 / 100) * (($AV34 * 1000) / $AB34)* (AY3 / 100) * TotalDMFed) * 1000),0))) -> 3.093673722 | AZ34: =IF(Süt!$B5="","",IF(Süt!$C5<=0,"",IF(AND($AA34 > 0, $AB3 > 0, $AB34 > 0),((($AA34 / TotalDMFed) * ($AB3 / 100) * (($AV34 * 1000) / $AB34)* (AZ3 / 100) * TotalDMFed) * 1000),0))) -> 5.772553201 | BA34: =IF(Süt!$B5="","",IF(Süt!$C5<=0,"",IF(AND($AA34 > 0, $AB3 > 0, $AB34 > 0),((($AA34 / TotalDMFed) * ($AB3 / 100) * (($AV34 * 1000) / $AB34)* (BA3 / 100) * TotalDMFed) * 1000),0))) -> 14.84617724 | BB34: =IF(Süt!$B5="","",IF(Süt!$C5<=0,"",IF(AND($AA34 > 0, $AB3 > 0, $AB34 > 0),((($AA34 / TotalDMFed) * ($AB3 / 100) * (($AV34 * 1000) / $AB34)* (BB3 / 100) * TotalDMFed) * 1000),0))) -> 4.338056448 | BC34: =IF(Süt!$B5="","",IF(Süt!$C5<=0,"",IF(AND($AA34 > 0, $AB3 > 0, $AB34 > 0),((($AA34 / TotalDMFed) * ($AB3 / 100) * (($AV34 * 1000) / $AB34)* (BC3 / 100) * TotalDMFed) * 1000),0))) -> 2.644313293 | BD34: =IF(Süt!$B5="","",IF(Süt!$C5<=0,"",IF(AND($AA34 > 0, $AB3 > 0, $AB34 > 0),((($AA34 / TotalDMFed) * ($AB3 / 100) * (($AV34 * 1000) / $AB34)* (BD3 / 100) * TotalDMFed) * 1000),0))) -> 2.315934518 | BE34: =IF(Süt!$B5="","",IF(Süt!$C5<=0,"",IF(AND($AA34 > 0, $AB3 > 0, $AB34 > 0),((($AA34 / TotalDMFed) * ($AB3 / 100) * (($AV34 * 1000) / $AB34)* (BE3 / 100) * TotalDMFed) * 1000),0))) -> 6.619424779 | BF34: =IF(Süt!$B5="","",IF(Süt!$C5<=0,"",IF(AND($AA34 > 0, $AB3 > 0, $AB34 > 0),((($AA34 / TotalDMFed) * ($AB3 / 100) * (($AV34 * 1000) / $AB34)* (BF3 / 100) * TotalDMFed) * 1000),0))) -> 5.5133068 | BG34: =IF(Süt!$B5="","",IF(Süt!$C5<=0,"",IF(AND($AA34 > 0, $AB3 > 0, $AB34 > 0),((($AA34 / TotalDMFed) * ($AB3 / 100) * (($AV34 * 1000) / $AB34)* (BG3 / 100) * TotalDMFed) * 1000),0))) -> 0.7604561103 | BH34: =IF(Süt!$B5="","",IF(Süt!$C5<=0,"",IF(AND($AA34 > 0, $AB3 > 0, $AB34 > 0),((($AA34 / TotalDMFed) * ($AB3 / 100) * (($AV34 * 1000) / $AB34)* (BH3 / 100) * TotalDMFed) * 1000),0))) -> 7.725542757 | BI34: =IF(Süt!$B5="","",IF(Süt!$C5<=0,"",IF(AnimalType="Buzağı",IF(P3="BUZAĞI BAŞLANGIÇ YEMİ",AA34,0),0))) -> 0 | BJ34: =IF(Süt!$B5="","",IF(Süt!$C5<=0,"",IF(AnimalType="Buzağı",IF(AN3="Calf Feed-Milk",AA34,0),0))) -> 0 | BK34: =IF(Süt!$B5="","",IF(Süt!$C5<=0,"",IF(AnimalType="Buzağı",IF(P3="BUZAĞI BAŞLANGIÇ YEMİ",0,AA34),0))) -> 0 | BL34: =IF(Süt!$B5="","",IF(Süt!$C5<=0,"",IF(S3="Forage",AH34,0))) -> 4.139425 | BM34: =IF(Süt!$B5="","",IF(Süt!$C5<=0,"",BM3/100*$AA34)) -> 0.02191 | BN34: =IF(Süt!$B5="","",IF(Süt!$C5<=0,"",IF(AnimalType <> "Buzağı",((BM3 / 100) * $AA34) * BN3,((BM3 / 100) * $AA34)))) -> 0.013146 | BO34: =IF(Süt!$B5="","",IF(Süt!$C5<=0,"",BO3/100*$AA34)) -> 0.020345 | BP34: =IF(Süt!$B5="","",IF(Süt!$C5<=0,"",IF(AnimalType <> "Buzağı",((BO3 / 100) * $AA34) * BP3,((BO3 / 100) * $AA34)))) -> 0.0142415 | BQ34: =IF(Süt!$B5="","",IF(Süt!$C5<=0,"",BQ3/100*$AA34)) -> 0.0133025 | BR34: =IF(Süt!$B5="","",IF(Süt!$C5<=0,"",IF(AnimalType <> "Buzağı",((BQ3 / 100) * $AA34) * BR3,((BQ3 / 100) * $AA34)))) -> 0.0021284 | BS34: =IF(Süt!$B5="","",IF(Süt!$C5<=0,"",BS3/100*$AA34)) -> 0.0939 | BT34: =IF(Süt!$B5="","",IF(Süt!$C5<=0,"",IF(AnimalType <> "Buzağı",((BS3 / 100) * $AA34) * BT3,((BS3 / 100) * $AA34)))) -> 0.08451 | BU34: =IF(Süt!$B5="","",IF(Süt!$C5<=0,"",BU3/100*$AA34)) -> 0.0007825 | BV34: =IF(Süt!$B5="","",IF(Süt!$C5<=0,"",IF(AnimalType <> "Buzağı",((BU3 / 100) * $AA34) * BV3,((BU3 / 100) * $AA34)))) -> 0.00070425 | BW34: =IF(Süt!$B5="","",IF(Süt!$C5<=0,"",BW3/100*$AA34)) -> 0.0226925 | BX34: =IF(Süt!$B5="","",IF(Süt!$C5<=0,"",IF(AnimalType <> "Buzağı",((BW3 / 100) * $AA34) * BX3,((BW3 / 100) * $AA34)))) -> 0.02042325 | BY34: =IF(Süt!$B5="","",IF(Süt!$C5<=0,"",BY3/100*$AA34)) -> 0.010955 | BZ34: =IF(Süt!$B5="","",IF(Süt!$C5<=0,"",IF(AnimalType <> "Buzağı",((BY3 / 100) * $AA34) * BZ3,((BY3 / 100) * $AA34)))) -> 0.010955 | CA34: =IF(Süt!$B5="","",IF(Süt!$C5<=0,"",CA3*$AA34)) -> 0 | CB34: =IF(Süt!$B5="","",IF(Süt!$C5<=0,"",IF(AnimalType <> "Buzağı",CA3 * $AA34 * CB3,CA3 * $AA34))) -> 0 | CC34: =IF(Süt!$B5="","",IF(Süt!$C5<=0,"",CC3*$AA34)) -> 46.95 | CD34: =IF(Süt!$B5="","",IF(Süt!$C5<=0,"",IF(AnimalType <> "Buzağı",CC3 * $AA34 * CD3,CC3 * $AA34))) -> 1.878 | CE34: =IF(Süt!$B5="","",IF(Süt!$C5<=0,"",CE3*$AA34)) -> 0 | CF34: =IF(Süt!$B5="","",IF(Süt!$C5<=0,"",IF(AnimalType <> "Buzağı",CE3 * $AA34 * CF3,CE3 * $AA34))) -> 0 | CG34: =IF(Süt!$B5="","",IF(Süt!$C5<=0,"",CG3*$AA34)) -> 813.8 | CH34: =IF(Süt!$B5="","",IF(Süt!$C5<=0,"",IF(AnimalType <> "Buzağı",CG3 * $AA34 * CH3,CG3 * $AA34))) -> 81.38 | CI34: =IF(Süt!$B5="","",IF(Süt!$C5<=0,"",CI3*$AA34)) -> 281.7 | CJ34: =IF(Süt!$B5="","",IF(Süt!$C5<=0,"",IF(AnimalType <> "Buzağı",CI3 * $AA34 * CJ3,CI3 * $AA34))) -> 2.817 | CK34: =IF(Süt!$B5="","",IF(Süt!$C5<=0,"",CK3*$AA34)) -> 0.313 | CL34: =IF(Süt!$B5="","",IF(Süt!$C5<=0,"",IF(AnimalType <> "Buzağı",CK3 * $AA34 * CL3,CK3 * $AA34))) -> 0.313 | CM34: =IF(Süt!$B5="","",IF(Süt!$C5<=0,"",CM3*$AA34)) -> 187.8 | CN34: =IF(Süt!$B5="","",IF(Süt!$C5<=0,"",IF(AnimalType <> "Buzağı",CM3 * $AA34 * CN3,CM3 * $AA34))) -> 28.17 | CQ34: =IF(Süt!$B5="","",IF(Süt!$C5<=0,"",CQ3*$AA34)) -> 0 | CR34: =IF(Süt!$B5="","",IF(Süt!$C5<=0,"",CR3*$AA34)) -> 0 | CS34: =IF(Süt!$B5="","",IF(Süt!$C5<=0,"",CS3*$AA34)) -> 0 | CT34: =CT33-1 -> -16 | CU34: 0.567 | CV34: 0.837 | CW34: ADG1stBred | CX34: =IF((Age1stBred - Age) > 0,(Wt1stBred - BW) / ((Age1stBred - Age) * 30.4),0) -> 0 | CY34: kg/gün, İlk sıfattaki ortalama GCAA | DJ34: Hızlı ve yüzeysel solunum
B35: Öğün sayısını giriniz : | C35: 2 | O35: =IF(Süt!B6="","",IF(Süt!C6<=0,"",Süt!C6)) -> 0.7087150009 | P35: Buğday Samanı | Q35: =IF(Süt!$B6="","",IF(Süt!$C6<=0,"",IF(MID(AN4,1,9)="Calf Feed",0,(AK35/100)*AA35))) -> 0.3125281214 | R35: =IF(Süt!$B6="","",IF(Süt!$C6<=0,"",(R4/100)*(AA35*1000))) -> 312.0649328 | S35: =IF(Süt!$B6="","",IF(Süt!$C6<=0,"",IF(MID(AN4,1,9)="Calf Feed",0,AK35*Discount))) -> 45.95966894 | T35: =IF(Süt!$B6="","",IF(Süt!$C6<=0,"",(S35/100)*(AA35*1000))) -> 301.9452842 | U35: =IF(Süt!$B6="","",IF(Süt!$C6<=0,"",Discount*AL35)) -> 1.969970928 | V35: =IF(Süt!$B6="","",IF(Süt!$C6<=0,"",IF(AP35<0,0,AP35)*AA35)) -> 1.011530977 | Y35: =IF(Süt!$B6="","",IF(Süt!$C6<=0,"",IF(AR35<0,0,AR35)*AA35)) -> 0.5478690493 | Z35: =IF(Süt!$B6="","",IF(Süt!$C6<=0,"",IF(AS35<0,0,AS35)*AA35)) -> 0.1936954035 | AA35: =IF(Süt!$B6="","",IF(Süt!$C6<=0,"",$O35*AA4/100)) -> 0.6569788058 | AB35: =IF(Süt!$B6="","",IF(Süt!$C6<=0,"",(AB4/ 100) * (AA35 * 1000))) -> 31.53498268 | AC35: =IF(Süt!$B6="","",IF(Süt!$C6<=0,"",IF(MID(AN4,1,9)<>"Calf Feed",IF(AB4 > 0,IF(S4="Forage", EXP((-1.2 * (AE4 / AB4))) * AB4,IF(AN4 = "Animal Protein",(AC4 * AB4),(1 - (0.4 * (AE4 / AB4))) * AB4)),0),0))) -> 3.382502831 | AD35: =IF(Süt!$B6="","",IF(Süt!$C6<=0,"",IF(MID(AN4,1,9)<>"Calf Feed",0.98 * (100 - AH4 - AB4 - AF4 - AL4 + AD4) * T4,0))) -> 14.798 | AE35: =IF(Süt!$B6="","",IF(Süt!$C6<=0,"",IF(MID(AN4,1,9)<>"Calf Feed",((100 - AH4 - AB4 - AF4 - AL4 + AD4) /100)*AA35,0))) -> 0.09920379968 | AF35: =IF(Süt!$B6="","",IF(Süt!$C6<=0,"",IF(MID(AN4,1,9)="Calf Feed",0,(AF4/100)*AA35))) -> 0.01051166089 | AG35: =IF(Süt!$B6="","",IF(Süt!$C6<=0,"",IF(AN4 = "Fat and Oil",IF(S4 = "Fatty acids",(AF4 * AG4)*AA35,(10 + ((AF4 - 10) * AG4))*AA35),(AF4 - 1)*AA35))) -> 0.3941872835 | AH35: =IF(Süt!$B6="","",IF(Süt!$C6<=0,"",AH4/100*$AA35)) -> 0.4795945283 | AI35: =IF(Süt!$B6="","",IF(Süt!$C6<=0,"",IF(MID(AN4,1,9)<>"Calf Feed",IF(AH4 >AD4,AI4*AH4,0),0))) -> 35.04 | AJ35: =IF(Süt!$B6="","",IF(Süt!$C6<=0,"",AJ4/100*$AA35)) -> 0.3245475301 | AK35: =IF(Süt!$B6="","",IF(Süt!$C6<=0,"",IF(MID(AN4,1,9)<>"Calf Feed",IF(AN4="Fat and Oil",IF(S4="Fatty acids",AF4*AG4*2.25,10+(((AF4-10)*AG4*2.25))),IF(AN4="Animal Protein",(AC4*AB4)+((AF4-1)*2.25)+((0.98*(100-AB4-AL4-AF4))-7),IF(AI35>0,AD35+AC35+AO35+AI35-7,IF(AB4>0,((0.98*T4)*(100-AB4-AF4-AL4))+(AB4*(1-(0.4*AE4/AB4)))+((2.25*(AF4-1)-7)),((0.98*T4)*(100-AF4-AL4))+(2.25*(AF4-1)-7))))),AA35))) -> 47.57050283 | AL35: =IF(Süt!$B6="","",IF(Süt!$C6<=0,"",IF(MID(AN4,1,9)<>"Calf Feed",IF(AN4="Fat and Oil",IF(S4="Fatty acids",AF4*AG4*0.094,((AF4-10)*AG4*0.094)+0.43),IF(AN4="Animal Protein",(AD35*0.042)+(AC35*0.056)+(0.094*(AO35/2.25))-0.3,IF(AI35>0,(AD35*0.042)+(AI35*0.042)+(AC35*0.056)+(0.094*(AO35/2.25))-0.3,IF(AB4>0,(0.98*T4*(0.042*(100-AB4-AF4-AL4))+(AB4*(0.056*(1-(0.4*AE4/AB4)))))+(0.094*(AF4-1))-0.3,(0.98*T4)*(0.042*(100-AF4-AL4))+(0.094*(AF4-1))-0.3)))),U4))) -> 2.039016159 | AM35: =IF(AM4="Conc",AA35,0) -> 0 | AN35: =IF(ISERROR(IF(AM4="Conc",2.904 + (1.375 * BW_DMI) - (0.02 * PercentConc),IF(AM4="Dry",3.362 + (0.479 * BW_DMI) - (0.017 * AH4) - (0.007 * PercentConc),IF(AM4="Wet",3.054 + (0.614 * BW_DMI),0)))<0)=TRUE,0,IF(AM4="Conc",2.904 + (1.375 * BW_DMI) - (0.02 * PercentConc),IF(AM4="Dry",3.362 + (0.479 * BW_DMI) - (0.017 * AH4) - (0.007 * PercentConc),IF(AM4="Wet",3.054 + (0.614 * BW_DMI),0)))) -> 3.471175816 | AO35: =IF(Süt!$B6="","",IF(Süt!$C6<=0,"",IF(MID(AN4,1,9)<>"Calf Feed",IF(AF4 <1,0,(AF4-1)*2.25),0))) -> 1.35 | AP35: =IF(Süt!$B6="","",IF(Süt!$C6<=0,"",IF(AN4 <> "Fat and Oil",IF(AF4 >= 3,IF(AnimalType <> "Damızlık Düve",(1.01 * U35) - 0.45 + (0.0046 * (AF4 - 3)),0.82 * AL35),IF(AND(AnimalType <> "Buzağı",AnimalType <> "Damızlık Düve")=TRUE,(1.01 * U35) - 0.45,0.82 * AL35)),U35))) -> 1.539670638 | AQ35: =IF(Süt!$B6="","",IF(Süt!$C6<=0,"",IF(IF(AN4 <> "Fat and Oil",IF(AF4 >= 3,(0.703 * AP35) - 0.19 + ((((0.097 * AP35) + 0.19) / 97) * (AF4 - 3)),(0.703 * AP35) - 0.19),0.8*U35)<0,0,IF(AN4 <> "Fat and Oil",IF(AF4 >= 3,(0.703 * AP35) - 0.19 + ((((0.097 * AP35) + 0.19) / 97) * (AF4 - 3)),(0.703 * AP35) - 0.19 ),0.8*U35)))) -> 0.8923884582 | AR35: =IF(Süt!$B6="","",IF(Süt!$C6<=0,"",IF(MID(AN4,1,9)="Calf Feed",0.75*AA35*V35,IF(IF(AN4 <> "Fat and Oil", ((1.37 * 0.82 * AL35) - (0.138 * (0.82 * AL35) ^ 2)+ (0.0105 * (0.82 * AL35) ^ 3) - 1.12),0.8 * U35)<0,0,IF(AN4 <> "Fat and Oil", ((1.37 * 0.82 * AL35) - (0.138 * (0.82 * AL35) ^ 2)+ (0.0105 * (0.82 * AL35) ^ 3) - 1.12),0.8 * U35))))) -> 0.8339219537 | AS35: =IF(Süt!$B6="","",IF(Süt!$C6<=0,"",IF(MID(AN4,1,9)="Calf Feed",0.57*AA35*V35,IF(IF(AN4 <> "Fat and Oil",((1.42 * 0.82 * AL35) - (0.174 * (0.82 * AL35)^2)+ (0.0122 * (0.82 * AL35)^3) - 1.65),0.55 * U35)<0,0,IF(AN4 <> "Fat and Oil",((1.42 * 0.82 * AL35) - (0.174 * (0.82 * AL35)^2)+ (0.0122 * (0.82 * AL35)^3) - 1.65),0.55 * U35))))) -> 0.2948274765 | AT35: =IF(Süt!$B6="","",IF(Süt!$C6<=0,"",IF((AT4+AN35)>0,((AT4/(AT4+AN35))*((((AR4/100)*(AB4/100))*AA35)))+(((AQ4/100)*(AB4/100))*AA35),0))) -> 0.007591294652 | AU35: =IF(Süt!$B6="","",IF(Süt!$C6<=0,"",IF(ISERROR(AB35/1000 - E81)=TRUE,0,AB35/1000 - E81))) -> 0.007067171493 | AV35: =IF(Süt!$B6="","",IF(Süt!$C6<=0,"",IF((AT4+AN35)>0, IF(BW_DMI<2, C81, C81+(BW_DMI-2)*((D81-C81)/2) ),0))) -> 0.02446781119 | AW35: =IF(Süt!$B6="","",IF(Süt!$C6<=0,"",E81*(AW4/100))) -> 0.01590407727 | AX35: =IF(Süt!$B6="","",IF(Süt!$C6<=0,"",IF(AND($AA35 > 0, $AB4 > 0, $AB35 > 0),((($AA35 / TotalDMFed) * ($AB4 / 100) * (($AV35 * 1000) / $AB35)* (AX4 / 100) * TotalDMFed) * 1000),0))) -> 0.2642523608 | AY35: =IF(Süt!$B6="","",IF(Süt!$C6<=0,"",IF(AND($AA35 > 0, $AB4 > 0, $AB35 > 0),((($AA35 / TotalDMFed) * ($AB4 / 100) * (($AV35 * 1000) / $AB35)* (AY4 / 100) * TotalDMFed) * 1000),0))) -> 0.4012721035 | AZ35: =IF(Süt!$B6="","",IF(Süt!$C6<=0,"",IF(AND($AA35 > 0, $AB4 > 0, $AB35 > 0),((($AA35 / TotalDMFed) * ($AB4 / 100) * (($AV35 * 1000) / $AB35)* (AZ4 / 100) * TotalDMFed) * 1000),0))) -> 0.4355270391 | BA35: =IF(Süt!$B6="","",IF(Süt!$C6<=0,"",IF(AND($AA35 > 0, $AB4 > 0, $AB35 > 0),((($AA35 / TotalDMFed) * ($AB4 / 100) * (($AV35 * 1000) / $AB35)* (BA4 / 100) * TotalDMFed) * 1000),0))) -> 0.7952038636 | BB35: =IF(Süt!$B6="","",IF(Süt!$C6<=0,"",IF(AND($AA35 > 0, $AB4 > 0, $AB35 > 0),((($AA35 / TotalDMFed) * ($AB4 / 100) * (($AV35 * 1000) / $AB35)* (BB4 / 100) * TotalDMFed) * 1000),0))) -> 0.7952038636 | BC35: =IF(Süt!$B6="","",IF(Süt!$C6<=0,"",IF(AND($AA35 > 0, $AB4 > 0, $AB35 > 0),((($AA35 / TotalDMFed) * ($AB4 / 100) * (($AV35 * 1000) / $AB35)* (BC4 / 100) * TotalDMFed) * 1000),0))) -> 0.2911669531 | BD35: =IF(Süt!$B6="","",IF(Süt!$C6<=0,"",IF(AND($AA35 > 0, $AB4 > 0, $AB35 > 0),((($AA35 / TotalDMFed) * ($AB4 / 100) * (($AV35 * 1000) / $AB35)* (BD4 / 100) * TotalDMFed) * 1000),0))) -> 0.2618055797 | BE35: =IF(Süt!$B6="","",IF(Süt!$C6<=0,"",IF(AND($AA35 > 0, $AB4 > 0, $AB35 > 0),((($AA35 / TotalDMFed) * ($AB4 / 100) * (($AV35 * 1000) / $AB35)* (BE4 / 100) * TotalDMFed) * 1000),0))) -> 0.5089304727 | BF35: =IF(Süt!$B6="","",IF(Süt!$C6<=0,"",IF(AND($AA35 > 0, $AB4 > 0, $AB35 > 0),((($AA35 / TotalDMFed) * ($AB4 / 100) * (($AV35 * 1000) / $AB35)* (BF4 / 100) * TotalDMFed) * 1000),0))) -> 0.7952038636 | BG35: =IF(Süt!$B6="","",IF(Süt!$C6<=0,"",IF(AND($AA35 > 0, $AB4 > 0, $AB35 > 0),((($AA35 / TotalDMFed) * ($AB4 / 100) * (($AV35 * 1000) / $AB35)* (BG4 / 100) * TotalDMFed) * 1000),0))) -> 0.3474429189 | BH35: =IF(Süt!$B6="","",IF(Süt!$C6<=0,"",IF(AND($AA35 > 0, $AB4 > 0, $AB35 > 0),((($AA35 / TotalDMFed) * ($AB4 / 100) * (($AV35 * 1000) / $AB35)* (BH4 / 100) * TotalDMFed) * 1000),0))) -> 0.6532905587 | BI35: =IF(Süt!$B6="","",IF(Süt!$C6<=0,"",IF(AnimalType="Buzağı",IF(P4="BUZAĞI BAŞLANGIÇ YEMİ",AA35,0),0))) -> 0 | BJ35: =IF(Süt!$B6="","",IF(Süt!$C6<=0,"",IF(AnimalType="Buzağı",IF(AN4="Calf Feed-Milk",AA35,0),0))) -> 0 | BK35: =IF(Süt!$B6="","",IF(Süt!$C6<=0,"",IF(AnimalType="Buzağı",IF(P4="BUZAĞI BAŞLANGIÇ YEMİ",0,AA35),0))) -> 0 | BL35: =IF(Süt!$B6="","",IF(Süt!$C6<=0,"",IF(S4="Forage",AH35,0))) -> 0.4795945283 | BM35: =IF(Süt!$B6="","",IF(Süt!$C6<=0,"",BM4/100*$AA35)) -> 0.002036634298 | BN35: =IF(Süt!$B6="","",IF(Süt!$C6<=0,"",IF(AnimalType <> "Buzağı",((BM4 / 100) * $AA35) * BN4,((BM4 / 100) * $AA35)))) -> 0.0006109902894 | BO35: =IF(Süt!$B6="","",IF(Süt!$C6<=0,"",BO4/100*$AA35)) -> 0.0006569788058 | BP35: =IF(Süt!$B6="","",IF(Süt!$C6<=0,"",IF(AnimalType <> "Buzağı",((BO4 / 100) * $AA35) * BP4,((BO4 / 100) * $AA35)))) -> 0.0004204664357 | BQ35: =IF(Süt!$B6="","",IF(Süt!$C6<=0,"",BQ4/100*$AA35)) -> 0.0009197703282 | BR35: =IF(Süt!$B6="","",IF(Süt!$C6<=0,"",IF(AnimalType <> "Buzağı",((BQ4 / 100) * $AA35) * BR4,((BQ4 / 100) * $AA35)))) -> 0.0001471632525 | BS35: =IF(Süt!$B6="","",IF(Süt!$C6<=0,"",BS4/100*$AA35)) -> 0.01018317149 | BT35: =IF(Süt!$B6="","",IF(Süt!$C6<=0,"",IF(AnimalType <> "Buzağı",((BS4 / 100) * $AA35) * BT4,((BS4 / 100) * $AA35)))) -> 0.009164854341 | BU35: =IF(Süt!$B6="","",IF(Süt!$C6<=0,"",BU4/100*$AA35)) -> 0.000788374567 | BV35: =IF(Süt!$B6="","",IF(Süt!$C6<=0,"",IF(AnimalType <> "Buzağı",((BU4 / 100) * $AA35) * BV4,((BU4 / 100) * $AA35)))) -> 0.0007095371103 | BW35: =IF(Süt!$B6="","",IF(Süt!$C6<=0,"",BW4/100*$AA35)) -> 0.003941872835 | BX35: =IF(Süt!$B6="","",IF(Süt!$C6<=0,"",IF(AnimalType <> "Buzağı",((BW4 / 100) * $AA35) * BX4,((BW4 / 100) * $AA35)))) -> 0.003547685552 | BY35: =IF(Süt!$B6="","",IF(Süt!$C6<=0,"",BY4/100*$AA35)) -> 0.0007226766864 | BZ35: =IF(Süt!$B6="","",IF(Süt!$C6<=0,"",IF(AnimalType <> "Buzağı",((BY4 / 100) * $AA35) * BZ4,((BY4 / 100) * $AA35)))) -> 0.0007226766864 | CA35: =IF(Süt!$B6="","",IF(Süt!$C6<=0,"",CA4*$AA35)) -> 0 | CB35: =IF(Süt!$B6="","",IF(Süt!$C6<=0,"",IF(AnimalType <> "Buzağı",CA4 * $AA35 * CB4,CA4 * $AA35))) -> 0 | CC35: =IF(Süt!$B6="","",IF(Süt!$C6<=0,"",CC4*$AA35)) -> 3.941872835 | CD35: =IF(Süt!$B6="","",IF(Süt!$C6<=0,"",IF(AnimalType <> "Buzağı",CC4 * $AA35 * CD4,CC4 * $AA35))) -> 0.1576749134 | CE35: =IF(Süt!$B6="","",IF(Süt!$C6<=0,"",CE4*$AA35)) -> 0 | CF35: =IF(Süt!$B6="","",IF(Süt!$C6<=0,"",IF(AnimalType <> "Buzağı",CE4 * $AA35 * CF4,CE4 * $AA35))) -> 0 | CG35: =IF(Süt!$B6="","",IF(Süt!$C6<=0,"",CG4*$AA35)) -> 113.0003546 | CH35: =IF(Süt!$B6="","",IF(Süt!$C6<=0,"",IF(AnimalType <> "Buzağı",CG4 * $AA35 * CH4,CG4 * $AA35))) -> 11.30003546 | CI35: =IF(Süt!$B6="","",IF(Süt!$C6<=0,"",CI4*$AA35)) -> 44.01757999 | CJ35: =IF(Süt!$B6="","",IF(Süt!$C6<=0,"",IF(AnimalType <> "Buzağı",CI4 * $AA35 * CJ4,CI4 * $AA35))) -> 0.4401757999 | CK35: =IF(Süt!$B6="","",IF(Süt!$C6<=0,"",CK4*$AA35)) -> 0 | CL35: =IF(Süt!$B6="","",IF(Süt!$C6<=0,"",IF(AnimalType <> "Buzağı",CK4 * $AA35 * CL4,CK4 * $AA35))) -> 0 | CM35: =IF(Süt!$B6="","",IF(Süt!$C6<=0,"",CM4*$AA35)) -> 10.51166089 | CN35: =IF(Süt!$B6="","",IF(Süt!$C6<=0,"",IF(AnimalType <> "Buzağı",CM4 * $AA35 * CN4,CM4 * $AA35))) -> 1.576749134 | CQ35: =IF(Süt!$B6="","",IF(Süt!$C6<=0,"",CQ4*$AA35)) -> 0 | CR35: =IF(Süt!$B6="","",IF(Süt!$C6<=0,"",CR4*$AA35)) -> 0 | CS35: =IF(Süt!$B6="","",IF(Süt!$C6<=0,"",CS4*$AA35)) -> 0 | CT35: -17 | CU35: 0.594 | CV35: 0.864 | CW35: ADGNonBred | CX35: =IF(IF(AnimalType = "Damızlık Düve", IF(Age < Age1stBred,(Wt1stBred - BW) / ((Age1stBred - Age) * 30.4),0),0)<0,0, IF(AnimalType = "Damızlık Düve", IF(Age < Age1stBred,(Wt1stBred - BW) / ((Age1stBred - Age) * 30.4),0),0)) -> 0 | CY35: kg/gün, İlk sıfattaki ortalama GCAA nı sağlamak için gereken GCAA | DJ35: Ağzı açık solunum
O36: =IF(Süt!B7="","",IF(Süt!C7<=0,"",Süt!C7)) -> 7 | P36: Yonca Kuru Otu, 4.kalite, %15-17 HP, %44-48 NDF | Q36: =IF(Süt!$B7="","",IF(Süt!$C7<=0,"",IF(MID(AN5,1,9)="Calf Feed",0,(AK36/100)*AA36))) -> 3.928067579 | R36: =IF(Süt!$B7="","",IF(Süt!$C7<=0,"",(R5/100)*(AA36*1000))) -> 3366.9503 | S36: =IF(Süt!$B7="","",IF(Süt!$C7<=0,"",IF(MID(AN5,1,9)="Calf Feed",0,AK36*Discount))) -> 59.40076116 | T36: =IF(Süt!$B7="","",IF(Süt!$C7<=0,"",(S36/100)*(AA36*1000))) -> 3795.05523 | U36: =IF(Süt!$B7="","",IF(Süt!$C7<=0,"",Discount*AL36)) -> 2.682725765 | V36: =IF(Süt!$B7="","",IF(Süt!$C7<=0,"",IF(AP36<0,0,AP36)*AA36)) -> 14.43605831 | Y36: =IF(Süt!$B7="","",IF(Süt!$C7<=0,"",IF(AR36<0,0,AR36)*AA36)) -> 8.994928064 | Z36: =IF(Süt!$B7="","",IF(Süt!$C7<=0,"",IF(AS36<0,0,AS36)*AA36)) -> 5.271955356 | AA36: =IF(Süt!$B7="","",IF(Süt!$C7<=0,"",$O36*AA5/100)) -> 6.3889 | AB36: =IF(Süt!$B7="","",IF(Süt!$C7<=0,"",(AB5/ 100) * (AA36 * 1000))) -> 1027.33512 | AC36: =IF(Süt!$B7="","",IF(Süt!$C7<=0,"",IF(MID(AN5,1,9)<>"Calf Feed",IF(AB5 > 0,IF(S5="Forage", EXP((-1.2 * (AE5 / AB5))) * AB5,IF(AN5 = "Animal Protein",(AC5 * AB5),(1 - (0.4 * (AE5 / AB5))) * AB5)),0),0))) -> 14.37708997 | AD36: =IF(Süt!$B7="","",IF(Süt!$C7<=0,"",IF(MID(AN5,1,9)<>"Calf Feed",0.98 * (100 - AH5 - AB5 - AF5 - AL5 + AD5) * T5,0))) -> 27.7536 | AE36: =IF(Süt!$B7="","",IF(Süt!$C7<=0,"",IF(MID(AN5,1,9)<>"Calf Feed",((100 - AH5 - AB5 - AF5 - AL5 + AD5) /100)*AA36,0))) -> 1.80933648 | AF36: =IF(Süt!$B7="","",IF(Süt!$C7<=0,"",IF(MID(AN5,1,9)="Calf Feed",0,(AF5/100)*AA36))) -> 0.1661114 | AG36: =IF(Süt!$B7="","",IF(Süt!$C7<=0,"",IF(AN5 = "Fat and Oil",IF(S5 = "Fatty acids",(AF5 * AG5)*AA36,(10 + ((AF5 - 10) * AG5))*AA36),(AF5 - 1)*AA36))) -> 10.22224 | AH36: =IF(Süt!$B7="","",IF(Süt!$C7<=0,"",AH5/100*$AA36)) -> 3.0283386 | AI36: =IF(Süt!$B7="","",IF(Süt!$C7<=0,"",IF(MID(AN5,1,9)<>"Calf Feed",IF(AH5 >AD5,AI5*AH5,0),0))) -> 22.752 | AJ36: =IF(Süt!$B7="","",IF(Süt!$C7<=0,"",AJ5/100*$AA36)) -> 2.4086153 | AK36: =IF(Süt!$B7="","",IF(Süt!$C7<=0,"",IF(MID(AN5,1,9)<>"Calf Feed",IF(AN5="Fat and Oil",IF(S5="Fatty acids",AF5*AG5*2.25,10+(((AF5-10)*AG5*2.25))),IF(AN5="Animal Protein",(AC5*AB5)+((AF5-1)*2.25)+((0.98*(100-AB5-AL5-AF5))-7),IF(AI36>0,AD36+AC36+AO36+AI36-7,IF(AB5>0,((0.98*T5)*(100-AB5-AF5-AL5))+(AB5*(1-(0.4*AE5/AB5)))+((2.25*(AF5-1)-7)),((0.98*T5)*(100-AF5-AL5))+(2.25*(AF5-1)-7))))),AA36))) -> 61.48268997 | AL36: =IF(Süt!$B7="","",IF(Süt!$C7<=0,"",IF(MID(AN5,1,9)<>"Calf Feed",IF(AN5="Fat and Oil",IF(S5="Fatty acids",AF5*AG5*0.094,((AF5-10)*AG5*0.094)+0.43),IF(AN5="Animal Protein",(AD36*0.042)+(AC36*0.056)+(0.094*(AO36/2.25))-0.3,IF(AI36>0,(AD36*0.042)+(AI36*0.042)+(AC36*0.056)+(0.094*(AO36/2.25))-0.3,IF(AB5>0,(0.98*T5*(0.042*(100-AB5-AF5-AL5))+(AB5*(0.056*(1-(0.4*AE5/AB5)))))+(0.094*(AF5-1))-0.3,(0.98*T5)*(0.042*(100-AF5-AL5))+(0.094*(AF5-1))-0.3)))),U5))) -> 2.776752238 | AM36: 0 | AN36: 3.906375816 | AO36: =IF(Süt!$B7="","",IF(Süt!$C7<=0,"",IF(MID(AN5,1,9)<>"Calf Feed",IF(AF5 <1,0,(AF5-1)*2.25),0))) -> 3.6 | AP36: =IF(Süt!$B7="","",IF(Süt!$C7<=0,"",IF(AN5 <> "Fat and Oil",IF(AF5 >= 3,IF(AnimalType <> "Damızlık Düve",(1.01 * U36) - 0.45 + (0.0046 * (AF5 - 3)),0.82 * AL36),IF(AND(AnimalType <> "Buzağı",AnimalType <> "Damızlık Düve")=TRUE,(1.01 * U36) - 0.45,0.82 * AL36)),U36))) -> 2.259553023 | AQ36: =IF(Süt!$B7="","",IF(Süt!$C7<=0,"",IF(IF(AN5 <> "Fat and Oil",IF(AF5 >= 3,(0.703 * AP36) - 0.19 + ((((0.097 * AP36) + 0.19) / 97) * (AF5 - 3)),(0.703 * AP36) - 0.19),0.8*U36)<0,0,IF(AN5 <> "Fat and Oil",IF(AF5 >= 3,(0.703 * AP36) - 0.19 + ((((0.097 * AP36) + 0.19) / 97) * (AF5 - 3)),(0.703 * AP36) - 0.19 ),0.8*U36)))) -> 1.398465775 | AR36: =IF(Süt!$B7="","",IF(Süt!$C7<=0,"",IF(MID(AN5,1,9)="Calf Feed",0.75*AA36*V36,IF(IF(AN5 <> "Fat and Oil", ((1.37 * 0.82 * AL36) - (0.138 * (0.82 * AL36) ^ 2)+ (0.0105 * (0.82 * AL36) ^ 3) - 1.12),0.8 * U36)<0,0,IF(AN5 <> "Fat and Oil", ((1.37 * 0.82 * AL36) - (0.138 * (0.82 * AL36) ^ 2)+ (0.0105 * (0.82 * AL36) ^ 3) - 1.12),0.8 * U36))))) -> 1.407899335 | AS36: =IF(Süt!$B7="","",IF(Süt!$C7<=0,"",IF(MID(AN5,1,9)="Calf Feed",0.57*AA36*V36,IF(IF(AN5 <> "Fat and Oil",((1.42 * 0.82 * AL36) - (0.174 * (0.82 * AL36)^2)+ (0.0122 * (0.82 * AL36)^3) - 1.65),0.55 * U36)<0,0,IF(AN5 <> "Fat and Oil",((1.42 * 0.82 * AL36) - (0.174 * (0.82 * AL36)^2)+ (0.0122 * (0.82 * AL36)^3) - 1.65),0.55 * U36))))) -> 0.8251741859 | AT36: =IF(Süt!$B7="","",IF(Süt!$C7<=0,"",IF((AT5+AN36)>0,((AT5/(AT5+AN36))*((((AR5/100)*(AB5/100))*AA36)))+(((AQ5/100)*(AB5/100))*AA36),0))) -> 0.7330823804 | AU36: =IF(Süt!$B7="","",IF(Süt!$C7<=0,"",IF(ISERROR(AB36/1000 - E82)=TRUE,0,AB36/1000 - E82))) -> 0.6915135136 | AV36: =IF(Süt!$B7="","",IF(Süt!$C7<=0,"",IF((AT5+AN36)>0, IF(BW_DMI<2, C82, C82+(BW_DMI-2)*((D82-C82)/2) ),0))) -> 0.3358216064 | AW36: =IF(Süt!$B7="","",IF(Süt!$C7<=0,"",E82*(AW5/100))) -> 0.2213064386 | AX36: =IF(Süt!$B7="","",IF(Süt!$C7<=0,"",IF(AND($AA36 > 0, $AB5 > 0, $AB36 > 0),((($AA36 / TotalDMFed) * ($AB5 / 100) * (($AV36 * 1000) / $AB36)* (AX5 / 100) * TotalDMFed) * 1000),0))) -> 17.26123057 | AY36: =IF(Süt!$B7="","",IF(Süt!$C7<=0,"",IF(AND($AA36 > 0, $AB5 > 0, $AB36 > 0),((($AA36 / TotalDMFed) * ($AB5 / 100) * (($AV36 * 1000) / $AB36)* (AY5 / 100) * TotalDMFed) * 1000),0))) -> 6.548521325 | AZ36: =IF(Süt!$B7="","",IF(Süt!$C7<=0,"",IF(AND($AA36 > 0, $AB5 > 0, $AB36 > 0),((($AA36 / TotalDMFed) * ($AB5 / 100) * (($AV36 * 1000) / $AB36)* (AZ5 / 100) * TotalDMFed) * 1000),0))) -> 14.17167179 | BA36: =IF(Süt!$B7="","",IF(Süt!$C7<=0,"",IF(AND($AA36 > 0, $AB5 > 0, $AB36 > 0),((($AA36 / TotalDMFed) * ($AB5 / 100) * (($AV36 * 1000) / $AB36)* (BA5 / 100) * TotalDMFed) * 1000),0))) -> 24.68288807 | BB36: =IF(Süt!$B7="","",IF(Süt!$C7<=0,"",IF(AND($AA36 > 0, $AB5 > 0, $AB36 > 0),((($AA36 / TotalDMFed) * ($AB5 / 100) * (($AV36 * 1000) / $AB36)* (BB5 / 100) * TotalDMFed) * 1000),0))) -> 17.0597376 | BC36: =IF(Süt!$B7="","",IF(Süt!$C7<=0,"",IF(AND($AA36 > 0, $AB5 > 0, $AB36 > 0),((($AA36 / TotalDMFed) * ($AB5 / 100) * (($AV36 * 1000) / $AB36)* (BC5 / 100) * TotalDMFed) * 1000),0))) -> 5.23881706 | BD36: =IF(Süt!$B7="","",IF(Süt!$C7<=0,"",IF(AND($AA36 > 0, $AB5 > 0, $AB36 > 0),((($AA36 / TotalDMFed) * ($AB5 / 100) * (($AV36 * 1000) / $AB36)* (BD5 / 100) * TotalDMFed) * 1000),0))) -> 4.768666811 | BE36: =IF(Süt!$B7="","",IF(Süt!$C7<=0,"",IF(AND($AA36 > 0, $AB5 > 0, $AB36 > 0),((($AA36 / TotalDMFed) * ($AB5 / 100) * (($AV36 * 1000) / $AB36)* (BE5 / 100) * TotalDMFed) * 1000),0))) -> 16.05227279 | BF36: =IF(Süt!$B7="","",IF(Süt!$C7<=0,"",IF(AND($AA36 > 0, $AB5 > 0, $AB36 > 0),((($AA36 / TotalDMFed) * ($AB5 / 100) * (($AV36 * 1000) / $AB36)* (BF5 / 100) * TotalDMFed) * 1000),0))) -> 14.6754042 | BG36: =IF(Süt!$B7="","",IF(Süt!$C7<=0,"",IF(AND($AA36 > 0, $AB5 > 0, $AB36 > 0),((($AA36 / TotalDMFed) * ($AB5 / 100) * (($AV36 * 1000) / $AB36)* (BG5 / 100) * TotalDMFed) * 1000),0))) -> 5.037324096 | BH36: =IF(Süt!$B7="","",IF(Süt!$C7<=0,"",IF(AND($AA36 > 0, $AB5 > 0, $AB36 > 0),((($AA36 / TotalDMFed) * ($AB5 / 100) * (($AV36 * 1000) / $AB36)* (BH5 / 100) * TotalDMFed) * 1000),0))) -> 17.56347001 | BI36: =IF(Süt!$B7="","",IF(Süt!$C7<=0,"",IF(AnimalType="Buzağı",IF(P5="BUZAĞI BAŞLANGIÇ YEMİ",AA36,0),0))) -> 0 | BJ36: =IF(Süt!$B7="","",IF(Süt!$C7<=0,"",IF(AnimalType="Buzağı",IF(AN5="Calf Feed-Milk",AA36,0),0))) -> 0 | BK36: =IF(Süt!$B7="","",IF(Süt!$C7<=0,"",IF(AnimalType="Buzağı",IF(P5="BUZAĞI BAŞLANGIÇ YEMİ",0,AA36),0))) -> 0 | BL36: =IF(Süt!$B7="","",IF(Süt!$C7<=0,"",IF(S5="Forage",AH36,0))) -> 3.0283386 | BM36: =IF(Süt!$B7="","",IF(Süt!$C7<=0,"",BM5/100*$AA36)) -> 0.07602791 | BN36: =IF(Süt!$B7="","",IF(Süt!$C7<=0,"",IF(AnimalType <> "Buzağı",((BM5 / 100) * $AA36) * BN5,((BM5 / 100) * $AA36)))) -> 0.022808373 | BO36: =IF(Süt!$B7="","",IF(Süt!$C7<=0,"",BO5/100*$AA36)) -> 0.01533336 | BP36: =IF(Süt!$B7="","",IF(Süt!$C7<=0,"",IF(AnimalType <> "Buzağı",((BO5 / 100) * $AA36) * BP5,((BO5 / 100) * $AA36)))) -> 0.0098133504 | BQ36: =IF(Süt!$B7="","",IF(Süt!$C7<=0,"",BQ5/100*$AA36)) -> 0.01725003 | BR36: =IF(Süt!$B7="","",IF(Süt!$C7<=0,"",IF(AnimalType <> "Buzağı",((BQ5 / 100) * $AA36) * BR5,((BQ5 / 100) * $AA36)))) -> 0.0027600048 | BS36: =IF(Süt!$B7="","",IF(Süt!$C7<=0,"",BS5/100*$AA36)) -> 0.09966684 | BT36: =IF(Süt!$B7="","",IF(Süt!$C7<=0,"",IF(AnimalType <> "Buzağı",((BS5 / 100) * $AA36) * BT5,((BS5 / 100) * $AA36)))) -> 0.089700156 | BU36: =IF(Süt!$B7="","",IF(Süt!$C7<=0,"",BU5/100*$AA36)) -> 0.00447223 | BV36: =IF(Süt!$B7="","",IF(Süt!$C7<=0,"",IF(AnimalType <> "Buzağı",((BU5 / 100) * $AA36) * BV5,((BU5 / 100) * $AA36)))) -> 0.004025007 | BW36: =IF(Süt!$B7="","",IF(Süt!$C7<=0,"",BW5/100*$AA36)) -> 0 | BX36: =IF(Süt!$B7="","",IF(Süt!$C7<=0,"",IF(AnimalType <> "Buzağı",((BW5 / 100) * $AA36) * BX5,((BW5 / 100) * $AA36)))) -> 0 | BY36: =IF(Süt!$B7="","",IF(Süt!$C7<=0,"",BY5/100*$AA36)) -> 0.0191667 | BZ36: =IF(Süt!$B7="","",IF(Süt!$C7<=0,"",IF(AnimalType <> "Buzağı",((BY5 / 100) * $AA36) * BZ5,((BY5 / 100) * $AA36)))) -> 0.0191667 | CA36: =IF(Süt!$B7="","",IF(Süt!$C7<=0,"",CA5*$AA36)) -> 1.469447 | CB36: =IF(Süt!$B7="","",IF(Süt!$C7<=0,"",IF(AnimalType <> "Buzağı",CA5 * $AA36 * CB5,CA5 * $AA36))) -> 1.469447 | CC36: =IF(Süt!$B7="","",IF(Süt!$C7<=0,"",CC5*$AA36)) -> 63.25011 | CD36: =IF(Süt!$B7="","",IF(Süt!$C7<=0,"",IF(AnimalType <> "Buzağı",CC5 * $AA36 * CD5,CC5 * $AA36))) -> 2.5300044 | CE36: =IF(Süt!$B7="","",IF(Süt!$C7<=0,"",CE5*$AA36)) -> 0.830557 | CF36: =IF(Süt!$B7="","",IF(Süt!$C7<=0,"",IF(AnimalType <> "Buzağı",CE5 * $AA36 * CF5,CE5 * $AA36))) -> 0.70597345 | CG36: =IF(Süt!$B7="","",IF(Süt!$C7<=0,"",CG5*$AA36)) -> 1022.224 | CH36: =IF(Süt!$B7="","",IF(Süt!$C7<=0,"",IF(AnimalType <> "Buzağı",CG5 * $AA36 * CH5,CG5 * $AA36))) -> 102.2224 | CI36: =IF(Süt!$B7="","",IF(Süt!$C7<=0,"",CI5*$AA36)) -> 270.25047 | CJ36: =IF(Süt!$B7="","",IF(Süt!$C7<=0,"",IF(AnimalType <> "Buzağı",CI5 * $AA36 * CJ5,CI5 * $AA36))) -> 2.7025047 | CK36: =IF(Süt!$B7="","",IF(Süt!$C7<=0,"",CK5*$AA36)) -> 3.513895 | CL36: =IF(Süt!$B7="","",IF(Süt!$C7<=0,"",IF(AnimalType <> "Buzağı",CK5 * $AA36 * CL5,CK5 * $AA36))) -> 3.513895 | CM36: =IF(Süt!$B7="","",IF(Süt!$C7<=0,"",CM5*$AA36)) -> 166.75029 | CN36: =IF(Süt!$B7="","",IF(Süt!$C7<=0,"",IF(AnimalType <> "Buzağı",CM5 * $AA36 * CN5,CM5 * $AA36))) -> 25.0125435 | CQ36: =IF(Süt!$B7="","",IF(Süt!$C7<=0,"",CQ5*$AA36)) -> 123.30577 | CR36: =IF(Süt!$B7="","",IF(Süt!$C7<=0,"",CR5*$AA36)) -> 6.3889 | CS36: =IF(Süt!$B7="","",IF(Süt!$C7<=0,"",CS5*$AA36)) -> 0 | CT36: -18 | CU36: 0.621 | CV36: 0.891 | CW36: ADG için ön hesaplama | CX36: =IF(AnimalType = "Damızlık Düve",IF((DaysPreg > 0),ADG1st,ADG1stBred),IF((Age >= Age3rd),0,IF(AND(Age2nd <= Age,Age < Age3rd)=TRUE,ADG3rd,IF(AND(FirstCalf <= Age,Age < Age2nd)=TRUE,ADG2nd,IF(AND(Age1stBred <= Age,Age < FirstCalf)=TRUE,ADG1st))))) -> 0
